Workbook

Sheet timeclock raw data
A1: Date | B1: Year | C1: Month | D1: FYYear | E1: FYMonth | F1: DayofWeek | G1: Week | H1: CallsPerHr | I1: Hours | J1: Type | K1: Agent Name | L1: Handled | M1: Talk | N1: Wrap | O1: Time | P1: Avl | Q1: ACD | R1: Wrp | S1: Unv | T1: Brk | U1: Lun | V1: Msc | W1: Pbx | X1: Prd | Y1: Rcvd | Z1: AvgRcvd | AA1: Made | AB1: AvgMade
A2: 2008-01-02 | B2: =YEAR(A2) -> 2008 | C2: =MONTH(A2) -> 1 | D2: =IF(E2<=6,YEAR(A2)+1,YEAR(A2)) -> 2008 | E2: =IF(MONTH(A2)>6,MONTH(A2)-6,MONTH(A2)+6) -> 7 | F2: =WEEKDAY(A2) -> 4 | G2: =WEEKNUM(A2) -> 1 | I2: =(O2-TIME(0,0,0))*24 -> 2.5 | J2: BH | K2: Barton, April | O2: 02:30:00 | AE2: Software Repair Center schedule template
A3: 2008-01-02 | B3: 2008 | C3: 1 | D3: 2008 | E3: 7 | F3: 4 | G3: 1 | I3: 2 | J3: BH | K3: Doczi, Jozsef | O3: 02:00:00 | AE3: =(AK3-TIME(0,0,0))*24 -> 8 | AF3: SW | AG3: Van Dyke, Mark | AI3: Mon 9-12 | AK3: 08:00:00
A4: 2008-01-02 | B4: 2008 | C4: 1 | D4: 2008 | E4: 7 | F4: 4 | G4: 1 | I4: 2.5 | J4: BH | K4: Shang, Jennifer | O4: 02:30:00 | AE4: 4.5 | AF4: SW | AG4: Lang, Bob | AI4: Mon 1-5:30 | AK4: 04:30:00
A5: 2008-01-02 | B5: 2008 | C5: 1 | D5: 2008 | E5: 7 | F5: 4 | G5: 1 | H5: =L5/I5 -> 2.105263158 | I5: 1.9 | J5: Voice | K5: Barton, April | L5: 4 | M5: 11:48:00 | N5: **:** | O5: 01:54:00 | P5: 26.2 | Q5: 41.4 | R5: *.* | S5: 6.7 | T5: 0 | U5: 0 | V5: 0 | W5: 8 | X5: 93.3 | Y5: 0 | Z5: 00:00:00 | AA5: 2 | AB5: 04:35:00 | AE5: 3 | AF5: SW | AG5: Van Dyke, Mark | AI5: Tues 9-12 | AK5: 03:00:00
A6: 2008-01-02 | B6: 2008 | C6: 1 | D6: 2008 | E6: 7 | F6: 4 | G6: 1 | H6: 1.052631579 | I6: 0.95 | J6: Voice | K6: Blanco, Robin | L6: 1 | M6: 02:46:00 | N6: **:** | O6: 00:57:00 | P6: 55.6 | Q6: 4.9 | R6: *.* | S6: 29.5 | T6: 0 | U6: 0 | V6: 0 | W6: 6.6 | X6: 70.5 | Y6: 0 | Z6: 00:00:00 | AA6: 2 | AB6: 01:53:00 | AE6: 2 | AF6: SW | AG6: Thorn, Matthias | AI6: Tues 11-1 | AK6: 02:00:00
A7: 2008-01-02 | B7: 2008 | C7: 1 | D7: 2008 | E7: 7 | F7: 4 | G7: 1 | H7: 1.379310345 | I7: 2.9 | J7: Voice | K7: Doczi, Jozsef | L7: 4 | M7: 11:49:00 | N7: **:** | O7: 02:54:00 | P7: 26.1 | Q7: 27.2 | R7: *.* | S7: 6.3 | T7: 0 | U7: 0 | V7: 0 | W7: 24.8 | X7: 93.7 | Y7: 0 | Z7: 00:00:00 | AA7: 6 | AB7: 07:12:00 | AE7: 3.5 | AF7: SW | AG7: Lang, Bob | AI7: Tues 2-5:30 | AK7: 03:30:00
A8: 2008-01-02 | B8: 2008 | C8: 1 | D8: 2008 | E8: 7 | F8: 4 | G8: 1 | H8: 4.038461538 | I8: 1.733333333 | J8: Voice | K8: Galt, Phyllis | L8: 7 | M8: 06:04:00 | N8: **:** | O8: 01:44:00 | P8: 35.3 | Q8: 40.9 | R8: *.* | S8: 1.6 | T8: 0 | U8: 0 | V8: 0 | W8: 0 | X8: 98.4 | Y8: 0 | Z8: 00:00:00 | AA8: 0 | AB8: 00:00:00 | AE8: 7 | AF8: SW | AG8: Van Dyke, Mark | AI8: Wed all day | AK8: 07:00:00
A9: 2008-01-02 | B9: 2008 | C9: 1 | D9: 2008 | E9: 7 | F9: 4 | G9: 1 | H9: 3.5 | I9: 2 | J9: Voice | K9: Lang, Bob | L9: 7 | M9: 05:48:00 | N9: **:** | O9: 02:00:00 | P9: 54.2 | Q9: 33.8 | R9: *.* | S9: 10.6 | T9: 0 | U9: 0 | V9: 0 | W9: 0 | X9: 89.4 | Y9: 0 | Z9: 00:00:00 | AA9: 0 | AB9: 00:00:00 | AE9: 3.5 | AF9: SW | AG9: Brids, Bill | AI9: Wed 8:30-noon | AK9: 03:30:00
A10: 2008-01-02 | B10: 2008 | C10: 1 | D10: 2008 | E10: 7 | F10: 4 | G10: 1 | H10: 1.875 | I10: 2.666666667 | J10: Voice | K10: Larrabee, Joanne | L10: 5 | M10: 07:28:00 | N10: **:** | O10: 02:40:00 | P10: 9.4 | Q10: 23.4 | R10: *.* | S10: 4.9 | T10: 0 | U10: 0 | V10: 0 | W10: 2.8 | X10: 95.1 | Y10: 0 | Z10: 00:00:00 | AA10: 2 | AB10: 02:15:00 | AE10: 3.5 | AF10: SW | AG10: Brids, Bill | AI10: Thurs 8:30-noon | AK10: 03:30:00
A11: 2008-01-02 | B11: 2008 | C11: 1 | D11: 2008 | E11: 7 | F11: 4 | G11: 1 | H11: 1.388888889 | I11: 3.6 | J11: Voice | K11: Morzinski, Jacob | L11: 5 | M11: 09:19:00 | N11: **:** | O11: 03:36:00 | P11: 40.8 | Q11: 21.6 | R11: *.* | S11: 8.1 | T11: 0 | U11: 0 | V11: 0 | W11: 14.7 | X11: 91.9 | Y11: 0 | Z11: 00:00:00 | AA11: 3 | AB11: 10:37:00 | AE11: 3.5 | AF11: SW | AG11: Van Dyke, Mark | AI11: Thurs 8:30-noon | AK11: 03:30:00
A12: 2008-01-02 | B12: 2008 | C12: 1 | D12: 2008 | E12: 7 | F12: 4 | G12: 1 | H12: 3.255813953 | I12: 2.15 | J12: Voice | K12: Peloquin, Stuart | L12: 7 | M12: 11:05:00 | N12: **:** | O12: 02:09:00 | P12: 22.7 | Q12: 60 | R12: *.* | S12: 6.7 | T12: 0 | U12: 0 | V12: 0 | W12: 1.6 | X12: 93.3 | Y12: 0 | Z12: 00:00:00 | AA12: 5 | AB12: 00:25:00 | AE12: 3.5 | AF12: SW | AG12: Lang, Bob | AI12: Thurs 2-5:30 | AK12: 03:30:00
A13: 2008-01-02 | B13: 2008 | C13: 1 | D13: 2008 | E13: 7 | F13: 4 | G13: 1 | H13: 1.525423729 | I13: 1.966666667 | J13: Voice | K13: Reed, Jessica | L13: 3 | M13: 08:06:00 | N13: **:** | O13: 01:58:00 | P13: 8.7 | Q13: 20.7 | R13: *.* | S13: 1.6 | T13: 0 | U13: 0 | V13: 0 | W13: 33.2 | X13: 98.4 | Y13: 0 | Z13: 00:00:00 | AA13: 4 | AB13: 09:45:00 | AE13: 3 | AF13: SW | AG13: Thorn, Matthias | AI13: Thurs 1-4 | AK13: 03:00:00
A14: 2008-01-02 | B14: 2008 | C14: 1 | D14: 2008 | E14: 7 | F14: 4 | G14: 1 | H14: 3.351955307 | I14: 2.983333333 | J14: Voice | K14: Shang, Jennifer | L14: 10 | M14: 03:25:00 | N14: **:** | O14: 02:59:00 | P14: 41 | Q14: 19.1 | R14: *.* | S14: 9.7 | T14: 0 | U14: 0 | V14: 0 | W14: 7.2 | X14: 90.3 | Y14: 0 | Z14: 00:00:00 | AA14: 5 | AB14: 02:34:00 | AE14: 3 | AF14: SW | AG14: Shang, Jennifer | AI14: Friday 9-12 | AK14: 03:00:00
A15: 2008-01-02 | B15: 2008 | C15: 1 | D15: 2008 | E15: 7 | F15: 4 | G15: 1 | H15: 1.5 | I15: 2 | J15: Voice | K15: Thorn, Matthias | L15: 3 | M15: 05:12:00 | N15: **:** | O15: 02:00:00 | P15: 64.2 | Q15: 13.1 | R15: *.* | S15: 16.3 | T15: 0 | U15: 0 | V15: 0 | W15: 0 | X15: 83.7 | Y15: 0 | Z15: 00:00:00 | AA15: 0 | AB15: 00:00:00 | AE15: 4 | AF15: SW | AG15: Van Dyke, Mark | AI15: Friday 1-5 | AK15: 04:00:00
A16: 2008-01-02 | B16: 2008 | C16: 1 | D16: 2008 | E16: 7 | F16: 4 | G16: 1 | H16: 4.158415842 | I16: 1.683333333 | J16: Voice | K16: Van Dyke, Mark | L16: 7 | M16: 04:19:00 | N16: **:** | O16: 01:41:00 | P16: 36 | Q16: 30 | R16: *.* | S16: 4.9 | T16: 0 | U16: 0 | V16: 0 | W16: 0 | X16: 95.1 | Y16: 0 | Z16: 00:00:00 | AA16: 0 | AB16: 00:00:00
A17: 2008-01-02 | B17: 2008 | C17: 1 | D17: 2008 | E17: 7 | F17: 4 | G17: 1 | H17: 3.529411765 | I17: 2.55 | J17: Voice | K17: Verrick, Christi | L17: 9 | M17: 04:29:00 | N17: **:** | O17: 02:33:00 | P17: 31.4 | Q17: 26.3 | R17: *.* | S17: 1.7 | T17: 0 | U17: 0 | V17: 0 | W17: 0 | X17: 98.3 | Y17: 0 | Z17: 00:00:00 | AA17: 0 | AB17: 00:00:00
A18: 2008-01-02 | B18: 2008 | C18: 1 | D18: 2008 | E18: 7 | F18: 4 | G18: 1 | H18: 4.235294118 | I18: 1.416666667 | J18: Voice | K18: Witt, Karl | L18: 6 | M18: 08:54:00 | N18: **:** | O18: 01:25:00 | P18: 5.8 | Q18: 62.4 | R18: *.* | S18: 8.7 | T18: 0 | U18: 0 | V18: 0 | W18: 0 | X18: 91.3 | Y18: 0 | Z18: 00:00:00 | AA18: 0 | AB18: 00:00:00
A19: 2008-01-02 | B19: 2008 | C19: 1 | D19: 2008 | E19: 7 | F19: 4 | G19: 1 | I19: 2 | J19: W | K19: Brids, Bill | O19: 02:00:00
A20: 2008-01-02 | B20: 2008 | C20: 1 | D20: 2008 | E20: 7 | F20: 4 | G20: 1 | I20: 1 | J20: W | K20: Doczi, Jozsef | O20: 01:00:00
A21: 2008-01-02 | B21: 2008 | C21: 1 | D21: 2008 | E21: 7 | F21: 4 | G21: 1 | I21: 2 | J21: W | K21: Johnson, Barbara | O21: 02:00:00
A22: 2008-01-03 | B22: 2008 | C22: 1 | D22: 2008 | E22: 7 | F22: 5 | G22: 1 | I22: 3 | J22: BH | K22: Barton, April | O22: 03:00:00
A23: 2008-01-03 | B23: 2008 | C23: 1 | D23: 2008 | E23: 7 | F23: 5 | G23: 1 | I23: 4 | J23: BH | K23: Doczi, Jozsef | O23: 04:00:00
A24: 2008-01-03 | B24: 2008 | C24: 1 | D24: 2008 | E24: 7 | F24: 5 | G24: 1 | I24: 1 | J24: BH | K24: Verrick, Christi | O24: 01:00:00
A25: 2008-01-03 | B25: 2008 | C25: 1 | D25: 2008 | E25: 7 | F25: 5 | G25: 1 | H25: =L25/I25 -> 1.764705882 | I25: 1.133333333 | J25: Voice | K25: Baars, Fred | L25: 2 | M25: 04:41:00 | N25: **:** | O25: 01:08:00 | P25: 1.1 | Q25: 13.7 | R25: *.* | S25: 56.4 | T25: 0 | U25: 0 | V25: 0 | W25: 7.7 | X25: 43.6 | Y25: 0 | Z25: 00:00:00 | AA25: 4 | AB25: 01:19:00
A26: 2008-01-03 | B26: 2008 | C26: 1 | D26: 2008 | E26: 7 | F26: 5 | G26: 1 | H26: 2.542372881 | I26: 1.966666667 | J26: Voice | K26: Barton, April | L26: 5 | M26: 06:38:00 | N26: **:** | O26: 01:58:00 | P26: 20.1 | Q26: 28.1 | R26: *.* | S26: 20.2 | T26: 0 | U26: 0 | V26: 0 | W26: 1.7 | X26: 79.8 | Y26: 0 | Z26: 00:00:00 | AA26: 1 | AB26: 02:03:00
A27: 2008-01-03 | B27: 2008 | C27: 1 | D27: 2008 | E27: 7 | F27: 5 | G27: 1 | H27: 2.553191489 | I27: 2.35 | J27: Voice | K27: Blanco, Robin | L27: 6 | M27: 07:16:00 | N27: **:** | O27: 02:21:00 | P27: 42.5 | Q27: 31 | R27: *.* | S27: 12.4 | T27: 0 | U27: 0 | V27: 0 | W27: 3.8 | X27: 87.6 | Y27: 0 | Z27: 00:00:00 | AA27: 4 | AB27: 01:20:00
A28: 2008-01-03 | B28: 2008 | C28: 1 | D28: 2008 | E28: 7 | F28: 5 | G28: 1 | H28: 1.290322581 | I28: 1.55 | J28: Voice | K28: Doczi, Jozsef | L28: 2 | M28: 01:31:00 | N28: **:** | O28: 01:33:00 | P28: 49.7 | Q28: 3.3 | R28: *.* | S28: 6.4 | T28: 0 | U28: 0 | V28: 0 | W28: 10 | X28: 93.6 | Y28: 0 | Z28: 00:00:00 | AA28: 4 | AB28: 02:21:00
A29: 2008-01-03 | B29: 2008 | C29: 1 | D29: 2008 | E29: 7 | F29: 5 | G29: 1 | H29: 3 | I29: 1 | J29: Voice | K29: Galt, Phyllis | L29: 3 | M29: 12:49:00 | N29: **:** | O29: 01:00:00 | P29: 12.6 | Q29: 64.3 | R29: *.* | S29: 2.6 | T29: 0 | U29: 0 | V29: 0 | W29: 0 | X29: 97.4 | Y29: 0 | Z29: 00:00:00 | AA29: 0 | AB29: 00:00:00
A30: 2008-01-03 | B30: 2008 | C30: 1 | D30: 2008 | E30: 7 | F30: 5 | G30: 1 | H30: 1.875 | I30: 1.066666667 | J30: Voice | K30: Gresham, Chris | L30: 2 | M30: 02:24:00 | N30: **:** | O30: 01:04:00 | P30: 3.2 | Q30: 7.5 | R30: *.* | S30: 8.8 | T30: 0 | U30: 0 | V30: 0 | W30: 2.5 | X30: 91.2 | Y30: 0 | Z30: 00:00:00 | AA30: 1 | AB30: 01:37:00
A31: 2008-01-03 | B31: 2008 | C31: 1 | D31: 2008 | E31: 7 | F31: 5 | G31: 1 | H31: 4.173913043 | I31: 1.916666667 | J31: Voice | K31: Hose, John | L31: 8 | M31: 03:13:00 | N31: **:** | O31: 01:55:00 | P31: 21.8 | Q31: 22.3 | R31: *.* | S31: 6.2 | T31: 0 | U31: 0 | V31: 0 | W31: 3 | X31: 93.8 | Y31: 0 | Z31: 00:00:00 | AA31: 1 | AB31: 03:30:00
A32: 2008-01-03 | B32: 2008 | C32: 1 | D32: 2008 | E32: 7 | F32: 5 | G32: 1 | H32: 2.359550562 | I32: 2.966666667 | J32: Voice | K32: Morzinski, Jacob | L32: 7 | M32: 14:10:00 | N32: **:** | O32: 02:58:00 | P32: 20.9 | Q32: 55.8 | R32: *.* | S32: 12.2 | T32: 0 | U32: 0 | V32: 0 | W32: 1.6 | X32: 87.8 | Y32: 0 | Z32: 00:00:00 | AA32: 2 | AB32: 01:27:00
A33: 2008-01-03 | B33: 2008 | C33: 1 | D33: 2008 | E33: 7 | F33: 5 | G33: 1 | H33: 0.48 | I33: 2.083333333 | J33: Voice | K33: Reed, Jessica | L33: 1 | M33: 17:12:00 | N33: **:** | O33: 02:05:00 | P33: 29.7 | Q33: 13.8 | R33: *.* | S33: 32.3 | T33: 0 | U33: 0 | V33: 0 | W33: 24.2 | X33: 67.7 | Y33: 0 | Z33: 00:00:00 | AA33: 4 | AB33: 07:32:00
A34: 2008-01-03 | B34: 2008 | C34: 1 | D34: 2008 | E34: 7 | F34: 5 | G34: 1 | H34: 4.102564103 | I34: 1.95 | J34: Voice | K34: Robinson, Lisa | L34: 8 | M34: 04:01:00 | N34: **:** | O34: 01:57:00 | P34: 25.5 | Q34: 27.5 | R34: *.* | S34: 4.8 | T34: 0 | U34: 0 | V34: 0 | W34: 15.2 | X34: 95.2 | Y34: 0 | Z34: 00:00:00 | AA34: 5 | AB34: 03:34:00
A35: 2008-01-03 | B35: 2008 | C35: 1 | D35: 2008 | E35: 7 | F35: 5 | G35: 1 | H35: 3 | I35: 3 | J35: Voice | K35: Shang, Jennifer | L35: 9 | M35: 07:06:00 | N35: **:** | O35: 03:00:00 | P35: 32.3 | Q35: 35.6 | R35: *.* | S35: 4.4 | T35: 0 | U35: 0 | V35: 0 | W35: 0.6 | X35: 95.6 | Y35: 0 | Z35: 00:00:00 | AA35: 3 | AB35: 00:22:00
A36: 2008-01-03 | B36: 2008 | C36: 1 | D36: 2008 | E36: 7 | F36: 5 | G36: 1 | H36: 2.608695652 | I36: 1.916666667 | J36: Voice | K36: Thorn, Matthias | L36: 5 | M36: 08:17:00 | N36: **:** | O36: 01:55:00 | P36: 19.2 | Q36: 36.1 | R36: *.* | S36: 6.3 | T36: 0 | U36: 0 | V36: 0 | W36: 0 | X36: 93.7 | Y36: 0 | Z36: 00:00:00 | AA36: 0 | AB36: 00:00:00
A37: 2008-01-03 | B37: 2008 | C37: 1 | D37: 2008 | E37: 7 | F37: 5 | G37: 1 | H37: 2.745098039 | I37: 2.55 | J37: Voice | K37: Verrick, Christi | L37: 7 | M37: 06:31:00 | N37: **:** | O37: 02:33:00 | P37: 19.7 | Q37: 29.9 | R37: *.* | S37: 1.8 | T37: 0 | U37: 0 | V37: 0 | W37: 0 | X37: 98.2 | Y37: 0 | Z37: 00:00:00 | AA37: 0 | AB37: 00:00:00
A38: 2008-01-03 | B38: 2008 | C38: 1 | D38: 2008 | E38: 7 | F38: 5 | G38: 1 | I38: 2 | J38: W | K38: Doczi, Jozsef | O38: 02:00:00
A39: 2008-01-03 | B39: 2008 | C39: 1 | D39: 2008 | E39: 7 | F39: 5 | G39: 1 | I39: 2 | J39: W | K39: Galt, Phyllis | O39: 02:00:00
A40: 2008-01-03 | B40: 2008 | C40: 1 | D40: 2008 | E40: 7 | F40: 5 | G40: 1 | I40: 3 | J40: W | K40: Van Dyke, Mark | O40: 03:00:00
A41: 2008-01-03 | B41: 2008 | C41: 1 | D41: 2008 | E41: 7 | F41: 5 | G41: 1 | I41: 1 | J41: W | K41: Witt, Karl | O41: 01:00:00
A42: 2008-01-04 | B42: 2008 | C42: 1 | D42: 2008 | E42: 7 | F42: 6 | G42: 1 | I42: 2.5 | J42: BH | K42: Barton, April | O42: 02:30:00
A43: 2008-01-04 | B43: 2008 | C43: 1 | D43: 2008 | E43: 7 | F43: 6 | G43: 1 | I43: 2 | J43: BH | K43: Doczi, Jozsef | O43: 02:00:00
A44: 2008-01-04 | B44: 2008 | C44: 1 | D44: 2008 | E44: 7 | F44: 6 | G44: 1 | I44: 2.5 | J44: BH | K44: Reed, Jessica | O44: 02:30:00
A45: 2008-01-04 | B45: 2008 | C45: 1 | D45: 2008 | E45: 7 | F45: 6 | G45: 1 | H45: =L45/I45 -> 1.935483871 | I45: 2.066666667 | J45: Voice | K45: Baars, Fred | L45: 4 | M45: 04:59:00 | N45: **:** | O45: 02:04:00 | P45: 20.7 | Q45: 16 | R45: *.* | S45: 38.9 | T45: 0 | U45: 0 | V45: 0 | W45: 1.6 | X45: 61.1 | Y45: 0 | Z45: 00:00:00 | AA45: 2 | AB45: 01:00:00
A46: 2008-01-04 | B46: 2008 | C46: 1 | D46: 2008 | E46: 7 | F46: 6 | G46: 1 | H46: 1.6 | I46: 1.25 | J46: Voice | K46: Barton, April | L46: 2 | M46: 1.361805556 | N46: **:** | O46: 01:15:00 | P46: 7.4 | Q46: 86.8 | R46: *.* | S46: 1.5 | T46: 0 | U46: 0 | V46: 0 | W46: 0 | X46: 98.5 | Y46: 0 | Z46: 00:00:00 | AA46: 0 | AB46: 00:00:00
A47: 2008-01-04 | B47: 2008 | C47: 1 | D47: 2008 | E47: 7 | F47: 6 | G47: 1 | H47: 1.791044776 | I47: 1.116666667 | J47: Voice | K47: Blanco, Robin | L47: 2 | M47: 13:13:00 | N47: **:** | O47: 01:07:00 | P47: 40 | Q47: 39.3 | R47: *.* | S47: 4.5 | T47: 0 | U47: 0 | V47: 0 | W47: 6.3 | X47: 95.5 | Y47: 0 | Z47: 00:00:00 | AA47: 5 | AB47: 00:51:00
A48: 2008-01-04 | B48: 2008 | C48: 1 | D48: 2008 | E48: 7 | F48: 6 | G48: 1 | H48: 2.681564246 | I48: 2.983333333 | J48: Voice | K48: Doczi, Jozsef | L48: 8 | M48: 03:57:00 | N48: **:** | O48: 02:59:00 | P48: 8.9 | Q48: 17.7 | R48: *.* | S48: 18.5 | T48: 0 | U48: 0 | V48: 0 | W48: 10.2 | X48: 81.5 | Y48: 1 | Z48: 02:49:00 | AA48: 10 | AB48: 01:32:00
A49: 2008-01-04 | B49: 2008 | C49: 1 | D49: 2008 | E49: 7 | F49: 6 | G49: 1 | H49: 1.363636364 | I49: 0.7333333333 | J49: Voice | K49: Goguen, Barbara | L49: 1 | M49: 03:17:00 | N49: **:** | O49: 00:44:00 | P49: 1.8 | Q49: 7.5 | R49: *.* | S49: 69.7 | T49: 0 | U49: 0 | V49: 0 | W49: 21 | X49: 30.3 | Y49: 0 | Z49: 00:00:00 | AA49: 3 | AB49: 03:03:00
A50: 2008-01-04 | B50: 2008 | C50: 1 | D50: 2008 | E50: 7 | F50: 6 | G50: 1 | H50: 5.070422535 | I50: 3.55 | J50: Voice | K50: Lang, Bob | L50: 18 | M50: 05:06:00 | N50: **:** | O50: 03:33:00 | P50: 23.1 | Q50: 43 | R50: *.* | S50: 2.6 | T50: 0 | U50: 0 | V50: 0 | W50: 1.4 | X50: 97.4 | Y50: 0 | Z50: 00:00:00 | AA50: 3 | AB50: 00:59:00
A51: 2008-01-04 | B51: 2008 | C51: 1 | D51: 2008 | E51: 7 | F51: 6 | G51: 1 | H51: 3.436123348 | I51: 3.783333333 | J51: Voice | K51: Morzinski, Jacob | L51: 13 | M51: 06:06:00 | N51: **:** | O51: 03:47:00 | P51: 43.1 | Q51: 34.9 | R51: *.* | S51: 2.5 | T51: 0 | U51: 0 | V51: 0 | W51: 2 | X51: 97.5 | Y51: 0 | Z51: 00:00:00 | AA51: 4 | AB51: 01:09:00
A52: 2008-01-04 | B52: 2008 | C52: 1 | D52: 2008 | E52: 7 | F52: 6 | G52: 1 | H52: 4.153846154 | I52: 2.166666667 | J52: Voice | K52: Peloquin, Stuart | L52: 9 | M52: 05:26:00 | N52: **:** | O52: 02:10:00 | P52: 25.4 | Q52: 37.6 | R52: *.* | S52: 2 | T52: 0 | U52: 0 | V52: 0 | W52: 4.3 | X52: 98 | Y52: 0 | Z52: 00:00:00 | AA52: 1 | AB52: 05:34:00
A53: 2008-01-04 | B53: 2008 | C53: 1 | D53: 2008 | E53: 7 | F53: 6 | G53: 1 | H53: 4.137931034 | I53: 0.9666666667 | J53: Voice | K53: Reed, Jessica | L53: 4 | M53: 03:33:00 | N53: **:** | O53: 00:58:00 | P53: 5.2 | Q53: 24.5 | R53: *.* | S53: 17.7 | T53: 0 | U53: 0 | V53: 0 | W53: 26.1 | X53: 82.2 | Y53: 0 | Z53: 00:00:00 | AA53: 4 | AB53: 03:47:00
A54: 2008-01-04 | B54: 2008 | C54: 1 | D54: 2008 | E54: 7 | F54: 6 | G54: 1 | H54: 2.857142857 | I54: 1.75 | J54: Voice | K54: Thomas, Oliver | L54: 5 | M54: 07:39:00 | N54: **:** | O54: 01:45:00 | P54: 33.6 | Q54: 36.6 | R54: *.* | S54: 8.8 | T54: 0 | U54: 0 | V54: 0 | W54: 2.3 | X54: 91.2 | Y54: 0 | Z54: 00:00:00 | AA54: 1 | AB54: 02:27:00
A55: 2008-01-04 | B55: 2008 | C55: 1 | D55: 2008 | E55: 7 | F55: 6 | G55: 1 | H55: 2.47706422 | I55: 3.633333333 | J55: Voice | K55: Thorn, Matthias | L55: 9 | M55: 05:01:00 | N55: **:** | O55: 03:38:00 | P55: 22 | Q55: 20.7 | R55: *.* | S55: 5.9 | T55: 0 | U55: 0 | V55: 0 | W55: 0 | X55: 94.1 | Y55: 0 | Z55: 00:00:00 | AA55: 0 | AB55: 00:00:00
A56: 2008-01-04 | B56: 2008 | C56: 1 | D56: 2008 | E56: 7 | F56: 6 | G56: 1 | H56: 3.652173913 | I56: 1.916666667 | J56: Voice | K56: Van Dyke, Mark | L56: 7 | M56: 04:07:00 | N56: **:** | O56: 01:55:00 | P56: 37.3 | Q56: 25.1 | R56: *.* | S56: 6.5 | T56: 0 | U56: 0 | V56: 0 | W56: 1.1 | X56: 93.4 | Y56: 0 | Z56: 00:00:00 | AA56: 1 | AB56: 01:19:00
A57: 2008-01-04 | B57: 2008 | C57: 1 | D57: 2008 | E57: 7 | F57: 6 | G57: 1 | H57: 1.983471074 | I57: 2.016666667 | J57: Voice | K57: Witt, Karl | L57: 4 | M57: 08:04:00 | N57: **:** | O57: 02:01:00 | P57: 32.6 | Q57: 26.6 | R57: *.* | S57: 6.9 | T57: 0 | U57: 0 | V57: 0 | W57: 0 | X57: 93.1 | Y57: 0 | Z57: 00:00:00 | AA57: 0 | AB57: 00:00:00
A58: 2008-01-04 | B58: 2008 | C58: 1 | D58: 2008 | E58: 7 | F58: 6 | G58: 1 | I58: 3 | J58: W | K58: Brids, Bill | O58: 03:00:00
A59: 2008-01-04 | B59: =YEAR(A59) -> 2008 | C59: =MONTH(A59) -> 1 | D59: =IF(E59<=6,YEAR(A59)+1,YEAR(A59)) -> 2008 | E59: =IF(MONTH(A59)>6,MONTH(A59)-6,MONTH(A59)+6) -> 7 | F59: =WEEKDAY(A59) -> 6 | G59: =WEEKNUM(A59) -> 1 | I59: =(O59-TIME(0,0,0))*24 -> 2 | J59: W | K59: Hose, John | O59: 02:00:00
A60: 2008-01-04 | B60: 2008 | C60: 1 | D60: 2008 | E60: 7 | F60: 6 | G60: 1 | I60: 1 | J60: W | K60: Larrabee, Joanne | O60: 01:00:00
A61: 2008-01-04 | B61: 2008 | C61: 1 | D61: 2008 | E61: 7 | F61: 6 | G61: 1 | I61: 2 | J61: W | K61: Shang, Jennifer | O61: 02:00:00
A62: 2008-01-07 | B62: 2008 | C62: 1 | D62: 2008 | E62: 7 | F62: 2 | G62: 2 | I62: 2.5 | J62: BH | K62: Barton, April | O62: 02:30:00
A63: 2008-01-07 | B63: 2008 | C63: 1 | D63: 2008 | E63: 7 | F63: 2 | G63: 2 | I63: 1 | J63: BH | K63: Reed, Jessica | O63: 01:00:00
A64: 2008-01-07 | B64: 2008 | C64: 1 | D64: 2008 | E64: 7 | F64: 2 | G64: 2 | I64: 3 | J64: BH | K64: Robinson, Lisa | O64: 03:00:00
A65: 2008-01-07 | B65: 2008 | C65: 1 | D65: 2008 | E65: 7 | F65: 2 | G65: 2 | I65: 1.5 | J65: BH | K65: Shang, Jennifer | O65: 01:30:00
A66: 2008-01-07 | B66: 2008 | C66: 1 | D66: 2008 | E66: 7 | F66: 2 | G66: 2 | H66: =L66/I66 -> 1.739130435 | I66: 1.15 | J66: Voice | K66: Baars, Fred | L66: 2 | M66: 02:20:00 | N66: **:** | O66: 01:09:00 | P66: 28.1 | Q66: 6.8 | R66: *.* | S66: 14.7 | T66: 0 | U66: 0 | V66: 0 | W66: 5.5 | X66: 85.3 | Y66: 0 | Z66: 00:00:00 | AA66: 2 | AB66: 01:54:00
A67: 2008-01-07 | B67: 2008 | C67: 1 | D67: 2008 | E67: 7 | F67: 2 | G67: 2 | H67: 1.714285714 | I67: 1.166666667 | J67: Voice | K67: Barton, April | L67: 2 | M67: 19:49:00 | N67: **:** | O67: 01:10:00 | P67: 14.4 | Q67: 56.9 | R67: *.* | S67: 1.4 | T67: 0 | U67: 0 | V67: 0 | W67: 6.8 | X67: 98.6 | Y67: 0 | Z67: 00:00:00 | AA67: 1 | AB67: 04:46:00
A68: 2008-01-07 | B68: 2008 | C68: 1 | D68: 2008 | E68: 7 | F68: 2 | G68: 2 | H68: 3.265306122 | I68: 2.45 | J68: Voice | K68: Blanco, Robin | L68: 8 | M68: 07:20:00 | N68: **:** | O68: 02:27:00 | P68: 25.2 | Q68: 39.8 | R68: *.* | S68: 3.8 | T68: 0 | U68: 0 | V68: 0 | W68: 3.1 | X68: 96.2 | Y68: 0 | Z68: 00:00:00 | AA68: 3 | AB68: 01:30:00
A69: 2008-01-07 | B69: 2008 | C69: 1 | D69: 2008 | E69: 7 | F69: 2 | G69: 2 | H69: 8.275862069 | I69: 0.9666666667 | J69: Voice | K69: Brids, Bill | L69: 8 | M69: 02:31:00 | N69: **:** | O69: 00:58:00 | P69: 45.6 | Q69: 34.8 | R69: *.* | S69: 1.4 | T69: 0 | U69: 0 | V69: 0 | W69: 0 | X69: 98.5 | Y69: 0 | Z69: 00:00:00 | AA69: 0 | AB69: 00:00:00
A70: 2008-01-07 | B70: 2008 | C70: 1 | D70: 2008 | E70: 7 | F70: 2 | G70: 2 | H70: 2.4 | I70: 1.666666667 | J70: Voice | K70: Doczi, Jozsef | L70: 4 | M70: 05:05:00 | N70: **:** | O70: 01:40:00 | P70: 14.1 | Q70: 20.2 | R70: *.* | S70: 48.1 | T70: 0 | U70: 0 | V70: 0 | W70: 7.1 | X70: 51.8 | Y70: 0 | Z70: 00:00:00 | AA70: 2 | AB70: 03:35:00
A71: 2008-01-07 | B71: 2008 | C71: 1 | D71: 2008 | E71: 7 | F71: 2 | G71: 2 | H71: 3.75 | I71: 1.066666667 | J71: Voice | K71: Goguen, Barbara | L71: 4 | M71: 04:17:00 | N71: **:** | O71: 01:04:00 | P71: 15.5 | Q71: 26.9 | R71: *.* | S71: 2.7 | T71: 0 | U71: 0 | V71: 0 | W71: 2.8 | X71: 97.3 | Y71: 0 | Z71: 00:00:00 | AA71: 2 | AB71: 00:54:00
A72: 2008-01-07 | B72: 2008 | C72: 1 | D72: 2008 | E72: 7 | F72: 2 | G72: 2 | H72: 2.941176471 | I72: 3.4 | J72: Voice | K72: Larrabee, Joanne | L72: 10 | M72: 09:15:00 | N72: **:** | O72: 03:24:00 | P72: 5.9 | Q72: 45.4 | R72: *.* | S72: 5 | T72: 0 | U72: 0 | V72: 0 | W72: 1.2 | X72: 95 | Y72: 0 | Z72: 00:00:00 | AA72: 1 | AB72: 02:27:00
A73: 2008-01-07 | B73: 2008 | C73: 1 | D73: 2008 | E73: 7 | F73: 2 | G73: 2 | H73: 2.903225806 | I73: 1.033333333 | J73: Voice | K73: Morzinski, Jacob | L73: 3 | M73: 06:29:00 | N73: **:** | O73: 01:02:00 | P73: 41 | Q73: 31.3 | R73: *.* | S73: 3.9 | T73: 0 | U73: 0 | V73: 0 | W73: 0.7 | X73: 96.1 | Y73: 0 | Z73: 00:00:00 | AA73: 1 | AB73: 00:28:00
A74: 2008-01-07 | B74: 2008 | C74: 1 | D74: 2008 | E74: 7 | F74: 2 | G74: 2 | H74: 2.105263158 | I74: 1.9 | J74: Voice | K74: Reed, Jessica | L74: 4 | M74: 09:42:00 | N74: **:** | O74: 01:54:00 | P74: 26.6 | Q74: 34.1 | R74: *.* | S74: 14.8 | T74: 0 | U74: 0 | V74: 0 | W74: 3.5 | X74: 85.2 | Y74: 0 | Z74: 00:00:00 | AA74: 1 | AB74: 03:59:00
A75: 2008-01-07 | B75: 2008 | C75: 1 | D75: 2008 | E75: 7 | F75: 2 | G75: 2 | H75: 2.926829268 | I75: 1.366666667 | J75: Voice | K75: Robinson, Lisa | L75: 4 | M75: 06:02:00 | N75: **:** | O75: 01:22:00 | P75: 9 | Q75: 29.4 | R75: *.* | S75: 24.1 | T75: 0 | U75: 0 | V75: 0 | W75: 2.4 | X75: 75.9 | Y75: 0 | Z75: 00:00:00 | AA75: 1 | AB75: 01:58:00
A76: 2008-01-07 | B76: 2008 | C76: 1 | D76: 2008 | E76: 7 | F76: 2 | G76: 2 | H76: 3.466666667 | I76: 3.75 | J76: Voice | K76: Shang, Jennifer | L76: 13 | M76: 08:47:00 | N76: **:** | O76: 03:45:00 | P76: 32.9 | Q76: 50.8 | R76: *.* | S76: 2.3 | T76: 0 | U76: 0 | V76: 0 | W76: 0 | X76: 97.7 | Y76: 0 | Z76: 00:00:00 | AA76: 0 | AB76: 00:00:00
A77: 2008-01-07 | B77: 2008 | C77: 1 | D77: 2008 | E77: 7 | F77: 2 | G77: 2 | H77: 2.362204724 | I77: 2.116666667 | J77: Voice | K77: Student2 | L77: 5 | M77: 11:53:00 | N77: **:** | O77: 02:07:00 | P77: 3.3 | Q77: 46.9 | R77: *.* | S77: 1.8 | T77: 0 | U77: 0 | V77: 0 | W77: 13.4 | X77: 98.1 | Y77: 0 | Z77: 00:00:00 | AA77: 3 | AB77: 05:39:00
A78: 2008-01-07 | B78: 2008 | C78: 1 | D78: 2008 | E78: 7 | F78: 2 | G78: 2 | H78: 1.739130435 | I78: 1.15 | J78: Voice | K78: Student4 | L78: 2 | M78: 07:07:00 | N78: **:** | O78: 01:09:00 | P78: 43 | Q78: 20.7 | R78: *.* | S78: 1.5 | T78: 0 | U78: 0 | V78: 0 | W78: 0 | X78: 98.5 | Y78: 0 | Z78: 00:00:00 | AA78: 0 | AB78: 00:00:00
A79: 2008-01-07 | B79: 2008 | C79: 1 | D79: 2008 | E79: 7 | F79: 2 | G79: 2 | H79: 2.576687117 | I79: 2.716666667 | J79: Voice | K79: Thorn, Matthias | L79: 7 | M79: 02:21:00 | N79: **:** | O79: 02:43:00 | P79: 61.7 | Q79: 10.1 | R79: *.* | S79: 10.4 | T79: 0 | U79: 0 | V79: 0 | W79: 0 | X79: 89.6 | Y79: 0 | Z79: 00:00:00 | AA79: 0 | AB79: 00:00:00
A80: 2008-01-07 | B80: 2008 | C80: 1 | D80: 2008 | E80: 7 | F80: 2 | G80: 2 | H80: 2.285714286 | I80: 1.75 | J80: Voice | K80: Verrick, Christi | L80: 4 | M80: 04:48:00 | N80: **:** | O80: 01:45:00 | P80: 16.5 | Q80: 18.3 | R80: *.* | S80: 12.6 | T80: 0 | U80: 0 | V80: 0 | W80: 0 | X80: 87.4 | Y80: 0 | Z80: 00:00:00 | AA80: 0 | AB80: 00:00:00
A81: 2008-01-07 | B81: 2008 | C81: 1 | D81: 2008 | E81: 7 | F81: 2 | G81: 2 | H81: 2.362204724 | I81: 2.116666667 | J81: Voice | K81: Witt, Karl | L81: 5 | M81: 05:06:00 | N81: **:** | O81: 02:07:00 | P81: 33.2 | Q81: 20.1 | R81: *.* | S81: 18.7 | T81: 0 | U81: 0 | V81: 0 | W81: 0 | X81: 81.3 | Y81: 0 | Z81: 00:00:00 | AA81: 0 | AB81: 00:00:00
A82: 2008-01-07 | B82: 2008 | C82: 1 | D82: 2008 | E82: 7 | F82: 2 | G82: 2 | I82: 2 | J82: W | K82: Brids, Bill | O82: 02:00:00
A83: 2008-01-07 | B83: 2008 | C83: 1 | D83: 2008 | E83: 7 | F83: 2 | G83: 2 | I83: 1 | J83: W | K83: Egan, Larry | O83: 01:00:00
A84: 2008-01-07 | B84: 2008 | C84: 1 | D84: 2008 | E84: 7 | F84: 2 | G84: 2 | I84: 1 | J84: W | K84: Gresham, Chris | O84: 01:00:00
A85: 2008-01-07 | B85: 2008 | C85: 1 | D85: 2008 | E85: 7 | F85: 2 | G85: 2 | I85: 2 | J85: W | K85: Gresham, Chris | O85: 02:00:00
A86: 2008-01-07 | B86: 2008 | C86: 1 | D86: 2008 | E86: 7 | F86: 2 | G86: 2 | I86: 2 | J86: W | K86: Van Dyke, Mark | O86: 02:00:00
A87: 2008-01-08 | B87: 2008 | C87: 1 | D87: 2008 | E87: 7 | F87: 3 | G87: 2 | I87: 1.5 | J87: BH | K87: Barton, April | O87: 01:30:00
A88: 2008-01-08 | B88: 2008 | C88: 1 | D88: 2008 | E88: 7 | F88: 3 | G88: 2 | I88: 1.5 | J88: BH | K88: Reed, Jessica | O88: 01:30:00
A89: 2008-01-08 | B89: 2008 | C89: 1 | D89: 2008 | E89: 7 | F89: 3 | G89: 2 | I89: 3 | J89: BH | K89: Robinson, Lisa | O89: 03:00:00
A90: 2008-01-08 | B90: 2008 | C90: 1 | D90: 2008 | E90: 7 | F90: 3 | G90: 2 | I90: 2 | J90: BH | K90: Shang, Jennifer | O90: 02:00:00
A91: 2008-01-08 | B91: 2008 | C91: 1 | D91: 2008 | E91: 7 | F91: 3 | G91: 2 | I91: 1 | J91: BH | K91: Verrick, Christi | O91: 01:00:00
A92: 2008-01-08 | B92: 2008 | C92: 1 | D92: 2008 | E92: 7 | F92: 3 | G92: 2 | H92: =L92/I92 -> 1.071428571 | I92: 0.9333333333 | J92: Voice | K92: Baars, Fred | L92: 1 | M92: 04:51:00 | N92: **:** | O92: 00:56:00 | P92: 34.9 | Q92: 8.7 | R92: *.* | S92: 10.5 | T92: 0 | U92: 0 | V92: 0 | W92: 1.4 | X92: 89.5 | Y92: 0 | Z92: 00:00:00 | AA92: 1 | AB92: 00:46:00
A93: 2008-01-08 | B93: 2008 | C93: 1 | D93: 2008 | E93: 7 | F93: 3 | G93: 2 | H93: 4.403669725 | I93: 1.816666667 | J93: Voice | K93: Blanco, Robin | L93: 8 | M93: 05:18:00 | N93: **:** | O93: 01:49:00 | P93: 41.8 | Q93: 39 | R93: *.* | S93: 1.5 | T93: 0 | U93: 0 | V93: 0 | W93: 1.2 | X93: 98.5 | Y93: 0 | Z93: 00:00:00 | AA93: 1 | AB93: 01:19:00
A94: 2008-01-08 | B94: 2008 | C94: 1 | D94: 2008 | E94: 7 | F94: 3 | G94: 2 | H94: 2.564102564 | I94: 1.95 | J94: Voice | K94: Brids, Bill | L94: 5 | M94: 03:52:00 | N94: **:** | O94: 01:57:00 | P94: 40.4 | Q94: 16.6 | R94: *.* | S94: 0.7 | T94: 0 | U94: 0 | V94: 0 | W94: 13.4 | X94: 99.3 | Y94: 0 | Z94: 00:00:00 | AA94: 1 | AB94: 15:36:00
A95: 2008-01-08 | B95: 2008 | C95: 1 | D95: 2008 | E95: 7 | F95: 3 | G95: 2 | H95: 2.189781022 | I95: 2.283333333 | J95: Voice | K95: Doczi, Jozsef | L95: 5 | M95: 16:40:00 | N95: **:** | O95: 02:17:00 | P95: 1.8 | Q95: 60.9 | R95: *.* | S95: 10.8 | T95: 0 | U95: 0 | V95: 0 | W95: 2.7 | X95: 89.2 | Y95: 0 | Z95: 00:00:00 | AA95: 1 | AB95: 03:44:00
A96: 2008-01-08 | B96: 2008 | C96: 1 | D96: 2008 | E96: 7 | F96: 3 | G96: 2 | H96: 3.448275862 | I96: 1.45 | J96: Voice | K96: Gresham, Chris | L96: 5 | M96: 03:34:00 | N96: **:** | O96: 01:27:00 | P96: 43.8 | Q96: 20.5 | R96: *.* | S96: 14.8 | T96: 0 | U96: 0 | V96: 0 | W96: 0 | X96: 85.2 | Y96: 0 | Z96: 00:00:00 | AA96: 0 | AB96: 00:00:00
A97: 2008-01-08 | B97: 2008 | C97: 1 | D97: 2008 | E97: 7 | F97: 3 | G97: 2 | H97: 1.395348837 | I97: 0.7166666667 | J97: Voice | K97: Larrabee, Joanne | L97: 1 | M97: 1.433333333 | N97: **:** | O97: 00:43:00 | P97: 0 | Q97: 79.2 | R97: *.* | S97: 4 | T97: 0 | U97: 0 | V97: 0 | W97: 0 | X97: 96 | Y97: 0 | Z97: 00:00:00 | AA97: 0 | AB97: 00:00:00
A98: 2008-01-08 | B98: 2008 | C98: 1 | D98: 2008 | E98: 7 | F98: 3 | G98: 2 | H98: 1.967213115 | I98: 1.016666667 | J98: Voice | K98: Morzinski, Jacob | L98: 2 | M98: 10:42:00 | N98: **:** | O98: 01:01:00 | P98: 32 | Q98: 35.1 | R98: *.* | S98: 10.8 | T98: 0 | U98: 0 | V98: 0 | W98: 15.9 | X98: 89.2 | Y98: 0 | Z98: 00:00:00 | AA98: 3 | AB98: 03:13:00
A99: 2008-01-08 | B99: 2008 | C99: 1 | D99: 2008 | E99: 7 | F99: 3 | G99: 2 | H99: 2.454545455 | I99: 3.666666667 | J99: Voice | K99: Nicholson, Laura | L99: 9 | M99: 03:24:00 | N99: **:** | O99: 03:40:00 | P99: 45 | Q99: 13.9 | R99: *.* | S99: 8 | T99: 0 | U99: 0 | V99: 0 | W99: 0 | X99: 92 | Y99: 0 | Z99: 00:00:00 | AA99: 0 | AB99: 00:00:00
A100: 2008-01-08 | B100: 2008 | C100: 1 | D100: 2008 | E100: 7 | F100: 3 | G100: 2 | H100: 3.333333333 | I100: 0.3 | J100: Voice | K100: Reed, Jessica | L100: 1 | M100: 17:59:00 | N100: **:** | O100: 00:18:00 | P100: 0.2 | Q100: 97.6 | R100: *.* | S100: 2 | T100: 0 | U100: 0 | V100: 0 | W100: 0 | X100: 98 | Y100: 0 | Z100: 00:00:00 | AA100: 0 | AB100: 00:00:00
A101: 2008-01-08 | B101: 2008 | C101: 1 | D101: 2008 | E101: 7 | F101: 3 | G101: 2 | H101: 2.142857143 | I101: 0.9333333333 | J101: Voice | K101: Robinson, Lisa | L101: 2 | M101: 06:35:00 | N101: **:** | O101: 00:56:00 | P101: 25.9 | Q101: 23.4 | R101: *.* | S101: 28.6 | T101: 0 | U101: 0 | V101: 0 | W101: 9.9 | X101: 71.4 | Y101: 1 | Z101: 00:21:00 | AA101: 8 | AB101: 00:39:00
A102: 2008-01-08 | B102: 2008 | C102: 1 | D102: 2008 | E102: 7 | F102: 3 | G102: 2 | H102: 4.528301887 | I102: 0.8833333333 | J102: Voice | K102: Shang, Jennifer | L102: 4 | M102: 05:24:00 | N102: **:** | O102: 00:53:00 | P102: 40.2 | Q102: 40.6 | R102: *.* | S102: 8.7 | T102: 0 | U102: 0 | V102: 0 | W102: 1.3 | X102: 91.3 | Y102: 0 | Z102: 00:00:00 | AA102: 1 | AB102: 00:42:00
A103: 2008-01-08 | B103: 2008 | C103: 1 | D103: 2008 | E103: 7 | F103: 3 | G103: 2 | H103: 1.558441558 | I103: 1.283333333 | J103: Voice | K103: Student4 | L103: 2 | M103: 04:22:00 | N103: **:** | O103: 01:17:00 | P103: 59.6 | Q103: 11.3 | R103: *.* | S103: 8.5 | T103: 0 | U103: 0 | V103: 0 | W103: 0 | X103: 91.5 | Y103: 0 | Z103: 00:00:00 | AA103: 0 | AB103: 00:00:00
A104: 2008-01-08 | B104: 2008 | C104: 1 | D104: 2008 | E104: 7 | F104: 3 | G104: 2 | H104: 2.517482517 | I104: 2.383333333 | J104: Voice | K104: Thorn, Matthias | L104: 6 | M104: 06:59:00 | N104: **:** | O104: 02:23:00 | P104: 24.7 | Q104: 29.2 | R104: *.* | S104: 4.5 | T104: 0 | U104: 0 | V104: 0 | W104: 0 | X104: 95.5 | Y104: 0 | Z104: 00:00:00 | AA104: 0 | AB104: 00:00:00
A105: 2008-01-08 | B105: 2008 | C105: 1 | D105: 2008 | E105: 7 | F105: 3 | G105: 2 | H105: 3.157894737 | I105: 1.583333333 | J105: Voice | K105: Verrick, Christi | L105: 5 | M105: 03:09:00 | N105: **:** | O105: 01:35:00 | P105: 47.1 | Q105: 16.5 | R105: *.* | S105: 7 | T105: 0 | U105: 0 | V105: 0 | W105: 0 | X105: 93 | Y105: 0 | Z105: 00:00:00 | AA105: 0 | AB105: 00:00:00
A106: 2008-01-08 | B106: 2008 | C106: 1 | D106: 2008 | E106: 7 | F106: 3 | G106: 2 | H106: 2.333333333 | I106: 3 | J106: Voice | K106: Witt, Karl | L106: 7 | M106: 05:04:00 | N106: **:** | O106: 03:00:00 | P106: 43.7 | Q106: 19.8 | R106: *.* | S106: 13.6 | T106: 0 | U106: 0 | V106: 0 | W106: 0 | X106: 86.4 | Y106: 0 | Z106: 00:00:00 | AA106: 0 | AB106: 00:00:00
A107: 2008-01-08 | B107: 2008 | C107: 1 | D107: 2008 | E107: 7 | F107: 3 | G107: 2 | I107: 3 | J107: W | K107: Brids, Bill | O107: 03:00:00
A108: 2008-01-08 | B108: 2008 | C108: 1 | D108: 2008 | E108: 7 | F108: 3 | G108: 2 | I108: 1 | J108: W | K108: Doczi, Jozsef | O108: 01:00:00
A109: 2008-01-08 | B109: 2008 | C109: 1 | D109: 2008 | E109: 7 | F109: 3 | G109: 2 | I109: 1 | J109: W | K109: Gresham, Chris | O109: 01:00:00
A110: 2008-01-08 | B110: 2008 | C110: 1 | D110: 2008 | E110: 7 | F110: 3 | G110: 2 | I110: 3 | J110: W | K110: Johnson, Barbara | O110: 03:00:00
A111: 2008-01-09 | B111: 2008 | C111: 1 | D111: 2008 | E111: 7 | F111: 4 | G111: 2 | I111: 2.5 | J111: BH | K111: Barton, April | O111: 02:30:00
A112: 2008-01-09 | B112: 2008 | C112: 1 | D112: 2008 | E112: 7 | F112: 4 | G112: 2 | I112: 2 | J112: BH | K112: Doczi, Jozsef | O112: 02:00:00
A113: 2008-01-09 | B113: 2008 | C113: 1 | D113: 2008 | E113: 7 | F113: 4 | G113: 2 | I113: 2 | J113: BH | K113: Robinson, Lisa | O113: 02:00:00
A114: 2008-01-09 | B114: 2008 | C114: 1 | D114: 2008 | E114: 7 | F114: 4 | G114: 2 | I114: 2.5 | J114: BH | K114: Shang, Jennifer | O114: 02:30:00
A115: 2008-01-09 | B115: 2008 | C115: 1 | D115: 2008 | E115: 7 | F115: 4 | G115: 2 | H115: =L115/I115 -> 2.051282051 | I115: 1.95 | J115: Voice | K115: Barton, April | L115: 4 | M115: 13:29:00 | N115: **:** | O115: 01:57:00 | P115: 36.2 | Q115: 46 | R115: *.* | S115: 9.8 | T115: 0 | U115: 0 | V115: 0 | W115: 0 | X115: 90.2 | Y115: 0 | Z115: 00:00:00 | AA115: 0 | AB115: 00:00:00
A116: 2008-01-09 | B116: 2008 | C116: 1 | D116: 2008 | E116: 7 | F116: 4 | G116: 2 | H116: 1.875 | I116: 1.066666667 | J116: Voice | K116: Blanco, Robin | L116: 2 | M116: 09:29:00 | N116: **:** | O116: 01:04:00 | P116: 27.1 | Q116: 29.4 | R116: *.* | S116: 4 | T116: 0 | U116: 0 | V116: 0 | W116: 14.5 | X116: 96 | Y116: 0 | Z116: 00:00:00 | AA116: 4 | AB116: 02:20:00
A117: 2008-01-09 | B117: 2008 | C117: 1 | D117: 2008 | E117: 7 | F117: 4 | G117: 2 | H117: 4.347826087 | I117: 1.15 | J117: Voice | K117: Brids, Bill | L117: 5 | M117: 01:24:00 | N117: **:** | O117: 01:09:00 | P117: 72.4 | Q117: 10.1 | R117: *.* | S117: 3.8 | T117: 0 | U117: 0 | V117: 0 | W117: 0 | X117: 96 | Y117: 0 | Z117: 00:00:00 | AA117: 0 | AB117: 00:00:00
A118: 2008-01-09 | B118: 2008 | C118: 1 | D118: 2008 | E118: 7 | F118: 4 | G118: 2 | H118: 1.084337349 | I118: 2.766666667 | J118: Voice | K118: Doczi, Jozsef | L118: 3 | M118: 1.368055556 | N118: **:** | O118: 02:46:00 | P118: 16.9 | Q118: 59.3 | R118: *.* | S118: 6.3 | T118: 0 | U118: 0 | V118: 0 | W118: 1.9 | X118: 93.7 | Y118: 0 | Z118: 00:00:00 | AA118: 2 | AB118: 01:35:00
A119: 2008-01-09 | B119: 2008 | C119: 1 | D119: 2008 | E119: 7 | F119: 4 | G119: 2 | H119: 2.97029703 | I119: 1.683333333 | J119: Voice | K119: Galt, Phyllis | L119: 5 | M119: 02:43:00 | N119: **:** | O119: 01:41:00 | P119: 64 | Q119: 13.5 | R119: *.* | S119: 4.6 | T119: 0 | U119: 0 | V119: 0 | W119: 0 | X119: 95.4 | Y119: 0 | Z119: 00:00:00 | AA119: 0 | AB119: 00:00:00
A120: 2008-01-09 | B120: 2008 | C120: 1 | D120: 2008 | E120: 7 | F120: 4 | G120: 2 | H120: 2.288135593 | I120: 3.933333333 | J120: Voice | K120: Lang, Bob | L120: 9 | M120: 15:13:00 | N120: **:** | O120: 03:56:00 | P120: 26.7 | Q120: 58 | R120: *.* | S120: 10.7 | T120: 0 | U120: 0 | V120: 0 | W120: 2 | X120: 89.3 | Y120: 0 | Z120: 00:00:00 | AA120: 3 | AB120: 01:36:00
A121: 2008-01-09 | B121: 2008 | C121: 1 | D121: 2008 | E121: 7 | F121: 4 | G121: 2 | H121: 1.904761905 | I121: 2.1 | J121: Voice | K121: Larrabee, Joanne | L121: 4 | M121: 14:00:00 | N121: **:** | O121: 02:06:00 | P121: 17.4 | Q121: 44.5 | R121: *.* | S121: 15.7 | T121: 0 | U121: 0 | V121: 0 | W121: 4 | X121: 84.3 | Y121: 0 | Z121: 00:00:00 | AA121: 3 | AB121: 01:41:00
A122: 2008-01-09 | B122: 2008 | C122: 1 | D122: 2008 | E122: 7 | F122: 4 | G122: 2 | H122: 2.282608696 | I122: 3.066666667 | J122: Voice | K122: Morzinski, Jacob | L122: 7 | M122: 10:17:00 | N122: **:** | O122: 03:04:00 | P122: 27 | Q122: 39.2 | R122: *.* | S122: 9.9 | T122: 0 | U122: 0 | V122: 0 | W122: 5.6 | X122: 90.1 | Y122: 0 | Z122: 00:00:00 | AA122: 6 | AB122: 01:43:00
A123: 2008-01-09 | B123: =YEAR(A123) -> 2008 | C123: =MONTH(A123) -> 1 | D123: =IF(E123<=6,YEAR(A123)+1,YEAR(A123)) -> 2008 | E123: =IF(MONTH(A123)>6,MONTH(A123)-6,MONTH(A123)+6) -> 7 | F123: =WEEKDAY(A123) -> 4 | G123: =WEEKNUM(A123) -> 2 | H123: 2.181818182 | I123: =(O123-TIME(0,0,0))*24 -> 3.666666667 | J123: Voice | K123: Nicholson, Laura | L123: 8 | M123: 05:18:00 | N123: **:** | O123: 03:40:00 | P123: 37.5 | Q123: 19.3 | R123: *.* | S123: 10.7 | T123: 0 | U123: 0 | V123: 0 | W123: 1 | X123: 89.3 | Y123: 0 | Z123: 00:00:00 | AA123: 2 | AB123: 01:06:00
A124: 2008-01-09 | B124: 2008 | C124: 1 | D124: 2008 | E124: 7 | F124: 4 | G124: 2 | H124: 3.559322034 | I124: 1.966666667 | J124: Voice | K124: Peloquin, Stuart | L124: 7 | M124: 03:36:00 | N124: **:** | O124: 01:58:00 | P124: 47.3 | Q124: 21.3 | R124: *.* | S124: 5.2 | T124: 0 | U124: 0 | V124: 0 | W124: 0 | X124: 94.8 | Y124: 0 | Z124: 00:00:00 | AA124: 0 | AB124: 00:00:00
A125: 2008-01-09 | B125: 2008 | C125: 1 | D125: 2008 | E125: 7 | F125: 4 | G125: 2 | H125: 2.542372881 | I125: 1.966666667 | J125: Voice | K125: Reed, Jessica | L125: 5 | M125: 07:37:00 | N125: **:** | O125: 01:58:00 | P125: 29.8 | Q125: 32.2 | R125: *.* | S125: 0.6 | T125: 0 | U125: 0 | V125: 0 | W125: 0 | X125: 99.4 | Y125: 0 | Z125: 00:00:00 | AA125: 0 | AB125: 00:00:00
A126: 2008-01-09 | B126: 2008 | C126: 1 | D126: 2008 | E126: 7 | F126: 4 | G126: 2 | H126: 4.406779661 | I126: 2.95 | J126: Voice | K126: Shang, Jennifer | L126: 13 | M126: 05:13:00 | N126: **:** | O126: 02:57:00 | P126: 46.3 | Q126: 38.4 | R126: *.* | S126: 1.7 | T126: 0 | U126: 0 | V126: 0 | W126: 0 | X126: 98.3 | Y126: 0 | Z126: 00:00:00 | AA126: 0 | AB126: 00:00:00
A127: 2008-01-09 | B127: 2008 | C127: 1 | D127: 2008 | E127: 7 | F127: 4 | G127: 2 | H127: 2.706766917 | I127: 2.216666667 | J127: Voice | K127: Student2 | L127: 6 | M127: 06:09:00 | N127: **:** | O127: 02:13:00 | P127: 48 | Q127: 27.8 | R127: *.* | S127: 5.2 | T127: 0 | U127: 0 | V127: 0 | W127: 3.8 | X127: 94.8 | Y127: 1 | Z127: 01:35:00 | AA127: 2 | AB127: 01:44:00
A128: 2008-01-09 | B128: 2008 | C128: 1 | D128: 2008 | E128: 7 | F128: 4 | G128: 2 | H128: 1.512605042 | I128: 1.983333333 | J128: Voice | K128: Thorn, Matthias | L128: 3 | M128: 05:08:00 | N128: **:** | O128: 01:59:00 | P128: 62.4 | Q128: 12.9 | R128: *.* | S128: 10.6 | T128: 0 | U128: 0 | V128: 0 | W128: 0 | X128: 89.4 | Y128: 0 | Z128: 00:00:00 | AA128: 0 | AB128: 00:00:00
A129: 2008-01-09 | B129: 2008 | C129: 1 | D129: 2008 | E129: 7 | F129: 4 | G129: 2 | H129: 2.903225806 | I129: 2.066666667 | J129: Voice | K129: Van Dyke, Mark | L129: 6 | M129: 08:05:00 | N129: **:** | O129: 02:04:00 | P129: 26.1 | Q129: 39.1 | R129: *.* | S129: 6.3 | T129: 0 | U129: 0 | V129: 0 | W129: 1.1 | X129: 93.7 | Y129: 0 | Z129: 00:00:00 | AA129: 1 | AB129: 01:19:00
A130: 2008-01-09 | B130: 2008 | C130: 1 | D130: 2008 | E130: 7 | F130: 4 | G130: 2 | H130: 2.307692308 | I130: 1.3 | J130: Voice | K130: Witt, Karl | L130: 3 | M130: 04:08:00 | N130: **:** | O130: 01:18:00 | P130: 17.3 | Q130: 15.8 | R130: *.* | S130: 21.8 | T130: 0 | U130: 0 | V130: 0 | W130: 0 | X130: 78.2 | Y130: 0 | Z130: 00:00:00 | AA130: 0 | AB130: 00:00:00
A131: 2008-01-09 | B131: 2008 | C131: 1 | D131: 2008 | E131: 7 | F131: 4 | G131: 2 | I131: 3 | J131: W | K131: Gu, Yang | O131: 03:00:00
A132: 2008-01-09 | B132: 2008 | C132: 1 | D132: 2008 | E132: 7 | F132: 4 | G132: 2 | I132: 3 | J132: W | K132: Hose, John | O132: 03:00:00
A133: 2008-01-09 | B133: 2008 | C133: 1 | D133: 2008 | E133: 7 | F133: 4 | G133: 2 | I133: 2 | J133: W | K133: Johnson, Barbara | O133: 02:00:00
A134: 2008-01-10 | B134: 2008 | C134: 1 | D134: 2008 | E134: 7 | F134: 5 | G134: 2 | I134: 3 | J134: BH | K134: Barton, April | O134: 03:00:00
A135: 2008-01-10 | B135: 2008 | C135: 1 | D135: 2008 | E135: 7 | F135: 5 | G135: 2 | I135: 4.5 | J135: BH | K135: Doczi, Jozsef | O135: 04:30:00
A136: 2008-01-10 | B136: 2008 | C136: 1 | D136: 2008 | E136: 7 | F136: 5 | G136: 2 | I136: 1 | J136: BH | K136: Verrick, Christi | O136: 01:00:00
A137: 2008-01-10 | B137: 2008 | C137: 1 | D137: 2008 | E137: 7 | F137: 5 | G137: 2 | H137: =L137/I137 -> 1.791044776 | I137: 2.233333333 | J137: Voice | K137: Baars, Fred | L137: 4 | M137: 07:51:00 | N137: **:** | O137: 02:14:00 | P137: 21.4 | Q137: 23.3 | R137: *.* | S137: 28.6 | T137: 0 | U137: 0 | V137: 0 | W137: 0 | X137: 71.4 | Y137: 0 | Z137: 00:00:00 | AA137: 0 | AB137: 00:00:00
A138: 2008-01-10 | B138: 2008 | C138: 1 | D138: 2008 | E138: 7 | F138: 5 | G138: 2 | H138: 2.307692308 | I138: 2.166666667 | J138: Voice | K138: Barton, April | L138: 5 | M138: 17:12:00 | N138: **:** | O138: 02:10:00 | P138: 13.4 | Q138: 66.3 | R138: *.* | S138: 0.5 | T138: 0 | U138: 0 | V138: 0 | W138: 0 | X138: 99.5 | Y138: 0 | Z138: 00:00:00 | AA138: 0 | AB138: 00:00:00
A139: 2008-01-10 | B139: 2008 | C139: 1 | D139: 2008 | E139: 7 | F139: 5 | G139: 2 | H139: 2.105263158 | I139: 1.9 | J139: Voice | K139: Blanco, Robin | L139: 4 | M139: 07:19:00 | N139: **:** | O139: 01:54:00 | P139: 19.1 | Q139: 25.7 | R139: *.* | S139: 8.9 | T139: 0 | U139: 0 | V139: 0 | W139: 5.1 | X139: 91.1 | Y139: 0 | Z139: 00:00:00 | AA139: 4 | AB139: 01:27:00
A140: 2008-01-10 | B140: 2008 | C140: 1 | D140: 2008 | E140: 7 | F140: 5 | G140: 2 | H140: 2.884615385 | I140: 1.733333333 | J140: Voice | K140: Doczi, Jozsef | L140: 5 | M140: 07:25:00 | N140: **:** | O140: 01:44:00 | P140: 35.7 | Q140: 35.6 | R140: *.* | S140: 5.8 | T140: 0 | U140: 0 | V140: 0 | W140: 0 | X140: 94.2 | Y140: 0 | Z140: 00:00:00 | AA140: 0 | AB140: 00:00:00
A141: 2008-01-10 | B141: 2008 | C141: 1 | D141: 2008 | E141: 7 | F141: 5 | G141: 2 | H141: 2.068965517 | I141: 0.9666666667 | J141: Voice | K141: Galt, Phyllis | L141: 2 | M141: 10:18:00 | N141: **:** | O141: 00:58:00 | P141: 44.4 | Q141: 35.5 | R141: *.* | S141: 5.7 | T141: 0 | U141: 0 | V141: 0 | W141: 3.4 | X141: 94.3 | Y141: 0 | Z141: 00:00:00 | AA141: 2 | AB141: 00:59:00
A142: 2008-01-10 | B142: 2008 | C142: 1 | D142: 2008 | E142: 7 | F142: 5 | G142: 2 | H142: 1.132075472 | I142: 0.8833333333 | J142: Voice | K142: Goguen, Barbara | L142: 1 | M142: 09:05:00 | N142: **:** | O142: 00:53:00 | P142: 7 | Q142: 17 | R142: *.* | S142: 12.3 | T142: 0 | U142: 0 | V142: 0 | W142: 19.9 | X142: 87.7 | Y142: 0 | Z142: 00:00:00 | AA142: 1 | AB142: 10:37:00
A143: 2008-01-10 | B143: 2008 | C143: 1 | D143: 2008 | E143: 7 | F143: 5 | G143: 2 | H143: 3.38028169 | I143: 1.183333333 | J143: Voice | K143: Gresham, Chris | L143: 4 | M143: 11:27:00 | N143: **:** | O143: 01:11:00 | P143: 12.7 | Q143: 64.5 | R143: *.* | S143: 4.9 | T143: 0 | U143: 0 | V143: 0 | W143: 0 | X143: 95 | Y143: 0 | Z143: 00:00:00 | AA143: 0 | AB143: 00:00:00
A144: 2008-01-10 | B144: 2008 | C144: 1 | D144: 2008 | E144: 7 | F144: 5 | G144: 2 | H144: 4.173913043 | I144: 1.916666667 | J144: Voice | K144: Hose, John | L144: 8 | M144: 05:36:00 | N144: **:** | O144: 01:55:00 | P144: 25.3 | Q144: 38.8 | R144: *.* | S144: 3.5 | T144: 0 | U144: 0 | V144: 0 | W144: 3.9 | X144: 96.4 | Y144: 0 | Z144: 00:00:00 | AA144: 1 | AB144: 04:29:00
A145: 2008-01-10 | B145: 2008 | C145: 1 | D145: 2008 | E145: 7 | F145: 5 | G145: 2 | H145: 2.681564246 | I145: 2.983333333 | J145: Voice | K145: Morzinski, Jacob | L145: 8 | M145: 06:40:00 | N145: **:** | O145: 02:59:00 | P145: 51.6 | Q145: 29.9 | R145: *.* | S145: 3.6 | T145: 0 | U145: 0 | V145: 0 | W145: 4.8 | X145: 96.4 | Y145: 0 | Z145: 00:00:00 | AA145: 6 | AB145: 01:25:00
A146: 2008-01-10 | B146: 2008 | C146: 1 | D146: 2008 | E146: 7 | F146: 5 | G146: 2 | H146: 2.168674699 | I146: 1.383333333 | J146: Voice | K146: New Hire8 | L146: 3 | M146: 10:09:00 | N146: **:** | O146: 01:23:00 | P146: 32.2 | Q146: 36.6 | R146: *.* | S146: 12.2 | T146: 0 | U146: 0 | V146: 0 | W146: 1.2 | X146: 87.8 | Y146: 0 | Z146: 00:00:00 | AA146: 1 | AB146: 01:01:00
A147: 2008-01-10 | B147: 2008 | C147: 1 | D147: 2008 | E147: 7 | F147: 5 | G147: 2 | H147: 1.034482759 | I147: 1.933333333 | J147: Voice | K147: Reed, Jessica | L147: 2 | M147: 1.281944444 | N147: **:** | O147: 01:56:00 | P147: 8.1 | Q147: 53.2 | R147: *.* | S147: 9.7 | T147: 0 | U147: 0 | V147: 0 | W147: 6.3 | X147: 90.3 | Y147: 0 | Z147: 00:00:00 | AA147: 3 | AB147: 02:25:00
A148: 2008-01-10 | B148: 2008 | C148: 1 | D148: 2008 | E148: 7 | F148: 5 | G148: 2 | H148: 4.655172414 | I148: 1.933333333 | J148: Voice | K148: Robinson, Lisa | L148: 9 | M148: 03:38:00 | N148: **:** | O148: 01:56:00 | P148: 25.7 | Q148: 28.3 | R148: *.* | S148: 10.6 | T148: 0 | U148: 0 | V148: 0 | W148: 10 | X148: 89.3 | Y148: 0 | Z148: 00:00:00 | AA148: 6 | AB148: 01:56:00
A149: 2008-01-10 | B149: 2008 | C149: 1 | D149: 2008 | E149: 7 | F149: 5 | G149: 2 | H149: 3.80952381 | I149: 3.15 | J149: Voice | K149: Shang, Jennifer | L149: 12 | M149: 08:57:00 | N149: **:** | O149: 03:09:00 | P149: 29.8 | Q149: 56.7 | R149: *.* | S149: 0.7 | T149: 0 | U149: 0 | V149: 0 | W149: 0 | X149: 99.3 | Y149: 0 | Z149: 00:00:00 | AA149: 0 | AB149: 00:00:00
A150: 2008-01-10 | B150: 2008 | C150: 1 | D150: 2008 | E150: 7 | F150: 5 | G150: 2 | H150: 4.528301887 | I150: 0.8833333333 | J150: Voice | K150: Witt, Karl | L150: 4 | M150: 05:34:00 | N150: **:** | O150: 00:53:00 | P150: 8 | Q150: 42.3 | R150: *.* | S150: 4.6 | T150: 0 | U150: 0 | V150: 0 | W150: 0 | X150: 95.4 | Y150: 0 | Z150: 00:00:00 | AA150: 0 | AB150: 00:00:00
A151: 2008-01-10 | B151: 2008 | C151: 1 | D151: 2008 | E151: 7 | F151: 5 | G151: 2 | I151: 2 | J151: W | K151: Doczi, Jozsef | O151: 02:00:00
A152: 2008-01-10 | B152: 2008 | C152: 1 | D152: 2008 | E152: 7 | F152: 5 | G152: 2 | I152: 1 | J152: W | K152: Egan, Larry | O152: 01:00:00
A153: 2008-01-10 | B153: 2008 | C153: 1 | D153: 2008 | E153: 7 | F153: 5 | G153: 2 | I153: 2 | J153: W | K153: Galt, Phyllis | O153: 02:00:00
A154: 2008-01-10 | B154: 2008 | C154: 1 | D154: 2008 | E154: 7 | F154: 5 | G154: 2 | I154: 2 | J154: W | K154: Van Dyke, Mark | O154: 02:00:00
A155: 2008-01-10 | B155: 2008 | C155: 1 | D155: 2008 | E155: 7 | F155: 5 | G155: 2 | I155: 1 | J155: W | K155: Witt, Karl | O155: 01:00:00
A156: 2008-01-11 | B156: 2008 | C156: 1 | D156: 2008 | E156: 7 | F156: 6 | G156: 2 | I156: 2.5 | J156: BH | K156: Barton, April | O156: 02:30:00
A157: 2008-01-11 | B157: 2008 | C157: 1 | D157: 2008 | E157: 7 | F157: 6 | G157: 2 | I157: 0.75 | J157: BH | K157: Doczi, Jozsef | O157: 00:45:00
A158: 2008-01-11 | B158: 2008 | C158: 1 | D158: 2008 | E158: 7 | F158: 6 | G158: 2 | I158: 2.5 | J158: BH | K158: Reed, Jessica | O158: 02:30:00
A159: 2008-01-11 | B159: 2008 | C159: 1 | D159: 2008 | E159: 7 | F159: 6 | G159: 2 | I159: 1 | J159: BH | K159: Shang, Jennifer | O159: 01:00:00
A160: 2008-01-11 | B160: 2008 | C160: 1 | D160: 2008 | E160: 7 | F160: 6 | G160: 2 | H160: =L160/I160 -> 1.061946903 | I160: 1.883333333 | J160: Voice | K160: Baars, Fred | L160: 2 | M160: 10:09:00 | N160: **:** | O160: 01:53:00 | P160: 18.3 | Q160: 17.9 | R160: *.* | S160: 31.7 | T160: 0 | U160: 0 | V160: 0 | W160: 0 | X160: 68.3 | Y160: 0 | Z160: 00:00:00 | AA160: 0 | AB160: 00:00:00
A161: 2008-01-11 | B161: 2008 | C161: 1 | D161: 2008 | E161: 7 | F161: 6 | G161: 2 | H161: 1.956521739 | I161: 1.533333333 | J161: Voice | K161: Barton, April | L161: 3 | M161: 04:13:00 | N161: **:** | O161: 01:32:00 | P161: 9.5 | Q161: 13.7 | R161: *.* | S161: 1.4 | T161: 0 | U161: 0 | V161: 0 | W161: 63.7 | X161: 98.6 | Y161: 0 | Z161: 00:00:00 | AA161: 1 | AB161: 2.451388889
A162: 2008-01-11 | B162: 2008 | C162: 1 | D162: 2008 | E162: 7 | F162: 6 | G162: 2 | H162: 1.395348837 | I162: 2.15 | J162: Voice | K162: Blanco, Robin | L162: 3 | M162: 05:37:00 | N162: **:** | O162: 02:09:00 | P162: 28.6 | Q162: 13.1 | R162: *.* | S162: 18.9 | T162: 0 | U162: 0 | V162: 0 | W162: 14.6 | X162: 81.1 | Y162: 0 | Z162: 00:00:00 | AA162: 3 | AB162: 06:16:00
A163: 2008-01-11 | B163: 2008 | C163: 1 | D163: 2008 | E163: 7 | F163: 6 | G163: 2 | H163: 5.538461538 | I163: 1.083333333 | J163: Voice | K163: Brids, Bill | L163: 6 | M163: 04:24:00 | N163: **:** | O163: 01:05:00 | P163: 22.3 | Q163: 40.8 | R163: *.* | S163: 3.1 | T163: 0 | U163: 0 | V163: 0 | W163: 3.5 | X163: 96.8 | Y163: 1 | Z163: 00:25:00 | AA163: 1 | AB163: 01:50:00
A164: 2008-01-11 | B164: 2008 | C164: 1 | D164: 2008 | E164: 7 | F164: 6 | G164: 2 | H164: 1.675977654 | I164: 2.983333333 | J164: Voice | K164: Doczi, Jozsef | L164: 5 | M164: 10:38:00 | N164: **:** | O164: 02:59:00 | P164: 21.4 | Q164: 29.8 | R164: *.* | S164: 5.4 | T164: 0 | U164: 0 | V164: 0 | W164: 0.5 | X164: 94.6 | Y164: 0 | Z164: 00:00:00 | AA164: 1 | AB164: 00:58:00
A165: 2008-01-11 | B165: 2008 | C165: 1 | D165: 2008 | E165: 7 | F165: 6 | G165: 2 | H165: 3.789473684 | I165: 1.583333333 | J165: Voice | K165: Galt, Phyllis | L165: 6 | M165: 05:40:00 | N165: **:** | O165: 01:35:00 | P165: 44.9 | Q165: 35.6 | R165: *.* | S165: 0.5 | T165: 0 | U165: 0 | V165: 0 | W165: 0.4 | X165: 99.5 | Y165: 0 | Z165: 00:00:00 | AA165: 1 | AB165: 00:24:00
A166: 2008-01-11 | B166: 2008 | C166: 1 | D166: 2008 | E166: 7 | F166: 6 | G166: 2 | H166: 2.608695652 | I166: 0.3833333333 | J166: Voice | K166: Goguen, Barbara | L166: 1 | M166: 03:56:00 | N166: **:** | O166: 00:23:00 | P166: 29.5 | Q166: 17.5 | R166: *.* | S166: 24.9 | T166: 0 | U166: 0 | V166: 0 | W166: 0 | X166: 75.1 | Y166: 0 | Z166: 00:00:00 | AA166: 0 | AB166: 00:00:00
A167: 2008-01-11 | B167: 2008 | C167: 1 | D167: 2008 | E167: 7 | F167: 6 | G167: 2 | H167: 3.947368421 | I167: 1.266666667 | J167: Voice | K167: Gresham, Chris | L167: 5 | M167: 04:17:00 | N167: **:** | O167: 01:16:00 | P167: 42.2 | Q167: 28.3 | R167: *.* | S167: 7.3 | T167: 0 | U167: 0 | V167: 0 | W167: 0 | X167: 92.7 | Y167: 0 | Z167: 00:00:00 | AA167: 0 | AB167: 00:00:00
A168: 2008-01-11 | B168: 2008 | C168: 1 | D168: 2008 | E168: 7 | F168: 6 | G168: 2 | H168: 4.468085106 | I168: 3.133333333 | J168: Voice | K168: Lang, Bob | L168: 14 | M168: 04:19:00 | N168: **:** | O168: 03:08:00 | P168: 58.8 | Q168: 32.2 | R168: *.* | S168: 3.7 | T168: 0 | U168: 0 | V168: 0 | W168: 0.4 | X168: 96.3 | Y168: 0 | Z168: 00:00:00 | AA168: 1 | AB168: 00:44:00
A169: 2008-01-11 | B169: 2008 | C169: 1 | D169: 2008 | E169: 7 | F169: 6 | G169: 2 | H169: 1.382488479 | I169: 3.616666667 | J169: Voice | K169: Morzinski, Jacob | L169: 5 | M169: 12:49:00 | N169: **:** | O169: 03:37:00 | P169: 23.3 | Q169: 29.5 | R169: *.* | S169: 5.5 | T169: 0 | U169: 0 | V169: 0 | W169: 28.4 | X169: 94.5 | Y169: 0 | Z169: 00:00:00 | AA169: 5 | AB169: 12:20:00
A170: 2008-01-11 | B170: 2008 | C170: 1 | D170: 2008 | E170: 7 | F170: 6 | G170: 2 | H170: 2.162162162 | I170: 1.85 | J170: Voice | K170: Nicholson, Laura | L170: 4 | M170: 09:16:00 | N170: **:** | O170: 01:51:00 | P170: 27 | Q170: 33.5 | R170: *.* | S170: 4.8 | T170: 0 | U170: 0 | V170: 0 | W170: 0 | X170: 95.1 | Y170: 0 | Z170: 00:00:00 | AA170: 0 | AB170: 00:00:00
A171: 2008-01-11 | B171: 2008 | C171: 1 | D171: 2008 | E171: 7 | F171: 6 | G171: 2 | H171: 4.8 | I171: 2.083333333 | J171: Voice | K171: Peloquin, Stuart | L171: 10 | M171: 03:52:00 | N171: **:** | O171: 02:05:00 | P171: 44.7 | Q171: 30.9 | R171: *.* | S171: 8.5 | T171: 0 | U171: 0 | V171: 0 | W171: 5.6 | X171: 91.4 | Y171: 0 | Z171: 00:00:00 | AA171: 2 | AB171: 03:31:00
A172: 2008-01-11 | B172: 2008 | C172: 1 | D172: 2008 | E172: 7 | F172: 6 | G172: 2 | H172: 3.673469388 | I172: 0.8166666667 | J172: Voice | K172: Reed, Jessica | L172: 3 | M172: 04:37:00 | N172: **:** | O172: 00:49:00 | P172: 21.5 | Q172: 28.4 | R172: *.* | S172: 15.9 | T172: 0 | U172: 0 | V172: 0 | W172: 0 | X172: 84.1 | Y172: 0 | Z172: 00:00:00 | AA172: 0 | AB172: 00:00:00
A173: 2008-01-11 | B173: 2008 | C173: 1 | D173: 2008 | E173: 7 | F173: 6 | G173: 2 | H173: 0 | I173: 0.1166666667 | J173: Voice | K173: Robinson, Lisa | L173: 0 | M173: 00:00:00 | N173: **:** | O173: 00:07:00 | P173: 0 | Q173: 0 | R173: *.* | S173: 66.9 | T173: 0 | U173: 0 | V173: 0 | W173: 33.1 | X173: 33.1 | Y173: 0 | Z173: 00:00:00 | AA173: 2 | AB173: 01:13:00
A174: 2008-01-11 | B174: 2008 | C174: 1 | D174: 2008 | E174: 7 | F174: 6 | G174: 2 | H174: 2.88 | I174: 2.083333333 | J174: Voice | K174: Student2 | L174: 6 | M174: 05:20:00 | N174: **:** | O174: 02:05:00 | P174: 23.3 | Q174: 25.5 | R174: *.* | S174: 6.1 | T174: 0 | U174: 0 | V174: 0 | W174: 15.6 | X174: 93.9 | Y174: 0 | Z174: 00:00:00 | AA174: 4 | AB174: 04:54:00
A175: 2008-01-11 | B175: 2008 | C175: 1 | D175: 2008 | E175: 7 | F175: 6 | G175: 2 | H175: 1.188118812 | I175: 1.683333333 | J175: Voice | K175: Van Dyke, Mark | L175: 2 | M175: 12:37:00 | N175: **:** | O175: 01:41:00 | P175: 45.9 | Q175: 25 | R175: *.* | S175: 15.6 | T175: 0 | U175: 0 | V175: 0 | W175: 0 | X175: 84.4 | Y175: 0 | Z175: 00:00:00 | AA175: 0 | AB175: 00:00:00
A176: 2008-01-11 | B176: 2008 | C176: 1 | D176: 2008 | E176: 7 | F176: 6 | G176: 2 | H176: 2.448979592 | I176: 1.633333333 | J176: Voice | K176: Witt, Karl | L176: 4 | M176: 04:47:00 | N176: **:** | O176: 01:38:00 | P176: 30.1 | Q176: 19.5 | R176: *.* | S176: 9.8 | T176: 0 | U176: 0 | V176: 0 | W176: 0 | X176: 90.2 | Y176: 0 | Z176: 00:00:00 | AA176: 0 | AB176: 00:00:00
A177: 2008-01-11 | B177: 2008 | C177: 1 | D177: 2008 | E177: 7 | F177: 6 | G177: 2 | H177: 2.741116751 | I177: 3.283333333 | J177: Voice | K177: Zhang, Sharon | L177: 9 | M177: 06:19:00 | N177: **:** | O177: 03:17:00 | P177: 35.5 | Q177: 28.9 | R177: *.* | S177: 5.3 | T177: 0 | U177: 0 | V177: 0 | W177: 0 | X177: 94.7 | Y177: 0 | Z177: 00:00:00 | AA177: 0 | AB177: 00:00:00
A178: 2008-01-11 | B178: 2008 | C178: 1 | D178: 2008 | E178: 7 | F178: 6 | G178: 2 | I178: 1 | J178: W | K178: Brids, Bill | O178: 01:00:00
A179: 2008-01-11 | B179: 2008 | C179: 1 | D179: 2008 | E179: 7 | F179: 6 | G179: 2 | I179: 2 | J179: W | K179: Gu, Yang | O179: 02:00:00
A180: 2008-01-11 | B180: 2008 | C180: 1 | D180: 2008 | E180: 7 | F180: 6 | G180: 2 | I180: 2 | J180: W | K180: Hose, John | O180: 02:00:00
A181: 2008-01-11 | B181: 2008 | C181: 1 | D181: 2008 | E181: 7 | F181: 6 | G181: 2 | I181: 3 | J181: W | K181: Shang, Jennifer | O181: 03:00:00
A182: 2008-01-14 | B182: 2008 | C182: 1 | D182: 2008 | E182: 7 | F182: 2 | G182: 3 | I182: 2.5 | J182: BH | K182: Barton, April | O182: 02:30:00
A183: 2008-01-14 | B183: 2008 | C183: 1 | D183: 2008 | E183: 7 | F183: 2 | G183: 3 | I183: 4 | J183: BH | K183: Robinson, Lisa | O183: 04:00:00
A184: 2008-01-14 | B184: 2008 | C184: 1 | D184: 2008 | E184: 7 | F184: 2 | G184: 3 | I184: 1.5 | J184: BH | K184: Shang, Jennifer | O184: 01:30:00
A185: 2008-01-14 | B185: 2008 | C185: 1 | D185: 2008 | E185: 7 | F185: 2 | G185: 3 | H185: =L185/I185 -> 1.071428571 | I185: 0.9333333333 | J185: Voice | K185: Baars, Fred | L185: 1 | M185: 18:35:00 | N185: **:** | O185: 00:56:00 | P185: 24.9 | Q185: 33.1 | R185: *.* | S185: 17.6 | T185: 0 | U185: 0 | V185: 0 | W185: 0 | X185: 82.4 | Y185: 0 | Z185: 00:00:00 | AA185: 0 | AB185: 00:00:00
A186: 2008-01-14 | B186: 2008 | C186: 1 | D186: 2008 | E186: 7 | F186: 2 | G186: 3 | H186: 1.445783133 | I186: 1.383333333 | J186: Voice | K186: Barton, April | L186: 2 | M186: 13:20:00 | N186: **:** | O186: 01:23:00 | P186: 49.3 | Q186: 32.1 | R186: *.* | S186: 10.3 | T186: 0 | U186: 0 | V186: 0 | W186: 0 | X186: 89.7 | Y186: 0 | Z186: 00:00:00 | AA186: 0 | AB186: 00:00:00
A187: 2008-01-14 | B187: =YEAR(A187) -> 2008 | C187: =MONTH(A187) -> 1 | D187: =IF(E187<=6,YEAR(A187)+1,YEAR(A187)) -> 2008 | E187: =IF(MONTH(A187)>6,MONTH(A187)-6,MONTH(A187)+6) -> 7 | F187: =WEEKDAY(A187) -> 2 | G187: =WEEKNUM(A187) -> 3 | H187: 2.608695652 | I187: =(O187-TIME(0,0,0))*24 -> 1.15 | J187: Voice | K187: Blanco, Robin | L187: 3 | M187: 02:55:00 | N187: **:** | O187: 01:09:00 | P187: 46.3 | Q187: 12.6 | R187: *.* | S187: 10.3 | T187: 0 | U187: 0 | V187: 0 | W187: 3.3 | X187: 89.7 | Y187: 0 | Z187: 00:00:00 | AA187: 2 | AB187: 01:08:00
A188: 2008-01-14 | B188: 2008 | C188: 1 | D188: 2008 | E188: 7 | F188: 2 | G188: 3 | H188: 1.475409836 | I188: 2.033333333 | J188: Voice | K188: Doczi, Jozsef | L188: 3 | M188: 07:10:00 | N188: **:** | O188: 02:02:00 | P188: 28.7 | Q188: 17.7 | R188: *.* | S188: 38.1 | T188: 0 | U188: 0 | V188: 0 | W188: 0.3 | X188: 61.9 | Y188: 0 | Z188: 00:00:00 | AA188: 1 | AB188: 00:23:00
A189: 2008-01-14 | B189: 2008 | C189: 1 | D189: 2008 | E189: 7 | F189: 2 | G189: 3 | H189: 2.903225806 | I189: 1.033333333 | J189: Voice | K189: Galt, Phyllis | L189: 3 | M189: 04:57:00 | N189: **:** | O189: 01:02:00 | P189: 47.6 | Q189: 24.1 | R189: *.* | S189: 1.4 | T189: 0 | U189: 0 | V189: 0 | W189: 0 | X189: 98.6 | Y189: 0 | Z189: 00:00:00 | AA189: 0 | AB189: 00:00:00
A190: 2008-01-14 | B190: 2008 | C190: 1 | D190: 2008 | E190: 7 | F190: 2 | G190: 3 | H190: 1.690140845 | I190: 1.183333333 | J190: Voice | K190: Goguen, Barbara | L190: 2 | M190: 03:49:00 | N190: **:** | O190: 01:11:00 | P190: 33.4 | Q190: 10.8 | R190: *.* | S190: 7.3 | T190: 0 | U190: 0 | V190: 0 | W190: 0 | X190: 92.7 | Y190: 0 | Z190: 00:00:00 | AA190: 0 | AB190: 00:00:00
A191: 2008-01-14 | B191: 2008 | C191: 1 | D191: 2008 | E191: 7 | F191: 2 | G191: 3 | H191: 2.571428571 | I191: 2.333333333 | J191: Voice | K191: Larrabee, Joanne | L191: 6 | M191: 07:59:00 | N191: **:** | O191: 02:20:00 | P191: 20.3 | Q191: 34.2 | R191: *.* | S191: 5.1 | T191: 0 | U191: 0 | V191: 0 | W191: 7.2 | X191: 94.9 | Y191: 0 | Z191: 00:00:00 | AA191: 3 | AB191: 03:22:00
A192: 2008-01-14 | B192: 2008 | C192: 1 | D192: 2008 | E192: 7 | F192: 2 | G192: 3 | H192: 2.051282051 | I192: 1.95 | J192: Voice | K192: Maina, Wacium | L192: 4 | M192: 11:37:00 | N192: **:** | O192: 01:57:00 | P192: 20.1 | Q192: 39.8 | R192: *.* | S192: 19.2 | T192: 0 | U192: 0 | V192: 0 | W192: 0 | X192: 80.8 | Y192: 0 | Z192: 00:00:00 | AA192: 0 | AB192: 00:00:00
A193: 2008-01-14 | B193: 2008 | C193: 1 | D193: 2008 | E193: 7 | F193: 2 | G193: 3 | H193: 1.935483871 | I193: 1.033333333 | J193: Voice | K193: Morzinski, Jacob | L193: 2 | M193: 00:52:00 | N193: **:** | O193: 01:02:00 | P193: 42.6 | Q193: 2.8 | R193: *.* | S193: 16 | T193: 0 | U193: 0 | V193: 0 | W193: 5 | X193: 84 | Y193: 0 | Z193: 00:00:00 | AA193: 3 | AB193: 01:01:00
A194: 2008-01-14 | B194: 2008 | C194: 1 | D194: 2008 | E194: 7 | F194: 2 | G194: 3 | H194: 3.488372093 | I194: 1.433333333 | J194: Voice | K194: New Hire8 | L194: 5 | M194: 02:08:00 | N194: **:** | O194: 01:26:00 | P194: 53.7 | Q194: 12.4 | R194: *.* | S194: 10.7 | T194: 0 | U194: 0 | V194: 0 | W194: 2.1 | X194: 89.3 | Y194: 0 | Z194: 00:00:00 | AA194: 2 | AB194: 00:54:00
A195: 2008-01-14 | B195: 2008 | C195: 1 | D195: 2008 | E195: 7 | F195: 2 | G195: 3 | H195: 2.589928058 | I195: 2.316666667 | J195: Voice | K195: Reed, Jessica | L195: 6 | M195: 10:00:00 | N195: **:** | O195: 02:19:00 | P195: 29.7 | Q195: 43.2 | R195: *.* | S195: 12.4 | T195: 0 | U195: 0 | V195: 0 | W195: 0 | X195: 87.6 | Y195: 0 | Z195: 00:00:00 | AA195: 0 | AB195: 00:00:00
A196: 2008-01-14 | B196: 2008 | C196: 1 | D196: 2008 | E196: 7 | F196: 2 | G196: 3 | H196: 1.363636364 | I196: 0.7333333333 | J196: Voice | K196: Robinson, Lisa | L196: 1 | M196: 04:38:00 | N196: **:** | O196: 00:44:00 | P196: 8.3 | Q196: 10.5 | R196: *.* | S196: 24.2 | T196: 0 | U196: 0 | V196: 0 | W196: 24.6 | X196: 75.8 | Y196: 0 | Z196: 00:00:00 | AA196: 6 | AB196: 01:48:00
A197: 2008-01-14 | B197: 2008 | C197: 1 | D197: 2008 | E197: 7 | F197: 2 | G197: 3 | H197: 1.85840708 | I197: 7.533333333 | J197: Voice | K197: Sadoian, Jared | L197: 14 | M197: 09:27:00 | N197: **:** | O197: 07:32:00 | P197: 34.3 | Q197: 29.3 | R197: *.* | S197: 9.9 | T197: 0 | U197: 0 | V197: 0 | W197: 0 | X197: 90.1 | Y197: 0 | Z197: 00:00:00 | AA197: 0 | AB197: 00:00:00
A198: 2008-01-14 | B198: 2008 | C198: 1 | D198: 2008 | E198: 7 | F198: 2 | G198: 3 | H198: 4.594594595 | I198: 3.7 | J198: Voice | K198: Shang, Jennifer | L198: 17 | M198: 04:15:00 | N198: **:** | O198: 03:42:00 | P198: 35.4 | Q198: 32.5 | R198: *.* | S198: 1.9 | T198: 0 | U198: 0 | V198: 0 | W198: 0.2 | X198: 98.1 | Y198: 0 | Z198: 00:00:00 | AA198: 4 | AB198: 00:05:00
A199: 2008-01-14 | B199: 2008 | C199: 1 | D199: 2008 | E199: 7 | F199: 2 | G199: 3 | H199: 1.829268293 | I199: 2.733333333 | J199: Voice | K199: Thorn, Matthias | L199: 5 | M199: 08:12:00 | N199: **:** | O199: 02:44:00 | P199: 45.5 | Q199: 25 | R199: *.* | S199: 8.1 | T199: 0 | U199: 0 | V199: 0 | W199: 0 | X199: 91.9 | Y199: 0 | Z199: 00:00:00 | AA199: 0 | AB199: 00:00:00
A200: 2008-01-14 | B200: 2008 | C200: 1 | D200: 2008 | E200: 7 | F200: 2 | G200: 3 | H200: 1.487603306 | I200: 2.016666667 | J200: Voice | K200: Witt, Karl | L200: 3 | M200: 03:36:00 | N200: **:** | O200: 02:01:00 | P200: 11 | Q200: 8.9 | R200: *.* | S200: 24.3 | T200: 0 | U200: 0 | V200: 0 | W200: 0 | X200: 75.7 | Y200: 0 | Z200: 00:00:00 | AA200: 0 | AB200: 00:00:00
... 2050 more rows

Sheet acd by day
A1: Weekday | B1: MonthText | C1: Day | D1: (Year) | E1: Offered | F1: Answered | G1: Overflow | H1: Diverted | I1: Lost | J1: Delayed | K1: Service Level % | L1: Talk Time | M1: Avg Work Time | N1: Avg Delay | O1: Max in Queue | P1: Max Wait | Q1: Hours of Work | R1: Long (Null) | S1: Agent Hours | T1: Agent Minutes | U1: DailyAgentHours | V1: Month | W1: Abandon | X1: Wait(s) | Y1: Wait(m) | Z1: MaxWait(s) | AA1: MaxWait(m) | AB1: FYMonth | AC1: FYYear | AD1: ACD Forecast WeekDay Check | AE1: ACD Forecast Month Check | AF1: ACD Forecast Day Check | AG1: ACD Forecast (Year) Check | AH1: Agts Manned | AI1: Eff Agents | AJ1: Total Calls | AK1: Quality Limit | AL1: Avg Handle | AM1: Svc Level | AN1: ERL | AO1: Forecast Man | AP1: Forecast Agts
A2: Wed | B2: Aug | C2: 1 | D2: 2007 | E2: 213 | F2: 127 | G2: 0 | H2: 60 | I2: 26 | J2: 114 | K2: 34 | L2: 06:07:00 | M2: 02:44:00 | N2: 01:08:00 | O2: 5 | P2: 02:45:00 | Q2: 22.88 | V2: =DATE(D2,MONTH(DATEVALUE(CONCATENATE("1/",B2,"/2007"))),C2) -> 2007-08-01 | W2: =IF(E2<>0,I2/E2,0) -> 0.1220657277 | X2: =HOUR(N2)*60+(MINUTE(N2)) -> 68 | Y2: =HOUR(N2)+(MINUTE(N2)/60) -> 1.133333333 | Z2: =HOUR(P2)*60+(MINUTE(P2)) -> 165 | AA2: =HOUR(P2)+(MINUTE(P2)/60) -> 2.75 | AB2: =IF(MONTH(V2)>6,MONTH(V2)-6,MONTH(V2)+6) -> 2 | AC2: =IF(AB2<=6,YEAR(V2)+1,YEAR(V2)) -> 2008 | AD2: Wed | AE2: Aug | AF2: 1 | AG2: 2008 | AH2: 1.4 | AI2: 1.2 | AJ2: 213 | AK2: 00:20:00 | AL2: 08:51:00 | AM2: 41 | AN2: 1.3 | AO2: 4 | AP2: 4.6
A3: Thu | B3: Aug | C3: 2 | D3: 2007 | E3: 157 | F3: 135 | G3: 0 | H3: 10 | I3: 12 | J3: 46 | K3: 63 | L3: 07:29:00 | M3: 03:57:00 | N3: 00:31:00 | O3: 3 | P3: 02:39:00 | Q3: 19.53 | V3: 2007-08-02 | W3: =IF(E3<>0,I3/E3,0) -> 0.07643312102 | X3: 31 | Y3: 0.5166666667 | Z3: =HOUR(P3)*60+(MINUTE(P3)) -> 159 | AA3: =HOUR(P3)+(MINUTE(P3)/60) -> 2.65 | AB3: 2 | AC3: 2008 | AD3: Thu | AE3: Aug | AF3: 2 | AG3: 2008 | AH3: 1.4 | AI3: 1.3 | AJ3: 157 | AK3: 00:20:00 | AL3: 11:26:00 | AM3: 66 | AN3: 1.2 | AO3: 4 | AP3: 4.4
A4: Fri | B4: Aug | C4: 3 | D4: 2007 | E4: 119 | F4: 102 | G4: 0 | H4: 14 | I4: 3 | J4: 35 | K4: 68 | L4: 06:20:00 | M4: 03:54:00 | N4: 00:35:00 | O4: 3 | P4: 02:47:00 | Q4: 13.39 | S4: 31 | T4: 41 | U4: =S4+(T4/60) -> 31.68333333 | V4: 2007-08-03 | W4: 0.02521008403 | X4: 35 | Y4: 0.5833333333 | Z4: 167 | AA4: 2.783333333 | AB4: 2 | AC4: 2008 | AD4: Fri | AE4: Aug | AF4: 3 | AG4: 2008 | AH4: 1.3 | AI4: 1.1 | AJ4: 119 | AK4: 00:20:00 | AL4: 10:14:00 | AM4: 69 | AN4: 0.8 | AO4: 3 | AP4: 3.5
A5: Mon | B5: Aug | C5: 6 | D5: 2007 | E5: 186 | F5: 125 | G5: 0 | H5: 37 | I5: 24 | J5: 84 | K5: 42 | L5: 06:07:00 | M5: 03:26:00 | N5: 00:59:00 | O5: 4 | P5: 02:49:00 | Q5: 19.45 | S5: 27 | T5: 46 | U5: 27.76666667 | V5: 2007-08-06 | W5: 0.1290322581 | X5: 59 | Y5: 0.9833333333 | Z5: 169 | AA5: 2.816666667 | AB5: 2 | AC5: 2008 | AD5: Mon | AE5: Aug | AF5: 6 | AG5: 2008 | AH5: 1.2 | AI5: 1 | AJ5: 186 | AK5: 00:20:00 | AL5: 09:33:00 | AM5: 49 | AN5: 1.2 | AO5: 4 | AP5: 4.5
A6: Tue | B6: Aug | C6: 7 | D6: 2007 | E6: 133 | F6: 116 | G6: 0 | H6: 6 | I6: 11 | J6: 28 | K6: 71 | L6: 06:33:00 | M6: 03:52:00 | N6: 00:24:00 | O6: 3 | P6: 02:42:00 | Q6: 14.22 | S6: 25 | T6: 32 | U6: 25.53333333 | V6: 2007-08-07 | W6: 0.08270676692 | X6: 24 | Y6: 0.4 | Z6: 162 | AA6: 2.7 | AB6: 2 | AC6: 2008 | AD6: Tue | AE6: Aug | AF6: 7 | AG6: 2008 | AH6: 1.1 | AI6: 1 | AJ6: 133 | AK6: 00:20:00 | AL6: 10:25:00 | AM6: 73 | AN6: 1 | AO6: 4 | AP6: 4.4
A7: Wed | B7: Aug | C7: 8 | D7: 2007 | E7: 107 | F7: 102 | G7: 0 | H7: 2 | I7: 3 | J7: 16 | K7: 82 | L7: 08:03:00 | M7: 04:22:00 | N7: 00:16:00 | O7: 2 | P7: 02:33:00 | Q7: 14.44 | S7: 31 | T7: 45 | U7: 31.75 | V7: 2007-08-08 | W7: 0.02803738318 | X7: 16 | Y7: 0.2666666667 | Z7: 153 | AA7: 2.55 | AB7: 2 | AC7: 2008 | AD7: Wed | AE7: Aug | AF7: 8 | AG7: 2008 | AH7: 1.3 | AI7: 1.2 | AJ7: 107 | AK7: 00:20:00 | AL7: 12:25:00 | AM7: 83 | AN7: 0.9 | AO7: 4 | AP7: 4.6
A8: Thu | B8: Aug | C8: 9 | D8: 2007 | E8: 113 | F8: 85 | G8: 0 | H8: 15 | I8: 13 | J8: 28 | K8: 64 | L8: 07:01:00 | M8: 03:32:00 | N8: 00:34:00 | O8: 3 | P8: 02:42:00 | Q8: 12.74 | S8: 25 | T8: 53 | U8: 25.88333333 | V8: 2007-08-09 | W8: 0.1150442478 | X8: 34 | Y8: 0.5666666667 | Z8: 162 | AA8: 2.7 | AB8: 2 | AC8: 2008 | AD8: Thu | AE8: Aug | AF8: 9 | AG8: 2008 | AH8: 1.1 | AI8: 0.9 | AJ8: 113 | AK8: 00:20:00 | AL8: 10:33:00 | AM8: 67 | AN8: 0.8 | AO8: 3 | AP8: 3.5
A9: Fri | B9: Aug | C9: 10 | D9: 2007 | E9: 123 | F9: 97 | G9: 0 | H9: 17 | I9: 9 | J9: 34 | K9: 65 | L9: 06:51:00 | M9: 03:25:00 | N9: 00:37:00 | O9: 3 | P9: 02:44:00 | Q9: 14.34 | S9: 28 | T9: 11 | U9: 28.18333333 | V9: 2007-08-10 | W9: 0.07317073171 | X9: 37 | Y9: 0.6166666667 | Z9: 164 | AA9: 2.733333333 | AB9: 2 | AC9: 2008 | AD9: Fri | AE9: Aug | AF9: 10 | AG9: 2008 | AH9: 1.2 | AI9: 1 | AJ9: 123 | AK9: 00:20:00 | AL9: 10:16:00 | AM9: 67 | AN9: 0.9 | AO9: 3 | AP9: 3.5
A10: Mon | B10: Aug | C10: 13 | D10: 2007 | E10: 156 | F10: 121 | G10: 0 | H10: 21 | I10: 14 | J10: 55 | K10: 56 | L10: 06:49:00 | M10: 04:01:00 | N10: 00:45:00 | O10: 3 | P10: 02:43:00 | Q10: 18.09 | S10: 33 | T10: 43 | U10: 33.71666667 | V10: 2007-08-13 | W10: 0.08974358974 | X10: 45 | Y10: 0.75 | Z10: 163 | AA10: 2.716666667 | AB10: 2 | AC10: 2008 | AD10: Mon | AE10: Aug | AF10: 13 | AG10: 2008 | AH10: 1.4 | AI10: 1.2 | AJ10: 156 | AK10: 00:20:00 | AL10: 10:50:00 | AM10: 59 | AN10: 1.2 | AO10: 4 | AP10: 4.7
A11: Tue | B11: Aug | C11: 14 | D11: 2007 | E11: 120 | F11: 93 | G11: 0 | H11: 14 | I11: 13 | J11: 33 | K11: 62 | L11: 07:58:00 | M11: 04:01:00 | N11: 00:35:00 | O11: 3 | P11: 02:49:00 | Q11: 15.4 | S11: 32 | T11: 22 | U11: 32.36666667 | V11: 2007-08-14 | W11: 0.1083333333 | X11: 35 | Y11: 0.5833333333 | Z11: 169 | AA11: 2.816666667 | AB11: 2 | AC11: 2008 | AD11: Tue | AE11: Aug | AF11: 14 | AG11: 2008 | AH11: 1.3 | AI11: 1.1 | AJ11: 120 | AK11: 00:20:00 | AL11: 11:59:00 | AM11: 65 | AN11: 1 | AO11: 4 | AP11: 4.7
A12: Wed | B12: Aug | C12: 15 | D12: 2007 | E12: 111 | F12: 103 | G12: 0 | H12: 4 | I12: 4 | J12: 12 | K12: 86 | L12: 08:07:00 | M12: 05:32:00 | N12: 00:16:00 | O12: 2 | P12: 02:46:00 | Q12: 14.99 | S12: 42 | T12: 29 | U12: 42.48333333 | V12: 2007-08-15 | W12: 0.03603603604 | X12: 16 | Y12: 0.2666666667 | Z12: 166 | AA12: 2.766666667 | AB12: 2 | AC12: 2008 | AD12: Wed | AE12: Aug | AF12: 15 | AG12: 2008 | AH12: 1.8 | AI12: 1.5 | AJ12: 111 | AK12: 00:20:00 | AL12: 13:39:00 | AM12: 86 | AN12: 1.1 | AO12: 4 | AP12: 4.6
A13: Thu | B13: Aug | C13: 16 | D13: 2007 | E13: 129 | F13: 98 | G13: 0 | H13: 16 | I13: 15 | J13: 29 | K13: 66 | L13: 07:32:00 | M13: 03:50:00 | N13: 00:34:00 | O13: 4 | P13: 02:42:00 | Q13: 15.55 | S13: 32 | T13: 17 | U13: 32.28333333 | V13: 2007-08-16 | W13: 0.1162790698 | X13: 34 | Y13: 0.5666666667 | Z13: 162 | AA13: 2.7 | AB13: 2 | AC13: 2008 | AD13: Thu | AE13: Aug | AF13: 16 | AG13: 2008 | AH13: 1.3 | AI13: 1.2 | AJ13: 129 | AK13: 00:20:00 | AL13: 11:22:00 | AM13: 69 | AN13: 1 | AO13: 4 | AP13: 4.6
A14: Fri | B14: Aug | C14: 17 | D14: 2007 | E14: 113 | F14: 92 | G14: 0 | H14: 14 | I14: 7 | J14: 42 | K14: 57 | L14: 07:27:00 | M14: 04:40:00 | N14: 00:42:00 | O14: 3 | P14: 02:36:00 | Q14: 14.44 | S14: 35 | T14: 6 | U14: 35.1 | V14: 2007-08-17 | W14: 0.06194690265 | X14: 42 | Y14: 0.7 | Z14: 156 | AA14: 2.6 | AB14: 2 | AC14: 2008 | AD14: Fri | AE14: Aug | AF14: 17 | AG14: 2008 | AH14: 1.5 | AI14: 1.3 | AJ14: 113 | AK14: 00:20:00 | AL14: 12:07:00 | AM14: 59 | AN14: 1 | AO14: 4 | AP14: 4.5
A15: Mon | B15: Aug | C15: 20 | D15: 2007 | E15: 129 | F15: 89 | G15: 0 | H15: 25 | I15: 15 | J15: 48 | K15: 51 | L15: 07:21:00 | M15: 03:34:00 | N15: 00:49:00 | O15: 3 | P15: 02:47:00 | Q15: 15.66 | S15: 27 | T15: 45 | U15: 27.75 | V15: 2007-08-20 | W15: 0.1162790698 | X15: 49 | Y15: 0.8166666667 | Z15: 167 | AA15: 2.783333333 | AB15: 2 | AC15: 2008 | AD15: Mon | AE15: Aug | AF15: 20 | AG15: 2008 | AH15: 1.2 | AI15: 1 | AJ15: 129 | AK15: 00:20:00 | AL15: 10:55:00 | AM15: 56 | AN15: 1 | AO15: 4 | AP15: 4.7
A16: Tue | B16: Aug | C16: 21 | D16: 2007 | E16: 128 | F16: 91 | G16: 0 | H16: 26 | I16: 11 | J16: 51 | K16: 52 | L16: 05:28:00 | M16: 03:24:00 | N16: 00:49:00 | O16: 3 | P16: 02:46:00 | Q16: 12.41 | S16: 20 | T16: 15 | U16: 20.25 | V16: 2007-08-21 | W16: 0.0859375 | X16: 49 | Y16: 0.8166666667 | Z16: 166 | AA16: 2.766666667 | AB16: 2 | AC16: 2008 | AD16: Tue | AE16: Aug | AF16: 21 | AG16: 2008 | AH16: 0.8 | AI16: 0.7 | AJ16: 128 | AK16: 00:20:00 | AL16: 08:52:00 | AM16: 55 | AN16: 0.8 | AO16: 3 | AP16: 3.5
A17: Wed | B17: Aug | C17: 22 | D17: 2007 | E17: 123 | F17: 104 | G17: 0 | H17: 10 | I17: 9 | J17: 19 | K17: 77 | L17: 06:11:00 | M17: 03:51:00 | N17: 00:24:00 | O17: 2 | P17: 02:46:00 | Q17: 12.55 | S17: 29 | T17: 22 | U17: 29.36666667 | V17: 2007-08-22 | W17: 0.07317073171 | X17: 24 | Y17: 0.4 | Z17: 166 | AA17: 2.766666667 | AB17: 2 | AC17: 2008 | AD17: Wed | AE17: Aug | AF17: 22 | AG17: 2008 | AH17: 1.2 | AI17: 1.1 | AJ17: 123 | AK17: 00:20:00 | AL17: 10:02:00 | AM17: 79 | AN17: 0.9 | AO17: 3 | AP17: 3.4
A18: Thu | B18: Aug | C18: 23 | D18: 2007 | E18: 120 | F18: 95 | G18: 0 | H18: 16 | I18: 9 | J18: 28 | K18: 69 | L18: 06:17:00 | M18: 05:01:00 | N18: 00:33:00 | O18: 4 | P18: 02:42:00 | Q18: 12.76 | S18: 27 | T18: 43 | U18: 27.71666667 | V18: 2007-08-23 | W18: 0.075 | X18: 33 | Y18: 0.55 | Z18: 162 | AA18: 2.7 | AB18: 2 | AC18: 2008 | AD18: Thu | AE18: Aug | AF18: 23 | AG18: 2008 | AH18: 1.2 | AI18: 1.1 | AJ18: 120 | AK18: 00:20:00 | AL18: 11:18:00 | AM18: 71 | AN18: 0.9 | AO18: 4 | AP18: 4.4
A19: Fri | B19: Aug | C19: 24 | D19: 2007 | E19: 108 | F19: 91 | G19: 0 | H19: 6 | I19: 11 | J19: 25 | K19: 67 | L19: 07:07:00 | M19: 04:09:00 | N19: 00:28:00 | O19: 3 | P19: 06:52:00 | Q19: 12.34 | S19: 29 | T19: 51 | U19: 29.85 | V19: 2007-08-24 | W19: 0.1018518519 | X19: 28 | Y19: 0.4666666667 | Z19: 412 | AA19: 6.866666667 | AB19: 2 | AC19: 2008 | AD19: Fri | AE19: Aug | AF19: 24 | AG19: 2008 | AH19: 1.2 | AI19: 1.1 | AJ19: 108 | AK19: 00:20:00 | AL19: 11:16:00 | AM19: 70 | AN19: 0.8 | AO19: 3 | AP19: 3.5
A20: Mon | B20: Aug | C20: 27 | D20: 2007 | E20: 117 | F20: 98 | G20: 0 | H20: 3 | I20: 16 | J20: 40 | K20: 52 | L20: 06:38:00 | M20: 05:18:00 | N20: 01:02:00 | O20: 3 | P20: 07:51:00 | Q20: 13.35 | S20: 27 | T20: 33 | U20: 27.55 | V20: 2007-08-27 | W20: 0.1367521368 | X20: 62 | Y20: 1.033333333 | Z20: 471 | AA20: 7.85 | AB20: 2 | AC20: 2008 | AD20: Mon | AE20: Aug | AF20: 27 | AG20: 2008 | AH20: 1.1 | AI20: 1 | AJ20: 117 | AK20: 00:20:00 | AL20: 11:56:00 | AM20: 58 | AN20: 1 | AO20: 4 | AP20: 4.4
A21: Tue | B21: Aug | C21: 28 | D21: 2007 | E21: 124 | F21: 96 | G21: 0 | H21: 3 | I21: 25 | J21: 52 | K21: 38 | L21: 06:25:00 | M21: 07:06:00 | N21: 02:04:00 | O21: 5 | P21: 12:39:00 | Q21: 14.81 | S21: 28 | T21: 43 | U21: 28.71666667 | V21: 2007-08-28 | W21: 0.2016129032 | X21: 124 | Y21: 2.066666667 | Z21: 759 | AA21: 12.65 | AB21: 2 | AC21: 2008 | AD21: Tue | AE21: Aug | AF21: 28 | AG21: 2008 | AH21: 1.2 | AI21: 1 | AJ21: 124 | AK21: 00:20:00 | AL21: 13:31:00 | AM21: 48 | AN21: 1.2 | AO21: 4 | AP21: 4.6
A22: Wed | B22: Aug | C22: 29 | D22: 2007 | E22: 117 | F22: 95 | G22: 0 | H22: 3 | I22: 19 | J22: 36 | K22: 53 | L22: 06:22:00 | M22: 05:20:00 | N22: 00:49:00 | O22: 3 | P22: 11:51:00 | Q22: 12.34 | S22: 32 | T22: 51 | U22: 32.85 | V22: 2007-08-29 | W22: 0.1623931624 | X22: 49 | Y22: 0.8166666667 | Z22: 711 | AA22: 11.85 | AB22: 2 | AC22: 2008 | AD22: Wed | AE22: Aug | AF22: 29 | AG22: 2008 | AH22: 1.4 | AI22: 1.2 | AJ22: 117 | AK22: 00:20:00 | AL22: 11:42:00 | AM22: 60 | AN22: 1 | AO22: 4 | AP22: 4.7
A23: Thu | B23: Aug | C23: 30 | D23: 2007 | E23: 113 | F23: 91 | G23: 0 | H23: 3 | I23: 19 | J23: 39 | K23: 49 | L23: 06:28:00 | M23: 04:42:00 | N23: 01:30:00 | O23: 4 | P23: 10:49:00 | Q23: 12.83 | S23: 26 | T23: 43 | U23: 26.71666667 | V23: 2007-08-30 | W23: 0.1681415929 | X23: 90 | Y23: 1.5 | Z23: 649 | AA23: 10.81666667 | AB23: 2 | AC23: 2008 | AD23: Thu | AE23: Aug | AF23: 30 | AG23: 2008 | AH23: 1.1 | AI23: 1 | AJ23: 113 | AK23: 00:20:00 | AL23: 11:10:00 | AM23: 56 | AN23: 0.9 | AO23: 4 | AP23: 4.4
A24: Fri | B24: Aug | C24: 31 | D24: 2007 | E24: 106 | F24: 91 | G24: 0 | H24: 2 | I24: 13 | J24: 46 | K24: 44 | L24: 06:45:00 | M24: 05:01:00 | N24: 01:31:00 | O24: 4 | P24: 10:41:00 | Q24: 12.98 | S24: 28 | T24: 16 | U24: 28.26666667 | V24: 2007-08-31 | W24: 0.1226415094 | X24: 91 | Y24: 1.516666667 | Z24: 641 | AA24: 10.68333333 | AB24: 2 | AC24: 2008 | AD24: Fri | AE24: Aug | AF24: 31 | AG24: 2008 | AH24: 1.2 | AI24: 1 | AJ24: 106 | AK24: 00:20:00 | AL24: 11:46:00 | AM24: 50 | AN24: 0.9 | AO24: 4 | AP24: 4.6
A25: Tue | B25: Sep | C25: 4 | D25: 2007 | E25: 214 | F25: 171 | G25: 0 | H25: 4 | I25: 39 | J25: 99 | K25: 36 | L25: 05:33:00 | M25: 03:20:00 | N25: 02:04:00 | O25: 9 | P25: 23:35:00 | Q25: 24.04 | S25: 31 | T25: 58 | U25: 31.96666667 | V25: 2007-09-04 | W25: 0.1822429907 | X25: 124 | Y25: 2.066666667 | Z25: 1415 | AA25: 23.58333333 | AB25: 3 | AC25: 2008 | AD25: Tue | AE25: Sep | AF25: 4 | AG25: 2008 | AH25: 1.3 | AI25: 1.2 | AJ25: 214 | AK25: 00:20:00 | AL25: 08:53:00 | AM25: 45 | AN25: 1.3 | AO25: 4 | AP25: 4.5
A26: Wed | B26: Sep | C26: 5 | D26: 2007 | E26: 171 | F26: 145 | G26: 0 | H26: 2 | I26: 24 | J26: 59 | K26: 51 | L26: 06:44:00 | M26: 04:32:00 | N26: 01:09:00 | O26: 4 | P26: 11:00:00 | Q26: 19.64 | S26: 41 | T26: 43 | U26: 41.71666667 | V26: 2007-09-05 | W26: 0.1403508772 | X26: 69 | Y26: 1.15 | Z26: 660 | AA26: 11 | AB26: 3 | AC26: 2008 | AD26: Wed | AE26: Sep | AF26: 5 | AG26: 2008 | AH26: 1.7 | AI26: 1.4 | AJ26: 171 | AK26: 00:20:00 | AL26: 11:16:00 | AM26: 57 | AN26: 1.3 | AO26: 4 | AP26: 4.9
A27: Thu | B27: Sep | C27: 6 | D27: 2007 | E27: 104 | F27: 97 | G27: 0 | H27: 0 | I27: 7 | J27: 17 | K27: 77 | L27: 07:23:00 | M27: 05:36:00 | N27: 00:47:00 | O27: 3 | P27: 12:39:00 | Q27: 13.29 | S27: 36 | T27: 21 | U27: 36.35 | V27: 2007-09-06 | W27: 0.06730769231 | X27: 47 | Y27: 0.7833333333 | Z27: 759 | AA27: 12.65 | AB27: 3 | AC27: 2008 | AD27: Thu | AE27: Sep | AF27: 6 | AG27: 2008 | AH27: 1.5 | AI27: 1.4 | AJ27: 104 | AK27: 00:20:00 | AL27: 12:59:00 | AM27: 78 | AN27: 0.9 | AO27: 4 | AP27: 4.4
A28: Fri | B28: Sep | C28: 7 | D28: 2007 | E28: 143 | F28: 118 | G28: 0 | H28: 3 | I28: 22 | J28: 47 | K28: 52 | L28: 05:38:00 | M28: 04:24:00 | N28: 00:55:00 | O28: 6 | P28: 08:25:00 | Q28: 13.7 | S28: 30 | T28: 10 | U28: 30.16666667 | V28: 2007-09-07 | W28: 0.1538461538 | X28: 55 | Y28: 0.9166666667 | Z28: 505 | AA28: 8.416666667 | AB28: 3 | AC28: 2008 | AD28: Fri | AE28: Sep | AF28: 7 | AG28: 2008 | AH28: 1.3 | AI28: 1.1 | AJ28: 143 | AK28: 00:20:00 | AL28: 10:02:00 | AM28: 58 | AN28: 1 | AO28: 4 | AP28: 4.6
A29: Mon | B29: Sep | C29: 10 | D29: 2007 | E29: 153 | F29: 123 | G29: 0 | H29: 4 | I29: 26 | J29: 70 | K29: 37 | L29: 07:32:00 | M29: 04:45:00 | N29: 01:51:00 | O29: 4 | P29: 13:26:00 | Q29: 20.61 | S29: 35 | T29: 40 | U29: 35.66666667 | V29: 2007-09-10 | W29: 0.1699346405 | X29: 111 | Y29: 1.85 | Z29: 806 | AA29: 13.43333333 | AB29: 3 | AC29: 2008 | AD29: Mon | AE29: Sep | AF29: 10 | AG29: 2008 | AH29: 1.5 | AI29: 1.3 | AJ29: 153 | AK29: 00:20:00 | AL29: 12:17:00 | AM29: 46 | AN29: 1.3 | AO29: 4 | AP29: 4.6
A30: Tue | B30: Sep | C30: 11 | D30: 2007 | E30: 135 | F30: 113 | G30: 0 | H30: 2 | I30: 20 | J30: 45 | K30: 52 | L30: 06:35:00 | M30: 05:14:00 | N30: 01:29:00 | O30: 5 | P30: 2.149305556 | Q30: 17.24 | S30: 32 | T30: 50 | U30: 32.83333333 | V30: 2007-09-11 | W30: 0.1481481481 | X30: 89 | Y30: 1.483333333 | Z30: 215 | AA30: 3.583333333 | AB30: 3 | AC30: 2008 | AD30: Tue | AE30: Sep | AF30: 11 | AG30: 2008 | AH30: 1.4 | AI30: 1.2 | AJ30: 135 | AK30: 00:20:00 | AL30: 11:49:00 | AM30: 58 | AN30: 1.1 | AO30: 4 | AP30: 4.4
A31: Wed | B31: Sep | C31: 12 | D31: 2007 | E31: 99 | F31: 88 | G31: 0 | H31: 2 | I31: 9 | J31: 26 | K31: 65 | L31: 06:42:00 | M31: 05:15:00 | N31: 00:52:00 | O31: 4 | P31: 10:27:00 | Q31: 11.46 | S31: 37 | T31: 21 | U31: 37.35 | V31: 2007-09-12 | W31: 0.09090909091 | X31: 52 | Y31: 0.8666666667 | Z31: 627 | AA31: 10.45 | AB31: 3 | AC31: 2008 | AD31: Wed | AE31: Sep | AF31: 12 | AG31: 2008 | AH31: 1.6 | AI31: 1.3 | AJ31: 99 | AK31: 00:20:00 | AL31: 11:57:00 | AM31: 68 | AN31: 0.8 | AO31: 3 | AP31: 3.6
A32: Thu | B32: Sep | C32: 13 | D32: 2007 | E32: 120 | F32: 111 | G32: 0 | H32: 2 | I32: 7 | J32: 25 | K32: 73 | L32: 07:42:00 | M32: 04:55:00 | N32: 00:47:00 | O32: 3 | P32: 09:22:00 | Q32: 16.02 | S32: 38 | T32: 3 | U32: 38.05 | V32: 2007-09-13 | W32: 0.05833333333 | X32: 47 | Y32: 0.7833333333 | Z32: 562 | AA32: 9.366666667 | AB32: 3 | AC32: 2008 | AD32: Thu | AE32: Sep | AF32: 13 | AG32: 2008 | AH32: 1.6 | AI32: 1.5 | AJ32: 120 | AK32: 00:20:00 | AL32: 12:37:00 | AM32: 75 | AN32: 1.1 | AO32: 4 | AP32: 4.3
A33: Fri | B33: Sep | C33: 14 | D33: 2007 | E33: 102 | F33: 85 | G33: 0 | H33: 1 | I33: 16 | J33: 33 | K33: 52 | L33: 07:46:00 | M33: 04:43:00 | N33: 01:25:00 | O33: 4 | P33: 10:46:00 | Q33: 13.62 | S33: 28 | T33: 25 | U33: 28.41666667 | V33: 2007-09-14 | W33: 0.1568627451 | X33: 85 | Y33: 1.416666667 | Z33: 646 | AA33: 10.76666667 | AB33: 3 | AC33: 2008 | AD33: Fri | AE33: Sep | AF33: 14 | AG33: 2008 | AH33: 1.2 | AI33: 1 | AJ33: 102 | AK33: 00:20:00 | AL33: 12:29:00 | AM33: 58 | AN33: 0.9 | AO33: 4 | AP33: 4.8
A34: Mon | B34: Sep | C34: 17 | D34: 2007 | E34: 114 | F34: 100 | G34: 0 | H34: 5 | I34: 9 | J34: 43 | K34: 54 | L34: 07:14:00 | M34: 04:57:00 | N34: 01:31:00 | O34: 6 | P34: 18:00:00 | Q34: 15.69 | S34: 32 | T34: 19 | U34: 32.31666667 | V34: =DATE(D34,MONTH(DATEVALUE(CONCATENATE("1/",B34,"/2007"))),C34) -> 2007-09-17 | W34: 0.07894736842 | X34: =HOUR(N34)*60+(MINUTE(N34)) -> 91 | Y34: =HOUR(N34)+(MINUTE(N34)/60) -> 1.516666667 | Z34: 1080 | AA34: 18 | AB34: =IF(MONTH(V34)>6,MONTH(V34)-6,MONTH(V34)+6) -> 3 | AC34: =IF(AB34<=6,YEAR(V34)+1,YEAR(V34)) -> 2008 | AD34: Mon | AE34: Sep | AF34: 17 | AG34: 2008 | AH34: 1.3 | AI34: 1.2 | AJ34: 114 | AK34: 00:20:00 | AL34: 12:11:00 | AM34: 58 | AN34: 1 | AO34: 4 | AP34: 4.6
A35: Tue | B35: Sep | C35: 18 | D35: 2007 | E35: 141 | F35: 120 | G35: 0 | H35: 2 | I35: 19 | J35: 26 | K35: 68 | L35: 04:34:00 | M35: 04:01:00 | N35: 00:29:00 | O35: 3 | P35: 3.284027778 | Q35: 11.98 | S35: 33 | T35: 44 | U35: 33.73333333 | V35: 2007-09-18 | W35: 0.134751773 | X35: 29 | Y35: 0.4833333333 | Z35: 409 | AA35: 6.816666667 | AB35: 3 | AC35: 2008 | AD35: Tue | AE35: Sep | AF35: 18 | AG35: 2008 | AH35: 1.4 | AI35: 1.3 | AJ35: 141 | AK35: 00:20:00 | AL35: 08:35:00 | AM35: 72 | AN35: 0.8 | AO35: 3 | AP35: 3.3
A36: Wed | B36: Sep | C36: 19 | D36: 2007 | E36: 108 | F36: 97 | G36: 0 | H36: 2 | I36: 9 | J36: 34 | K36: 60 | L36: 06:33:00 | M36: 05:39:00 | N36: 00:52:00 | O36: 5 | P36: 07:11:00 | Q36: 12.48 | S36: 34 | T36: 31 | U36: 34.51666667 | V36: 2007-09-19 | W36: 0.08333333333 | X36: 52 | Y36: 0.8666666667 | Z36: 431 | AA36: 7.183333333 | AB36: 3 | AC36: 2008 | AD36: Wed | AE36: Sep | AF36: 19 | AG36: 2008 | AH36: 1.4 | AI36: 1.2 | AJ36: 108 | AK36: 00:20:00 | AL36: 12:12:00 | AM36: 63 | AN36: 0.9 | AO36: 4 | AP36: 4.8
A37: Thu | B37: Sep | C37: 20 | D37: 2007 | E37: 96 | F37: 88 | G37: 0 | H37: 0 | I37: 8 | J37: 14 | K37: 77 | L37: 05:57:00 | M37: 05:34:00 | N37: 00:23:00 | O37: 2 | P37: 04:13:00 | Q37: 9.34 | S37: 37 | T37: 0 | U37: 37 | V37: 2007-09-20 | W37: 0.08333333333 | X37: 23 | Y37: 0.3833333333 | Z37: 253 | AA37: 4.216666667 | AB37: 3 | AC37: 2008 | AD37: Thu | AE37: Sep | AF37: 20 | AG37: 2008 | AH37: 1.5 | AI37: 1.4 | AJ37: 96 | AK37: 00:20:00 | AL37: 11:31:00 | AM37: 79 | AN37: 0.8 | AO37: 3 | AP37: 3.3
A38: Fri | B38: Sep | C38: 21 | D38: 2007 | E38: 97 | F38: 81 | G38: 0 | H38: 2 | I38: 14 | J38: 24 | K38: 61 | L38: 07:32:00 | M38: 06:19:00 | N38: 00:49:00 | O38: 2 | P38: 11:33:00 | Q38: 11.76 | S38: 29 | T38: 29 | U38: 29.48333333 | V38: 2007-09-21 | W38: 0.1443298969 | X38: 49 | Y38: 0.8166666667 | Z38: 693 | AA38: 11.55 | AB38: 3 | AC38: 2008 | AD38: Fri | AE38: Sep | AF38: 21 | AG38: 2008 | AH38: 1.2 | AI38: 1.1 | AJ38: 97 | AK38: 00:20:00 | AL38: 13:51:00 | AM38: 66 | AN38: 0.9 | AO38: 4 | AP38: 4.6
A39: Mon | B39: Sep | C39: 24 | D39: 2007 | E39: 105 | F39: 85 | G39: 0 | H39: 1 | I39: 19 | J39: 40 | K39: 44 | L39: 07:37:00 | M39: 04:41:00 | N39: 02:15:00 | O39: 4 | P39: 17:47:00 | Q39: 15.07 | S39: 30 | T39: 22 | U39: 30.36666667 | V39: 2007-09-24 | W39: 0.180952381 | X39: 135 | Y39: 2.25 | Z39: 1067 | AA39: 17.78333333 | AB39: 3 | AC39: 2008 | AD39: Mon | AE39: Sep | AF39: 24 | AG39: 2008 | AH39: 1.3 | AI39: 1.1 | AJ39: 105 | AK39: 00:20:00 | AL39: 12:18:00 | AM39: 52 | AN39: 0.9 | AO39: 4 | AP39: 4.5
A40: Tue | B40: Sep | C40: 25 | D40: 2007 | E40: 97 | F40: 82 | G40: 0 | H40: 1 | I40: 14 | J40: 28 | K40: 57 | L40: 06:38:00 | M40: 05:11:00 | N40: 01:08:00 | O40: 4 | P40: 1.209027778 | Q40: 12.01 | S40: 31 | T40: 46 | U40: 31.76666667 | V40: 2007-09-25 | W40: 0.1443298969 | X40: 68 | Y40: 1.133333333 | Z40: 301 | AA40: 5.016666667 | AB40: 3 | AC40: 2008 | AD40: Tue | AE40: Sep | AF40: 25 | AG40: 2008 | AH40: 1.3 | AI40: 1.2 | AJ40: 97 | AK40: 00:20:00 | AL40: 11:49:00 | AM40: 62 | AN40: 0.8 | AO40: 3 | AP40: 3.4
A41: Wed | B41: Sep | C41: 26 | D41: 2007 | E41: 109 | F41: 75 | G41: 0 | H41: 2 | I41: 32 | J41: 24 | K41: 49 | L41: 06:02:00 | M41: 04:09:00 | N41: 00:58:00 | O41: 5 | P41: 14:48:00 | Q41: 10.05 | S41: 29 | T41: 36 | U41: 29.6 | V41: 2007-09-26 | W41: 0.2935779817 | X41: 58 | Y41: 0.9666666667 | Z41: 888 | AA41: 14.8 | AB41: 3 | AC41: 2008 | AD41: Wed | AE41: Sep | AF41: 26 | AG41: 2008 | AH41: 1.2 | AI41: 0.8 | AJ41: 109 | AK41: 00:20:00 | AL41: 10:11:00 | AM41: 60 | AN41: 0.8 | AO41: 3 | AP41: 4.4
A42: Thu | B42: Sep | C42: 27 | D42: 2007 | E42: 86 | F42: 73 | G42: 0 | H42: 0 | I42: 13 | J42: 17 | K42: 65 | L42: 08:05:00 | M42: 05:54:00 | N42: 01:07:00 | O42: 3 | P42: 16:41:00 | Q42: 11.86 | S42: 31 | T42: 34 | U42: 31.56666667 | V42: 2007-09-27 | W42: 0.1511627907 | X42: 67 | Y42: 1.116666667 | Z42: 1001 | AA42: 16.68333333 | AB42: 3 | AC42: 2008 | AD42: Thu | AE42: Sep | AF42: 27 | AG42: 2008 | AH42: 1.3 | AI42: 1.2 | AJ42: 86 | AK42: 00:20:00 | AL42: 13:59:00 | AM42: 70 | AN42: 0.8 | AO42: 4 | AP42: 4.5
A43: Fri | B43: Sep | C43: 28 | D43: 2007 | E43: 111 | F43: 84 | G43: 0 | H43: 5 | I43: 22 | J43: 41 | K43: 43 | L43: 06:28:00 | M43: 04:54:00 | N43: 01:55:00 | O43: 4 | P43: 17:20:00 | Q43: 12.86 | S43: 25 | T43: 48 | U43: 25.8 | V43: 2007-09-28 | W43: 0.1981981982 | X43: 115 | Y43: 1.916666667 | Z43: 1040 | AA43: 17.33333333 | AB43: 3 | AC43: 2008 | AD43: Fri | AE43: Sep | AF43: 28 | AG43: 2008 | AH43: 1.1 | AI43: 0.9 | AJ43: 111 | AK43: 00:20:00 | AL43: 11:22:00 | AM43: 53 | AN43: 0.9 | AO43: 4 | AP43: 4.6
A44: Mon | B44: Oct | C44: 1 | D44: 2007 | E44: 116 | F44: 92 | G44: 0 | H44: 5 | I44: 19 | J44: 30 | K44: 58 | L44: 07:12:00 | M44: 05:30:00 | N44: 00:37:00 | O44: 4 | P44: 17:00:00 | Q44: 13.6 | S44: 32 | T44: 7 | U44: 32.11666667 | V44: 2007-10-01 | W44: 0.1637931034 | X44: 37 | Y44: 0.6166666667 | Z44: 1020 | AA44: 17 | AB44: 4 | AC44: 2008 | AD44: Mon | AE44: Oct | AF44: 1 | AG44: 2008 | AH44: 1.3 | AI44: 1.2 | AJ44: 116 | AK44: 00:20:00 | AL44: 12:42:00 | AM44: 64 | AN44: 1 | AO44: 4 | AP44: 4.4
A45: Tue | B45: Oct | C45: 2 | D45: 2007 | E45: 102 | F45: 86 | G45: 0 | H45: 1 | I45: 15 | J45: 30 | K45: 56 | L45: 07:44:00 | M45: 07:50:00 | N45: 01:12:00 | O45: 3 | P45: 10:30:00 | Q45: 13.58 | S45: 34 | T45: 29 | U45: 34.48333333 | V45: 2007-10-02 | W45: 0.1470588235 | X45: 72 | Y45: 1.2 | Z45: 630 | AA45: 10.5 | AB45: 4 | AC45: 2008 | AD45: Tue | AE45: Oct | AF45: 2 | AG45: 2008 | AH45: 1.4 | AI45: 1.2 | AJ45: 102 | AK45: 00:20:00 | AL45: 15:34:00 | AM45: 62 | AN45: 1.1 | AO45: 4 | AP45: 4.6
A46: Wed | B46: Oct | C46: 3 | D46: 2007 | E46: 99 | F46: 90 | G46: 0 | H46: 2 | I46: 7 | J46: 24 | K46: 69 | L46: 07:25:00 | M46: 05:38:00 | N46: 00:57:00 | O46: 5 | P46: 10:00:00 | Q46: 13.05 | S46: 39 | T46: 10 | U46: 39.16666667 | V46: 2007-10-03 | W46: 0.07070707071 | X46: 57 | Y46: 0.95 | Z46: 600 | AA46: 10 | AB46: 4 | AC46: 2008 | AD46: Wed | AE46: Oct | AF46: 3 | AG46: 2008 | AH46: 1.6 | AI46: 1.4 | AJ46: 99 | AK46: 00:20:00 | AL46: 13:03:00 | AM46: 71 | AN46: 0.9 | AO46: 4 | AP46: 4.5
A47: Thu | B47: Oct | C47: 4 | D47: 2007 | E47: 137 | F47: 114 | G47: 0 | H47: 0 | I47: 23 | J47: 47 | K47: 49 | L47: 06:44:00 | M47: 04:54:00 | N47: 01:44:00 | O47: 7 | P47: 18:07:00 | Q47: 17.15 | S47: 48 | T47: 17 | U47: 48.28333333 | V47: 2007-10-04 | W47: 0.1678832117 | X47: 104 | Y47: 1.733333333 | Z47: 1087 | AA47: 18.11666667 | AB47: 4 | AC47: 2008 | AD47: Thu | AE47: Oct | AF47: 4 | AG47: 2008 | AH47: 2 | AI47: 1.8 | AJ47: 137 | AK47: 00:20:00 | AL47: 11:38:00 | AM47: 56 | AN47: 1.1 | AO47: 4 | AP47: 4.5
A48: Fri | B48: Oct | C48: 5 | D48: 2007 | E48: 110 | F48: 88 | G48: 0 | H48: 5 | I48: 17 | J48: 36 | K48: 52 | L48: 06:57:00 | M48: 04:51:00 | N48: 01:22:00 | O48: 4 | P48: 12:20:00 | Q48: 13.4 | S48: 31 | T48: 1 | U48: 31.01666667 | V48: 2007-10-05 | W48: 0.1545454545 | X48: 82 | Y48: 1.366666667 | Z48: 740 | AA48: 12.33333333 | AB48: 4 | AC48: 2008 | AD48: Fri | AE48: Oct | AF48: 5 | AG48: 2008 | AH48: 1.3 | AI48: 1.1 | AJ48: 110 | AK48: 00:20:00 | AL48: 11:48:00 | AM48: 58 | AN48: 0.9 | AO48: 4 | AP48: 4.9
A49: Tue | B49: Oct | C49: 9 | D49: 2007 | E49: 128 | F49: 96 | G49: 0 | H49: 6 | I49: 26 | J49: 54 | K49: 38 | L49: 06:47:00 | M49: 05:06:00 | N49: 01:47:00 | O49: 4 | P49: 1.205555556 | Q49: 16.3 | S49: 25 | T49: 58 | U49: 25.96666667 | V49: 2007-10-09 | W49: 0.203125 | X49: 107 | Y49: 1.783333333 | Z49: 296 | AA49: 4.933333333 | AB49: 4 | AC49: 2008 | AD49: Tue | AE49: Oct | AF49: 9 | AG49: 2008 | AH49: 1.1 | AI49: 0.9 | AJ49: 128 | AK49: 00:20:00 | AL49: 11:53:00 | AM49: 48 | AN49: 1.1 | AO49: 4 | AP49: 4.7
A50: Wed | B50: Oct | C50: 10 | D50: 2007 | E50: 118 | F50: 91 | G50: 0 | H50: 5 | I50: 22 | J50: 41 | K50: 47 | L50: 07:05:00 | M50: 05:40:00 | N50: 01:38:00 | O50: 4 | P50: 14:51:00 | Q50: 14.62 | S50: 29 | T50: 53 | U50: 29.88333333 | V50: 2007-10-10 | W50: 0.186440678 | X50: 98 | Y50: 1.633333333 | Z50: 891 | AA50: 14.85 | AB50: 4 | AC50: 2008 | AD50: Wed | AE50: Oct | AF50: 10 | AG50: 2008 | AH50: 1.2 | AI50: 1 | AJ50: 118 | AK50: 00:20:00 | AL50: 12:45:00 | AM50: 55 | AN50: 1 | AO50: 4 | AP50: 4.8
A51: Thu | B51: Oct | C51: 11 | D51: 2007 | E51: 118 | F51: 98 | G51: 0 | H51: 6 | I51: 14 | J51: 43 | K51: 52 | L51: 08:09:00 | M51: 05:12:00 | N51: 01:14:00 | O51: 4 | P51: 15:46:00 | Q51: 16.56 | S51: 37 | T51: 10 | U51: 37.16666667 | V51: 2007-10-11 | W51: 0.1186440678 | X51: 74 | Y51: 1.233333333 | Z51: 946 | AA51: 15.76666667 | AB51: 4 | AC51: 2008 | AD51: Thu | AE51: Oct | AF51: 11 | AG51: 2008 | AH51: 1.5 | AI51: 1.3 | AJ51: 118 | AK51: 00:20:00 | AL51: 13:21:00 | AM51: 57 | AN51: 1.1 | AO51: 4 | AP51: 4.8
A52: Fri | B52: Oct | C52: 12 | D52: 2007 | E52: 117 | F52: 94 | G52: 0 | H52: 4 | I52: 19 | J52: 42 | K52: 48 | L52: 06:23:00 | M52: 04:12:00 | N52: 01:37:00 | O52: 5 | P52: 13:22:00 | Q52: 13.28 | S52: 30 | T52: 4 | U52: 30.06666667 | V52: 2007-10-12 | W52: 0.1623931624 | X52: 97 | Y52: 1.616666667 | Z52: 802 | AA52: 13.36666667 | AB52: 4 | AC52: 2008 | AD52: Fri | AE52: Oct | AF52: 12 | AG52: 2008 | AH52: 1.3 | AI52: 1 | AJ52: 117 | AK52: 00:20:00 | AL52: 10:35:00 | AM52: 55 | AN52: 0.9 | AO52: 3 | AP52: 3.8
A53: Mon | B53: Oct | C53: 15 | D53: 2007 | E53: 117 | F53: 98 | G53: 0 | H53: 2 | I53: 17 | J53: 28 | K53: 62 | L53: 06:42:00 | M53: 05:53:00 | N53: 01:11:00 | O53: 5 | P53: 09:12:00 | Q53: 13.77 | S53: 35 | T53: 7 | U53: 35.11666667 | V53: 2007-10-15 | W53: 0.1452991453 | X53: 71 | Y53: 1.183333333 | Z53: 552 | AA53: 9.2 | AB53: 4 | AC53: 2008 | AD53: Mon | AE53: Oct | AF53: 15 | AG53: 2008 | AH53: 1.5 | AI53: 1.3 | AJ53: 117 | AK53: 00:20:00 | AL53: 12:35:00 | AM53: 66 | AN53: 1 | AO53: 4 | AP53: 4.5
A54: Tue | B54: Oct | C54: 16 | D54: 2007 | E54: 112 | F54: 96 | G54: 0 | H54: 3 | I54: 13 | J54: 37 | K54: 55 | L54: 05:02:00 | M54: 05:06:00 | N54: 01:22:00 | O54: 3 | P54: 09:47:00 | Q54: 11 | S54: 30 | T54: 53 | U54: 30.88333333 | V54: 2007-10-16 | W54: 0.1160714286 | X54: 82 | Y54: 1.366666667 | Z54: 587 | AA54: 9.783333333 | AB54: 4 | AC54: 2008 | AD54: Tue | AE54: Oct | AF54: 16 | AG54: 2008 | AH54: 1.3 | AI54: 1 | AJ54: 112 | AK54: 00:20:00 | AL54: 10:08:00 | AM54: 60 | AN54: 0.8 | AO54: 3 | AP54: 3.9
A55: Wed | B55: Oct | C55: 17 | D55: 2007 | E55: 98 | F55: 75 | G55: 0 | H55: 1 | I55: 22 | J55: 29 | K55: 48 | L55: 06:58:00 | M55: 06:31:00 | N55: 01:00:00 | O55: 5 | P55: 08:44:00 | Q55: 10.84 | S55: 31 | T55: 19 | U55: 31.31666667 | V55: 2007-10-17 | W55: 0.2244897959 | X55: 60 | Y55: 1 | Z55: 524 | AA55: 8.733333333 | AB55: 4 | AC55: 2008 | AD55: Wed | AE55: Oct | AF55: 17 | AG55: 2008 | AH55: 1.3 | AI55: 1 | AJ55: 98 | AK55: 00:20:00 | AL55: 13:29:00 | AM55: 58 | AN55: 0.9 | AO55: 4 | AP55: 5.1
A56: Thu | B56: Oct | C56: 18 | D56: 2007 | E56: 94 | F56: 80 | G56: 0 | H56: 2 | I56: 12 | J56: 18 | K56: 68 | L56: 07:55:00 | M56: 05:14:00 | N56: 00:28:00 | O56: 3 | P56: 15:13:00 | Q56: 12.05 | S56: 33 | T56: 44 | U56: 33.73333333 | V56: 2007-10-18 | W56: 0.1276595745 | X56: 28 | Y56: 0.4666666667 | Z56: 913 | AA56: 15.21666667 | AB56: 4 | AC56: 2008 | AD56: Thu | AE56: Oct | AF56: 18 | AG56: 2008 | AH56: 1.4 | AI56: 1.1 | AJ56: 94 | AK56: 00:20:00 | AL56: 13:09:00 | AM56: 72 | AN56: 0.9 | AO56: 4 | AP56: 5.1
A57: Fri | B57: Oct | C57: 19 | D57: 2007 | E57: 98 | F57: 85 | G57: 0 | H57: 1 | I57: 12 | J57: 22 | K57: 65 | L57: 06:34:00 | M57: 04:34:00 | N57: 00:37:00 | O57: 2 | P57: 05:24:00 | Q57: 10.43 | S57: 31 | T57: 7 | U57: 31.11666667 | V57: 2007-10-19 | W57: 0.1224489796 | X57: 37 | Y57: 0.6166666667 | Z57: 324 | AA57: 5.4 | AB57: 4 | AC57: 2008 | AD57: Fri | AE57: Oct | AF57: 19 | AG57: 2008 | AH57: 1.3 | AI57: 1.1 | AJ57: 98 | AK57: 00:20:00 | AL57: 11:08:00 | AM57: 69 | AN57: 0.8 | AO57: 3 | AP57: 3.6
A58: Mon | B58: Oct | C58: 22 | D58: 2007 | E58: 93 | F58: 81 | G58: 0 | H58: 2 | I58: 10 | J58: 18 | K58: 70 | L58: 06:30:00 | M58: 04:53:00 | N58: 00:27:00 | O58: 3 | P58: 04:51:00 | Q58: 9.85 | S58: 35 | T58: 13 | U58: 35.21666667 | V58: 2007-10-22 | W58: 0.1075268817 | X58: 27 | Y58: 0.45 | Z58: 291 | AA58: 4.85 | AB58: 4 | AC58: 2008 | AD58: Mon | AE58: Oct | AF58: 22 | AG58: 2008 | AH58: 1.5 | AI58: 1.2 | AJ58: 93 | AK58: 00:20:00 | AL58: 11:23:00 | AM58: 73 | AN58: 0.7 | AO58: 3 | AP58: 3.7
A59: Tue | B59: Oct | C59: 23 | D59: 2007 | E59: 105 | F59: 80 | G59: 0 | H59: 3 | I59: 22 | J59: 31 | K59: 50 | L59: 07:17:00 | M59: 06:52:00 | N59: 01:38:00 | O59: 5 | P59: 10:32:00 | Q59: 13.31 | S59: 30 | T59: 16 | U59: 30.26666667 | V59: 2007-10-23 | W59: 0.2095238095 | X59: 98 | Y59: 1.633333333 | Z59: 632 | AA59: 10.53333333 | AB59: 4 | AC59: 2008 | AD59: Tue | AE59: Oct | AF59: 23 | AG59: 2008 | AH59: 1.3 | AI59: 1 | AJ59: 105 | AK59: 00:20:00 | AL59: 14:09:00 | AM59: 58 | AN59: 1 | AO59: 4 | AP59: 5
A60: Wed | B60: Oct | C60: 24 | D60: 2007 | E60: 84 | F60: 75 | G60: 0 | H60: 0 | I60: 9 | J60: 18 | K60: 68 | L60: 06:54:00 | M60: 05:26:00 | N60: 00:45:00 | O60: 3 | P60: 11:54:00 | Q60: 9.7 | S60: 33 | T60: 8 | U60: 33.13333333 | V60: 2007-10-24 | W60: 0.1071428571 | X60: 45 | Y60: 0.75 | Z60: 714 | AA60: 11.9 | AB60: 4 | AC60: 2008 | AD60: Wed | AE60: Oct | AF60: 24 | AG60: 2008 | AH60: 1.4 | AI60: 1.2 | AJ60: 84 | AK60: 00:20:00 | AL60: 12:20:00 | AM60: 71 | AN60: 0.7 | AO60: 3 | AP60: 3.4
A61: Thu | B61: Oct | C61: 25 | D61: 2007 | E61: 97 | F61: 93 | G61: 0 | H61: 0 | I61: 4 | J61: 11 | K61: 85 | L61: 06:16:00 | M61: 09:48:00 | N61: 00:20:00 | O61: 2 | P61: 06:17:00 | Q61: 10.26 | S61: 47 | T61: 24 | U61: 47.4 | V61: 2007-10-25 | W61: 0.0412371134 | X61: 20 | Y61: 0.3333333333 | Z61: 377 | AA61: 6.283333333 | AB61: 4 | AC61: 2008 | AD61: Thu | AE61: Oct | AF61: 25 | AG61: 2008 | AH61: 2 | AI61: 1.7 | AJ61: 97 | AK61: 00:20:00 | AL61: 16:04:00 | AM61: 85 | AN61: 1.1 | AO61: 4 | AP61: 4.7
A62: Fri | B62: Oct | C62: 26 | D62: 2007 | E62: 109 | F62: 80 | G62: 0 | H62: 4 | I62: 25 | J62: 30 | K62: 50 | L62: 05:59:00 | M62: 11:07:00 | N62: 01:07:00 | O62: 4 | P62: 08:28:00 | Q62: 10.36 | S62: 38 | T62: 12 | U62: 38.2 | V62: 2007-10-26 | W62: 0.2293577982 | X62: 67 | Y62: 1.116666667 | Z62: 508 | AA62: 8.466666667 | AB62: 4 | AC62: 2008 | AD62: Fri | AE62: Oct | AF62: 26 | AG62: 2008 | AH62: 1.6 | AI62: 1.4 | AJ62: 109 | AK62: 00:20:00 | AL62: 17:06:00 | AM62: 59 | AN62: 1.3 | AO62: 4 | AP62: 4.7
A63: Mon | B63: Oct | C63: 29 | D63: 2007 | E63: 121 | F63: 91 | G63: 0 | H63: 5 | I63: 25 | J63: 34 | K63: 51 | L63: 08:09:00 | M63: 05:38:00 | N63: 01:38:00 | O63: 5 | P63: 21:37:00 | Q63: 17.43 | S63: 33 | T63: 9 | U63: 33.15 | V63: 2007-10-29 | W63: 0.2066115702 | X63: 98 | Y63: 1.633333333 | Z63: 1297 | AA63: 21.61666667 | AB63: 4 | AC63: 2008 | AD63: Mon | AE63: Oct | AF63: 29 | AG63: 2008 | AH63: 1.4 | AI63: 1.2 | AJ63: 121 | AK63: 00:20:00 | AL63: 13:47:00 | AM63: 60 | AN63: 1.2 | AO63: 4 | AP63: 4.6
A64: Tue | B64: Oct | C64: 30 | D64: 2007 | E64: 83 | F64: 70 | G64: 0 | H64: 0 | I64: 13 | J64: 17 | K64: 64 | L64: 07:17:00 | M64: 06:00:00 | N64: 00:44:00 | O64: 3 | P64: 09:42:00 | Q64: 9.76 | S64: 34 | T64: 30 | U64: 34.5 | V64: 2007-10-30 | W64: 0.156626506 | X64: 44 | Y64: 0.7333333333 | Z64: 582 | AA64: 9.7 | AB64: 4 | AC64: 2008 | AD64: Tue | AE64: Oct | AF64: 30 | AG64: 2008 | AH64: 1.4 | AI64: 1.1 | AJ64: 83 | AK64: 00:20:00 | AL64: 13:17:00 | AM64: 69 | AN64: 0.8 | AO64: 3 | AP64: 4
A65: Wed | B65: Oct | C65: 31 | D65: 2007 | E65: 110 | F65: 81 | G65: 0 | H65: 7 | I65: 22 | J65: 34 | K65: 49 | L65: 07:30:00 | M65: 03:56:00 | N65: 01:32:00 | O65: 4 | P65: 11:57:00 | Q65: 13.92 | S65: 32 | T65: 25 | U65: 32.41666667 | V65: 2007-10-31 | W65: 0.2 | X65: 92 | Y65: 1.533333333 | Z65: 717 | AA65: 11.95 | AB65: 4 | AC65: 2008 | AD65: Wed | AE65: Oct | AF65: 31 | AG65: 2008 | AH65: 1.4 | AI65: 1.1 | AJ65: 110 | AK65: 00:20:00 | AL65: 11:26:00 | AM65: 58 | AN65: 0.9 | AO65: 4 | AP65: 5
A66: Thu | B66: Nov | C66: 1 | D66: 2007 | E66: 99 | F66: 87 | G66: 0 | H66: 0 | I66: 12 | J66: 17 | K66: 71 | L66: 07:20:00 | M66: 06:22:00 | N66: 00:28:00 | O66: 3 | P66: 06:37:00 | Q66: 11.61 | S66: 40 | T66: 28 | U66: 40.46666667 | V66: =DATE(D66,MONTH(DATEVALUE(CONCATENATE("1/",B66,"/2007"))),C66) -> 2007-11-01 | W66: 0.1212121212 | X66: =HOUR(N66)*60+(MINUTE(N66)) -> 28 | Y66: =HOUR(N66)+(MINUTE(N66)/60) -> 0.4666666667 | Z66: 397 | AA66: 6.616666667 | AB66: =IF(MONTH(V66)>6,MONTH(V66)-6,MONTH(V66)+6) -> 5 | AC66: =IF(AB66<=6,YEAR(V66)+1,YEAR(V66)) -> 2008 | AD66: Thu | AE66: Nov | AF66: 1 | AG66: 2008 | AH66: 1.7 | AI66: 1.3 | AJ66: 99 | AK66: 00:20:00 | AL66: 13:42:00 | AM66: 74 | AN66: 0.9 | AO66: 4 | AP66: 5
A67: Fri | B67: Nov | C67: 2 | D67: 2007 | E67: 90 | F67: 72 | G67: 0 | H67: 2 | I67: 16 | J67: 30 | K67: 49 | L67: 06:57:00 | M67: 07:15:00 | N67: 01:00:00 | O67: 4 | P67: 08:36:00 | Q67: 10.15 | S67: 33 | T67: 59 | U67: 33.98333333 | V67: 2007-11-02 | W67: =IF(E67<>0,I67/E67,0) -> 0.1777777778 | X67: 60 | Y67: 1 | Z67: =HOUR(P67)*60+(MINUTE(P67)) -> 516 | AA67: =HOUR(P67)+(MINUTE(P67)/60) -> 8.6 | AB67: 5 | AC67: 2008 | AD67: Fri | AE67: Nov | AF67: 2 | AG67: 2008 | AH67: 1.4 | AI67: 1.1 | AJ67: 90 | AK67: 00:20:00 | AL67: 14:12:00 | AM67: 57 | AN67: 0.9 | AO67: 4 | AP67: 5.4
A68: Mon | B68: Nov | C68: 5 | D68: 2007 | E68: 110 | F68: 92 | G68: 0 | H68: 3 | I68: 15 | J68: 38 | K68: 52 | L68: 06:00:00 | M68: 05:08:00 | N68: 01:17:00 | O68: 4 | P68: 11:10:00 | Q68: 11.97 | S68: 31 | T68: 13 | U68: =S68+(T68/60) -> 31.21666667 | V68: 2007-11-05 | W68: 0.1363636364 | X68: 77 | Y68: 1.283333333 | Z68: 670 | AA68: 11.16666667 | AB68: 5 | AC68: 2008 | AD68: Mon | AE68: Nov | AF68: 5 | AG68: 2008 | AH68: 1.3 | AI68: 1.1 | AJ68: 110 | AK68: 00:20:00 | AL68: 11:08:00 | AM68: 58 | AN68: 0.9 | AO68: 3 | AP68: 3.5
A69: Tue | B69: Nov | C69: 6 | D69: 2007 | E69: 102 | F69: 78 | G69: 0 | H69: 3 | I69: 21 | J69: 29 | K69: 51 | L69: 07:23:00 | M69: 04:47:00 | N69: 01:00:00 | O69: 3 | P69: 08:06:00 | Q69: 11.84 | S69: 32 | T69: 24 | U69: 32.4 | V69: 2007-11-06 | W69: 0.2058823529 | X69: 60 | Y69: 1 | Z69: 486 | AA69: 8.1 | AB69: 5 | AC69: 2008 | AD69: Tue | AE69: Nov | AF69: 6 | AG69: 2008 | AH69: 1.3 | AI69: 1 | AJ69: 102 | AK69: 00:20:00 | AL69: 12:10:00 | AM69: 59 | AN69: 0.9 | AO69: 4 | AP69: 5.2
A70: Wed | B70: Nov | C70: 7 | D70: 2007 | E70: 96 | F70: 89 | G70: 0 | H70: 1 | I70: 6 | J70: 24 | K70: 69 | L70: 07:10:00 | M70: 06:06:00 | N70: 00:42:00 | O70: 2 | P70: 06:26:00 | Q70: 11.88 | S70: 33 | T70: 28 | U70: 33.46666667 | V70: 2007-11-07 | W70: 0.0625 | X70: 42 | Y70: 0.7 | Z70: 386 | AA70: 6.433333333 | AB70: 5 | AC70: 2008 | AD70: Wed | AE70: Nov | AF70: 7 | AG70: 2008 | AH70: 1.4 | AI70: 1.3 | AJ70: 96 | AK70: 00:20:00 | AL70: 13:16:00 | AM70: 71 | AN70: 0.9 | AO70: 4 | AP70: 4.3
A71: Thu | B71: Nov | C71: 8 | D71: 2007 | E71: 116 | F71: 84 | G71: 0 | H71: 6 | I71: 26 | J71: 49 | K71: 35 | L71: 08:03:00 | M71: 07:28:00 | N71: 03:23:00 | O71: 7 | P71: 1.201388889 | Q71: 19.18 | S71: 37 | T71: 36 | U71: 37.6 | V71: 2007-11-08 | W71: 0.224137931 | X71: 203 | Y71: 3.383333333 | Z71: 290 | AA71: 4.833333333 | AB71: 5 | AC71: 2008 | AD71: Thu | AE71: Nov | AF71: 8 | AG71: 2008 | AH71: 1.6 | AI71: 1.3 | AJ71: 116 | AK71: 00:20:00 | AL71: 15:31:00 | AM71: 47 | AN71: 1.2 | AO71: 4 | AP71: 5
A72: Fri | B72: Nov | C72: 9 | D72: 2007 | E72: 102 | F72: 85 | G72: 0 | H72: 3 | I72: 14 | J72: 31 | K72: 56 | L72: 06:19:00 | M72: 03:51:00 | N72: 01:10:00 | O72: 5 | P72: 15:58:00 | Q72: 11.41 | S72: 27 | T72: 43 | U72: 27.71666667 | V72: 2007-11-09 | W72: 0.137254902 | X72: 70 | Y72: 1.166666667 | Z72: 958 | AA72: 15.96666667 | AB72: 5 | AC72: 2008 | AD72: Fri | AE72: Nov | AF72: 9 | AG72: 2008 | AH72: 1.2 | AI72: 1 | AJ72: 102 | AK72: 00:20:00 | AL72: 10:10:00 | AM72: 61 | AN72: 0.7 | AO72: 3 | AP72: 3.4
A73: Tue | B73: Nov | C73: 13 | D73: 2007 | E73: 127 | F73: 99 | G73: 0 | H73: 6 | I73: 22 | J73: 56 | K73: 39 | L73: 08:00:00 | M73: 06:15:00 | N73: 01:56:00 | O73: 5 | P73: 14:23:00 | Q73: 17.99 | S73: 36 | T73: 3 | U73: 36.05 | V73: 2007-11-13 | W73: 0.1732283465 | X73: 116 | Y73: 1.933333333 | Z73: 863 | AA73: 14.38333333 | AB73: 5 | AC73: 2008 | AD73: Tue | AE73: Nov | AF73: 13 | AG73: 2008 | AH73: 1.5 | AI73: 1.3 | AJ73: 127 | AK73: 00:20:00 | AL73: 14:15:00 | AM73: 48 | AN73: 1.3 | AO73: 4 | AP73: 4.6
A74: Wed | B74: Nov | C74: 14 | D74: 2007 | E74: 112 | F74: 91 | G74: 0 | H74: 1 | I74: 20 | J74: 37 | K74: 49 | L74: 08:41:00 | M74: 05:11:00 | N74: 01:25:00 | O74: 4 | P74: 10:29:00 | Q74: 15.82 | S74: 33 | T74: 11 | U74: 33.18333333 | V74: 2007-11-14 | W74: 0.1785714286 | X74: 85 | Y74: 1.416666667 | Z74: 629 | AA74: 10.48333333 | AB74: 5 | AC74: 2008 | AD74: Wed | AE74: Nov | AF74: 14 | AG74: 2008 | AH74: 1.4 | AI74: 1.2 | AJ74: 112 | AK74: 00:20:00 | AL74: 13:52:00 | AM74: 57 | AN74: 1.1 | AO74: 4 | AP74: 4.7
A75: Thu | B75: Nov | C75: 15 | D75: 2007 | E75: 119 | F75: 94 | G75: 0 | H75: 7 | I75: 18 | J75: 36 | K75: 55 | L75: 08:21:00 | M75: 04:37:00 | N75: 01:36:00 | O75: 5 | P75: 19:11:00 | Q75: 17.55 | S75: 40 | T75: 46 | U75: 40.76666667 | V75: 2007-11-15 | W75: 0.1512605042 | X75: 96 | Y75: 1.6 | Z75: 1151 | AA75: 19.18333333 | AB75: 5 | AC75: 2008 | AD75: Thu | AE75: Nov | AF75: 15 | AG75: 2008 | AH75: 1.7 | AI75: 1.4 | AJ75: 119 | AK75: 00:20:00 | AL75: 12:58:00 | AM75: 61 | AN75: 1.1 | AO75: 4 | AP75: 4.8
A76: Fri | B76: Nov | C76: 16 | D76: 2007 | E76: 114 | F76: 88 | G76: 0 | H76: 5 | I76: 21 | J76: 37 | K76: 49 | L76: 06:45:00 | M76: 04:28:00 | N76: 01:18:00 | O76: 4 | P76: 12:30:00 | Q76: 13.2 | S76: 32 | T76: 47 | U76: 32.78333333 | V76: 2007-11-16 | W76: 0.1842105263 | X76: 78 | Y76: 1.3 | Z76: 750 | AA76: 12.5 | AB76: 5 | AC76: 2008 | AD76: Fri | AE76: Nov | AF76: 16 | AG76: 2008 | AH76: 1.4 | AI76: 1.2 | AJ76: 114 | AK76: 00:20:00 | AL76: 11:13:00 | AM76: 57 | AN76: 0.9 | AO76: 4 | AP76: 4.7
A77: Mon | B77: Nov | C77: 19 | D77: 2007 | E77: 104 | F77: 89 | G77: 0 | H77: 3 | I77: 12 | J77: 28 | K77: 62 | L77: 06:11:00 | M77: 05:43:00 | N77: 00:54:00 | O77: 4 | P77: 12:31:00 | Q77: 11 | S77: 30 | T77: 53 | U77: 30.88333333 | V77: 2007-11-19 | W77: 0.1153846154 | X77: 54 | Y77: 0.9 | Z77: 751 | AA77: 12.51666667 | AB77: 5 | AC77: 2008 | AD77: Mon | AE77: Nov | AF77: 19 | AG77: 2008 | AH77: 1.3 | AI77: 1.1 | AJ77: 104 | AK77: 00:20:00 | AL77: 11:54:00 | AM77: 66 | AN77: 0.9 | AO77: 4 | AP77: 4.5
A78: Tue | B78: Nov | C78: 20 | D78: 2007 | E78: 104 | F78: 83 | G78: 0 | H78: 5 | I78: 16 | J78: 29 | K78: 57 | L78: 07:05:00 | M78: 07:25:00 | N78: 00:51:00 | O78: 3 | P78: 09:21:00 | Q78: 12.42 | S78: 36 | T78: 40 | U78: 36.66666667 | V78: 2007-11-20 | W78: 0.1538461538 | X78: 51 | Y78: 0.85 | Z78: 561 | AA78: 9.35 | AB78: 5 | AC78: 2008 | AD78: Tue | AE78: Nov | AF78: 20 | AG78: 2008 | AH78: 1.5 | AI78: 1.3 | AJ78: 104 | AK78: 00:20:00 | AL78: 14:30:00 | AM78: 63 | AN78: 1 | AO78: 4 | AP78: 4.8
A79: Wed | B79: Nov | C79: 21 | D79: 2007 | E79: 73 | F79: 65 | G79: 0 | H79: 1 | I79: 7 | J79: 12 | K79: 74 | L79: 07:45:00 | M79: 04:28:00 | N79: 01:12:00 | O79: 5 | P79: 16:02:00 | Q79: 10.01 | S79: 28 | T79: 25 | U79: 28.41666667 | V79: 2007-11-21 | W79: 0.09589041096 | X79: 72 | Y79: 1.2 | Z79: 962 | AA79: 16.03333333 | AB79: 5 | AC79: 2008 | AD79: Wed | AE79: Nov | AF79: 21 | AG79: 2008 | AH79: 1.2 | AI79: 1 | AJ79: 73 | AK79: 00:20:00 | AL79: 12:13:00 | AM79: 76 | AN79: 0.6 | AO79: 3 | AP79: 3.7
A80: Mon | B80: Nov | C80: 26 | D80: 2007 | E80: 133 | F80: 100 | G80: 0 | H80: 5 | I80: 28 | J80: 49 | K80: 42 | L80: 07:54:00 | M80: 07:00:00 | N80: 01:37:00 | O80: 5 | P80: 10:36:00 | Q80: 17.42 | S80: 36 | T80: 13 | U80: 36.21666667 | V80: 2007-11-26 | W80: 0.2105263158 | X80: 97 | Y80: 1.616666667 | Z80: 636 | AA80: 10.6 | AB80: 5 | AC80: 2008 | AD80: Mon | AE80: Nov | AF80: 26 | AG80: 2008 | AH80: 1.5 | AI80: 1.3 | AJ80: 133 | AK80: 00:20:00 | AL80: 14:54:00 | AM80: 52 | AN80: 1.4 | AO80: 4 | AP80: 4.7
A81: Tue | B81: Nov | C81: 27 | D81: 2007 | E81: 140 | F81: 111 | G81: 0 | H81: 6 | I81: 23 | J81: 74 | K81: 31 | L81: 07:15:00 | M81: 05:47:00 | N81: 02:15:00 | O81: 4 | P81: 15:18:00 | Q81: 19.4 | S81: 35 | T81: 1 | U81: 35.01666667 | V81: 2007-11-27 | W81: 0.1642857143 | X81: 135 | Y81: 2.25 | Z81: 918 | AA81: 15.3 | AB81: 5 | AC81: 2008 | AD81: Tue | AE81: Nov | AF81: 27 | AG81: 2008 | AH81: 1.5 | AI81: 1.2 | AJ81: 140 | AK81: 00:20:00 | AL81: 13:02:00 | AM81: 40 | AN81: 1.3 | AO81: 4 | AP81: 4.9
A82: Wed | B82: Nov | C82: 28 | D82: 2007 | E82: 126 | F82: 103 | G82: 0 | H82: 2 | I82: 21 | J82: 41 | K82: 51 | L82: 07:11:00 | M82: 08:56:00 | N82: 01:33:00 | O82: 5 | P82: 18:55:00 | Q82: 15.95 | S82: 43 | T82: 45 | U82: 43.75 | V82: 2007-11-28 | W82: 0.1666666667 | X82: 93 | Y82: 1.55 | Z82: 1135 | AA82: 18.91666667 | AB82: 5 | AC82: 2008 | AD82: Wed | AE82: Nov | AF82: 28 | AG82: 2008 | AH82: 1.8 | AI82: 1.5 | AJ82: 126 | AK82: 00:20:00 | AL82: 16:07:00 | AM82: 58 | AN82: 1.4 | AO82: 5 | AP82: 6
A83: Thu | B83: Nov | C83: 29 | D83: 2007 | E83: 122 | F83: 101 | G83: 0 | H83: 4 | I83: 17 | J83: 39 | K83: 54 | L83: 07:28:00 | M83: 10:47:00 | N83: 00:54:00 | O83: 3 | P83: 08:57:00 | Q83: 15.12 | S83: 47 | T83: 48 | U83: 47.8 | V83: 2007-11-29 | W83: 0.1393442623 | X83: 54 | Y83: 0.9 | Z83: 537 | AA83: 8.95 | AB83: 5 | AC83: 2008 | AD83: Thu | AE83: Nov | AF83: 29 | AG83: 2008 | AH83: 2 | AI83: 1.7 | AJ83: 122 | AK83: 00:20:00 | AL83: 18:15:00 | AM83: 60 | AN83: 1.5 | AO83: 5 | AP83: 6
A84: Fri | B84: Nov | C84: 30 | D84: 2007 | E84: 160 | F84: 118 | G84: 0 | H84: 4 | I84: 38 | J84: 62 | K84: 38 | L84: 07:04:00 | M84: 05:42:00 | N84: 02:11:00 | O84: 5 | P84: 16:09:00 | Q84: 20.34 | S84: 34 | T84: 34 | U84: 34.56666667 | V84: 2007-11-30 | W84: 0.2375 | X84: 131 | Y84: 2.183333333 | Z84: 969 | AA84: 16.15 | AB84: 5 | AC84: 2008 | AD84: Fri | AE84: Nov | AF84: 30 | AG84: 2008 | AH84: 1.4 | AI84: 1.2 | AJ84: 160 | AK84: 00:20:00 | AL84: 12:46:00 | AM84: 49 | AN84: 1.4 | AO84: 4 | AP84: 4.6
A85: Mon | B85: Dec | C85: 3 | D85: 2007 | E85: 102 | F85: 93 | G85: 0 | H85: 2 | I85: 7 | J85: 31 | K85: 63 | L85: 08:46:00 | M85: 05:14:00 | N85: 02:09:00 | O85: 6 | P85: 1.023611111 | Q85: 17.83 | S85: 37 | T85: 58 | U85: 37.96666667 | V85: 2007-12-03 | W85: 0.06862745098 | X85: 129 | Y85: 2.15 | Z85: 34 | AA85: 0.5666666667 | AB85: 6 | AC85: 2008 | AD85: Mon | AE85: Dec | AF85: 3 | AG85: 2008 | AH85: 1.6 | AI85: 1.2 | AJ85: 102 | AK85: 00:20:00 | AL85: 14:00:00 | AM85: 65 | AN85: 1 | AO85: 4 | AP85: 5.1
A86: Tue | B86: Dec | C86: 4 | D86: 2007 | E86: 95 | F86: 85 | G86: 0 | H86: 2 | I86: 8 | J86: 33 | K86: 57 | L86: 07:40:00 | M86: 06:59:00 | N86: 00:54:00 | O86: 2 | P86: 07:23:00 | Q86: 12.54 | S86: 34 | T86: 21 | U86: 34.35 | V86: 2007-12-04 | W86: 0.08421052632 | X86: 54 | Y86: 0.9 | Z86: 443 | AA86: 7.383333333 | AB86: 6 | AC86: 2008 | AD86: Tue | AE86: Dec | AF86: 4 | AG86: 2008 | AH86: 1.4 | AI86: 1.2 | AJ86: 95 | AK86: 00:20:00 | AL86: 14:39:00 | AM86: 60 | AN86: 1 | AO86: 4 | AP86: 4.9
A87: Wed | B87: Dec | C87: 5 | D87: 2007 | E87: 73 | F87: 68 | G87: 0 | H87: 0 | I87: 5 | J87: 13 | K87: 75 | L87: 07:20:00 | M87: 07:46:00 | N87: 00:43:00 | O87: 2 | P87: 09:17:00 | Q87: 9.21 | S87: 33 | T87: 25 | U87: 33.41666667 | V87: 2007-12-05 | W87: 0.06849315068 | X87: 43 | Y87: 0.7166666667 | Z87: 557 | AA87: 9.283333333 | AB87: 6 | AC87: 2008 | AD87: Wed | AE87: Dec | AF87: 5 | AG87: 2008 | AH87: 1.4 | AI87: 1.2 | AJ87: 73 | AK87: 00:20:00 | AL87: 15:06:00 | AM87: 77 | AN87: 0.8 | AO87: 3 | AP87: 3.5
A88: Thu | B88: Dec | C88: 6 | D88: 2007 | E88: 127 | F88: 104 | G88: 0 | H88: 8 | I88: 15 | J88: 40 | K88: 57 | L88: 07:50:00 | M88: 06:05:00 | N88: 01:03:00 | O88: 3 | P88: 14:18:00 | Q88: 16.82 | S88: 41 | T88: 13 | U88: 41.21666667 | V88: 2007-12-06 | W88: 0.1181102362 | X88: 63 | Y88: 1.05 | Z88: 858 | AA88: 14.3 | AB88: 6 | AC88: 2008 | AD88: Thu | AE88: Dec | AF88: 6 | AG88: 2008 | AH88: 1.7 | AI88: 1.4 | AJ88: 127 | AK88: 00:20:00 | AL88: 13:55:00 | AM88: 61 | AN88: 1.2 | AO88: 4 | AP88: 4.8
A89: Fri | B89: Dec | C89: 7 | D89: 2007 | E89: 100 | F89: 85 | G89: 0 | H89: 2 | I89: 13 | J89: 27 | K89: 60 | L89: 07:36:00 | M89: 06:38:00 | N89: 01:01:00 | O89: 4 | P89: 08:49:00 | Q89: 12.83 | S89: 33 | T89: 29 | U89: 33.48333333 | V89: 2007-12-07 | W89: 0.13 | X89: 61 | Y89: 1.016666667 | Z89: 529 | AA89: 8.816666667 | AB89: 6 | AC89: 2008 | AD89: Fri | AE89: Dec | AF89: 7 | AG89: 2008 | AH89: 1.4 | AI89: 1.2 | AJ89: 100 | AK89: 00:20:00 | AL89: 14:14:00 | AM89: 65 | AN89: 1 | AO89: 4 | AP89: 4.5
A90: Mon | B90: Dec | C90: 10 | D90: 2007 | E90: 81 | F90: 72 | G90: 0 | H90: 2 | I90: 7 | J90: 32 | K90: 52 | L90: 08:21:00 | M90: 08:19:00 | N90: 01:11:00 | O90: 2 | P90: 08:03:00 | Q90: 11.85 | S90: 36 | T90: 1 | U90: 36.01666667 | V90: 2007-12-10 | W90: 0.08641975309 | X90: 71 | Y90: 1.183333333 | Z90: 483 | AA90: 8.05 | AB90: 6 | AC90: 2008 | AD90: Mon | AE90: Dec | AF90: 10 | AG90: 2008 | AH90: 1.5 | AI90: 1.2 | AJ90: 81 | AK90: 00:20:00 | AL90: 16:40:00 | AM90: 56 | AN90: 0.9 | AO90: 4 | AP90: 4.9
A91: Tue | B91: Dec | C91: 11 | D91: 2007 | E91: 89 | F91: 78 | G91: 0 | H91: 1 | I91: 10 | J91: 26 | K91: 60 | L91: 07:46:00 | M91: 07:52:00 | N91: 01:07:00 | O91: 4 | P91: 12:20:00 | Q91: 11.97 | S91: 35 | T91: 4 | U91: 35.06666667 | V91: 2007-12-11 | W91: 0.1123595506 | X91: 67 | Y91: 1.116666667 | Z91: 740 | AA91: 12.33333333 | AB91: 6 | AC91: 2008 | AD91: Tue | AE91: Dec | AF91: 11 | AG91: 2008 | AH91: 1.5 | AI91: 1.3 | AJ91: 89 | AK91: 00:20:00 | AL91: 15:38:00 | AM91: 64 | AN91: 1 | AO91: 4 | AP91: 4.6
A92: Wed | B92: Dec | C92: 12 | D92: 2007 | E92: 91 | F92: 84 | G92: 0 | H92: 2 | I92: 5 | J92: 19 | K92: 74 | L92: 05:51:00 | M92: 05:47:00 | N92: 00:35:00 | O92: 4 | P92: 07:30:00 | Q92: 9.35 | S92: 34 | T92: 39 | U92: 34.65 | V92: 2007-12-12 | W92: 0.05494505495 | X92: 35 | Y92: 0.5833333333 | Z92: 450 | AA92: 7.5 | AB92: 6 | AC92: 2008 | AD92: Wed | AE92: Dec | AF92: 12 | AG92: 2008 | AH92: 1.4 | AI92: 1.2 | AJ92: 91 | AK92: 00:20:00 | AL92: 11:38:00 | AM92: 75 | AN92: 0.7 | AO92: 3 | AP92: 3.6
A93: Thu | B93: Dec | C93: 13 | D93: 2007 | E93: 62 | F93: 51 | G93: 0 | H93: 3 | I93: 8 | J93: 29 | K93: 40 | L93: 07:05:00 | M93: 05:01:00 | N93: 02:14:00 | O93: 3 | P93: 10:05:00 | Q93: 8.64 | S93: 18 | T93: 38 | U93: 18.63333333 | V93: 2007-12-13 | W93: 0.1290322581 | X93: 134 | Y93: 2.233333333 | Z93: 605 | AA93: 10.08333333 | AB93: 6 | AC93: 2008 | AD93: Thu | AE93: Dec | AF93: 13 | AG93: 2008 | AH93: 0.8 | AI93: 0.6 | AJ93: 62 | AK93: 00:20:00 | AL93: 12:06:00 | AM93: 47 | AN93: 0.5 | AO93: 3 | AP93: 3.7
A94: Fri | B94: Dec | C94: 14 | D94: 2007 | E94: 94 | F94: 77 | G94: 0 | H94: 2 | I94: 15 | J94: 36 | K94: 46 | L94: 07:45:00 | M94: 05:10:00 | N94: 01:23:00 | O94: 3 | P94: 13:08:00 | Q94: 12.27 | S94: 25 | T94: 25 | U94: 25.41666667 | V94: 2007-12-14 | W94: 0.1595744681 | X94: 83 | Y94: 1.383333333 | Z94: 788 | AA94: 13.13333333 | AB94: 6 | AC94: 2008 | AD94: Fri | AE94: Dec | AF94: 14 | AG94: 2008 | AH94: 1.1 | AI94: 0.9 | AJ94: 94 | AK94: 00:20:00 | AL94: 12:55:00 | AM94: 53 | AN94: 0.8 | AO94: 4 | AP94: 4.5
A95: Mon | B95: Dec | C95: 17 | D95: 2007 | E95: 105 | F95: 86 | G95: 0 | H95: 0 | I95: 19 | J95: 24 | K95: 59 | L95: 06:20:00 | M95: 05:21:00 | N95: 00:39:00 | O95: 5 | P95: 06:35:00 | Q95: 10.57 | S95: 25 | T95: 45 | U95: 25.75 | V95: 2007-12-17 | W95: 0.180952381 | X95: 39 | Y95: 0.65 | Z95: 395 | AA95: 6.583333333 | AB95: 6 | AC95: 2008 | AD95: Mon | AE95: Dec | AF95: 17 | AG95: 2008 | AH95: 1.1 | AI95: 0.9 | AJ95: 105 | AK95: 00:20:00 | AL95: 11:41:00 | AM95: 65 | AN95: 0.9 | AO95: 3 | AP95: 3.4
A96: Tue | B96: Dec | C96: 18 | D96: 2007 | E96: 92 | F96: 69 | G96: 0 | H96: 2 | I96: 21 | J96: 26 | K96: 49 | L96: 06:23:00 | M96: 06:05:00 | N96: 01:15:00 | O96: 4 | P96: 10:49:00 | Q96: 9.85 | S96: 20 | T96: 36 | U96: 20.6 | V96: 2007-12-18 | W96: 0.2282608696 | X96: 75 | Y96: 1.25 | Z96: 649 | AA96: 10.81666667 | AB96: 6 | AC96: 2008 | AD96: Tue | AE96: Dec | AF96: 18 | AG96: 2008 | AH96: 0.9 | AI96: 0.8 | AJ96: 92 | AK96: 00:20:00 | AL96: 12:28:00 | AM96: 58 | AN96: 0.8 | AO96: 3 | AP96: 3.3
A97: Wed | B97: Dec | C97: 19 | D97: 2007 | E97: 75 | F97: 68 | G97: 0 | H97: 1 | I97: 6 | J97: 15 | K97: 72 | L97: 06:47:00 | M97: 05:54:00 | N97: 00:43:00 | O97: 2 | P97: 07:53:00 | Q97: 8.77 | S97: 28 | T97: 33 | U97: 28.55 | V97: 2007-12-19 | W97: 0.08 | X97: 43 | Y97: 0.7166666667 | Z97: 473 | AA97: 7.883333333 | AB97: 6 | AC97: 2008 | AD97: Wed | AE97: Dec | AF97: 19 | AG97: 2008 | AH97: 1.2 | AI97: 1.1 | AJ97: 75 | AK97: 00:20:00 | AL97: 12:41:00 | AM97: 74 | AN97: 0.7 | AO97: 3 | AP97: 3.4
A98: Thu | B98: Dec | C98: 20 | D98: 2007 | E98: 108 | F98: 81 | G98: 0 | H98: 5 | I98: 22 | J98: 34 | K98: 48 | L98: 08:19:00 | M98: 05:35:00 | N98: 01:28:00 | O98: 5 | P98: 15:33:00 | Q98: 14.85 | S98: 33 | T98: 2 | U98: 33.03333333 | V98: =DATE(D98,MONTH(DATEVALUE(CONCATENATE("1/",B98,"/2007"))),C98) -> 2007-12-20 | W98: 0.2037037037 | X98: =HOUR(N98)*60+(MINUTE(N98)) -> 88 | Y98: =HOUR(N98)+(MINUTE(N98)/60) -> 1.466666667 | Z98: 933 | AA98: 15.55 | AB98: =IF(MONTH(V98)>6,MONTH(V98)-6,MONTH(V98)+6) -> 6 | AC98: =IF(AB98<=6,YEAR(V98)+1,YEAR(V98)) -> 2008 | AD98: Thu | AE98: Dec | AF98: 20 | AG98: 2008 | AH98: 1.4 | AI98: 1.2 | AJ98: 108 | AK98: 00:20:00 | AL98: 13:54:00 | AM98: 57 | AN98: 1 | AO98: 4 | AP98: 4.6
A99: Fri | B99: Dec | C99: 21 | D99: 2007 | E99: 86 | F99: 76 | G99: 0 | H99: 2 | I99: 8 | J99: 15 | K99: 73 | L99: 06:45:00 | M99: 06:12:00 | N99: 00:34:00 | O99: 3 | P99: 08:16:00 | Q99: 9.7 | S99: 35 | T99: 14 | U99: 35.23333333 | V99: =DATE(D99,MONTH(DATEVALUE(CONCATENATE("1/",B99,"/2007"))),C99) -> 2007-12-21 | W99: 0.09302325581 | X99: 34 | Y99: 0.5666666667 | Z99: 496 | AA99: 8.266666667 | AB99: 6 | AC99: 2008 | AD99: Fri | AE99: Dec | AF99: 21 | AG99: 2008 | AH99: 1.5 | AI99: 1.3 | AJ99: 86 | AK99: 00:20:00 | AL99: 12:57:00 | AM99: 76 | AN99: 0.8 | AO99: 3 | AP99: 3.5
A100: Wed | B100: Dec | C100: 26 | D100: 2007 | E100: 57 | F100: 50 | G100: 0 | H100: 1 | I100: 6 | J100: 8 | K100: 75 | L100: 09:20:00 | M100: 05:41:00 | N100: 00:30:00 | O100: 2 | P100: 08:21:00 | Q100: 8.41 | S100: 29 | T100: 26 | U100: 29.43333333 | V100: =DATE(D100,MONTH(DATEVALUE(CONCATENATE("1/",B100,"/2007"))),C100) -> 2007-12-26 | W100: 0.1052631579 | X100: 30 | Y100: 0.5 | Z100: 501 | AA100: 8.35 | AB100: 6 | AC100: 2008 | AD100: Wed | AE100: Dec | AF100: 26 | AG100: 2008 | AH100: 1.2 | AI100: 1.1 | AJ100: 57 | AK100: 00:20:00 | AL100: 15:01:00 | AM100: 78 | AN100: 0.6 | AO100: 3 | AP100: 3.4
A101: Thu | B101: Dec | C101: 27 | D101: 2007 | E101: 61 | F101: 56 | G101: 0 | H101: 3 | I101: 2 | J101: 10 | K101: 80 | L101: 06:17:00 | M101: 06:14:00 | N101: 00:19:00 | O101: 2 | P101: 05:25:00 | Q101: 6.52 | S101: 25 | T101: 25 | U101: 25.41666667 | V101: =DATE(D101,MONTH(DATEVALUE(CONCATENATE("1/",B101,"/2007"))),C101) -> 2007-12-27 | W101: 0.03278688525 | X101: 19 | Y101: 0.3166666667 | Z101: 325 | AA101: 5.416666667 | AB101: 6 | AC101: 2008 | AD101: Thu | AE101: Dec | AF101: 27 | AG101: 2008 | AH101: 1.1 | AI101: 0.8 | AJ101: 61 | AK101: 00:20:00 | AL101: 12:31:00 | AM101: 81 | AN101: 0.5 | AO101: 3 | AP101: 3.8
A102: Fri | B102: Dec | C102: 28 | D102: 2007 | E102: 59 | F102: 55 | G102: 0 | H102: 0 | I102: 4 | J102: 13 | K102: 71 | L102: 06:36:00 | M102: 05:53:00 | N102: 00:39:00 | O102: 4 | P102: 06:42:00 | Q102: 6.76 | S102: 23 | T102: 55 | U102: 23.91666667 | V102: =DATE(D102,MONTH(DATEVALUE(CONCATENATE("1/",B102,"/2007"))),C102) -> 2007-12-28 | W102: 0.06779661017 | X102: 39 | Y102: 0.65 | Z102: 402 | AA102: 6.7 | AB102: 6 | AC102: 2008 | AD102: Fri | AE102: Dec | AF102: 28 | AG102: 2008 | AH102: 1 | AI102: 0.9 | AJ102: 59 | AK102: 00:20:00 | AL102: 12:29:00 | AM102: 73 | AN102: 0.5 | AO102: 3 | AP102: 3.4
A103: Wed | B103: Jan | C103: 2 | D103: 2008 | E103: 105 | F103: 85 | G103: 0 | H103: 8 | I103: 12 | J103: 26 | K103: 64 | L103: 06:45:00 | M103: 04:39:00 | N103: 00:38:00 | O103: 3 | P103: 06:43:00 | Q103: 11.66 | S103: 30 | T103: 30 | U103: =S103+(T103/60) -> 30.5 | V103: =DATE(D103,MONTH(DATEVALUE(CONCATENATE("1/",B103,"/2008"))),C103) -> 2008-01-02 | W103: 0.1142857143 | X103: 38 | Y103: 0.6333333333 | Z103: 403 | AA103: 6.716666667 | AB103: 7 | AC103: 2008 | AD103: Wed | AE103: Jan | AF103: 2 | AG103: 2008 | AH103: 1.3 | AI103: 1.1 | AJ103: 105 | AK103: 00:20:00 | AL103: 11:24:00 | AM103: 68 | AN103: 0.8 | AO103: 3 | AP103: 3.6
A104: Thu | B104: Jan | C104: 3 | D104: 2008 | E104: 94 | F104: 76 | G104: 0 | H104: 5 | I104: 13 | J104: 32 | K104: 52 | L104: 07:30:00 | M104: 05:48:00 | N104: 02:09:00 | O104: 6 | P104: 19:14:00 | Q104: 13.66 | S104: 25 | T104: 26 | U104: 25.43333333 | V104: =DATE(D104,MONTH(DATEVALUE(CONCATENATE("1/",B104,"/2008"))),C104) -> 2008-01-03 | W104: 0.1382978723 | X104: 129 | Y104: 2.15 | Z104: 1154 | AA104: 19.23333333 | AB104: 7 | AC104: 2008 | AD104: Thu | AE104: Jan | AF104: 3 | AG104: 2008 | AH104: 1.1 | AI104: 0.9 | AJ104: 94 | AK104: 00:20:00 | AL104: 13:18:00 | AM104: 58 | AN104: 0.9 | AO104: 4 | AP104: 4.8
A105: Fri | B105: Jan | C105: 4 | D105: 2008 | E105: 94 | F105: 84 | G105: 0 | H105: 3 | I105: 7 | J105: 43 | K105: 47 | L105: 06:35:00 | M105: 05:31:00 | N105: 01:36:00 | O105: 4 | P105: 11:59:00 | Q105: 12.05 | S105: 27 | T105: 57 | U105: 27.95 | V105: 2008-01-04 | W105: 0.07446808511 | X105: 96 | Y105: 1.6 | Z105: 719 | AA105: 11.98333333 | AB105: 7 | AC105: 2008 | AD105: Fri | AE105: Jan | AF105: 4 | AG105: 2008 | AH105: 1.2 | AI105: 1 | AJ105: 94 | AK105: 00:20:00 | AL105: 12:06:00 | AM105: 50 | AN105: 0.8 | AO105: 3 | AP105: 3.5
A106: Mon | B106: Jan | C106: 7 | D106: 2008 | E106: 106 | F106: 86 | G106: 0 | H106: 2 | I106: 18 | J106: 30 | K106: 55 | L106: 07:16:00 | M106: 05:50:00 | N106: 01:38:00 | O106: 4 | P106: 18:47:00 | Q106: 13.5 | S106: 29 | T106: 44 | U106: 29.73333333 | V106: 2008-01-07 | W106: 0.1698113208 | X106: 98 | Y106: 1.633333333 | Z106: 1127 | AA106: 18.78333333 | AB106: 7 | AC106: 2008 | AD106: Mon | AE106: Jan | AF106: 7 | AG106: 2008 | AH106: 1.2 | AI106: 1.1 | AJ106: 106 | AK106: 00:20:00 | AL106: 13:06:00 | AM106: 61 | AN106: 1 | AO106: 4 | AP106: 4.6
A107: Tue | B107: Jan | C107: 8 | D107: 2008 | E107: 75 | F107: 63 | G107: 0 | H107: 1 | I107: 11 | J107: 20 | K107: 59 | L107: 07:05:00 | M107: 05:45:00 | N107: 01:50:00 | O107: 5 | P107: 11:52:00 | Q107: 9.96 | S107: 24 | T107: 13 | U107: 24.21666667 | V107: 2008-01-08 | W107: 0.1466666667 | X107: 110 | Y107: 1.833333333 | Z107: 712 | AA107: 11.86666667 | AB107: 7 | AC107: 2008 | AD107: Tue | AE107: Jan | AF107: 8 | AG107: 2008 | AH107: 1 | AI107: 0.9 | AJ107: 75 | AK107: 00:20:00 | AL107: 12:50:00 | AM107: 64 | AN107: 0.7 | AO107: 3 | AP107: 3.4
A108: Wed | B108: Jan | C108: 9 | D108: 2008 | E108: 96 | F108: 91 | G108: 0 | H108: 0 | I108: 5 | J108: 19 | K108: 75 | L108: 08:43:00 | M108: 04:35:00 | N108: 00:42:00 | O108: 4 | P108: 12:19:00 | Q108: 14.43 | S108: 35 | T108: 50 | U108: 35.83333333 | V108: 2008-01-09 | W108: 0.05208333333 | X108: 42 | Y108: 0.7 | Z108: 739 | AA108: 12.31666667 | AB108: 7 | AC108: 2008 | AD108: Wed | AE108: Jan | AF108: 9 | AG108: 2008 | AH108: 1.5 | AI108: 1.3 | AJ108: 96 | AK108: 00:20:00 | AL108: 13:18:00 | AM108: 76 | AN108: 0.9 | AO108: 4 | AP108: 4.4
A109: Thu | B109: Jan | C109: 10 | D109: 2008 | E109: 89 | F109: 78 | G109: 0 | H109: 0 | I109: 11 | J109: 22 | K109: 63 | L109: 08:42:00 | M109: 04:51:00 | N109: 00:55:00 | O109: 3 | P109: 09:40:00 | Q109: 12.94 | S109: 25 | T109: 15 | U109: 25.25 | V109: 2008-01-10 | W109: 0.1235955056 | X109: 55 | Y109: 0.9166666667 | Z109: 580 | AA109: 9.666666667 | AB109: 7 | AC109: 2008 | AD109: Thu | AE109: Jan | AF109: 10 | AG109: 2008 | AH109: 1.1 | AI109: 0.9 | AJ109: 89 | AK109: 00:20:00 | AL109: 13:33:00 | AM109: 67 | AN109: 0.8 | AO109: 4 | AP109: 4.5
A110: Fri | B110: Jan | C110: 11 | D110: 2008 | E110: 101 | F110: 88 | G110: 0 | H110: 1 | I110: 12 | J110: 26 | K110: 62 | L110: 06:44:00 | M110: 05:18:00 | N110: 00:41:00 | O110: 3 | P110: 10:19:00 | Q110: 11.33 | S110: 33 | T110: 10 | U110: 33.16666667 | V110: 2008-01-11 | W110: 0.1188118812 | X110: 41 | Y110: 0.6833333333 | Z110: 619 | AA110: 10.31666667 | AB110: 7 | AC110: 2008 | AD110: Fri | AE110: Jan | AF110: 11 | AG110: 2008 | AH110: 1.4 | AI110: 1.1 | AJ110: 101 | AK110: 00:20:00 | AL110: 12:02:00 | AM110: 66 | AN110: 0.8 | AO110: 3 | AP110: 3.6
A111: Mon | B111: Jan | C111: 14 | D111: 2008 | E111: 89 | F111: 85 | G111: 0 | H111: 1 | I111: 3 | J111: 18 | K111: 76 | L111: 07:39:00 | M111: 07:03:00 | N111: 01:04:00 | O111: 3 | P111: 12:26:00 | Q111: 12.62 | S111: 36 | T111: 34 | U111: 36.56666667 | V111: 2008-01-14 | W111: 0.03370786517 | X111: 64 | Y111: 1.066666667 | Z111: 746 | AA111: 12.43333333 | AB111: 7 | AC111: 2008 | AD111: Mon | AE111: Jan | AF111: 14 | AG111: 2008 | AH111: 1.5 | AI111: 1.3 | AJ111: 89 | AK111: 00:20:00 | AL111: 14:42:00 | AM111: 77 | AN111: 0.9 | AO111: 4 | AP111: 4.6
A112: Tue | B112: Jan | C112: 15 | D112: 2008 | E112: 86 | F112: 76 | G112: 0 | H112: 0 | I112: 10 | J112: 28 | K112: 56 | L112: 06:54:00 | M112: 07:49:00 | N112: 01:36:00 | O112: 4 | P112: 17:49:00 | Q112: 10.85 | S112: 30 | T112: 17 | U112: 30.28333333 | V112: 2008-01-15 | W112: 0.1162790698 | X112: 96 | Y112: 1.6 | Z112: 1069 | AA112: 17.81666667 | AB112: 7 | AC112: 2008 | AD112: Tue | AE112: Jan | AF112: 15 | AG112: 2008 | AH112: 1.3 | AI112: 1.1 | AJ112: 86 | AK112: 00:20:00 | AL112: 14:43:00 | AM112: 60 | AN112: 0.9 | AO112: 4 | AP112: 4.4
A113: Wed | B113: Jan | C113: 16 | D113: 2008 | E113: 101 | F113: 98 | G113: 0 | H113: 0 | I113: 3 | J113: 16 | K113: 81 | L113: 07:11:00 | M113: 06:37:00 | N113: 00:41:00 | O113: 4 | P113: 08:34:00 | Q113: 12.88 | S113: 41 | T113: 35 | U113: 41.58333333 | V113: 2008-01-16 | W113: 0.0297029703 | X113: 41 | Y113: 0.6833333333 | Z113: 514 | AA113: 8.566666667 | AB113: 7 | AC113: 2008 | AD113: Wed | AE113: Jan | AF113: 16 | AG113: 2008 | AH113: 1.7 | AI113: 1.5 | AJ113: 101 | AK113: 00:20:00 | AL113: 13:48:00 | AM113: 82 | AN113: 1 | AO113: 4 | AP113: 4.5
A114: Thu | B114: Jan | C114: 17 | D114: 2008 | E114: 81 | F114: 77 | G114: 0 | H114: 1 | I114: 3 | J114: 11 | K114: 83 | L114: 08:08:00 | M114: 06:19:00 | N114: 00:30:00 | O114: 2 | P114: 08:38:00 | Q114: 11.29 | S114: 39 | T114: 54 | U114: 39.9 | V114: 2008-01-17 | W114: 0.03703703704 | X114: 30 | Y114: 0.5 | Z114: 518 | AA114: 8.633333333 | AB114: 7 | AC114: 2008 | AD114: Thu | AE114: Jan | AF114: 17 | AG114: 2008 | AH114: 1.7 | AI114: 1.3 | AJ114: 81 | AK114: 00:20:00 | AL114: 14:27:00 | AM114: 83 | AN114: 0.8 | AO114: 4 | AP114: 4.9
A115: Fri | B115: Jan | C115: 18 | D115: 2008 | E115: 88 | F115: 80 | G115: 0 | H115: 2 | I115: 6 | J115: 17 | K115: 74 | L115: 05:47:00 | M115: 05:36:00 | N115: 00:40:00 | O115: 4 | P115: 11:35:00 | Q115: 9.07 | S115: 36 | T115: 27 | U115: 36.45 | V115: 2008-01-18 | W115: 0.06818181818 | X115: 40 | Y115: 0.6666666667 | Z115: 695 | AA115: 11.58333333 | AB115: 7 | AC115: 2008 | AD115: Fri | AE115: Jan | AF115: 18 | AG115: 2008 | AH115: 1.5 | AI115: 1.3 | AJ115: 88 | AK115: 00:20:00 | AL115: 11:23:00 | AM115: 76 | AN115: 0.7 | AO115: 3 | AP115: 3.4
A116: Tue | B116: Jan | C116: 22 | D116: 2008 | E116: 93 | F116: 87 | G116: 0 | H116: 0 | I116: 6 | J116: 15 | K116: 77 | L116: 07:11:00 | M116: 07:25:00 | N116: 00:27:00 | O116: 2 | P116: 05:48:00 | Q116: 11.16 | S116: 34 | T116: 23 | U116: 34.38333333 | V116: 2008-01-22 | W116: 0.06451612903 | X116: 27 | Y116: 0.45 | Z116: 348 | AA116: 5.8 | AB116: 7 | AC116: 2008 | AD116: Tue | AE116: Jan | AF116: 22 | AG116: 2008 | AH116: 1.4 | AI116: 1.2 | AJ116: 93 | AK116: 00:20:00 | AL116: 14:36:00 | AM116: 79 | AN116: 0.9 | AO116: 4 | AP116: 4.6
A117: Wed | B117: Jan | C117: 23 | D117: 2008 | E117: 111 | F117: 107 | G117: 0 | H117: 1 | I117: 3 | J117: 21 | K117: 78 | L117: 06:23:00 | M117: 06:52:00 | N117: 00:29:00 | O117: 4 | P117: 09:04:00 | Q117: 12.37 | S117: 45 | T117: 53 | U117: 45.88333333 | V117: 2008-01-23 | W117: 0.02702702703 | X117: 29 | Y117: 0.4833333333 | Z117: 544 | AA117: 9.066666667 | AB117: 7 | AC117: 2008 | AD117: Wed | AE117: Jan | AF117: 23 | AG117: 2008 | AH117: 1.9 | AI117: 1.7 | AJ117: 111 | AK117: 00:20:00 | AL117: 13:15:00 | AM117: 79 | AN117: 1 | AO117: 4 | AP117: 4.6
A118: Thu | B118: Jan | C118: 24 | D118: 2008 | E118: 113 | F118: 97 | G118: 0 | H118: 0 | I118: 16 | J118: 37 | K118: 53 | L118: 07:03:00 | M118: 06:27:00 | N118: 01:19:00 | O118: 4 | P118: 19:15:00 | Q118: 14.31 | S118: 36 | T118: 24 | U118: 36.4 | V118: 2008-01-24 | W118: 0.1415929204 | X118: 79 | Y118: 1.316666667 | Z118: 1155 | AA118: 19.25 | AB118: 7 | AC118: 2008 | AD118: Thu | AE118: Jan | AF118: 24 | AG118: 2008 | AH118: 1.5 | AI118: 1.3 | AJ118: 113 | AK118: 00:20:00 | AL118: 13:30:00 | AM118: 59 | AN118: 1.1 | AO118: 4 | AP118: 4.6
A119: Fri | B119: Jan | C119: 25 | D119: 2008 | E119: 107 | F119: 103 | G119: 0 | H119: 0 | I119: 4 | J119: 23 | K119: 75 | L119: 05:50:00 | M119: 06:05:00 | N119: 00:28:00 | O119: 2 | P119: 05:07:00 | Q119: 10.92 | S119: 39 | T119: 1 | U119: 39.01666667 | V119: 2008-01-25 | W119: 0.03738317757 | X119: 28 | Y119: 0.4666666667 | Z119: 307 | AA119: 5.116666667 | AB119: 7 | AC119: 2008 | AD119: Fri | AE119: Jan | AF119: 25 | AG119: 2008 | AH119: 1.6 | AI119: 1.4 | AJ119: 107 | AK119: 00:20:00 | AL119: 11:55:00 | AM119: 76 | AN119: 0.9 | AO119: 4 | AP119: 4.6
A120: Mon | B120: Jan | C120: 28 | D120: 2008 | E120: 108 | F120: 93 | G120: 0 | H120: 3 | I120: 12 | J120: 22 | K120: 69 | L120: 07:20:00 | M120: 06:20:00 | N120: 00:36:00 | O120: 3 | P120: 10:23:00 | Q120: 12.93 | S120: 39 | T120: 54 | U120: 39.9 | V120: 2008-01-28 | W120: 0.1111111111 | X120: 36 | Y120: 0.6 | Z120: 623 | AA120: 10.38333333 | AB120: 7 | AC120: 2008 | AD120: Mon | AE120: Jan | AF120: 28 | AG120: 2008 | AH120: 1.7 | AI120: 1.4 | AJ120: 108 | AK120: 00:20:00 | AL120: 13:40:00 | AM120: 72 | AN120: 1 | AO120: 4 | AP120: 4.7
A121: Tue | B121: Jan | C121: 29 | D121: 2008 | E121: 112 | F121: 94 | G121: 0 | H121: 4 | I121: 14 | J121: 31 | K121: 60 | L121: 06:16:00 | M121: 05:39:00 | N121: 00:54:00 | O121: 4 | P121: 08:17:00 | Q121: 11.92 | S121: 31 | T121: 53 | U121: 31.88333333 | V121: 2008-01-29 | W121: 0.125 | X121: 54 | Y121: 0.9 | Z121: 497 | AA121: 8.283333333 | AB121: 7 | AC121: 2008 | AD121: Tue | AE121: Jan | AF121: 29 | AG121: 2008 | AH121: 1.3 | AI121: 1.2 | AJ121: 112 | AK121: 00:20:00 | AL121: 11:55:00 | AM121: 64 | AN121: 0.9 | AO121: 4 | AP121: 4.6
A122: Wed | B122: Jan | C122: 30 | D122: 2008 | E122: 114 | F122: 101 | G122: 0 | H122: 0 | I122: 13 | J122: 11 | K122: 79 | L122: 06:02:00 | M122: 06:00:00 | N122: 00:13:00 | O122: 3 | P122: 05:19:00 | Q122: 10.75 | S122: 44 | T122: 17 | U122: 44.28333333 | V122: 2008-01-30 | W122: 0.1140350877 | X122: 13 | Y122: 0.2166666667 | Z122: 319 | AA122: 5.316666667 | AB122: 7 | AC122: 2008 | AD122: Wed | AE122: Jan | AF122: 30 | AG122: 2008 | AH122: 1.8 | AI122: 1.7 | AJ122: 114 | AK122: 00:20:00 | AL122: 12:02:00 | AM122: 81 | AN122: 1 | AO122: 4 | AP122: 4.4
A123: Thu | B123: Jan | C123: 31 | D123: 2008 | E123: 85 | F123: 77 | G123: 0 | H123: 0 | I123: 8 | J123: 16 | K123: 72 | L123: 07:52:00 | M123: 06:51:00 | N123: 00:28:00 | O123: 2 | P123: 06:49:00 | Q123: 10.83 | S123: 33 | T123: 59 | U123: 33.98333333 | V123: 2008-01-31 | W123: =IF(E123<>0,I123/E123,0) -> 0.09411764706 | X123: =HOUR(N123)*60+(MINUTE(N123)) -> 28 | Y123: =HOUR(N123)+(MINUTE(N123)/60) -> 0.4666666667 | Z123: =HOUR(P123)*60+(MINUTE(P123)) -> 409 | AA123: =HOUR(P123)+(MINUTE(P123)/60) -> 6.816666667 | AB123: =IF(MONTH(V123)>6,MONTH(V123)-6,MONTH(V123)+6) -> 7 | AC123: =IF(AB123<=6,YEAR(V123)+1,YEAR(V123)) -> 2008 | AD123: Thu | AE123: Jan | AF123: 31 | AG123: 2008 | AH123: 1.4 | AI123: 1.2 | AJ123: 85 | AK123: 00:20:00 | AL123: 14:43:00 | AM123: 74 | AN123: 0.9 | AO123: 4 | AP123: 4.7
A124: Fri | B124: Feb | C124: 1 | D124: 2008 | E124: 85 | F124: 81 | G124: 0 | H124: 0 | I124: 4 | J124: 5 | K124: 89 | L124: 05:47:00 | M124: 07:12:00 | N124: 00:14:00 | O124: 2 | P124: 03:26:00 | Q124: 8.14 | S124: 35 | T124: 42 | U124: =S124+(T124/60) -> 35.7 | V124: 2008-02-01 | W124: =IF(E124<>0,I124/E124,0) -> 0.04705882353 | X124: =HOUR(N124)*60+(MINUTE(N124)) -> 14 | Y124: =HOUR(N124)+(MINUTE(N124)/60) -> 0.2333333333 | Z124: =HOUR(P124)*60+(MINUTE(P124)) -> 206 | AA124: =HOUR(P124)+(MINUTE(P124)/60) -> 3.433333333 | AB124: =IF(MONTH(V124)>6,MONTH(V124)-6,MONTH(V124)+6) -> 8 | AC124: =IF(AB124<=6,YEAR(V124)+1,YEAR(V124)) -> 2008 | AD124: Fri | AE124: Feb | AF124: 1 | AG124: 2008 | AH124: 1.5 | AI124: 1.3 | AJ124: 85 | AK124: 00:20:00 | AL124: 12:59:00 | AM124: 90 | AN124: 0.8 | AO124: 3 | AP124: 3.4
A125: Mon | B125: Feb | C125: 4 | D125: 2008 | E125: 119 | F125: 101 | G125: 0 | H125: 2 | I125: 16 | J125: 41 | K125: 52 | L125: 07:29:00 | M125: 04:19:00 | N125: 01:10:00 | O125: 4 | P125: 09:07:00 | Q125: 15.13 | S125: 25 | T125: 50 | U125: =S125+(T125/60) -> 25.83333333 | V125: 2008-02-04 | W125: 0.1344537815 | X125: 70 | Y125: 1.166666667 | Z125: 547 | AA125: 9.116666667 | AB125: 8 | AC125: 2008 | AD125: Mon | AE125: Feb | AF125: 4 | AG125: 2008 | AH125: 1.3 | AI125: 1.2 | AJ125: 119 | AK125: 00:20:00 | AL125: 11:48:00 | AM125: 58 | AN125: 1 | AO125: 4 | AP125: 4.6
A126: Tue | B126: Feb | C126: 5 | D126: 2008 | E126: 105 | F126: 94 | G126: 0 | H126: 1 | I126: 10 | J126: 38 | K126: 54 | L126: 06:57:00 | M126: 05:22:00 | N126: 01:13:00 | O126: 4 | P126: 14:17:00 | Q126: 13.41 | S126: 45 | T126: 37 | U126: =S126+(T126/60) -> 45.61666667 | V126: 2008-02-05 | W126: 0.09523809524 | X126: 73 | Y126: 1.216666667 | Z126: 857 | AA126: 14.28333333 | AB126: 8 | AC126: 2008 | AD126: Tue | AE126: Feb | AF126: 5 | AG126: 2008 | AH126: 1.1 | AI126: 1 | AJ126: 105 | AK126: 00:20:00 | AL126: 12:19:00 | AM126: 58 | AN126: 0.9 | AO126: 4 | AP126: 4.5
A127: Wed | B127: Feb | C127: 6 | D127: 2008 | E127: 83 | F127: 77 | G127: 0 | H127: 1 | I127: 5 | J127: 7 | K127: 86 | L127: 06:34:00 | M127: 06:53:00 | N127: 00:14:00 | O127: 2 | P127: 05:22:00 | Q127: 8.91 | S127: 32 | T127: 39 | U127: =S127+(T127/60) -> 32.65 | V127: 2008-02-06 | W127: 0.06024096386 | X127: 14 | Y127: 0.2333333333 | Z127: 322 | AA127: 5.366666667 | AB127: 8 | AC127: 2008 | AD127: Wed | AE127: Feb | AF127: 6 | AG127: 2008 | AH127: 1.9 | AI127: 1.6 | AJ127: 83 | AK127: 00:20:00 | AL127: 13:27:00 | AM127: 86 | AN127: 0.8 | AO127: 3 | AP127: 3.5
A128: Thu | B128: Feb | C128: 7 | D128: 2008 | E128: 80 | F128: 69 | G128: 0 | H128: 1 | I128: 10 | J128: 27 | K128: 54 | L128: 07:24:00 | M128: 05:54:00 | N128: 00:59:00 | O128: 3 | P128: 07:30:00 | Q128: 9.98 | S128: 32 | T128: 9 | U128: 32.15 | V128: 2008-02-07 | W128: 0.125 | X128: 59 | Y128: 0.9833333333 | Z128: 450 | AA128: 7.5 | AB128: 8 | AC128: 2008 | AD128: Thu | AE128: Feb | AF128: 7 | AG128: 2008 | AH128: 1.4 | AI128: 1.2 | AJ128: 80 | AK128: 00:20:00 | AL128: 13:18:00 | AM128: 59 | AN128: 0.7 | AO128: 3 | AP128: 3.5
A129: Fri | B129: Feb | C129: 8 | D129: 2008 | E129: 100 | F129: 93 | G129: 0 | H129: 1 | I129: 6 | J129: 19 | K129: 75 | L129: 05:43:00 | M129: 06:23:00 | N129: 00:32:00 | O129: 4 | P129: 06:33:00 | Q129: 9.93 | S129: 38 | T129: 2 | U129: 38.03333333 | V129: 2008-02-08 | W129: 0.06 | X129: 32 | Y129: 0.5333333333 | Z129: 393 | AA129: 6.55 | AB129: 8 | AC129: 2008 | AD129: Fri | AE129: Feb | AF129: 8 | AG129: 2008 | AH129: 1.6 | AI129: 1.3 | AJ129: 100 | AK129: 00:20:00 | AL129: 12:06:00 | AM129: 76 | AN129: 0.8 | AO129: 3 | AP129: 3.7
A130: Mon | B130: Feb | C130: 11 | D130: 2008 | E130: 89 | F130: 86 | G130: 0 | H130: 0 | I130: 3 | J130: 14 | K130: 81 | L130: 06:18:00 | M130: 05:47:00 | N130: 00:28:00 | O130: 3 | P130: 07:46:00 | Q130: 9.73 | S130: 48 | T130: 17 | U130: 48.28333333 | V130: 2008-02-11 | W130: 0.03370786517 | X130: 28 | Y130: 0.4666666667 | Z130: 466 | AA130: 7.766666667 | AB130: 8 | AC130: 2008 | AD130: Mon | AE130: Feb | AF130: 11 | AG130: 2008 | AH130: 2 | AI130: 1.6 | AJ130: 89 | AK130: 00:20:00 | AL130: 12:05:00 | AM130: 82 | AN130: 0.7 | AO130: 3 | AP130: 3.7
A131: Tue | B131: Feb | C131: 12 | D131: 2008 | E131: 94 | F131: 85 | G131: 0 | H131: 4 | I131: 5 | J131: 29 | K131: 64 | L131: 06:55:00 | M131: 06:31:00 | N131: 00:57:00 | O131: 2 | P131: 12:32:00 | Q131: 11.81 | S131: 32 | T131: 39 | U131: 32.65 | V131: 2008-02-12 | W131: 0.05319148936 | X131: 57 | Y131: 0.95 | Z131: 752 | AA131: 12.53333333 | AB131: 8 | AC131: 2008 | AD131: Tue | AE131: Feb | AF131: 12 | AG131: 2008 | AH131: 1.4 | AI131: 1.2 | AJ131: 94 | AK131: 00:20:00 | AL131: 13:26:00 | AM131: 66 | AN131: 0.9 | AO131: 4 | AP131: 4.5
A132: Wed | B132: Feb | C132: 13 | D132: 2008 | E132: 104 | F132: 93 | G132: 00:00:00 | H132: 00:00:00 | I132: 11 | J132: 22 | K132: 68 | L132: 07:00:00 | M132: 08:06:00 | N132: 00:48:00 | O132: 4 | P132: 09:12:00 | Q132: 12.2 | S132: 46 | T132: 24 | U132: 46.4 | V132: 2008-02-13 | W132: 0.1057692308 | X132: 48 | Y132: 0.8 | Z132: 552 | AA132: 9.2 | AB132: 8 | AC132: 2008 | AD132: Wed | AE132: Feb | AF132: 13 | AG132: 2008 | AH132: 1.9 | AI132: 1.6 | AJ132: 104 | AK132: 00:20:00 | AL132: 15:06:00 | AM132: 71 | AN132: 1.1 | AO132: 4 | AP132: 4.7
A133: Thu | B133: Feb | C133: 14 | D133: 2008 | E133: 95 | F133: 79 | G133: 00:00:00 | H133: 00:00:00 | I133: 16 | J133: 23 | K133: 59 | L133: 06:09:00 | M133: 06:02:00 | N133: 00:56:00 | O133: 4 | P133: 14:38:00 | Q133: 9.92 | S133: 27 | T133: 22 | U133: 27.36666667 | V133: 2008-02-14 | W133: 0.1684210526 | X133: 56 | Y133: 0.9333333333 | Z133: 878 | AA133: 14.63333333 | AB133: 8 | AC133: 2008 | AD133: Thu | AE133: Feb | AF133: 14 | AG133: 2008 | AH133: 1.1 | AI133: 1 | AJ133: 95 | AK133: 00:20:00 | AL133: 12:11:00 | AM133: 65 | AN133: 0.8 | AO133: 3 | AP133: 3.5
A134: Fri | B134: Feb | C134: 15 | D134: 2008 | E134: 73 | F134: 71 | G134: 00:00:00 | H134: 00:00:00 | I134: 2 | J134: 7 | K134: 88 | L134: 06:11:00 | M134: 08:02:00 | N134: 00:14:00 | O134: 2 | P134: 03:25:00 | Q134: 7.63 | S134: 41 | T134: 17 | U134: 41.28333333 | V134: 2008-02-15 | W134: 0.02739726027 | X134: 14 | Y134: 0.2333333333 | Z134: 205 | AA134: 3.416666667 | AB134: 8 | AC134: 2008 | AD134: Fri | AE134: Feb | AF134: 15 | AG134: 2008 | AH134: 1.7 | AI134: 1.5 | AJ134: 73 | AK134: 00:20:00 | AL134: 14:13:00 | AM134: 88 | AN134: 0.7 | AO134: 3 | AP134: 3.5
A135: Wed | B135: Aug | C135: 1 | D135: 2007 | E135: 213 | F135: 127 | G135: 0 | H135: 60 | I135: 26 | J135: 114 | K135: 34 | L135: 06:07:00 | M135: 02:44:00 | N135: 01:08:00 | O135: 5 | P135: 02:45:00 | Q135: 22.88 | V135: 2007-08-01 | W135: =IF(E135<>0,I135/E135,0) -> 0.1220657277 | X135: =HOUR(N135)*60+(MINUTE(N135)) -> 68 | Y135: =HOUR(N135)+(MINUTE(N135)/60) -> 1.133333333 | Z135: =HOUR(P135)*60+(MINUTE(P135)) -> 165 | AA135: =HOUR(P135)+(MINUTE(P135)/60) -> 2.75 | AB135: =IF(MONTH(V135)>6,MONTH(V135)-6,MONTH(V135)+6) -> 2 | AC135: =IF(AB135<=6,YEAR(V135)+1,YEAR(V135)) -> 2008 | AD135: Wed | AE135: Aug | AF135: 1 | AG135: 2008 | AH135: 1.4 | AI135: 1.2 | AJ135: 213 | AK135: 00:20:00 | AL135: 08:51:00 | AM135: 41 | AN135: 1.3 | AO135: 4 | AP135: 4.6
A136: Thu | B136: Aug | C136: 2 | D136: 2007 | E136: 157 | F136: 135 | G136: 0 | H136: 10 | I136: 12 | J136: 46 | K136: 63 | L136: 07:29:00 | M136: 03:57:00 | N136: 00:31:00 | O136: 3 | P136: 02:39:00 | Q136: 19.53 | V136: 2007-08-02 | W136: 0.07643312102 | X136: 31 | Y136: 0.5166666667 | Z136: 159 | AA136: 2.65 | AB136: 2 | AC136: 2008 | AD136: Thu | AE136: Aug | AF136: 2 | AG136: 2008 | AH136: 1.4 | AI136: 1.3 | AJ136: 157 | AK136: 00:20:00 | AL136: 11:26:00 | AM136: 66 | AN136: 1.2 | AO136: 4 | AP136: 4.4
A137: Fri | B137: Aug | C137: 3 | D137: 2007 | E137: 119 | F137: 102 | G137: 0 | H137: 14 | I137: 3 | J137: 35 | K137: 68 | L137: 06:20:00 | M137: 03:54:00 | N137: 00:35:00 | O137: 3 | P137: 02:47:00 | Q137: 13.39 | V137: 2007-08-03 | W137: 0.02521008403 | X137: 35 | Y137: 0.5833333333 | Z137: 167 | AA137: 2.783333333 | AB137: 2 | AC137: 2008 | AD137: Fri | AE137: Aug | AF137: 3 | AG137: 2008 | AH137: 1.3 | AI137: 1.1 | AJ137: 119 | AK137: 00:20:00 | AL137: 10:14:00 | AM137: 69 | AN137: 0.8 | AO137: 3 | AP137: 3.5
A138: Mon | B138: Aug | C138: 6 | D138: 2007 | E138: 186 | F138: 125 | G138: 0 | H138: 37 | I138: 24 | J138: 84 | K138: 42 | L138: 06:07:00 | M138: 03:26:00 | N138: 00:59:00 | O138: 4 | P138: 02:49:00 | Q138: 19.45 | V138: 2007-08-06 | W138: 0.1290322581 | X138: 59 | Y138: 0.9833333333 | Z138: 169 | AA138: 2.816666667 | AB138: 2 | AC138: 2008 | AD138: Mon | AE138: Aug | AF138: 6 | AG138: 2008 | AH138: 1.2 | AI138: 1 | AJ138: 186 | AK138: 00:20:00 | AL138: 09:33:00 | AM138: 49 | AN138: 1.2 | AO138: 4 | AP138: 4.5
A139: Tue | B139: Aug | C139: 7 | D139: 2007 | E139: 133 | F139: 116 | G139: 0 | H139: 6 | I139: 11 | J139: 28 | K139: 71 | L139: 06:33:00 | M139: 03:52:00 | N139: 00:24:00 | O139: 3 | P139: 02:42:00 | Q139: 14.22 | V139: 2007-08-07 | W139: 0.08270676692 | X139: 24 | Y139: 0.4 | Z139: 162 | AA139: 2.7 | AB139: 2 | AC139: 2008 | AD139: Tue | AE139: Aug | AF139: 7 | AG139: 2008 | AH139: 1.1 | AI139: 1 | AJ139: 133 | AK139: 00:20:00 | AL139: 10:25:00 | AM139: 73 | AN139: 1 | AO139: 4 | AP139: 4.4
A140: Wed | B140: Aug | C140: 8 | D140: 2007 | E140: 107 | F140: 102 | G140: 0 | H140: 2 | I140: 3 | J140: 16 | K140: 82 | L140: 08:03:00 | M140: 04:22:00 | N140: 00:16:00 | O140: 2 | P140: 02:33:00 | Q140: 14.44 | V140: 2007-08-08 | W140: 0.02803738318 | X140: 16 | Y140: 0.2666666667 | Z140: 153 | AA140: 2.55 | AB140: 2 | AC140: 2008 | AD140: Wed | AE140: Aug | AF140: 8 | AG140: 2008 | AH140: 1.3 | AI140: 1.2 | AJ140: 107 | AK140: 00:20:00 | AL140: 12:25:00 | AM140: 83 | AN140: 0.9 | AO140: 4 | AP140: 4.6
A141: Thu | B141: Aug | C141: 9 | D141: 2007 | E141: 113 | F141: 85 | G141: 0 | H141: 15 | I141: 13 | J141: 28 | K141: 64 | L141: 07:01:00 | M141: 03:32:00 | N141: 00:34:00 | O141: 3 | P141: 02:42:00 | Q141: 12.74 | V141: 2007-08-09 | W141: 0.1150442478 | X141: 34 | Y141: 0.5666666667 | Z141: 162 | AA141: 2.7 | AB141: 2 | AC141: 2008 | AD141: Thu | AE141: Aug | AF141: 9 | AG141: 2008 | AH141: 1.1 | AI141: 0.9 | AJ141: 113 | AK141: 00:20:00 | AL141: 10:33:00 | AM141: 67 | AN141: 0.8 | AO141: 3 | AP141: 3.5
A142: Fri | B142: Aug | C142: 10 | D142: 2007 | E142: 123 | F142: 97 | G142: 0 | H142: 17 | I142: 9 | J142: 34 | K142: 65 | L142: 06:51:00 | M142: 03:25:00 | N142: 00:37:00 | O142: 3 | P142: 02:44:00 | Q142: 14.34 | V142: 2007-08-10 | W142: 0.07317073171 | X142: 37 | Y142: 0.6166666667 | Z142: 164 | AA142: 2.733333333 | AB142: 2 | AC142: 2008 | AD142: Fri | AE142: Aug | AF142: 10 | AG142: 2008 | AH142: 1.2 | AI142: 1 | AJ142: 123 | AK142: 00:20:00 | AL142: 10:16:00 | AM142: 67 | AN142: 0.9 | AO142: 3 | AP142: 3.5
A143: Mon | B143: Aug | C143: 13 | D143: 2007 | E143: 156 | F143: 121 | G143: 0 | H143: 21 | I143: 14 | J143: 55 | K143: 56 | L143: 06:49:00 | M143: 04:01:00 | N143: 00:45:00 | O143: 3 | P143: 02:43:00 | Q143: 18.09 | V143: 2007-08-13 | W143: 0.08974358974 | X143: 45 | Y143: 0.75 | Z143: 163 | AA143: 2.716666667 | AB143: 2 | AC143: 2008 | AD143: Mon | AE143: Aug | AF143: 13 | AG143: 2008 | AH143: 1.4 | AI143: 1.2 | AJ143: 156 | AK143: 00:20:00 | AL143: 10:50:00 | AM143: 59 | AN143: 1.2 | AO143: 4 | AP143: 4.7
A144: Tue | B144: Aug | C144: 14 | D144: 2007 | E144: 120 | F144: 93 | G144: 0 | H144: 14 | I144: 13 | J144: 33 | K144: 62 | L144: 07:58:00 | M144: 04:01:00 | N144: 00:35:00 | O144: 3 | P144: 02:49:00 | Q144: 15.4 | V144: 2007-08-14 | W144: 0.1083333333 | X144: 35 | Y144: 0.5833333333 | Z144: 169 | AA144: 2.816666667 | AB144: 2 | AC144: 2008 | AD144: Tue | AE144: Aug | AF144: 14 | AG144: 2008 | AH144: 1.3 | AI144: 1.1 | AJ144: 120 | AK144: 00:20:00 | AL144: 11:59:00 | AM144: 65 | AN144: 1 | AO144: 4 | AP144: 4.7
A145: Wed | B145: Aug | C145: 15 | D145: 2007 | E145: 111 | F145: 103 | G145: 0 | H145: 4 | I145: 4 | J145: 12 | K145: 86 | L145: 08:07:00 | M145: 05:32:00 | N145: 00:16:00 | O145: 2 | P145: 02:46:00 | Q145: 14.99 | V145: 2007-08-15 | W145: 0.03603603604 | X145: 16 | Y145: 0.2666666667 | Z145: 166 | AA145: 2.766666667 | AB145: 2 | AC145: 2008 | AD145: Wed | AE145: Aug | AF145: 15 | AG145: 2008 | AH145: 1.8 | AI145: 1.5 | AJ145: 111 | AK145: 00:20:00 | AL145: 13:39:00 | AM145: 86 | AN145: 1.1 | AO145: 4 | AP145: 4.6
A146: Thu | B146: Aug | C146: 16 | D146: 2007 | E146: 129 | F146: 98 | G146: 0 | H146: 16 | I146: 15 | J146: 29 | K146: 66 | L146: 07:32:00 | M146: 03:50:00 | N146: 00:34:00 | O146: 4 | P146: 02:42:00 | Q146: 15.55 | V146: 2007-08-16 | W146: 0.1162790698 | X146: 34 | Y146: 0.5666666667 | Z146: 162 | AA146: 2.7 | AB146: 2 | AC146: 2008 | AD146: Thu | AE146: Aug | AF146: 16 | AG146: 2008 | AH146: 1.3 | AI146: 1.2 | AJ146: 129 | AK146: 00:20:00 | AL146: 11:22:00 | AM146: 69 | AN146: 1 | AO146: 4 | AP146: 4.6
A147: Fri | B147: Aug | C147: 17 | D147: 2007 | E147: 113 | F147: 92 | G147: 0 | H147: 14 | I147: 7 | J147: 42 | K147: 57 | L147: 07:27:00 | M147: 04:40:00 | N147: 00:42:00 | O147: 3 | P147: 02:36:00 | Q147: 14.44 | V147: 2007-08-17 | W147: 0.06194690265 | X147: 42 | Y147: 0.7 | Z147: 156 | AA147: 2.6 | AB147: 2 | AC147: 2008 | AD147: Fri | AE147: Aug | AF147: 17 | AG147: 2008 | AH147: 1.5 | AI147: 1.3 | AJ147: 113 | AK147: 00:20:00 | AL147: 12:07:00 | AM147: 59 | AN147: 1 | AO147: 4 | AP147: 4.5
A148: Mon | B148: Aug | C148: 20 | D148: 2007 | E148: 129 | F148: 89 | G148: 0 | H148: 25 | I148: 15 | J148: 48 | K148: 51 | L148: 07:21:00 | M148: 03:34:00 | N148: 00:49:00 | O148: 3 | P148: 02:47:00 | Q148: 15.66 | V148: 2007-08-20 | W148: 0.1162790698 | X148: 49 | Y148: 0.8166666667 | Z148: 167 | AA148: 2.783333333 | AB148: 2 | AC148: 2008 | AD148: Mon | AE148: Aug | AF148: 20 | AG148: 2008 | AH148: 1.2 | AI148: 1 | AJ148: 129 | AK148: 00:20:00 | AL148: 10:55:00 | AM148: 56 | AN148: 1 | AO148: 4 | AP148: 4.7
A149: Tue | B149: Aug | C149: 21 | D149: 2007 | E149: 128 | F149: 91 | G149: 0 | H149: 26 | I149: 11 | J149: 51 | K149: 52 | L149: 05:28:00 | M149: 03:24:00 | N149: 00:49:00 | O149: 3 | P149: 02:46:00 | Q149: 12.41 | V149: 2007-08-21 | W149: 0.0859375 | X149: 49 | Y149: 0.8166666667 | Z149: 166 | AA149: 2.766666667 | AB149: 2 | AC149: 2008 | AD149: Tue | AE149: Aug | AF149: 21 | AG149: 2008 | AH149: 0.8 | AI149: 0.7 | AJ149: 128 | AK149: 00:20:00 | AL149: 08:52:00 | AM149: 55 | AN149: 0.8 | AO149: 3 | AP149: 3.5
A150: Wed | B150: Aug | C150: 22 | D150: 2007 | E150: 123 | F150: 104 | G150: 0 | H150: 10 | I150: 9 | J150: 19 | K150: 77 | L150: 06:11:00 | M150: 03:51:00 | N150: 00:24:00 | O150: 2 | P150: 02:46:00 | Q150: 12.55 | V150: 2007-08-22 | W150: 0.07317073171 | X150: 24 | Y150: 0.4 | Z150: 166 | AA150: 2.766666667 | AB150: 2 | AC150: 2008 | AD150: Wed | AE150: Aug | AF150: 22 | AG150: 2008 | AH150: 1.2 | AI150: 1.1 | AJ150: 123 | AK150: 00:20:00 | AL150: 10:02:00 | AM150: 79 | AN150: 0.9 | AO150: 3 | AP150: 3.4
A151: Thu | B151: Aug | C151: 23 | D151: 2007 | E151: 120 | F151: 95 | G151: 0 | H151: 16 | I151: 9 | J151: 28 | K151: 69 | L151: 06:17:00 | M151: 05:01:00 | N151: 00:33:00 | O151: 4 | P151: 02:42:00 | Q151: 12.76 | V151: 2007-08-23 | W151: 0.075 | X151: 33 | Y151: 0.55 | Z151: 162 | AA151: 2.7 | AB151: 2 | AC151: 2008 | AD151: Thu | AE151: Aug | AF151: 23 | AG151: 2008 | AH151: 1.2 | AI151: 1.1 | AJ151: 120 | AK151: 00:20:00 | AL151: 11:18:00 | AM151: 71 | AN151: 0.9 | AO151: 4 | AP151: 4.4
A152: Fri | B152: Aug | C152: 24 | D152: 2007 | E152: 108 | F152: 91 | G152: 0 | H152: 6 | I152: 11 | J152: 25 | K152: 67 | L152: 07:07:00 | M152: 04:09:00 | N152: 00:28:00 | O152: 3 | P152: 06:52:00 | Q152: 12.34 | V152: 2007-08-24 | W152: 0.1018518519 | X152: 28 | Y152: 0.4666666667 | Z152: 412 | AA152: 6.866666667 | AB152: 2 | AC152: 2008 | AD152: Fri | AE152: Aug | AF152: 24 | AG152: 2008 | AH152: 1.2 | AI152: 1.1 | AJ152: 108 | AK152: 00:20:00 | AL152: 11:16:00 | AM152: 70 | AN152: 0.8 | AO152: 3 | AP152: 3.5
A153: Mon | B153: Aug | C153: 27 | D153: 2007 | E153: 117 | F153: 98 | G153: 0 | H153: 3 | I153: 16 | J153: 40 | K153: 52 | L153: 06:38:00 | M153: 05:18:00 | N153: 01:02:00 | O153: 3 | P153: 07:51:00 | Q153: 13.35 | V153: 2007-08-27 | W153: 0.1367521368 | X153: 62 | Y153: 1.033333333 | Z153: 471 | AA153: 7.85 | AB153: 2 | AC153: 2008 | AD153: Mon | AE153: Aug | AF153: 27 | AG153: 2008 | AH153: 1.1 | AI153: 1 | AJ153: 117 | AK153: 00:20:00 | AL153: 11:56:00 | AM153: 58 | AN153: 1 | AO153: 4 | AP153: 4.4
A154: Tue | B154: Aug | C154: 28 | D154: 2007 | E154: 124 | F154: 96 | G154: 0 | H154: 3 | I154: 25 | J154: 52 | K154: 38 | L154: 06:25:00 | M154: 07:06:00 | N154: 02:04:00 | O154: 5 | P154: 12:39:00 | Q154: 14.81 | V154: 2007-08-28 | W154: 0.2016129032 | X154: 124 | Y154: 2.066666667 | Z154: 759 | AA154: 12.65 | AB154: 2 | AC154: 2008 | AD154: Tue | AE154: Aug | AF154: 28 | AG154: 2008 | AH154: 1.2 | AI154: 1 | AJ154: 124 | AK154: 00:20:00 | AL154: 13:31:00 | AM154: 48 | AN154: 1.2 | AO154: 4 | AP154: 4.6
A155: Wed | B155: Aug | C155: 29 | D155: 2007 | E155: 117 | F155: 95 | G155: 0 | H155: 3 | I155: 19 | J155: 36 | K155: 53 | L155: 06:22:00 | M155: 05:20:00 | N155: 00:49:00 | O155: 3 | P155: 11:51:00 | Q155: 12.34 | V155: 2007-08-29 | W155: 0.1623931624 | X155: 49 | Y155: 0.8166666667 | Z155: 711 | AA155: 11.85 | AB155: 2 | AC155: 2008 | AD155: Wed | AE155: Aug | AF155: 29 | AG155: 2008 | AH155: 1.4 | AI155: 1.2 | AJ155: 117 | AK155: 00:20:00 | AL155: 11:42:00 | AM155: 60 | AN155: 1 | AO155: 4 | AP155: 4.7
A156: Thu | B156: Aug | C156: 30 | D156: 2007 | E156: 113 | F156: 91 | G156: 0 | H156: 3 | I156: 19 | J156: 39 | K156: 49 | L156: 06:28:00 | M156: 04:42:00 | N156: 01:30:00 | O156: 4 | P156: 10:49:00 | Q156: 12.83 | V156: 2007-08-30 | W156: 0.1681415929 | X156: 90 | Y156: 1.5 | Z156: 649 | AA156: 10.81666667 | AB156: 2 | AC156: 2008 | AD156: Thu | AE156: Aug | AF156: 30 | AG156: 2008 | AH156: 1.1 | AI156: 1 | AJ156: 113 | AK156: 00:20:00 | AL156: 11:10:00 | AM156: 56 | AN156: 0.9 | AO156: 4 | AP156: 4.4
A157: Fri | B157: Aug | C157: 31 | D157: 2007 | E157: 106 | F157: 91 | G157: 0 | H157: 2 | I157: 13 | J157: 46 | K157: 44 | L157: 06:45:00 | M157: 05:01:00 | N157: 01:31:00 | O157: 4 | P157: 10:41:00 | Q157: 12.98 | V157: 2007-08-31 | W157: 0.1226415094 | X157: 91 | Y157: 1.516666667 | Z157: 641 | AA157: 10.68333333 | AB157: 2 | AC157: 2008 | AD157: Fri | AE157: Aug | AF157: 31 | AG157: 2008 | AH157: 1.2 | AI157: 1 | AJ157: 106 | AK157: 00:20:00 | AL157: 11:46:00 | AM157: 50 | AN157: 0.9 | AO157: 4 | AP157: 4.6
A158: Tue | B158: Sep | C158: 4 | D158: 2007 | E158: 214 | F158: 171 | G158: 0 | H158: 4 | I158: 39 | J158: 99 | K158: 36 | L158: 05:33:00 | M158: 03:20:00 | N158: 02:04:00 | O158: 9 | P158: 23:35:00 | Q158: 24.04 | V158: 2007-09-04 | W158: 0.1822429907 | X158: 124 | Y158: 2.066666667 | Z158: 1415 | AA158: 23.58333333 | AB158: 3 | AC158: 2008 | AD158: Tue | AE158: Sep | AF158: 4 | AG158: 2008 | AH158: 1.3 | AI158: 1.2 | AJ158: 214 | AK158: 00:20:00 | AL158: 08:53:00 | AM158: 45 | AN158: 1.3 | AO158: 4 | AP158: 4.5
A159: Wed | B159: Sep | C159: 5 | D159: 2007 | E159: 171 | F159: 145 | G159: 0 | H159: 2 | I159: 24 | J159: 59 | K159: 51 | L159: 06:44:00 | M159: 04:32:00 | N159: 01:09:00 | O159: 4 | P159: 11:00:00 | Q159: 19.64 | V159: 2007-09-05 | W159: 0.1403508772 | X159: 69 | Y159: 1.15 | Z159: 660 | AA159: 11 | AB159: 3 | AC159: 2008 | AD159: Wed | AE159: Sep | AF159: 5 | AG159: 2008 | AH159: 1.7 | AI159: 1.4 | AJ159: 171 | AK159: 00:20:00 | AL159: 11:16:00 | AM159: 57 | AN159: 1.3 | AO159: 4 | AP159: 4.9
A160: Thu | B160: Sep | C160: 6 | D160: 2007 | E160: 104 | F160: 97 | G160: 0 | H160: 0 | I160: 7 | J160: 17 | K160: 77 | L160: 07:23:00 | M160: 05:36:00 | N160: 00:47:00 | O160: 3 | P160: 12:39:00 | Q160: 13.29 | V160: 2007-09-06 | W160: 0.06730769231 | X160: 47 | Y160: 0.7833333333 | Z160: 759 | AA160: 12.65 | AB160: 3 | AC160: 2008 | AD160: Thu | AE160: Sep | AF160: 6 | AG160: 2008 | AH160: 1.5 | AI160: 1.4 | AJ160: 104 | AK160: 00:20:00 | AL160: 12:59:00 | AM160: 78 | AN160: 0.9 | AO160: 4 | AP160: 4.4
A161: Fri | B161: Sep | C161: 7 | D161: 2007 | E161: 143 | F161: 118 | G161: 0 | H161: 3 | I161: 22 | J161: 47 | K161: 52 | L161: 05:38:00 | M161: 04:24:00 | N161: 00:55:00 | O161: 6 | P161: 08:25:00 | Q161: 13.7 | V161: 2007-09-07 | W161: 0.1538461538 | X161: 55 | Y161: 0.9166666667 | Z161: 505 | AA161: 8.416666667 | AB161: 3 | AC161: 2008 | AD161: Fri | AE161: Sep | AF161: 7 | AG161: 2008 | AH161: 1.3 | AI161: 1.1 | AJ161: 143 | AK161: 00:20:00 | AL161: 10:02:00 | AM161: 58 | AN161: 1 | AO161: 4 | AP161: 4.6
A162: Mon | B162: Sep | C162: 10 | D162: 2007 | E162: 153 | F162: 123 | G162: 0 | H162: 4 | I162: 26 | J162: 70 | K162: 37 | L162: 07:32:00 | M162: 04:45:00 | N162: 01:51:00 | O162: 4 | P162: 13:26:00 | Q162: 20.61 | V162: 2007-09-10 | W162: 0.1699346405 | X162: 111 | Y162: 1.85 | Z162: 806 | AA162: 13.43333333 | AB162: 3 | AC162: 2008 | AD162: Mon | AE162: Sep | AF162: 10 | AG162: 2008 | AH162: 1.5 | AI162: 1.3 | AJ162: 153 | AK162: 00:20:00 | AL162: 12:17:00 | AM162: 46 | AN162: 1.3 | AO162: 4 | AP162: 4.6
A163: Tue | B163: Sep | C163: 11 | D163: 2007 | E163: 135 | F163: 113 | G163: 0 | H163: 2 | I163: 20 | J163: 45 | K163: 52 | L163: 06:35:00 | M163: 05:14:00 | N163: 01:29:00 | O163: 5 | P163: 2.149305556 | Q163: 17.24 | V163: 2007-09-11 | W163: 0.1481481481 | X163: 89 | Y163: 1.483333333 | Z163: 215 | AA163: 3.583333333 | AB163: 3 | AC163: 2008 | AD163: Tue | AE163: Sep | AF163: 11 | AG163: 2008 | AH163: 1.4 | AI163: 1.2 | AJ163: 135 | AK163: 00:20:00 | AL163: 11:49:00 | AM163: 58 | AN163: 1.1 | AO163: 4 | AP163: 4.4
A164: Wed | B164: Sep | C164: 12 | D164: 2007 | E164: 99 | F164: 88 | G164: 0 | H164: 2 | I164: 9 | J164: 26 | K164: 65 | L164: 06:42:00 | M164: 05:15:00 | N164: 00:52:00 | O164: 4 | P164: 10:27:00 | Q164: 11.46 | V164: 2007-09-12 | W164: 0.09090909091 | X164: 52 | Y164: 0.8666666667 | Z164: 627 | AA164: 10.45 | AB164: 3 | AC164: 2008 | AD164: Wed | AE164: Sep | AF164: 12 | AG164: 2008 | AH164: 1.6 | AI164: 1.3 | AJ164: 99 | AK164: 00:20:00 | AL164: 11:57:00 | AM164: 68 | AN164: 0.8 | AO164: 3 | AP164: 3.6
A165: Thu | B165: Sep | C165: 13 | D165: 2007 | E165: 120 | F165: 111 | G165: 0 | H165: 2 | I165: 7 | J165: 25 | K165: 73 | L165: 07:42:00 | M165: 04:55:00 | N165: 00:47:00 | O165: 3 | P165: 09:22:00 | Q165: 16.02 | V165: 2007-09-13 | W165: 0.05833333333 | X165: 47 | Y165: 0.7833333333 | Z165: 562 | AA165: 9.366666667 | AB165: 3 | AC165: 2008 | AD165: Thu | AE165: Sep | AF165: 13 | AG165: 2008 | AH165: 1.6 | AI165: 1.5 | AJ165: 120 | AK165: 00:20:00 | AL165: 12:37:00 | AM165: 75 | AN165: 1.1 | AO165: 4 | AP165: 4.3
A166: Fri | B166: Sep | C166: 14 | D166: 2007 | E166: 102 | F166: 85 | G166: 0 | H166: 1 | I166: 16 | J166: 33 | K166: 52 | L166: 07:46:00 | M166: 04:43:00 | N166: 01:25:00 | O166: 4 | P166: 10:46:00 | Q166: 13.62 | V166: 2007-09-14 | W166: 0.1568627451 | X166: 85 | Y166: 1.416666667 | Z166: 646 | AA166: 10.76666667 | AB166: 3 | AC166: 2008 | AD166: Fri | AE166: Sep | AF166: 14 | AG166: 2008 | AH166: 1.2 | AI166: 1 | AJ166: 102 | AK166: 00:20:00 | AL166: 12:29:00 | AM166: 58 | AN166: 0.9 | AO166: 4 | AP166: 4.8
A167: Mon | B167: Sep | C167: 17 | D167: 2007 | E167: 114 | F167: 100 | G167: 0 | H167: 5 | I167: 9 | J167: 43 | K167: 54 | L167: 07:14:00 | M167: 04:57:00 | N167: 01:31:00 | O167: 6 | P167: 18:00:00 | Q167: 15.69 | V167: 2007-09-17 | W167: 0.07894736842 | X167: 91 | Y167: 1.516666667 | Z167: 1080 | AA167: 18 | AB167: 3 | AC167: 2008 | AD167: Mon | AE167: Sep | AF167: 17 | AG167: 2008 | AH167: 1.3 | AI167: 1.2 | AJ167: 114 | AK167: 00:20:00 | AL167: 12:11:00 | AM167: 58 | AN167: 1 | AO167: 4 | AP167: 4.6
A168: Tue | B168: Sep | C168: 18 | D168: 2007 | E168: 141 | F168: 120 | G168: 0 | H168: 2 | I168: 19 | J168: 26 | K168: 68 | L168: 04:34:00 | M168: 04:01:00 | N168: 00:29:00 | O168: 3 | P168: 3.284027778 | Q168: 11.98 | V168: =DATE(D168,MONTH(DATEVALUE(CONCATENATE("1/",B168,"/2008"))),C168) -> 2007-09-18 | W168: 0.134751773 | X168: 29 | Y168: 0.4833333333 | Z168: 409 | AA168: 6.816666667 | AB168: 3 | AC168: 2008 | AD168: Tue | AE168: Sep | AF168: 18 | AG168: 2008 | AH168: 1.4 | AI168: 1.3 | AJ168: 141 | AK168: 00:20:00 | AL168: 08:35:00 | AM168: 72 | AN168: 0.8 | AO168: 3 | AP168: 3.3
A169: Wed | B169: Sep | C169: 19 | D169: 2007 | E169: 108 | F169: 97 | G169: 0 | H169: 2 | I169: 9 | J169: 34 | K169: 60 | L169: 06:33:00 | M169: 05:39:00 | N169: 00:52:00 | O169: 5 | P169: 07:11:00 | Q169: 12.48 | V169: 2007-09-19 | W169: 0.08333333333 | X169: 52 | Y169: 0.8666666667 | Z169: 431 | AA169: 7.183333333 | AB169: 3 | AC169: 2008 | AD169: Wed | AE169: Sep | AF169: 19 | AG169: 2008 | AH169: 1.4 | AI169: 1.2 | AJ169: 108 | AK169: 00:20:00 | AL169: 12:12:00 | AM169: 63 | AN169: 0.9 | AO169: 4 | AP169: 4.8
A170: Thu | B170: Sep | C170: 20 | D170: 2007 | E170: 96 | F170: 88 | G170: 0 | H170: 0 | I170: 8 | J170: 14 | K170: 77 | L170: 05:57:00 | M170: 05:34:00 | N170: 00:23:00 | O170: 2 | P170: 04:13:00 | Q170: 9.34 | V170: 2007-09-20 | W170: 0.08333333333 | X170: 23 | Y170: 0.3833333333 | Z170: 253 | AA170: 4.216666667 | AB170: 3 | AC170: 2008 | AD170: Thu | AE170: Sep | AF170: 20 | AG170: 2008 | AH170: 1.5 | AI170: 1.4 | AJ170: 96 | AK170: 00:20:00 | AL170: 11:31:00 | AM170: 79 | AN170: 0.8 | AO170: 3 | AP170: 3.3
A171: Fri | B171: Sep | C171: 21 | D171: 2007 | E171: 97 | F171: 81 | G171: 0 | H171: 2 | I171: 14 | J171: 24 | K171: 61 | L171: 07:32:00 | M171: 06:19:00 | N171: 00:49:00 | O171: 2 | P171: 11:33:00 | Q171: 11.76 | V171: 2007-09-21 | W171: 0.1443298969 | X171: 49 | Y171: 0.8166666667 | Z171: 693 | AA171: 11.55 | AB171: 3 | AC171: 2008 | AD171: Fri | AE171: Sep | AF171: 21 | AG171: 2008 | AH171: 1.2 | AI171: 1.1 | AJ171: 97 | AK171: 00:20:00 | AL171: 13:51:00 | AM171: 66 | AN171: 0.9 | AO171: 4 | AP171: 4.6
A172: Mon | B172: Sep | C172: 24 | D172: 2007 | E172: 105 | F172: 85 | G172: 0 | H172: 1 | I172: 19 | J172: 40 | K172: 44 | L172: 07:37:00 | M172: 04:41:00 | N172: 02:15:00 | O172: 4 | P172: 17:47:00 | Q172: 15.07 | V172: 2007-09-24 | W172: 0.180952381 | X172: 135 | Y172: 2.25 | Z172: 1067 | AA172: 17.78333333 | AB172: 3 | AC172: 2008 | AD172: Mon | AE172: Sep | AF172: 24 | AG172: 2008 | AH172: 1.3 | AI172: 1.1 | AJ172: 105 | AK172: 00:20:00 | AL172: 12:18:00 | AM172: 52 | AN172: 0.9 | AO172: 4 | AP172: 4.5
A173: Tue | B173: Sep | C173: 25 | D173: 2007 | E173: 97 | F173: 82 | G173: 0 | H173: 1 | I173: 14 | J173: 28 | K173: 57 | L173: 06:38:00 | M173: 05:11:00 | N173: 01:08:00 | O173: 4 | P173: 1.209027778 | Q173: 12.01 | V173: 2007-09-25 | W173: 0.1443298969 | X173: 68 | Y173: 1.133333333 | Z173: 301 | AA173: 5.016666667 | AB173: 3 | AC173: 2008 | AD173: Tue | AE173: Sep | AF173: 25 | AG173: 2008 | AH173: 1.3 | AI173: 1.2 | AJ173: 97 | AK173: 00:20:00 | AL173: 11:49:00 | AM173: 62 | AN173: 0.8 | AO173: 3 | AP173: 3.4
A174: Wed | B174: Sep | C174: 26 | D174: 2007 | E174: 109 | F174: 75 | G174: 0 | H174: 2 | I174: 32 | J174: 24 | K174: 49 | L174: 06:02:00 | M174: 04:09:00 | N174: 00:58:00 | O174: 5 | P174: 14:48:00 | Q174: 10.05 | V174: 2007-09-26 | W174: 0.2935779817 | X174: 58 | Y174: 0.9666666667 | Z174: 888 | AA174: 14.8 | AB174: 3 | AC174: 2008 | AD174: Wed | AE174: Sep | AF174: 26 | AG174: 2008 | AH174: 1.2 | AI174: 0.8 | AJ174: 109 | AK174: 00:20:00 | AL174: 10:11:00 | AM174: 60 | AN174: 0.8 | AO174: 3 | AP174: 4.4
A175: Thu | B175: Sep | C175: 27 | D175: 2007 | E175: 86 | F175: 73 | G175: 0 | H175: 0 | I175: 13 | J175: 17 | K175: 65 | L175: 08:05:00 | M175: 05:54:00 | N175: 01:07:00 | O175: 3 | P175: 16:41:00 | Q175: 11.86 | V175: 2007-09-27 | W175: 0.1511627907 | X175: 67 | Y175: 1.116666667 | Z175: 1001 | AA175: 16.68333333 | AB175: 3 | AC175: 2008 | AD175: Thu | AE175: Sep | AF175: 27 | AG175: 2008 | AH175: 1.3 | AI175: 1.2 | AJ175: 86 | AK175: 00:20:00 | AL175: 13:59:00 | AM175: 70 | AN175: 0.8 | AO175: 4 | AP175: 4.5
A176: Fri | B176: Sep | C176: 28 | D176: 2007 | E176: 111 | F176: 84 | G176: 0 | H176: 5 | I176: 22 | J176: 41 | K176: 43 | L176: 06:28:00 | M176: 04:54:00 | N176: 01:55:00 | O176: 4 | P176: 17:20:00 | Q176: 12.86 | V176: 2007-09-28 | W176: 0.1981981982 | X176: 115 | Y176: 1.916666667 | Z176: 1040 | AA176: 17.33333333 | AB176: 3 | AC176: 2008 | AD176: Fri | AE176: Sep | AF176: 28 | AG176: 2008 | AH176: 1.1 | AI176: 0.9 | AJ176: 111 | AK176: 00:20:00 | AL176: 11:22:00 | AM176: 53 | AN176: 0.9 | AO176: 4 | AP176: 4.6
A177: Mon | B177: Oct | C177: 1 | D177: 2007 | E177: 116 | F177: 92 | G177: 0 | H177: 5 | I177: 19 | J177: 30 | K177: 58 | L177: 07:12:00 | M177: 05:30:00 | N177: 00:37:00 | O177: 4 | P177: 17:00:00 | Q177: 13.6 | V177: 2007-10-01 | W177: 0.1637931034 | X177: 37 | Y177: 0.6166666667 | Z177: 1020 | AA177: 17 | AB177: 4 | AC177: 2008 | AD177: Mon | AE177: Oct | AF177: 1 | AG177: 2008 | AH177: 1.3 | AI177: 1.2 | AJ177: 116 | AK177: 00:20:00 | AL177: 12:42:00 | AM177: 64 | AN177: 1 | AO177: 4 | AP177: 4.4
A178: Tue | B178: Oct | C178: 2 | D178: 2007 | E178: 102 | F178: 86 | G178: 0 | H178: 1 | I178: 15 | J178: 30 | K178: 56 | L178: 07:44:00 | M178: 07:50:00 | N178: 01:12:00 | O178: 3 | P178: 10:30:00 | Q178: 13.58 | V178: 2007-10-02 | W178: 0.1470588235 | X178: 72 | Y178: 1.2 | Z178: 630 | AA178: 10.5 | AB178: 4 | AC178: 2008 | AD178: Tue | AE178: Oct | AF178: 2 | AG178: 2008 | AH178: 1.4 | AI178: 1.2 | AJ178: 102 | AK178: 00:20:00 | AL178: 15:34:00 | AM178: 62 | AN178: 1.1 | AO178: 4 | AP178: 4.6
A179: Wed | B179: Oct | C179: 3 | D179: 2007 | E179: 99 | F179: 90 | G179: 0 | H179: 2 | I179: 7 | J179: 24 | K179: 69 | L179: 07:25:00 | M179: 05:38:00 | N179: 00:57:00 | O179: 5 | P179: 10:00:00 | Q179: 13.05 | V179: 2007-10-03 | W179: 0.07070707071 | X179: 57 | Y179: 0.95 | Z179: 600 | AA179: 10 | AB179: 4 | AC179: 2008 | AD179: Wed | AE179: Oct | AF179: 3 | AG179: 2008 | AH179: 1.6 | AI179: 1.4 | AJ179: 99 | AK179: 00:20:00 | AL179: 13:03:00 | AM179: 71 | AN179: 0.9 | AO179: 4 | AP179: 4.5
A180: Thu | B180: Oct | C180: 4 | D180: 2007 | E180: 137 | F180: 114 | G180: 0 | H180: 0 | I180: 23 | J180: 47 | K180: 49 | L180: 06:44:00 | M180: 04:54:00 | N180: 01:44:00 | O180: 7 | P180: 18:07:00 | Q180: 17.15 | V180: 2007-10-04 | W180: 0.1678832117 | X180: 104 | Y180: 1.733333333 | Z180: 1087 | AA180: 18.11666667 | AB180: 4 | AC180: 2008 | AD180: Thu | AE180: Oct | AF180: 4 | AG180: 2008 | AH180: 2 | AI180: 1.8 | AJ180: 137 | AK180: 00:20:00 | AL180: 11:38:00 | AM180: 56 | AN180: 1.1 | AO180: 4 | AP180: 4.5
A181: Fri | B181: Oct | C181: 5 | D181: 2007 | E181: 110 | F181: 88 | G181: 0 | H181: 5 | I181: 17 | J181: 36 | K181: 52 | L181: 06:57:00 | M181: 04:51:00 | N181: 01:22:00 | O181: 4 | P181: 12:20:00 | Q181: 13.4 | V181: 2007-10-05 | W181: 0.1545454545 | X181: 82 | Y181: 1.366666667 | Z181: 740 | AA181: 12.33333333 | AB181: 4 | AC181: 2008 | AD181: Fri | AE181: Oct | AF181: 5 | AG181: 2008 | AH181: 1.3 | AI181: 1.1 | AJ181: 110 | AK181: 00:20:00 | AL181: 11:48:00 | AM181: 58 | AN181: 0.9 | AO181: 4 | AP181: 4.9
A182: Tue | B182: Oct | C182: 9 | D182: 2007 | E182: 128 | F182: 96 | G182: 0 | H182: 6 | I182: 26 | J182: 54 | K182: 38 | L182: 06:47:00 | M182: 05:06:00 | N182: 01:47:00 | O182: 4 | P182: 1.205555556 | Q182: 16.3 | V182: 2007-10-09 | W182: 0.203125 | X182: 107 | Y182: 1.783333333 | Z182: 296 | AA182: 4.933333333 | AB182: 4 | AC182: 2008 | AD182: Tue | AE182: Oct | AF182: 9 | AG182: 2008 | AH182: 1.1 | AI182: 0.9 | AJ182: 128 | AK182: 00:20:00 | AL182: 11:53:00 | AM182: 48 | AN182: 1.1 | AO182: 4 | AP182: 4.7
A183: Wed | B183: Oct | C183: 10 | D183: 2007 | E183: 118 | F183: 91 | G183: 0 | H183: 5 | I183: 22 | J183: 41 | K183: 47 | L183: 07:05:00 | M183: 05:40:00 | N183: 01:38:00 | O183: 4 | P183: 14:51:00 | Q183: 14.62 | V183: 2007-10-10 | W183: 0.186440678 | X183: 98 | Y183: 1.633333333 | Z183: 891 | AA183: 14.85 | AB183: 4 | AC183: 2008 | AD183: Wed | AE183: Oct | AF183: 10 | AG183: 2008 | AH183: 1.2 | AI183: 1 | AJ183: 118 | AK183: 00:20:00 | AL183: 12:45:00 | AM183: 55 | AN183: 1 | AO183: 4 | AP183: 4.8
A184: Thu | B184: Oct | C184: 11 | D184: 2007 | E184: 118 | F184: 98 | G184: 0 | H184: 6 | I184: 14 | J184: 43 | K184: 52 | L184: 08:09:00 | M184: 05:12:00 | N184: 01:14:00 | O184: 4 | P184: 15:46:00 | Q184: 16.56 | V184: 2007-10-11 | W184: 0.1186440678 | X184: 74 | Y184: 1.233333333 | Z184: 946 | AA184: 15.76666667 | AB184: 4 | AC184: 2008 | AD184: Thu | AE184: Oct | AF184: 11 | AG184: 2008 | AH184: 1.5 | AI184: 1.3 | AJ184: 118 | AK184: 00:20:00 | AL184: 13:21:00 | AM184: 57 | AN184: 1.1 | AO184: 4 | AP184: 4.8
A185: Fri | B185: Oct | C185: 12 | D185: 2007 | E185: 117 | F185: 94 | G185: 0 | H185: 4 | I185: 19 | J185: 42 | K185: 48 | L185: 06:23:00 | M185: 04:12:00 | N185: 01:37:00 | O185: 5 | P185: 13:22:00 | Q185: 13.28 | V185: 2007-10-12 | W185: 0.1623931624 | X185: 97 | Y185: 1.616666667 | Z185: 802 | AA185: 13.36666667 | AB185: 4 | AC185: 2008 | AD185: Fri | AE185: Oct | AF185: 12 | AG185: 2008 | AH185: 1.3 | AI185: 1 | AJ185: 117 | AK185: 00:20:00 | AL185: 10:35:00 | AM185: 55 | AN185: 0.9 | AO185: 3 | AP185: 3.8
A186: Mon | B186: Oct | C186: 15 | D186: 2007 | E186: 117 | F186: 98 | G186: 0 | H186: 2 | I186: 17 | J186: 28 | K186: 62 | L186: 06:42:00 | M186: 05:53:00 | N186: 01:11:00 | O186: 5 | P186: 09:12:00 | Q186: 13.77 | V186: 2007-10-15 | W186: 0.1452991453 | X186: 71 | Y186: 1.183333333 | Z186: 552 | AA186: 9.2 | AB186: 4 | AC186: 2008 | AD186: Mon | AE186: Oct | AF186: 15 | AG186: 2008 | AH186: 1.5 | AI186: 1.3 | AJ186: 117 | AK186: 00:20:00 | AL186: 12:35:00 | AM186: 66 | AN186: 1 | AO186: 4 | AP186: 4.5
A187: Tue | B187: Oct | C187: 16 | D187: 2007 | E187: 112 | F187: 96 | G187: 0 | H187: 3 | I187: 13 | J187: 37 | K187: 55 | L187: 05:02:00 | M187: 05:06:00 | N187: 01:22:00 | O187: 3 | P187: 09:47:00 | Q187: 11 | V187: 2007-10-16 | W187: 0.1160714286 | X187: 82 | Y187: 1.366666667 | Z187: 587 | AA187: 9.783333333 | AB187: 4 | AC187: 2008 | AD187: Tue | AE187: Oct | AF187: 16 | AG187: 2008 | AH187: 1.3 | AI187: 1 | AJ187: 112 | AK187: 00:20:00 | AL187: 10:08:00 | AM187: 60 | AN187: 0.8 | AO187: 3 | AP187: 3.9
A188: Wed | B188: Oct | C188: 17 | D188: 2007 | E188: 98 | F188: 75 | G188: 0 | H188: 1 | I188: 22 | J188: 29 | K188: 48 | L188: 06:58:00 | M188: 06:31:00 | N188: 01:00:00 | O188: 5 | P188: 08:44:00 | Q188: 10.84 | V188: 2007-10-17 | W188: 0.2244897959 | X188: 60 | Y188: 1 | Z188: 524 | AA188: 8.733333333 | AB188: 4 | AC188: 2008 | AD188: Wed | AE188: Oct | AF188: 17 | AG188: 2008 | AH188: 1.3 | AI188: 1 | AJ188: 98 | AK188: 00:20:00 | AL188: 13:29:00 | AM188: 58 | AN188: 0.9 | AO188: 4 | AP188: 5.1
A189: Thu | B189: Oct | C189: 18 | D189: 2007 | E189: 94 | F189: 80 | G189: 0 | H189: 2 | I189: 12 | J189: 18 | K189: 68 | L189: 07:55:00 | M189: 05:14:00 | N189: 00:28:00 | O189: 3 | P189: 15:13:00 | Q189: 12.05 | V189: 2007-10-18 | W189: 0.1276595745 | X189: 28 | Y189: 0.4666666667 | Z189: 913 | AA189: 15.21666667 | AB189: 4 | AC189: 2008 | AD189: Thu | AE189: Oct | AF189: 18 | AG189: 2008 | AH189: 1.4 | AI189: 1.1 | AJ189: 94 | AK189: 00:20:00 | AL189: 13:09:00 | AM189: 72 | AN189: 0.9 | AO189: 4 | AP189: 5.1
A190: Fri | B190: Oct | C190: 19 | D190: 2007 | E190: 98 | F190: 85 | G190: 0 | H190: 1 | I190: 12 | J190: 22 | K190: 65 | L190: 06:34:00 | M190: 04:34:00 | N190: 00:37:00 | O190: 2 | P190: 05:24:00 | Q190: 10.43 | V190: 2007-10-19 | W190: 0.1224489796 | X190: 37 | Y190: 0.6166666667 | Z190: 324 | AA190: 5.4 | AB190: 4 | AC190: 2008 | AD190: Fri | AE190: Oct | AF190: 19 | AG190: 2008 | AH190: 1.3 | AI190: 1.1 | AJ190: 98 | AK190: 00:20:00 | AL190: 11:08:00 | AM190: 69 | AN190: 0.8 | AO190: 3 | AP190: 3.6
A191: Mon | B191: Oct | C191: 22 | D191: 2007 | E191: 93 | F191: 81 | G191: 0 | H191: 2 | I191: 10 | J191: 18 | K191: 70 | L191: 06:30:00 | M191: 04:53:00 | N191: 00:27:00 | O191: 3 | P191: 04:51:00 | Q191: 9.85 | V191: 2007-10-22 | W191: 0.1075268817 | X191: 27 | Y191: 0.45 | Z191: 291 | AA191: 4.85 | AB191: 4 | AC191: 2008 | AD191: Mon | AE191: Oct | AF191: 22 | AG191: 2008 | AH191: 1.5 | AI191: 1.2 | AJ191: 93 | AK191: 00:20:00 | AL191: 11:23:00 | AM191: 73 | AN191: 0.7 | AO191: 3 | AP191: 3.7
A192: Tue | B192: Oct | C192: 23 | D192: 2007 | E192: 105 | F192: 80 | G192: 0 | H192: 3 | I192: 22 | J192: 31 | K192: 50 | L192: 07:17:00 | M192: 06:52:00 | N192: 01:38:00 | O192: 5 | P192: 10:32:00 | Q192: 13.31 | V192: 2007-10-23 | W192: 0.2095238095 | X192: 98 | Y192: 1.633333333 | Z192: 632 | AA192: 10.53333333 | AB192: 4 | AC192: 2008 | AD192: Tue | AE192: Oct | AF192: 23 | AG192: 2008 | AH192: 1.3 | AI192: 1 | AJ192: 105 | AK192: 00:20:00 | AL192: 14:09:00 | AM192: 58 | AN192: 1 | AO192: 4 | AP192: 5
A193: Wed | B193: Oct | C193: 24 | D193: 2007 | E193: 84 | F193: 75 | G193: 0 | H193: 0 | I193: 9 | J193: 18 | K193: 68 | L193: 06:54:00 | M193: 05:26:00 | N193: 00:45:00 | O193: 3 | P193: 11:54:00 | Q193: 9.7 | V193: 2007-10-24 | W193: 0.1071428571 | X193: 45 | Y193: 0.75 | Z193: 714 | AA193: 11.9 | AB193: 4 | AC193: 2008 | AD193: Wed | AE193: Oct | AF193: 24 | AG193: 2008 | AH193: 1.4 | AI193: 1.2 | AJ193: 84 | AK193: 00:20:00 | AL193: 12:20:00 | AM193: 71 | AN193: 0.7 | AO193: 3 | AP193: 3.4
A194: Thu | B194: Oct | C194: 25 | D194: 2007 | E194: 97 | F194: 93 | G194: 0 | H194: 0 | I194: 4 | J194: 11 | K194: 85 | L194: 06:16:00 | M194: 09:48:00 | N194: 00:20:00 | O194: 2 | P194: 06:17:00 | Q194: 10.26 | V194: 2007-10-25 | W194: 0.0412371134 | X194: 20 | Y194: 0.3333333333 | Z194: 377 | AA194: 6.283333333 | AB194: 4 | AC194: 2008 | AD194: Thu | AE194: Oct | AF194: 25 | AG194: 2008 | AH194: 2 | AI194: 1.7 | AJ194: 97 | AK194: 00:20:00 | AL194: 16:04:00 | AM194: 85 | AN194: 1.1 | AO194: 4 | AP194: 4.7
A195: Fri | B195: Oct | C195: 26 | D195: 2007 | E195: 109 | F195: 80 | G195: 0 | H195: 4 | I195: 25 | J195: 30 | K195: 50 | L195: 05:59:00 | M195: 11:07:00 | N195: 01:07:00 | O195: 4 | P195: 08:28:00 | Q195: 10.36 | V195: 2007-10-26 | W195: 0.2293577982 | X195: 67 | Y195: 1.116666667 | Z195: 508 | AA195: 8.466666667 | AB195: 4 | AC195: 2008 | AD195: Fri | AE195: Oct | AF195: 26 | AG195: 2008 | AH195: 1.6 | AI195: 1.4 | AJ195: 109 | AK195: 00:20:00 | AL195: 17:06:00 | AM195: 59 | AN195: 1.3 | AO195: 4 | AP195: 4.7
A196: Mon | B196: Oct | C196: 29 | D196: 2007 | E196: 121 | F196: 91 | G196: 0 | H196: 5 | I196: 25 | J196: 34 | K196: 51 | L196: 08:09:00 | M196: 05:38:00 | N196: 01:38:00 | O196: 5 | P196: 21:37:00 | Q196: 17.43 | V196: 2007-10-29 | W196: 0.2066115702 | X196: 98 | Y196: 1.633333333 | Z196: 1297 | AA196: 21.61666667 | AB196: 4 | AC196: 2008 | AD196: Mon | AE196: Oct | AF196: 29 | AG196: 2008 | AH196: 1.4 | AI196: 1.2 | AJ196: 121 | AK196: 00:20:00 | AL196: 13:47:00 | AM196: 60 | AN196: 1.2 | AO196: 4 | AP196: 4.6
A197: Tue | B197: Oct | C197: 30 | D197: 2007 | E197: 83 | F197: 70 | G197: 0 | H197: 0 | I197: 13 | J197: 17 | K197: 64 | L197: 07:17:00 | M197: 06:00:00 | N197: 00:44:00 | O197: 3 | P197: 09:42:00 | Q197: 9.76 | V197: 2007-10-30 | W197: =IF(E197<>0,I197/E197,0) -> 0.156626506 | X197: =HOUR(N197)*60+(MINUTE(N197)) -> 44 | Y197: =HOUR(N197)+(MINUTE(N197)/60) -> 0.7333333333 | Z197: =HOUR(P197)*60+(MINUTE(P197)) -> 582 | AA197: =HOUR(P197)+(MINUTE(P197)/60) -> 9.7 | AB197: =IF(MONTH(V197)>6,MONTH(V197)-6,MONTH(V197)+6) -> 4 | AC197: =IF(AB197<=6,YEAR(V197)+1,YEAR(V197)) -> 2008 | AD197: Tue | AE197: Oct | AF197: 30 | AG197: 2008 | AH197: 1.4 | AI197: 1.1 | AJ197: 83 | AK197: 00:20:00 | AL197: 13:17:00 | AM197: 69 | AN197: 0.8 | AO197: 3 | AP197: 4
A198: Wed | B198: Oct | C198: 31 | D198: 2007 | E198: 110 | F198: 81 | G198: 0 | H198: 7 | I198: 22 | J198: 34 | K198: 49 | L198: 07:30:00 | M198: 03:56:00 | N198: 01:32:00 | O198: 4 | P198: 11:57:00 | Q198: 13.92 | V198: 2007-10-31 | W198: 0.2 | X198: 92 | Y198: 1.533333333 | Z198: 717 | AA198: 11.95 | AB198: 4 | AC198: 2008 | AD198: Wed | AE198: Oct | AF198: 31 | AG198: 2008 | AH198: 1.4 | AI198: 1.1 | AJ198: 110 | AK198: 00:20:00 | AL198: 11:26:00 | AM198: 58 | AN198: 0.9 | AO198: 4 | AP198: 5
A199: Thu | B199: Nov | C199: 1 | D199: 2007 | E199: 99 | F199: 87 | G199: 0 | H199: 0 | I199: 12 | J199: 17 | K199: 71 | L199: 07:20:00 | M199: 06:22:00 | N199: 00:28:00 | O199: 3 | P199: 06:37:00 | Q199: 11.61 | V199: 2007-11-01 | W199: 0.1212121212 | X199: 28 | Y199: 0.4666666667 | Z199: 397 | AA199: 6.616666667 | AB199: 5 | AC199: 2008 | AD199: Thu | AE199: Nov | AF199: 1 | AG199: 2008 | AH199: 1.7 | AI199: 1.3 | AJ199: 99 | AK199: 00:20:00 | AL199: 13:42:00 | AM199: 74 | AN199: 0.9 | AO199: 4 | AP199: 5
A200: Fri | B200: Nov | C200: 2 | D200: 2007 | E200: 90 | F200: 72 | G200: 0 | H200: 2 | I200: 16 | J200: 30 | K200: 49 | L200: 06:57:00 | M200: 07:15:00 | N200: 01:00:00 | O200: 4 | P200: 08:36:00 | Q200: 10.15 | V200: 2007-11-02 | W200: 0.1777777778 | X200: 60 | Y200: 1 | Z200: 516 | AA200: 8.6 | AB200: 5 | AC200: 2008 | AD200: Fri | AE200: Nov | AF200: 2 | AG200: 2008 | AH200: 1.4 | AI200: 1.1 | AJ200: 90 | AK200: 00:20:00 | AL200: 14:12:00 | AM200: 57 | AN200: 0.9 | AO200: 4 | AP200: 5.4
... 548 more rows

Sheet acd by hour
A1: Weekday | B1: MonthText | C1: Day | D1: (Year) | E1: Hour | F1: Offered | G1: Answered | H1: Overflow | I1: Diverted | J1: Lost | K1: Delayed | L1: Service Level % | M1: Talk Time | N1: Avg Work Time | O1: Avg Delay | P1: Max in Queue | Q1: Max Wait | R1: Hours of Work | S1: Null | T1: Month | U1: Abandon | V1: Wait(s) | W1: Wait(m) | X1: MaxWait(s) | Y1: MaxWait(m) | Z1: WeekofYear | AA1: FYMonth | AB1: FYYear | AC1: HD SignUp | AD1: CCF | AE1: CC | AF1: W | AG1: HC | AH1: BH | AI1: TRN | AJ1: Cctotal | AK1: ACD Forecast Time Check | AL1: Agts Manned | AM1: Eff Agents | AN1: Total Calls | AO1: Quality Limit | AP1: Avg Handle | AQ1: Svc Level | AR1: ERL | AS1: Forecast Man | AT1: Forecast Agts
A2: Tue | B2: Jan | C2: 2 | D2: 2008 | E2: 08:00:00 | F2: 0 | G2: 0 | H2: 0 | I2: 0 | J2: 0 | K2: 0 | L2: 100 | M2: 00:00:00 | N2: 0 | O2: 0 | P2: 0 | Q2: 00:00:00 | R2: 0 | S2: NCIP Max | T2: =DATE(D2,MONTH(DATEVALUE(CONCATENATE("1/",B2,"/2007"))),C2) -> 2008-01-02 | U2: =IF(F2<>0,J2/F2,0) -> 0 | V2: =HOUR(O2)*60+(MINUTE(O2)) -> 0 | W2: =HOUR(O2)+(MINUTE(O2)/60) -> 0 | X2: =HOUR(Q2)*60+(MINUTE(Q2)) -> 0 | Y2: =HOUR(Q2)+(MINUTE(Q2)/60) -> 0 | Z2: =WEEKNUM(T2) -> 1 | AA2: =IF(MONTH(T2)>6,MONTH(T2)-6,MONTH(T2)+6) -> 7 | AB2: =IF(AA2<=6,YEAR(T2)+1,YEAR(T2)) -> 2008 | AJ2: =SUM(AD2:AE2,AI2) -> 0 | AK2: 08:00:00 | AL2: 0.9 | AM2: 0.9 | AN2: 0 | AO2: 00:20:00 | AP2: 00:00:00 | AQ2: 100 | AR2: 0 | AS2: 0 | AT2: 0
A3: Tue | B3: Jan | C3: 2 | D3: 2008 | E3: 08:30:00 | F3: 3 | G3: 3 | H3: 0 | I3: 0 | J3: 0 | K3: 0 | L3: 100 | M3: 02:28:00 | N3: 0.1506944444 | O3: 0.004166666667 | P3: 1 | Q3: 04:19:00 | R3: 0.13 | T3: 2008-01-02 | U3: 0 | V3: 6 | W3: 0.1 | X3: 259 | Y3: 4.316666667 | Z3: =WEEKNUM(T3) -> 1 | AA3: 7 | AB3: 2008 | AJ3: =SUM(AD3:AE3,AI3) -> 0 | AK3: 08:30:00 | AL3: 2 | AM3: 1.8 | AN3: 3 | AO3: 00:20:00 | AP3: 06:05:00 | AQ3: 100 | AR3: 0.6 | AS3: 3 | AT3: 3.2
A4: Tue | B4: Jan | C4: 2 | D4: 2008 | E4: 09:00:00 | F4: 9 | G4: 4 | H4: 0 | I4: 2 | J4: 3 | K4: 5 | L4: 11 | M4: 09:40:00 | N4: 0.08819444444 | O4: 0.07847222222 | P4: 2 | Q4: 04:19:00 | R4: 1.23 | T4: 2008-01-02 | U4: 0.3333333333 | V4: 113 | W4: 1.883333333 | X4: 259 | Y4: 4.316666667 | Z4: 1 | AA4: 7 | AB4: 2008 | AJ4: 0 | AK4: 09:00:00 | AL4: 2.4 | AM4: 1.4 | AN4: 9 | AO4: 00:20:00 | AP4: 11:47:00 | AQ4: 33 | AR4: 3.5 | AS4: 7 | AT4: 11.7
A5: Tue | B5: Jan | C5: 2 | D5: 2008 | E5: 09:30:00 | F5: 4 | G5: 3 | H5: 0 | I5: 0 | J5: 1 | K5: 1 | L5: 50 | M5: 16:39:00 | N5: 0.3416666667 | O5: 0.03125 | P5: 1 | Q5: 02:04:00 | R5: 0.87 | T5: 2008-01-02 | U5: 0.25 | V5: 45 | W5: 0.75 | X5: 124 | Y5: 2.066666667 | Z5: 1 | AA5: 7 | AB5: 2008 | AJ5: 0 | AK5: 09:30:00 | AL5: 3.9 | AM5: 3.2 | AN5: 4 | AO5: 00:20:00 | AP5: 1.035416667 | AQ5: 60 | AR5: 3.3 | AS5: 8 | AT5: 9.7
A6: Tue | B6: Jan | C6: 2 | D6: 2008 | E6: 10:00:00 | F6: 5 | G6: 5 | H6: 0 | I6: 0 | J6: 0 | K6: 0 | L6: 100 | M6: 06:22:00 | N6: 0.1125 | O6: 0.004166666667 | P6: 1 | Q6: 00:15:00 | R6: 0.54 | T6: 2008-01-02 | U6: 0 | V6: 6 | W6: 0.1 | X6: 15 | Y6: 0.25 | Z6: 1 | AA6: 7 | AB6: 2008 | AJ6: 0 | AK6: 10:00:00 | AL6: 3.7 | AM6: 3.1 | AN6: 5 | AO6: 00:20:00 | AP6: 09:04:00 | AQ6: 100 | AR6: 1.5 | AS6: 4 | AT6: 4.8
A7: Tue | B7: Jan | C7: 2 | D7: 2008 | E7: 10:30:00 | F7: 9 | G7: 7 | H7: 0 | I7: 2 | J7: 0 | K7: 2 | L7: 78 | M7: 05:52:00 | N7: 0.05625 | O7: 0.01111111111 | P7: 1 | Q7: 00:53:00 | R7: 0.92 | T7: 2008-01-02 | U7: 0 | V7: 16 | W7: 0.2666666667 | X7: 53 | Y7: 0.8833333333 | Z7: 1 | AA7: 7 | AB7: 2008 | AJ7: 0 | AK7: 10:30:00 | AL7: 3 | AM7: 3 | AN7: 9 | AO7: 00:20:00 | AP7: 07:13:00 | AQ7: 78 | AR7: 2.2 | AS7: 5 | AT7: 5
A8: Tue | B8: Jan | C8: 2 | D8: 2008 | E8: 11:00:00 | F8: 7 | G8: 5 | H8: 0 | I8: 1 | J8: 1 | K8: 2 | L8: 57 | M8: 06:11:00 | N8: 0.1520833333 | O8: 0.02430555556 | P8: 3 | Q8: 02:51:00 | R8: 0.68 | T8: 2008-01-02 | U8: 0.1428571429 | V8: 35 | W8: 0.5833333333 | X8: 171 | Y8: 2.85 | Z8: 1 | AA8: 7 | AB8: 2008 | AJ8: 0 | AK8: 11:00:00 | AL8: 3.6 | AM8: 3.5 | AN8: 7 | AO8: 00:20:00 | AP8: 09:50:00 | AQ8: 63 | AR8: 2.3 | AS8: 6 | AT8: 6.2
A9: Tue | B9: Jan | C9: 2 | D9: 2008 | E9: 11:30:00 | F9: 9 | G9: 8 | H9: 0 | I9: 0 | J9: 1 | K9: 4 | L9: 44 | M9: 10:29:00 | N9: 0.06458333333 | O9: 0.06458333333 | P9: 2 | Q9: 04:33:00 | R9: 1.61 | T9: 2008-01-02 | U9: 0.1111111111 | V9: 93 | W9: 1.55 | X9: 273 | Y9: 4.55 | Z9: 1 | AA9: 7 | AB9: 2008 | AJ9: 0 | AK9: 11:30:00 | AL9: 3.5 | AM9: 2.9 | AN9: 9 | AO9: 00:20:00 | AP9: 12:02:00 | AQ9: 50 | AR9: 3.6 | AS9: 7 | AT9: 8.3
A10: Tue | B10: Jan | C10: 2 | D10: 2008 | E10: 12:00:00 | F10: 5 | G10: 5 | H10: 0 | I10: 0 | J10: 0 | K10: 0 | L10: 100 | M10: 03:57:00 | N10: 0.06319444444 | O10: 0.002777777778 | P10: 1 | Q10: 00:10:00 | R10: 0.34 | T10: 2008-01-02 | U10: 0 | V10: 4 | W10: 0.06666666667 | X10: 10 | Y10: 0.1666666667 | Z10: 1 | AA10: 7 | AB10: 2008 | AJ10: 0 | AK10: 12:00:00 | AL10: 3.8 | AM10: 2.2 | AN10: 5 | AO10: 00:20:00 | AP10: 05:28:00 | AQ10: 100 | AR10: 0.9 | AS10: 3 | AT10: 5.2
A11: Tue | B11: Jan | C11: 2 | D11: 2008 | E11: 12:30:00 | F11: 0 | G11: 0 | H11: 0 | I11: 0 | J11: 0 | K11: 0 | L11: 100 | M11: 00:00:00 | N11: 0.4916666667 | O11: 0 | P11: 1 | Q11: 00:01:00 | R11: 0 | T11: 2008-01-02 | U11: 0 | V11: 0 | W11: 0 | X11: 1 | Y11: 0.01666666667 | Z11: 1 | AA11: 7 | AB11: 2008 | AJ11: 0 | AK11: 12:30:00 | AL11: 4.4 | AM11: 3.6 | AN11: 0 | AO11: 00:20:00 | AP11: 00:00:00 | AQ11: 100 | AR11: 0 | AS11: 0 | AT11: 0
A12: Tue | B12: Jan | C12: 2 | D12: 2008 | E12: 13:00:00 | F12: 7 | G12: 7 | H12: 0 | I12: 0 | J12: 0 | K12: 0 | L12: 100 | M12: 05:44:00 | N12: 0.3 | O12: 0.002777777778 | P12: 1 | Q12: 00:22:00 | R12: 0.68 | T12: 2008-01-02 | U12: 0 | V12: 4 | W12: 0.06666666667 | X12: 22 | Y12: 0.3666666667 | Z12: 1 | AA12: 7 | AB12: 2008 | AJ12: 0 | AK12: 13:00:00 | AL12: 4.2 | AM12: 4.1 | AN12: 7 | AO12: 00:20:00 | AP12: 12:56:00 | AQ12: 100 | AR12: 3 | AS12: 7 | AT12: 7.2
A13: Tue | B13: Jan | C13: 2 | D13: 2008 | E13: 13:30:00 | F13: 6 | G13: 4 | H13: 0 | I13: 1 | J13: 1 | K13: 2 | L13: 50 | M13: 04:36:00 | N13: 0.07638888889 | O13: 0.01597222222 | P13: 2 | Q13: 02:47:00 | R13: 0.43 | T13: 2008-01-02 | U13: 0.1666666667 | V13: 23 | W13: 0.3833333333 | X13: 167 | Y13: 2.783333333 | Z13: 1 | AA13: 7 | AB13: 2008 | AJ13: 0 | AK13: 13:30:00 | AL13: 4 | AM13: 2 | AN13: 6 | AO13: 00:20:00 | AP13: 06:26:00 | AQ13: 57 | AR13: 1.3 | AS13: 4 | AT13: 7.9
A14: Tue | B14: Jan | C14: 2 | D14: 2008 | E14: 14:00:00 | F14: 9 | G14: 7 | H14: 0 | I14: 1 | J14: 1 | K14: 2 | L14: 67 | M14: 04:03:00 | N14: 0.2569444444 | O14: 0.01944444444 | P14: 1 | Q14: 06:42:00 | R14: 0.67 | T14: 2008-01-02 | U14: 0.1111111111 | V14: 28 | W14: 0.4666666667 | X14: 402 | Y14: 6.7 | Z14: 1 | AA14: 7 | AB14: 2008 | AJ14: 0 | AK14: 14:00:00 | AL14: 3.2 | AM14: 2.6 | AN14: 9 | AO14: 00:20:00 | AP14: 10:13:00 | AQ14: 70 | AR14: 3.1 | AS14: 7 | AT14: 8.5
A15: Tue | B15: Jan | C15: 2 | D15: 2008 | E15: 14:30:00 | F15: 4 | G15: 3 | H15: 0 | I15: 1 | J15: 0 | K15: 2 | L15: 50 | M15: 05:57:00 | N15: 0.35 | O15: 0.07638888889 | P15: 1 | Q15: 06:43:00 | R15: 0.52 | T15: 2008-01-02 | U15: 0 | V15: 110 | W15: 1.833333333 | X15: 403 | Y15: 6.716666667 | Z15: 1 | AA15: 7 | AB15: 2008 | AJ15: 0 | AK15: 14:30:00 | AL15: 2.9 | AM15: 2.8 | AN15: 4 | AO15: 00:20:00 | AP15: 14:21:00 | AQ15: 50 | AR15: 1.9 | AS15: 5 | AT15: 5.2
A16: Tue | B16: Jan | C16: 2 | D16: 2008 | E16: 15:00:00 | F16: 9 | G16: 6 | H16: 0 | I16: 0 | J16: 3 | K16: 3 | L16: 33 | M16: 08:15:00 | N16: 0.2638888889 | O16: 0.0625 | P16: 2 | Q16: 04:24:00 | R16: 1 | T16: 2008-01-02 | U16: 0.3333333333 | V16: 90 | W16: 1.5 | X16: 264 | Y16: 4.4 | Z16: 1 | AA16: 7 | AB16: 2008 | AJ16: 0 | AK16: 15:00:00 | AL16: 2 | AM16: 2 | AN16: 9 | AO16: 00:20:00 | AP16: 14:35:00 | AQ16: 50 | AR16: 4.4 | AS16: 9 | AT16: 9.2
A17: Tue | B17: Jan | C17: 2 | D17: 2008 | E17: 15:30:00 | F17: 9 | G17: 8 | H17: 0 | I17: 0 | J17: 1 | K17: 3 | L17: 56 | M17: 04:53:00 | N17: 0.2194444444 | O17: 0.01666666667 | P17: 2 | Q17: 01:28:00 | R17: 0.71 | T17: 2008-01-02 | U17: 0.1111111111 | V17: 24 | W17: 0.4 | X17: 88 | Y17: 1.466666667 | Z17: 1 | AA17: 7 | AB17: 2008 | AJ17: 0 | AK17: 15:30:00 | AL17: 2.9 | AM17: 2.9 | AN17: 9 | AO17: 00:20:00 | AP17: 10:09:00 | AQ17: 60 | AR17: 3 | AS17: 7 | AT17: 7.2
A18: Tue | B18: Jan | C18: 2 | D18: 2008 | E18: 16:00:00 | F18: 4 | G18: 4 | H18: 0 | I18: 0 | J18: 0 | K18: 0 | L18: 100 | M18: 04:22:00 | N18: 0.1409722222 | O18: 0.002777777778 | P18: 1 | Q18: 00:07:00 | R18: 0.3 | T18: 2008-01-02 | U18: 0 | V18: 4 | W18: 0.06666666667 | X18: 7 | Y18: 0.1166666667 | Z18: 1 | AA18: 7 | AB18: 2008 | AJ18: 0 | AK18: 16:00:00 | AL18: 2.9 | AM18: 2.3 | AN18: 4 | AO18: 00:20:00 | AP18: 07:45:00 | AQ18: 100 | AR18: 1 | AS18: 4 | AT18: 5.2
A19: Tue | B19: Jan | C19: 2 | D19: 2008 | E19: 16:30:00 | F19: 4 | G19: 4 | H19: 0 | I19: 0 | J19: 0 | K19: 0 | L19: 100 | M19: 12:18:00 | N19: 0.4777777778 | O19: 0.004166666667 | P19: 1 | Q19: 00:09:00 | R19: 0.83 | T19: 2008-01-02 | U19: 0 | V19: 6 | W19: 0.1 | X19: 9 | Y19: 0.15 | Z19: 1 | AA19: 7 | AB19: 2008 | AJ19: 0 | AK19: 16:30:00 | AL19: 3 | AM19: 3 | AN19: 4 | AO19: 00:20:00 | AP19: 23:46:00 | AQ19: 100 | AR19: 3.2 | AS19: 7 | AT19: 7
A20: Tue | B20: Jan | C20: 2 | D20: 2008 | E20: 17:00:00 | F20: 2 | G20: 2 | H20: 0 | I20: 0 | J20: 0 | K20: 0 | L20: 100 | M20: 06:28:00 | N20: 0.475 | O20: 0.003472222222 | P20: 1 | Q20: 00:05:00 | R20: 0.22 | T20: 2008-01-02 | U20: 0 | V20: 5 | W20: 0.08333333333 | X20: 5 | Y20: 0.08333333333 | Z20: 1 | AA20: 7 | AB20: 2008 | AJ20: 0 | AK20: 17:00:00 | AL20: 2.5 | AM20: 2.4 | AN20: 2 | AO20: 00:20:00 | AP20: 17:52:00 | AQ20: 100 | AR20: 1.2 | AS20: 4 | AT20: 4.2
A21: Tue | B21: Jan | C21: 2 | D21: 2008 | E21: 17:30:00 | F21: 0 | G21: 0 | H21: 0 | I21: 0 | J21: 0 | K21: 0 | L21: 100 | M21: 00:00:00 | N21: 0 | O21: 0 | P21: 0 | Q21: 00:00:00 | R21: 0 | T21: 2008-01-02 | U21: 0 | V21: 0 | W21: 0 | X21: 0 | Y21: 0 | Z21: 1 | AA21: 7 | AB21: 2008 | AJ21: 0 | AK21: 17:30:00 | AL21: 2 | AM21: 1.6 | AN21: 0 | AO21: 00:20:00 | AP21: 00:00:00 | AQ21: 100 | AR21: 0 | AS21: 0 | AT21: 0
A22: Wed | B22: Jan | C22: 3 | D22: 2008 | E22: 08:00:00 | F22: 1 | G22: 1 | H22: 0 | I22: 0 | J22: 0 | K22: 0 | L22: 100 | M22: 00:18:00 | N22: 0.01180555556 | O22: 0.001388888889 | P22: 1 | Q22: 00:02:00 | R22: 0.01 | T22: 2008-01-03 | U22: 0 | V22: 2 | W22: 0.03333333333 | X22: 2 | Y22: 0.03333333333 | Z22: 1 | AA22: 7 | AB22: 2008 | AJ22: 0 | AK22: 08:00:00 | AL22: 1.7 | AM22: 1.3 | AN22: 1 | AO22: 00:20:00 | AP22: 00:35:00 | AQ22: 100 | AR22: 0 | AS22: 1 | AT22: 1.3
A23: Wed | B23: Jan | C23: 3 | D23: 2008 | E23: 08:30:00 | F23: 2 | G23: 1 | H23: 0 | I23: 1 | J23: 0 | K23: 1 | L23: 50 | M23: 01:16:00 | N23: 0.02638888889 | O23: 0.01111111111 | P23: 1 | Q23: 00:26:00 | R23: 0.05 | T23: 2008-01-03 | U23: 0 | V23: 16 | W23: 0.2666666667 | X23: 26 | Y23: 0.4333333333 | Z23: 1 | AA23: 7 | AB23: 2008 | AJ23: 0 | AK23: 08:30:00 | AL23: 2 | AM23: 1.7 | AN23: 2 | AO23: 00:20:00 | AP23: 01:54:00 | AQ23: 50 | AR23: 0.1 | AS23: 1 | AT23: 1.2
A24: Wed | B24: Jan | C24: 3 | D24: 2008 | E24: 09:00:00 | F24: 4 | G24: 4 | H24: 0 | I24: 0 | J24: 0 | K24: 1 | L24: 75 | M24: 04:52:00 | N24: 0.4034722222 | O24: 0.1020833333 | P24: 1 | Q24: 09:33:00 | R24: 0.49 | T24: 2008-01-03 | U24: 0 | V24: 147 | W24: 2.45 | X24: 573 | Y24: 9.55 | Z24: 1 | AA24: 7 | AB24: 2008 | AJ24: 0 | AK24: 09:00:00 | AL24: 2.3 | AM24: 2 | AN24: 4 | AO24: 00:20:00 | AP24: 14:33:00 | AQ24: 75 | AR24: 1.9 | AS24: 5 | AT24: 5.6
A25: Wed | B25: Jan | C25: 3 | D25: 2008 | E25: 09:30:00 | F25: 8 | G25: 5 | H25: 0 | I25: 0 | J25: 3 | K25: 4 | L25: 13 | M25: 05:18:00 | N25: 0.4145833333 | O25: 0.1041666667 | P25: 3 | Q25: 08:22:00 | R25: 0.67 | T25: 2008-01-03 | U25: 0.375 | V25: 150 | W25: 2.5 | X25: 502 | Y25: 8.366666667 | Z25: 1 | AA25: 7 | AB25: 2008 | AJ25: 0 | AK25: 09:30:00 | AL25: 2.3 | AM25: 2.2 | AN25: 8 | AO25: 00:20:00 | AP25: 15:15:00 | AQ25: 36 | AR25: 4.1 | AS25: 8 | AT25: 8.5
A26: Wed | B26: Jan | C26: 3 | D26: 2008 | E26: 10:00:00 | F26: 9 | G26: 5 | H26: 0 | I26: 1 | J26: 3 | K26: 6 | L26: 0 | M26: 07:09:00 | N26: 0.2680555556 | O26: 0.5270833333 | P26: 6 | Q26: 19:14:00 | R26: 2.34 | T26: 2008-01-03 | U26: 0.3333333333 | V26: 759 | W26: 12.65 | X26: 1154 | Y26: 19.23333333 | Z26: 1 | AA26: 7 | AB26: 2008 | AJ26: 0 | AK26: 10:00:00 | AL26: 1.9 | AM26: 1.7 | AN26: 9 | AO26: 00:20:00 | AP26: 13:35:00 | AQ26: 25 | AR26: 4.1 | AS26: 8 | AT26: 9.1
A27: Wed | B27: Jan | C27: 3 | D27: 2008 | E27: 10:30:00 | F27: 5 | G27: 4 | H27: 0 | I27: 1 | J27: 0 | K27: 2 | L27: 60 | M27: 02:58:00 | N27: 0.1666666667 | O27: 0.0125 | P27: 1 | Q27: 04:44:00 | R27: 0.27 | T27: 2008-01-03 | U27: 0 | V27: 18 | W27: 0.3 | X27: 284 | Y27: 4.733333333 | Z27: 1 | AA27: 7 | AB27: 2008 | AJ27: 0 | AK27: 10:30:00 | AL27: 2 | AM27: 1.9 | AN27: 5 | AO27: 00:20:00 | AP27: 06:58:00 | AQ27: 60 | AR27: 1.2 | AS27: 4 | AT27: 4.3
A28: Wed | B28: Jan | C28: 3 | D28: 2008 | E28: 11:00:00 | F28: 5 | G28: 5 | H28: 0 | I28: 0 | J28: 0 | K28: 2 | L28: 60 | M28: 05:18:00 | N28: 0.2020833333 | O28: 0.08333333333 | P28: 2 | Q28: 07:54:00 | R28: 0.61 | T28: 2008-01-03 | U28: 0 | V28: 120 | W28: 2 | X28: 474 | Y28: 7.9 | Z28: 1 | AA28: 7 | AB28: 2008 | AJ28: 0 | AK28: 11:00:00 | AL28: 3.7 | AM28: 2.6 | AN28: 5 | AO28: 00:20:00 | AP28: 10:09:00 | AQ28: 60 | AR28: 1.7 | AS28: 5 | AT28: 7
A29: Wed | B29: Jan | C29: 3 | D29: 2008 | E29: 11:30:00 | F29: 9 | G29: 7 | H29: 0 | I29: 0 | J29: 2 | K29: 4 | L29: 33 | M29: 07:14:00 | N29: 0.3673611111 | O29: 0.07013888889 | P29: 2 | Q29: 09:13:00 | R29: 1.22 | T29: 2008-01-03 | U29: 0.2222222222 | V29: 101 | W29: 1.683333333 | X29: 553 | Y29: 9.216666667 | Z29: 1 | AA29: 7 | AB29: 2008 | AJ29: 0 | AK29: 11:30:00 | AL29: 3.3 | AM29: 3.1 | AN29: 9 | AO29: 00:20:00 | AP29: 16:03:00 | AQ29: 45 | AR29: 4.8 | AS29: 9 | AT29: 9.4
A30: Wed | B30: Jan | C30: 3 | D30: 2008 | E30: 12:00:00 | F30: 2 | G30: 2 | H30: 0 | I30: 0 | J30: 0 | K30: 0 | L30: 100 | M30: 01:20:00 | N30: 0.1541666667 | O30: 0.004861111111 | P30: 1 | Q30: 00:13:00 | R30: 0.05 | T30: 2008-01-03 | U30: 0 | V30: 7 | W30: 0.1166666667 | X30: 13 | Y30: 0.2166666667 | Z30: 1 | AA30: 7 | AB30: 2008 | AJ30: 0 | AK30: 12:00:00 | AL30: 3 | AM30: 2.6 | AN30: 2 | AO30: 00:20:00 | AP30: 05:02:00 | AQ30: 100 | AR30: 0.3 | AS30: 2 | AT30: 2.4
A31: Wed | B31: Jan | C31: 3 | D31: 2008 | E31: 12:30:00 | F31: 6 | G31: 6 | H31: 0 | I31: 0 | J31: 0 | K31: 0 | L31: 100 | M31: 09:52:00 | N31: 0.2131944444 | O31: 0.004861111111 | P31: 1 | Q31: 00:14:00 | R31: 1 | T31: 2008-01-03 | U31: 0 | V31: 7 | W31: 0.1166666667 | X31: 14 | Y31: 0.2333333333 | Z31: 1 | AA31: 7 | AB31: 2008 | AJ31: 0 | AK31: 12:30:00 | AL31: 3.1 | AM31: 3 | AN31: 6 | AO31: 00:20:00 | AP31: 14:59:00 | AQ31: 100 | AR31: 3 | AS31: 7 | AT31: 7.2
A32: Wed | B32: Jan | C32: 3 | D32: 2008 | E32: 13:00:00 | F32: 8 | G32: 6 | H32: 0 | I32: 0 | J32: 2 | K32: 3 | L32: 38 | M32: 09:42:00 | N32: 0.1298611111 | O32: 0.05625 | P32: 2 | Q32: 03:55:00 | R32: 1.12 | T32: 2008-01-03 | U32: 0.25 | V32: 81 | W32: 1.35 | X32: 235 | Y32: 3.916666667 | Z32: 1 | AA32: 7 | AB32: 2008 | AJ32: 0 | AK32: 13:00:00 | AL32: 2.9 | AM32: 2.2 | AN32: 8 | AO32: 00:20:00 | AP32: 12:49:00 | AQ32: 50 | AR32: 3.4 | AS32: 7 | AT32: 9.2
A33: Wed | B33: Jan | C33: 3 | D33: 2008 | E33: 13:30:00 | F33: 1 | G33: 1 | H33: 0 | I33: 0 | J33: 0 | K33: 0 | L33: 100 | M33: 15:08:00 | N33: 0.3534722222 | O33: 0.001388888889 | P33: 1 | Q33: 00:05:00 | R33: 0.25 | T33: 2008-01-03 | U33: 0 | V33: 2 | W33: 0.03333333333 | X33: 5 | Y33: 0.08333333333 | Z33: 1 | AA33: 7 | AB33: 2008 | AJ33: 0 | AK33: 13:30:00 | AL33: 3 | AM33: 2.3 | AN33: 1 | AO33: 00:20:00 | AP33: 23:37:00 | AQ33: 100 | AR33: 0.8 | AS33: 4 | AT33: 5.2
A34: Wed | B34: Jan | C34: 3 | D34: 2008 | E34: 14:00:00 | F34: 5 | G34: 4 | H34: 0 | I34: 1 | J34: 0 | K34: 1 | L34: 80 | M34: 05:51:00 | N34: 0.1277777778 | O34: 0.01944444444 | P34: 1 | Q34: 01:59:00 | R34: 0.53 | T34: 2008-01-03 | U34: 0 | V34: 28 | W34: 0.4666666667 | X34: 119 | Y34: 1.983333333 | Z34: 1 | AA34: 7 | AB34: 2008 | AJ34: 0 | AK34: 14:00:00 | AL34: 2.6 | AM34: 2.4 | AN34: 5 | AO34: 00:20:00 | AP34: 08:55:00 | AQ34: 80 | AR34: 1.5 | AS34: 4 | AT34: 4.5
A35: Wed | B35: Jan | C35: 3 | D35: 2008 | E35: 14:30:00 | F35: 5 | G35: 5 | H35: 0 | I35: 0 | J35: 0 | K35: 1 | L35: 80 | M35: 06:28:00 | N35: 0.3743055556 | O35: 0.004166666667 | P35: 1 | Q35: 00:22:00 | R35: 0.55 | T35: 2008-01-03 | U35: 0 | V35: 6 | W35: 0.1 | X35: 22 | Y35: 0.3666666667 | Z35: 1 | AA35: 7 | AB35: 2008 | AJ35: 0 | AK35: 14:30:00 | AL35: 3 | AM35: 2.8 | AN35: 5 | AO35: 00:20:00 | AP35: 15:27:00 | AQ35: 80 | AR35: 2.6 | AS35: 6 | AT35: 6.4
A36: Wed | B36: Jan | C36: 3 | D36: 2008 | E36: 15:00:00 | F36: 6 | G36: 5 | H36: 0 | I36: 1 | J36: 0 | K36: 1 | L36: 83 | M36: 07:08:00 | N36: 0.1479166667 | O36: 0.005555555556 | P36: 1 | Q36: 00:32:00 | R36: 0.73 | T36: 2008-01-03 | U36: 0 | V36: 8 | W36: 0.1333333333 | X36: 32 | Y36: 0.5333333333 | Z36: 1 | AA36: 7 | AB36: 2008 | AJ36: 0 | AK36: 15:00:00 | AL36: 2.8 | AM36: 1.6 | AN36: 6 | AO36: 00:20:00 | AP36: 10:41:00 | AQ36: 83 | AR36: 2.1 | AS36: 5 | AT36: 8.8
A37: Wed | B37: Jan | C37: 3 | D37: 2008 | E37: 15:30:00 | F37: 3 | G37: 3 | H37: 0 | I37: 0 | J37: 0 | K37: 0 | L37: 100 | M37: 02:40:00 | N37: 0.2027777778 | O37: 0.002083333333 | P37: 1 | Q37: 03:24:00 | R37: 0.14 | T37: 2008-01-03 | U37: 0 | V37: 3 | W37: 0.05 | X37: 204 | Y37: 3.4 | Z37: 1 | AA37: 7 | AB37: 2008 | AJ37: 0 | AK37: 15:30:00 | AL37: 3 | AM37: 2 | AN37: 3 | AO37: 00:20:00 | AP37: 07:32:00 | AQ37: 100 | AR37: 0.8 | AS37: 3 | AT37: 4.6
A38: Wed | B38: Jan | C38: 3 | D38: 2008 | E38: 16:00:00 | F38: 5 | G38: 5 | H38: 0 | I38: 0 | J38: 0 | K38: 1 | L38: 80 | M38: 13:10:00 | N38: 0.3097222222 | O38: 0.02638888889 | P38: 1 | Q38: 06:26:00 | R38: 1.15 | T38: 2008-01-03 | U38: 0 | V38: 38 | W38: 0.6333333333 | X38: 386 | Y38: 6.433333333 | Z38: 1 | AA38: 7 | AB38: 2008 | AJ38: 0 | AK38: 16:00:00 | AL38: 2.4 | AM38: 2.4 | AN38: 5 | AO38: 00:20:00 | AP38: 20:36:00 | AQ38: 80 | AR38: 3.4 | AS38: 8 | AT38: 8
A39: Wed | B39: Jan | C39: 3 | D39: 2008 | E39: 16:30:00 | F39: 7 | G39: 4 | H39: 0 | I39: 0 | J39: 3 | K39: 3 | L39: 14 | M39: 18:04:00 | N39: 0.2597222222 | O39: 0.2201388889 | P39: 2 | Q39: 11:13:00 | R39: 1.61 | T39: 2008-01-03 | U39: 0.4285714286 | V39: 317 | W39: 5.283333333 | X39: 673 | Y39: 11.21666667 | Z39: 1 | AA39: 7 | AB39: 2008 | AJ39: 0 | AK39: 16:30:00 | AL39: 2 | AM39: 2 | AN39: 7 | AO39: 00:20:00 | AP39: 1.0125 | AQ39: 40 | AR39: 5.7 | AS39: 11 | AT39: 11
A40: Wed | B40: Jan | C40: 3 | D40: 2008 | E40: 17:00:00 | F40: 1 | G40: 1 | H40: 0 | I40: 0 | J40: 0 | K40: 1 | L40: 0 | M40: 21:28:00 | N40: 0.07708333333 | O40: 0.05138888889 | P40: 1 | Q40: 01:14:00 | R40: 0.38 | T40: 2008-01-03 | U40: 0 | V40: 74 | W40: 1.233333333 | X40: 74 | Y40: 1.233333333 | Z40: 1 | AA40: 7 | AB40: 2008 | AJ40: 0 | AK40: 17:00:00 | AL40: 1.8 | AM40: 1 | AN40: 1 | AO40: 00:20:00 | AP40: 23:19:00 | AQ40: 0 | AR40: 0.8 | AS40: 4 | AT40: 7.1
A41: Wed | B41: Jan | C41: 3 | D41: 2008 | E41: 17:30:00 | F41: 2 | G41: 2 | H41: 0 | I41: 0 | J41: 0 | K41: 1 | L41: 50 | M41: 08:44:00 | N41: 0.2055555556 | O41: 0.2729166667 | P41: 1 | Q41: 13:01:00 | R41: 0.51 | T41: 2008-01-03 | U41: 0 | V41: 393 | W41: 6.55 | X41: 781 | Y41: 13.01666667 | Z41: 1 | AA41: 7 | AB41: 2008 | AJ41: 0 | AK41: 17:30:00 | AL41: 2 | AM41: 1.3 | AN41: 2 | AO41: 00:20:00 | AP41: 13:40:00 | AQ41: 50 | AR41: 0.9 | AS41: 4 | AT41: 6.1
A42: Thu | B42: Jan | C42: 4 | D42: 2008 | E42: 08:00:00 | F42: 0 | G42: 0 | H42: 0 | I42: 0 | J42: 0 | K42: 0 | L42: 100 | M42: 00:00:00 | N42: 0.08611111111 | O42: 0 | P42: 0 | Q42: 00:00:00 | R42: 0 | T42: 2008-01-04 | U42: 0 | V42: 0 | W42: 0 | X42: 0 | Y42: 0 | Z42: 1 | AA42: 7 | AB42: 2008 | AJ42: 0 | AK42: 08:00:00 | AL42: 1.8 | AM42: 1.5 | AN42: 0 | AO42: 00:20:00 | AP42: 00:00:00 | AQ42: 100 | AR42: 0 | AS42: 0 | AT42: 0 | AU42: 0
A43: Thu | B43: Jan | C43: 4 | D43: 2008 | E43: 08:30:00 | F43: 3 | G43: 3 | H43: 0 | I43: 0 | J43: 0 | K43: 1 | L43: 67 | M43: 08:32:00 | N43: 0.1888888889 | O43: 0.04166666667 | P43: 2 | Q43: 03:37:00 | R43: 0.48 | T43: 2008-01-04 | U43: 0 | V43: 60 | W43: 1 | X43: 217 | Y43: 3.616666667 | Z43: 1 | AA43: 7 | AB43: 2008 | AJ43: 0 | AK43: 08:30:00 | AL43: 2.5 | AM43: 2.3 | AN43: 3 | AO43: 00:20:00 | AP43: 13:04:00 | AQ43: 67 | AR43: 1.3 | AS43: 4 | AT43: 4.2 | AU43: 4.2
A44: Thu | B44: Jan | C44: 4 | D44: 2008 | E44: 09:00:00 | F44: 5 | G44: 5 | H44: 0 | I44: 0 | J44: 0 | K44: 1 | L44: 80 | M44: 08:41:00 | N44: 0.1986111111 | O44: 0.03263888889 | P44: 1 | Q44: 03:38:00 | R44: 0.79 | T44: 2008-01-04 | U44: 0 | V44: 47 | W44: 0.7833333333 | X44: 218 | Y44: 3.633333333 | Z44: 1 | AA44: 7 | AB44: 2008 | AJ44: 0 | AK44: 09:00:00 | AL44: 3.4 | AM44: 3.3 | AN44: 5 | AO44: 00:20:00 | AP44: 13:27:00 | AQ44: 80 | AR44: 2.2 | AS44: 6 | AT44: 6.2 | AU44: 6.2
A45: Thu | B45: Jan | C45: 4 | D45: 2008 | E45: 09:30:00 | F45: 2 | G45: 2 | H45: 0 | I45: 0 | J45: 0 | K45: 0 | L45: 100 | M45: 05:46:00 | N45: 0.1298611111 | O45: 0.002777777778 | P45: 1 | Q45: 00:04:00 | R45: 0.19 | T45: 2008-01-04 | U45: 0 | V45: 4 | W45: 0.06666666667 | X45: 4 | Y45: 0.06666666667 | Z45: 1 | AA45: 7 | AB45: 2008 | AJ45: 0 | AK45: 09:30:00 | AL45: 3 | AM45: 2.6 | AN45: 2 | AO45: 00:20:00 | AP45: 08:53:00 | AQ45: 100 | AR45: 0.6 | AS45: 3 | AT45: 3.4 | AU45: 3.4
A46: Thu | B46: Jan | C46: 4 | D46: 2008 | E46: 10:00:00 | F46: 9 | G46: 8 | H46: 0 | I46: 0 | J46: 1 | K46: 2 | L46: 67 | M46: 05:22:00 | N46: 0.1826388889 | O46: 0.02361111111 | P46: 2 | Q46: 03:12:00 | R46: 0.79 | T46: 2008-01-04 | U46: 0.1111111111 | V46: 34 | W46: 0.5666666667 | X46: 192 | Y46: 3.2 | Z46: 1 | AA46: 7 | AB46: 2008 | AJ46: 0 | AK46: 10:00:00 | AL46: 3.9 | AM46: 3.5 | AN46: 9 | AO46: 00:20:00 | AP46: 09:45:00 | AQ46: 70 | AR46: 2.9 | AS46: 6 | AT46: 6.8 | AU46: 6.8
A47: Thu | B47: Jan | C47: 4 | D47: 2008 | E47: 10:30:00 | F47: 7 | G47: 7 | H47: 0 | I47: 0 | J47: 0 | K47: 0 | L47: 100 | M47: 08:56:00 | N47: 0.2104166667 | O47: 0.004861111111 | P47: 1 | Q47: 02:30:00 | R47: 1.05 | T47: 2008-01-04 | U47: 0 | V47: 7 | W47: 0.1166666667 | X47: 150 | Y47: 2.5 | Z47: 1 | AA47: 7 | AB47: 2008 | AJ47: 0 | AK47: 10:30:00 | AL47: 4.3 | AM47: 3.7 | AN47: 7 | AO47: 00:20:00 | AP47: 13:59:00 | AQ47: 100 | AR47: 3.3 | AS47: 7 | AT47: 8.3 | AU47: 8.3
A48: Thu | B48: Jan | C48: 4 | D48: 2008 | E48: 11:00:00 | F48: 9 | G48: 8 | H48: 0 | I48: 1 | J48: 0 | K48: 9 | L48: 0 | M48: 03:24:00 | N48: 0.2395833333 | O48: 0.1506944444 | P48: 4 | Q48: 07:55:00 | R48: 1.05 | T48: 2008-01-04 | U48: 0 | V48: 217 | W48: 3.616666667 | X48: 475 | Y48: 7.916666667 | Z48: 1 | AA48: 7 | AB48: 2008 | AJ48: 0 | AK48: 11:00:00 | AL48: 3.8 | AM48: 3 | AN48: 9 | AO48: 00:20:00 | AP48: 09:09:00 | AQ48: 0 | AR48: 2.7 | AS48: 6 | AT48: 7.5 | AU48: 7.5
A49: Thu | B49: Jan | C49: 4 | D49: 2008 | E49: 11:30:00 | F49: 7 | G49: 6 | H49: 0 | I49: 0 | J49: 1 | K49: 5 | L49: 14 | M49: 06:03:00 | N49: 0.2611111111 | O49: 0.05555555556 | P49: 2 | Q49: 03:53:00 | R49: 0.74 | T49: 2008-01-04 | U49: 0.1428571429 | V49: 80 | W49: 1.333333333 | X49: 233 | Y49: 3.883333333 | Z49: 1 | AA49: 7 | AB49: 2008 | AJ49: 0 | AK49: 11:30:00 | AL49: 3 | AM49: 2.5 | AN49: 7 | AO49: 00:20:00 | AP49: 12:19:00 | AQ49: 25 | AR49: 2.9 | AS49: 6 | AT49: 7.1 | AU49: 7.1
A50: Thu | B50: Jan | C50: 4 | D50: 2008 | E50: 12:00:00 | F50: 3 | G50: 3 | H50: 0 | I50: 0 | J50: 0 | K50: 1 | L50: 67 | M50: 06:29:00 | N50: 0.2076388889 | O50: 0.01388888889 | P50: 1 | Q50: 00:51:00 | R50: 0.34 | T50: 2008-01-04 | U50: 0 | V50: 20 | W50: 0.3333333333 | X50: 51 | Y50: 0.85 | Z50: 1 | AA50: 7 | AB50: 2008 | AJ50: 0 | AK50: 12:00:00 | AL50: 3.9 | AM50: 2.9 | AN50: 3 | AO50: 00:20:00 | AP50: 11:28:00 | AQ50: 67 | AR50: 1.1 | AS50: 4 | AT50: 5.3 | AU50: 5.3
A51: Thu | B51: Jan | C51: 4 | D51: 2008 | E51: 12:30:00 | F51: 5 | G51: 4 | H51: 0 | I51: 0 | J51: 1 | K51: 2 | L51: 40 | M51: 07:13:00 | N51: 0.4423611111 | O51: 0.01319444444 | P51: 1 | Q51: 00:46:00 | R51: 0.5 | T51: 2008-01-04 | U51: 0.2 | V51: 19 | W51: 0.3166666667 | X51: 46 | Y51: 0.7666666667 | Z51: 1 | AA51: 7 | AB51: 2008 | AJ51: 0 | AK51: 12:30:00 | AL51: 3.1 | AM51: 2.5 | AN51: 5 | AO51: 00:20:00 | AP51: 17:50:00 | AQ51: 50 | AR51: 3 | AS51: 7 | AT51: 8.6 | AU51: 8.6
A52: Thu | B52: Jan | C52: 4 | D52: 2008 | E52: 13:00:00 | F52: 7 | G52: 7 | H52: 0 | I52: 0 | J52: 0 | K52: 2 | L52: 71 | M52: 04:55:00 | N52: 0.1423611111 | O52: 0.02430555556 | P52: 1 | Q52: 03:08:00 | R52: 0.64 | T52: 2008-01-04 | U52: 0 | V52: 35 | W52: 0.5833333333 | X52: 188 | Y52: 3.133333333 | Z52: 1 | AA52: 7 | AB52: 2008 | AJ52: 0 | AK52: 13:00:00 | AL52: 2.5 | AM52: 2.3 | AN52: 7 | AO52: 00:20:00 | AP52: 08:20:00 | AQ52: 71 | AR52: 1.9 | AS52: 5 | AT52: 5.4 | AU52: 5.4
A53: Thu | B53: Jan | C53: 4 | D53: 2008 | E53: 13:30:00 | F53: 4 | G53: 3 | H53: 0 | I53: 0 | J53: 1 | K53: 0 | L53: 75 | M53: 04:06:00 | N53: 0.4048611111 | O53: 0.002777777778 | P53: 2 | Q53: 09:07:00 | R53: 0.21 | T53: 2008-01-04 | U53: 0.25 | V53: 4 | W53: 0.06666666667 | X53: 547 | Y53: 9.116666667 | Z53: 1 | AA53: 7 | AB53: 2008 | AJ53: 0 | AK53: 13:30:00 | AL53: 2.5 | AM53: 2.5 | AN53: 4 | AO53: 00:20:00 | AP53: 13:49:00 | AQ53: 80 | AR53: 1.8 | AS53: 5 | AT53: 5 | AU53: 5
A54: Thu | B54: Jan | C54: 4 | D54: 2008 | E54: 14:00:00 | F54: 4 | G54: 3 | H54: 0 | I54: 0 | J54: 1 | K54: 1 | L54: 50 | M54: 04:38:00 | N54: 0.1013888889 | O54: 0.16875 | P54: 1 | Q54: 11:59:00 | R54: 0.44 | T54: 2008-01-04 | U54: 0.25 | V54: 243 | W54: 4.05 | X54: 719 | Y54: 11.98333333 | Z54: 1 | AA54: 7 | AB54: 2008 | AJ54: 0 | AK54: 14:00:00 | AL54: 3.3 | AM54: 2.5 | AN54: 4 | AO54: 00:20:00 | AP54: 07:04:00 | AQ54: 60 | AR54: 0.9 | AS54: 3 | AT54: 4 | AU54: 4
A55: Thu | B55: Jan | C55: 4 | D55: 2008 | E55: 14:30:00 | F55: 9 | G55: 9 | H55: 0 | I55: 0 | J55: 0 | K55: 5 | L55: 44 | M55: 13:12:00 | N55: 0.1305555556 | O55: 0.09583333333 | P55: 4 | Q55: 05:37:00 | R55: 2.32 | T55: 2008-01-04 | U55: 0 | V55: 138 | W55: 2.3 | X55: 337 | Y55: 5.616666667 | Z55: 1 | AA55: 7 | AB55: 2008 | AJ55: 0 | AK55: 14:30:00 | AL55: 3.1 | AM55: 2.7 | AN55: 9 | AO55: 00:20:00 | AP55: 16:20:00 | AQ55: 44 | AR55: 4.9 | AS55: 9 | AT55: 10.3 | AU55: 0.3
A56: Thu | B56: Jan | C56: 4 | D56: 2008 | E56: 15:00:00 | F56: 4 | G56: 3 | H56: 0 | I56: 0 | J56: 1 | K56: 3 | L56: 0 | M56: 07:50:00 | N56: 0.6923611111 | O56: 0.1527777778 | P56: 2 | Q56: 06:49:00 | R56: 0.69 | T56: 2008-01-04 | U56: 0.25 | V56: 220 | W56: 3.666666667 | X56: 409 | Y56: 6.816666667 | Z56: 1 | AA56: 7 | AB56: 2008 | AJ56: 0 | AK56: 15:00:00 | AL56: 2.6 | AM56: 2.4 | AN56: 4 | AO56: 00:20:00 | AP56: 1.01875 | AQ56: 20 | AR56: 3.3 | AS56: 8 | AT56: 8.6 | AU56: 8.6
A57: Thu | B57: Jan | C57: 4 | D57: 2008 | E57: 15:30:00 | F57: 3 | G57: 3 | H57: 0 | I57: 0 | J57: 0 | K57: 2 | L57: 33 | M57: 05:04:00 | N57: 0.2555555556 | O57: 0.175 | P57: 1 | Q57: 06:49:00 | R57: 0.46 | T57: 2008-01-04 | U57: 0 | V57: 252 | W57: 4.2 | X57: 409 | Y57: 6.816666667 | Z57: 1 | AA57: 7 | AB57: 2008 | AJ57: 0 | AK57: 15:30:00 | AL57: 2 | AM57: 1.6 | AN57: 3 | AO57: 00:20:00 | AP57: 11:12:00 | AQ57: 33 | AR57: 1.1 | AS57: 4 | AT57: 5 | AU57: 5
A58: Thu | B58: Jan | C58: 4 | D58: 2008 | E58: 16:00:00 | F58: 6 | G58: 5 | H58: 0 | I58: 1 | J58: 0 | K58: 3 | L58: 50 | M58: 04:09:00 | N58: 0.1666666667 | O58: 0.07152777778 | P58: 2 | Q58: 05:15:00 | R58: 0.59 | T58: 2008-01-04 | U58: 0 | V58: 103 | W58: 1.716666667 | X58: 315 | Y58: 5.25 | Z58: 1 | AA58: 7 | AB58: 2008 | AJ58: 0 | AK58: 16:00:00 | AL58: 2.2 | AM58: 1.9 | AN58: 6 | AO58: 00:20:00 | AP58: 08:09:00 | AQ58: 50 | AR58: 1.6 | AS58: 4 | AT58: 4.6 | AU58: 4.6
A59: Thu | B59: Jan | C59: 4 | D59: 2008 | E59: 16:30:00 | F59: 5 | G59: 3 | H59: 0 | I59: 1 | J59: 1 | K59: 4 | L59: 0 | M59: 03:23:00 | N59: 0.3326388889 | O59: 0.07013888889 | P59: 1 | Q59: 04:45:00 | R59: 0.4 | T59: 2008-01-04 | U59: 0.2 | V59: 101 | W59: 1.683333333 | X59: 285 | Y59: 4.75 | Z59: 1 | AA59: 7 | AB59: 2008 | AJ59: 0 | AK59: 16:30:00 | AL59: 2 | AM59: 1.3 | AN59: 5 | AO59: 00:20:00 | AP59: 11:22:00 | AQ59: 17 | AR59: 1.9 | AS59: 5 | AT59: 8 | AU59: 8
A60: Thu | B60: Jan | C60: 4 | D60: 2008 | E60: 17:00:00 | F60: 2 | G60: 2 | H60: 0 | I60: 0 | J60: 0 | K60: 2 | L60: 0 | M60: 07:10:00 | N60: 0.1013888889 | O60: 0.1361111111 | P60: 1 | Q60: 04:45:00 | R60: 0.35 | T60: 2008-01-04 | U60: 0 | V60: 196 | W60: 3.266666667 | X60: 285 | Y60: 4.75 | Z60: 1 | AA60: 7 | AB60: 2008 | AJ60: 0 | AK60: 17:00:00 | AL60: 1.2 | AM60: 1.1 | AN60: 2 | AO60: 00:20:00 | AP60: 09:36:00 | AQ60: 0 | AR60: 0.6 | AS60: 3 | AT60: 3.2 | AU60: 3.2
A61: Thu | B61: Jan | C61: 4 | D61: 2008 | E61: 17:30:00 | F61: 0 | G61: 0 | H61: 0 | I61: 0 | J61: 0 | K61: 0 | L61: 100 | M61: 00:00:00 | N61: 0 | O61: 0 | P61: 0 | Q61: 00:00:00 | R61: 0 | T61: 2008-01-04 | U61: 0 | V61: 0 | W61: 0 | X61: 0 | Y61: 0 | Z61: 1 | AA61: 7 | AB61: 2008 | AJ61: 0 | AK61: 17:30:00 | AL61: 1 | AM61: 0.8 | AN61: 0 | AO61: 00:20:00 | AP61: 00:00:00 | AQ61: 100 | AR61: 0 | AS61: 0 | AT61: 0 | AU61: 0
A62: Fri | B62: Jan | C62: 5 | D62: 2008 | E62: 08:00:00 | F62: 0 | G62: 0 | H62: 0 | I62: 0 | J62: 0 | K62: 0 | L62: 100 | M62: 00:00:00 | N62: 0 | O62: 0 | P62: 0 | Q62: 00:00:00 | R62: 0 | T62: 2008-01-05 | U62: 0 | V62: 0 | W62: 0 | X62: 0 | Y62: 0 | Z62: 1 | AA62: 7 | AB62: 2008 | AJ62: 0 | AK62: 08:00:00 | AL62: 0 | AM62: 0 | AN62: 0 | AO62: 00:20:00 | AP62: 00:00:00 | AQ62: 100 | AR62: 0 | AS62: 0 | AT62: 0 | AU62: *
A63: Fri | B63: Jan | C63: 5 | D63: 2008 | E63: 08:30:00 | F63: 0 | G63: 0 | H63: 0 | I63: 0 | J63: 0 | K63: 0 | L63: 100 | M63: 00:00:00 | N63: 0 | O63: 0 | P63: 0 | Q63: 00:00:00 | R63: 0 | T63: =DATE(D63,MONTH(DATEVALUE(CONCATENATE("1/",B63,"/2007"))),C63) -> 2008-01-05 | U63: =IF(F63<>0,J63/F63,0) -> 0 | V63: =HOUR(O63)*60+(MINUTE(O63)) -> 0 | W63: =HOUR(O63)+(MINUTE(O63)/60) -> 0 | X63: =HOUR(Q63)*60+(MINUTE(Q63)) -> 0 | Y63: =HOUR(Q63)+(MINUTE(Q63)/60) -> 0 | Z63: 1 | AA63: =IF(MONTH(T63)>6,MONTH(T63)-6,MONTH(T63)+6) -> 7 | AB63: =IF(AA63<=6,YEAR(T63)+1,YEAR(T63)) -> 2008 | AJ63: 0 | AK63: 08:30:00 | AL63: 0 | AM63: 0 | AN63: 0 | AO63: 00:20:00 | AP63: 00:00:00 | AQ63: 100 | AR63: 0 | AS63: 0 | AT63: 0 | AU63: *
A64: Fri | B64: Jan | C64: 5 | D64: 2008 | E64: 09:00:00 | F64: 0 | G64: 0 | H64: 0 | I64: 0 | J64: 0 | K64: 0 | L64: 100 | M64: 00:00:00 | N64: 0 | O64: 0 | P64: 0 | Q64: 00:00:00 | R64: 0 | T64: 2008-01-05 | U64: 0 | V64: 0 | W64: 0 | X64: 0 | Y64: 0 | Z64: 1 | AA64: 7 | AB64: 2008 | AJ64: 0 | AK64: 09:00:00 | AL64: 0 | AM64: 0 | AN64: 0 | AO64: 00:20:00 | AP64: 00:00:00 | AQ64: 100 | AR64: 0 | AS64: 0 | AT64: 0 | AU64: *
A65: Fri | B65: Jan | C65: 5 | D65: 2008 | E65: 09:30:00 | F65: 0 | G65: 0 | H65: 0 | I65: 0 | J65: 0 | K65: 0 | L65: 100 | M65: 00:00:00 | N65: 0 | O65: 0 | P65: 0 | Q65: 00:00:00 | R65: 0 | T65: 2008-01-05 | U65: 0 | V65: 0 | W65: 0 | X65: 0 | Y65: 0 | Z65: 1 | AA65: 7 | AB65: 2008 | AJ65: 0 | AK65: 09:30:00 | AL65: 0 | AM65: 0 | AN65: 0 | AO65: 00:20:00 | AP65: 00:00:00 | AQ65: 100 | AR65: 0 | AS65: 0 | AT65: 0 | AU65: *
A66: Fri | B66: Jan | C66: 5 | D66: 2008 | E66: 10:00:00 | F66: 0 | G66: 0 | H66: 0 | I66: 0 | J66: 0 | K66: 0 | L66: 100 | M66: 00:00:00 | N66: 0 | O66: 0 | P66: 0 | Q66: 00:00:00 | R66: 0 | T66: 2008-01-05 | U66: 0 | V66: 0 | W66: 0 | X66: 0 | Y66: 0 | Z66: 1 | AA66: 7 | AB66: 2008 | AJ66: 0 | AK66: 10:00:00 | AL66: 0 | AM66: 0 | AN66: 0 | AO66: 00:20:00 | AP66: 00:00:00 | AQ66: 100 | AR66: 0 | AS66: 0 | AT66: 0 | AU66: *
A67: Fri | B67: Jan | C67: 5 | D67: 2008 | E67: 10:30:00 | F67: 0 | G67: 0 | H67: 0 | I67: 0 | J67: 0 | K67: 0 | L67: 100 | M67: 00:00:00 | N67: 0 | O67: 0 | P67: 0 | Q67: 00:00:00 | R67: 0 | T67: 2008-01-05 | U67: 0 | V67: 0 | W67: 0 | X67: 0 | Y67: 0 | Z67: =WEEKNUM(T67) -> 1 | AA67: 7 | AB67: 2008 | AJ67: =SUM(AD67:AE67,AI67) -> 0 | AK67: 10:30:00 | AL67: 0 | AM67: 0 | AN67: 0 | AO67: 00:20:00 | AP67: 00:00:00 | AQ67: 100 | AR67: 0 | AS67: 0 | AT67: 0 | AU67: *
A68: Fri | B68: Jan | C68: 5 | D68: 2008 | E68: 11:00:00 | F68: 0 | G68: 0 | H68: 0 | I68: 0 | J68: 0 | K68: 0 | L68: 100 | M68: 00:00:00 | N68: 0 | O68: 0 | P68: 0 | Q68: 00:00:00 | R68: 0 | T68: 2008-01-05 | U68: 0 | V68: 0 | W68: 0 | X68: 0 | Y68: 0 | Z68: 1 | AA68: 7 | AB68: 2008 | AJ68: 0 | AK68: 11:00:00 | AL68: 0 | AM68: 0 | AN68: 0 | AO68: 00:20:00 | AP68: 00:00:00 | AQ68: 100 | AR68: 0 | AS68: 0 | AT68: 0 | AU68: *
A69: Fri | B69: Jan | C69: 5 | D69: 2008 | E69: 11:30:00 | F69: 0 | G69: 0 | H69: 0 | I69: 0 | J69: 0 | K69: 0 | L69: 100 | M69: 00:00:00 | N69: 0 | O69: 0 | P69: 0 | Q69: 00:00:00 | R69: 0 | T69: 2008-01-05 | U69: 0 | V69: 0 | W69: 0 | X69: 0 | Y69: 0 | Z69: 1 | AA69: 7 | AB69: 2008 | AJ69: 0 | AK69: 11:30:00 | AL69: 0 | AM69: 0 | AN69: 0 | AO69: 00:20:00 | AP69: 00:00:00 | AQ69: 100 | AR69: 0 | AS69: 0 | AT69: 0 | AU69: *
A70: Fri | B70: Jan | C70: 5 | D70: 2008 | E70: 12:00:00 | F70: 0 | G70: 0 | H70: 0 | I70: 0 | J70: 0 | K70: 0 | L70: 100 | M70: 00:00:00 | N70: 0 | O70: 0 | P70: 0 | Q70: 00:00:00 | R70: 0 | T70: 2008-01-05 | U70: 0 | V70: 0 | W70: 0 | X70: 0 | Y70: 0 | Z70: 1 | AA70: 7 | AB70: 2008 | AJ70: 0 | AK70: 12:00:00 | AL70: 0 | AM70: 0 | AN70: 0 | AO70: 00:20:00 | AP70: 00:00:00 | AQ70: 100 | AR70: 0 | AS70: 0 | AT70: 0 | AU70: *
A71: Fri | B71: Jan | C71: 5 | D71: 2008 | E71: 12:30:00 | F71: 0 | G71: 0 | H71: 0 | I71: 0 | J71: 0 | K71: 0 | L71: 100 | M71: 00:00:00 | N71: 0 | O71: 0 | P71: 0 | Q71: 00:00:00 | R71: 0 | T71: 2008-01-05 | U71: 0 | V71: 0 | W71: 0 | X71: 0 | Y71: 0 | Z71: 1 | AA71: 7 | AB71: 2008 | AJ71: 0 | AK71: 12:30:00 | AL71: 0 | AM71: 0 | AN71: 0 | AO71: 00:20:00 | AP71: 00:00:00 | AQ71: 100 | AR71: 0 | AS71: 0 | AT71: 0 | AU71: *
A72: Fri | B72: Jan | C72: 5 | D72: 2008 | E72: 13:00:00 | F72: 0 | G72: 0 | H72: 0 | I72: 0 | J72: 0 | K72: 0 | L72: 100 | M72: 00:00:00 | N72: 0 | O72: 0 | P72: 0 | Q72: 00:00:00 | R72: 0 | T72: 2008-01-05 | U72: 0 | V72: 0 | W72: 0 | X72: 0 | Y72: 0 | Z72: 1 | AA72: 7 | AB72: 2008 | AJ72: 0 | AK72: 13:00:00 | AL72: 0 | AM72: 0 | AN72: 0 | AO72: 00:20:00 | AP72: 00:00:00 | AQ72: 100 | AR72: 0 | AS72: 0 | AT72: 0 | AU72: *
A73: Fri | B73: Jan | C73: 5 | D73: 2008 | E73: 13:30:00 | F73: 0 | G73: 0 | H73: 0 | I73: 0 | J73: 0 | K73: 0 | L73: 100 | M73: 00:00:00 | N73: 0 | O73: 0 | P73: 0 | Q73: 00:00:00 | R73: 0 | T73: 2008-01-05 | U73: 0 | V73: 0 | W73: 0 | X73: 0 | Y73: 0 | Z73: 1 | AA73: 7 | AB73: 2008 | AJ73: 0 | AK73: 13:30:00 | AL73: 0 | AM73: 0 | AN73: 0 | AO73: 00:20:00 | AP73: 00:00:00 | AQ73: 100 | AR73: 0 | AS73: 0 | AT73: 0 | AU73: *
A74: Fri | B74: Jan | C74: 5 | D74: 2008 | E74: 14:00:00 | F74: 0 | G74: 0 | H74: 0 | I74: 0 | J74: 0 | K74: 0 | L74: 100 | M74: 00:00:00 | N74: 0 | O74: 0 | P74: 0 | Q74: 00:00:00 | R74: 0 | T74: 2008-01-05 | U74: 0 | V74: 0 | W74: 0 | X74: 0 | Y74: 0 | Z74: 1 | AA74: 7 | AB74: 2008 | AJ74: 0 | AK74: 14:00:00 | AL74: 0 | AM74: 0 | AN74: 0 | AO74: 00:20:00 | AP74: 00:00:00 | AQ74: 100 | AR74: 0 | AS74: 0 | AT74: 0 | AU74: *
A75: Fri | B75: Jan | C75: 5 | D75: 2008 | E75: 14:30:00 | F75: 0 | G75: 0 | H75: 0 | I75: 0 | J75: 0 | K75: 0 | L75: 100 | M75: 00:00:00 | N75: 0 | O75: 0 | P75: 0 | Q75: 00:00:00 | R75: 0 | T75: 2008-01-05 | U75: 0 | V75: 0 | W75: 0 | X75: 0 | Y75: 0 | Z75: 1 | AA75: 7 | AB75: 2008 | AJ75: 0 | AK75: 14:30:00 | AL75: 0 | AM75: 0 | AN75: 0 | AO75: 00:20:00 | AP75: 00:00:00 | AQ75: 100 | AR75: 0 | AS75: 0 | AT75: 0 | AU75: *
A76: Fri | B76: Jan | C76: 5 | D76: 2008 | E76: 15:00:00 | F76: 0 | G76: 0 | H76: 0 | I76: 0 | J76: 0 | K76: 0 | L76: 100 | M76: 00:00:00 | N76: 0 | O76: 0 | P76: 0 | Q76: 00:00:00 | R76: 0 | T76: 2008-01-05 | U76: 0 | V76: 0 | W76: 0 | X76: 0 | Y76: 0 | Z76: 1 | AA76: 7 | AB76: 2008 | AJ76: 0 | AK76: 15:00:00 | AL76: 0 | AM76: 0 | AN76: 0 | AO76: 00:20:00 | AP76: 00:00:00 | AQ76: 100 | AR76: 0 | AS76: 0 | AT76: 0 | AU76: *
A77: Fri | B77: Jan | C77: 5 | D77: 2008 | E77: 15:30:00 | F77: 0 | G77: 0 | H77: 0 | I77: 0 | J77: 0 | K77: 0 | L77: 100 | M77: 00:00:00 | N77: 0 | O77: 0 | P77: 0 | Q77: 00:00:00 | R77: 0 | T77: 2008-01-05 | U77: 0 | V77: 0 | W77: 0 | X77: 0 | Y77: 0 | Z77: 1 | AA77: 7 | AB77: 2008 | AJ77: 0 | AK77: 15:30:00 | AL77: 0 | AM77: 0 | AN77: 0 | AO77: 00:20:00 | AP77: 00:00:00 | AQ77: 100 | AR77: 0 | AS77: 0 | AT77: 0 | AU77: *
A78: Fri | B78: Jan | C78: 5 | D78: 2008 | E78: 16:00:00 | F78: 0 | G78: 0 | H78: 0 | I78: 0 | J78: 0 | K78: 0 | L78: 100 | M78: 00:00:00 | N78: 0 | O78: 0 | P78: 0 | Q78: 00:00:00 | R78: 0 | T78: 2008-01-05 | U78: 0 | V78: 0 | W78: 0 | X78: 0 | Y78: 0 | Z78: 1 | AA78: 7 | AB78: 2008 | AJ78: 0 | AK78: 16:00:00 | AL78: 0 | AM78: 0 | AN78: 0 | AO78: 00:20:00 | AP78: 00:00:00 | AQ78: 100 | AR78: 0 | AS78: 0 | AT78: 0 | AU78: *
A79: Fri | B79: Jan | C79: 5 | D79: 2008 | E79: 16:30:00 | F79: 0 | G79: 0 | H79: 0 | I79: 0 | J79: 0 | K79: 0 | L79: 100 | M79: 00:00:00 | N79: 0 | O79: 0 | P79: 0 | Q79: 00:00:00 | R79: 0 | T79: 2008-01-05 | U79: 0 | V79: 0 | W79: 0 | X79: 0 | Y79: 0 | Z79: 1 | AA79: 7 | AB79: 2008 | AJ79: 0 | AK79: 16:30:00 | AL79: 0 | AM79: 0 | AN79: 0 | AO79: 00:20:00 | AP79: 00:00:00 | AQ79: 100 | AR79: 0 | AS79: 0 | AT79: 0 | AU79: *
A80: Fri | B80: Jan | C80: 5 | D80: 2008 | E80: 17:00:00 | F80: 0 | G80: 0 | H80: 0 | I80: 0 | J80: 0 | K80: 0 | L80: 100 | M80: 00:00:00 | N80: 0 | O80: 0 | P80: 0 | Q80: 00:00:00 | R80: 0 | T80: 2008-01-05 | U80: 0 | V80: 0 | W80: 0 | X80: 0 | Y80: 0 | Z80: 1 | AA80: 7 | AB80: 2008 | AJ80: 0 | AK80: 17:00:00 | AL80: 0 | AM80: 0 | AN80: 0 | AO80: 00:20:00 | AP80: 00:00:00 | AQ80: 100 | AR80: 0 | AS80: 0 | AT80: 0 | AU80: *
A81: Fri | B81: Jan | C81: 5 | D81: 2008 | E81: 17:30:00 | F81: 0 | G81: 0 | H81: 0 | I81: 0 | J81: 0 | K81: 0 | L81: 100 | M81: 00:00:00 | N81: 0 | O81: 0 | P81: 0 | Q81: 00:00:00 | R81: 0 | T81: 2008-01-05 | U81: 0 | V81: 0 | W81: 0 | X81: 0 | Y81: 0 | Z81: 1 | AA81: 7 | AB81: 2008 | AJ81: 0 | AK81: 17:30:00 | AL81: 0 | AM81: 0 | AN81: 0 | AO81: 00:20:00 | AP81: 00:00:00 | AQ81: 100 | AR81: 0 | AS81: 0 | AT81: 0 | AU81: *
A82: Mon | B82: Jan | C82: 7 | D82: 2008 | E82: 08:00:00 | F82: 1 | G82: 1 | H82: 0 | I82: 0 | J82: 0 | K82: 0 | L82: 100 | M82: 02:51:00 | N82: 0.2763888889 | O82: 0.003472222222 | P82: 1 | Q82: 00:05:00 | R82: 0.05 | T82: 2008-01-07 | U82: 0 | V82: 5 | W82: 0.08333333333 | X82: 5 | Y82: 0.08333333333 | Z82: 2 | AA82: 7 | AB82: 2008 | AC82: 08:00:00 | AD82: 1 | AE82: 1 | AF82: 0 | AG82: 0 | AH82: 1 | AI82: 0 | AJ82: 2 | AK82: 08:00:00 | AL82: 1.7 | AM82: 1.3 | AN82: 1 | AO82: 00:20:00 | AP82: 09:29:00 | AQ82: 100 | AR82: 0.3 | AS82: 2 | AT82: 2.7
A83: Mon | B83: Jan | C83: 7 | D83: 2008 | E83: 08:30:00 | F83: 3 | G83: 3 | H83: 0 | I83: 0 | J83: 0 | K83: 0 | L83: 100 | M83: 05:20:00 | N83: 0.4826388889 | O83: 0.002777777778 | P83: 1 | Q83: 00:05:00 | R83: 0.27 | T83: 2008-01-07 | U83: 0 | V83: 4 | W83: 0.06666666667 | X83: 5 | Y83: 0.08333333333 | Z83: 2 | AA83: 7 | AB83: 2008 | AC83: 08:30:00 | AD83: 1 | AE83: 1 | AF83: 0 | AG83: 0 | AH83: 1 | AI83: 0 | AJ83: 2 | AK83: 08:30:00 | AL83: 2 | AM83: 2 | AN83: 3 | AO83: 00:20:00 | AP83: 16:55:00 | AQ83: 100 | AR83: 1.7 | AS83: 5 | AT83: 5.1
A84: Mon | B84: Jan | C84: 7 | D84: 2008 | E84: 09:00:00 | F84: 1 | G84: 1 | H84: 0 | I84: 0 | J84: 0 | K84: 0 | L84: 100 | M84: 01:15:00 | N84: 0.6243055556 | O84: 0.001388888889 | P84: 1 | Q84: 00:03:00 | R84: 0.02 | T84: 2008-01-07 | U84: 0 | V84: 2 | W84: 0.03333333333 | X84: 3 | Y84: 0.05 | Z84: 2 | AA84: 7 | AB84: 2008 | AC84: 09:00:00 | AD84: 1 | AE84: 2 | AF84: 1 | AG84: 0 | AH84: 1 | AI84: 0 | AJ84: 3 | AK84: 09:00:00 | AL84: 2.7 | AM84: 2.6 | AN84: 1 | AO84: 00:20:00 | AP84: 16:14:00 | AQ84: 100 | AR84: 0.5 | AS84: 3 | AT84: 3.2
A85: Mon | B85: Jan | C85: 7 | D85: 2008 | E85: 09:30:00 | F85: 7 | G85: 4 | H85: 0 | I85: 0 | J85: 3 | K85: 1 | L85: 43 | M85: 18:47:00 | N85: 0.1895833333 | O85: 0.05069444444 | P85: 4 | Q85: 18:47:00 | R85: 1.38 | T85: 2008-01-07 | U85: 0.4285714286 | V85: 73 | W85: 1.216666667 | X85: 1127 | Y85: 18.78333333 | Z85: 2 | AA85: 7 | AB85: 2008 | AC85: 09:30:00 | AD85: 1 | AE85: 2 | AF85: 1 | AG85: 0 | AH85: 1 | AI85: 0 | AJ85: 3 | AK85: 09:30:00 | AL85: 3 | AM85: 3 | AN85: 7 | AO85: 00:20:00 | AP85: 23:20:00 | AQ85: 60 | AR85: 5.4 | AS85: 10 | AT85: 10
A86: Mon | B86: Jan | C86: 7 | D86: 2008 | E86: 10:00:00 | F86: 6 | G86: 6 | H86: 0 | I86: 0 | J86: 0 | K86: 4 | L86: 33 | M86: 04:41:00 | N86: 0.1972222222 | O86: 0.3784722222 | P86: 1 | Q86: 18:47:00 | R86: 1.38 | T86: 2008-01-07 | U86: 0 | V86: 545 | W86: 9.083333333 | X86: 1127 | Y86: 18.78333333 | Z86: 2 | AA86: 7 | AB86: 2008 | AC86: 10:00:00 | AD86: 1 | AE86: 3 | AF86: 1 | AG86: 0 | AH86: 1 | AI86: 0 | AJ86: 4 | AK86: 10:00:00 | AL86: 3.9 | AM86: 3.5 | AN86: 6 | AO86: 00:20:00 | AP86: 09:25:00 | AQ86: 33 | AR86: 1.9 | AS86: 5 | AT86: 5.7
A87: Mon | B87: Jan | C87: 7 | D87: 2008 | E87: 10:30:00 | F87: 8 | G87: 6 | H87: 0 | I87: 0 | J87: 2 | K87: 2 | L87: 50 | M87: 11:41:00 | N87: 0.375 | O87: 0.0375 | P87: 4 | Q87: 08:47:00 | R87: 1.3 | T87: 2008-01-07 | U87: 0.25 | V87: 54 | W87: 0.9 | X87: 527 | Y87: 8.783333333 | Z87: 2 | AA87: 7 | AB87: 2008 | AC87: 10:30:00 | AD87: 1 | AE87: 4 | AF87: 1 | AG87: 0 | AH87: 1 | AI87: 0 | AJ87: 5 | AK87: 10:30:00 | AL87: 4 | AM87: 3.9 | AN87: 8 | AO87: 00:20:00 | AP87: 20:41:00 | AQ87: 60 | AR87: 5.5 | AS87: 10 | AT87: 10.2
A88: Mon | B88: Jan | C88: 7 | D88: 2008 | E88: 11:00:00 | F88: 16 | G88: 13 | H88: 0 | I88: 0 | J88: 3 | K88: 8 | L88: 31 | M88: 07:21:00 | N88: 0.2180555556 | O88: 0.1354166667 | P88: 2 | Q88: 08:48:00 | R88: 2.32 | T88: 2008-01-07 | U88: 0.1875 | V88: 195 | W88: 3.25 | X88: 528 | Y88: 8.8 | Z88: 2 | AA88: 7 | AB88: 2008 | AC88: 11:00:00 | AD88: 1 | AE88: 5 | AF88: 1 | AG88: 0 | AH88: 1 | AI88: 0 | AJ88: 6 | AK88: 11:00:00 | AL88: 5.8 | AM88: 5.3 | AN88: 16 | AO88: 00:20:00 | AP88: 12:35:00 | AQ88: 42 | AR88: 6.7 | AS88: 11 | AT88: 12.1
A89: Mon | B89: Jan | C89: 7 | D89: 2008 | E89: 11:30:00 | F89: 7 | G89: 7 | H89: 0 | I89: 0 | J89: 0 | K89: 0 | L89: 100 | M89: 06:56:00 | N89: 0.24375 | O89: 0.002777777778 | P89: 1 | Q89: 00:07:00 | R89: 0.82 | T89: 2008-01-07 | U89: 0 | V89: 4 | W89: 0.06666666667 | X89: 7 | Y89: 0.1166666667 | Z89: 2 | AA89: 7 | AB89: 2008 | AC89: 11:30:00 | AD89: 1 | AE89: 4 | AF89: 1 | AG89: 0 | AH89: 1 | AI89: 0 | AJ89: 5 | AK89: 11:30:00 | AL89: 3.9 | AM89: 3.7 | AN89: 7 | AO89: 00:20:00 | AP89: 12:47:00 | AQ89: 100 | AR89: 3 | AS89: 7 | AT89: 7.3
A90: Mon | B90: Jan | C90: 7 | D90: 2008 | E90: 12:00:00 | F90: 3 | G90: 3 | H90: 0 | I90: 0 | J90: 0 | K90: 0 | L90: 100 | M90: 04:50:00 | N90: 0.1451388889 | O90: 0.002083333333 | P90: 1 | Q90: 00:04:00 | R90: 0.24 | T90: 2008-01-07 | U90: 0 | V90: 3 | W90: 0.05 | X90: 4 | Y90: 0.06666666667 | Z90: 2 | AA90: 7 | AB90: 2008 | AC90: 12:00:00 | AD90: 1 | AE90: 3 | AF90: 1 | AG90: 0 | AH90: 1 | AI90: 0 | AJ90: 4 | AK90: 12:00:00 | AL90: 2.5 | AM90: 1.9 | AN90: 3 | AO90: 00:20:00 | AP90: 08:19:00 | AQ90: 100 | AR90: 0.8 | AS90: 3 | AT90: 3.8
A91: Mon | B91: Jan | C91: 7 | D91: 2008 | E91: 12:30:00 | F91: 7 | G91: 5 | H91: 0 | I91: 1 | J91: 1 | K91: 2 | L91: 57 | M91: 08:32:00 | N91: 0.2930555556 | O91: 0.07083333333 | P91: 2 | Q91: 06:07:00 | R91: 1.06 | T91: 2008-01-07 | U91: 0.1428571429 | V91: 102 | W91: 1.7 | X91: 367 | Y91: 6.116666667 | Z91: 2 | AA91: 7 | AB91: 2008 | AC91: 12:30:00 | AD91: 1 | AE91: 3 | AF91: 1 | AG91: 0 | AH91: 1 | AI91: 0 | AJ91: 4 | AK91: 12:30:00 | AL91: 3.8 | AM91: 3.4 | AN91: 7 | AO91: 00:20:00 | AP91: 15:34:00 | AQ91: 63 | AR91: 3.6 | AS91: 8 | AT91: 8.9
A92: Mon | B92: Jan | C92: 7 | D92: 2008 | E92: 13:00:00 | F92: 6 | G92: 6 | H92: 0 | I92: 0 | J92: 0 | K92: 1 | L92: 83 | M92: 05:48:00 | N92: 0.2118055556 | O92: 0.009027777778 | P92: 1 | Q92: 01:04:00 | R92: 0.6 | T92: 2008-01-07 | U92: 0 | V92: 13 | W92: 0.2166666667 | X92: 64 | Y92: 1.066666667 | Z92: 2 | AA92: 7 | AB92: 2008 | AC92: 13:00:00 | AD92: 1 | AE92: 3 | AF92: 1 | AG92: 0 | AH92: 1 | AI92: 0 | AJ92: 4 | AK92: 13:00:00 | AL92: 4 | AM92: 3.2 | AN92: 6 | AO92: 00:20:00 | AP92: 10:53:00 | AQ92: 83 | AR92: 2.2 | AS92: 5 | AT92: 6.2
A93: Mon | B93: Jan | C93: 7 | D93: 2008 | E93: 13:30:00 | F93: 4 | G93: 3 | H93: 0 | I93: 1 | J93: 0 | K93: 1 | L93: 75 | M93: 04:53:00 | N93: 0.1986111111 | O93: 0.05763888889 | P93: 1 | Q93: 05:26:00 | R93: 0.42 | T93: 2008-01-07 | U93: 0 | V93: 83 | W93: 1.383333333 | X93: 326 | Y93: 5.433333333 | Z93: 2 | AA93: 7 | AB93: 2008 | AC93: 13:30:00 | AD93: 1 | AE93: 2 | AF93: 1 | AG93: 0 | AH93: 1 | AI93: 0 | AJ93: 3 | AK93: 13:30:00 | AL93: 2.9 | AM93: 2.5 | AN93: 4 | AO93: 00:20:00 | AP93: 09:39:00 | AQ93: 75 | AR93: 1.3 | AS93: 4 | AT93: 4.7
A94: Mon | B94: Jan | C94: 7 | D94: 2008 | E94: 14:00:00 | F94: 8 | G94: 5 | H94: 0 | I94: 0 | J94: 3 | K94: 0 | L94: 63 | M94: 03:48:00 | N94: 0.1854166667 | O94: 0.002083333333 | P94: 1 | Q94: 02:38:00 | R94: 0.38 | T94: 2008-01-07 | U94: 0.375 | V94: 3 | W94: 0.05 | X94: 158 | Y94: 2.633333333 | Z94: 2 | AA94: 7 | AB94: 2008 | AC94: 14:00:00 | AD94: 1 | AE94: 2 | AF94: 1 | AG94: 0 | AH94: 1 | AI94: 0 | AJ94: 3 | AK94: 14:00:00 | AL94: 2.5 | AM94: 2 | AN94: 8 | AO94: 00:20:00 | AP94: 08:15:00 | AQ94: 73 | AR94: 2.2 | AS94: 5 | AT94: 6.2
A95: Mon | B95: Jan | C95: 7 | D95: 2008 | E95: 14:30:00 | F95: 8 | G95: 6 | H95: 0 | I95: 0 | J95: 2 | K95: 3 | L95: 38 | M95: 05:35:00 | N95: 0.2229166667 | O95: 0.01944444444 | P95: 3 | Q95: 04:13:00 | R95: 0.66 | T95: 2008-01-07 | U95: 0.25 | V95: 28 | W95: 0.4666666667 | X95: 253 | Y95: 4.216666667 | Z95: 2 | AA95: 7 | AB95: 2008 | AC95: 14:30:00 | AD95: 1 | AE95: 3 | AF95: 1 | AG95: 0 | AH95: 1 | AI95: 0 | AJ95: 4 | AK95: 14:30:00 | AL95: 3.8 | AM95: 3.3 | AN95: 8 | AO95: 00:20:00 | AP95: 10:56:00 | AQ95: 50 | AR95: 2.9 | AS95: 6 | AT95: 6.8
A96: Mon | B96: Jan | C96: 7 | D96: 2008 | E96: 15:00:00 | F96: 10 | G96: 7 | H96: 0 | I96: 0 | J96: 3 | K96: 4 | L96: 30 | M96: 10:48:00 | N96: 0.1618055556 | O96: 0.05486111111 | P96: 2 | Q96: 06:11:00 | R96: 1.59 | T96: 2008-01-07 | U96: 0.3 | V96: 79 | W96: 1.316666667 | X96: 371 | Y96: 6.183333333 | Z96: 2 | AA96: 7 | AB96: 2008 | AC96: 15:00:00 | AD96: 1 | AE96: 2 | AF96: 1 | AG96: 0 | AH96: 1 | AI96: 0 | AJ96: 3 | AK96: 15:00:00 | AL96: 2.8 | AM96: 2.6 | AN96: 10 | AO96: 00:20:00 | AP96: 14:41:00 | AQ96: 46 | AR96: 4.9 | AS96: 9 | AT96: 9.4
A97: Mon | B97: Jan | C97: 7 | D97: 2008 | E97: 15:30:00 | F97: 6 | G97: 5 | H97: 0 | I97: 0 | J97: 1 | K97: 3 | L97: 33 | M97: 05:50:00 | N97: 0.2326388889 | O97: 0.02847222222 | P97: 2 | Q97: 02:11:00 | R97: 0.56 | T97: 2008-01-07 | U97: 0.1666666667 | V97: 41 | W97: 0.6833333333 | X97: 131 | Y97: 2.183333333 | Z97: 2 | AA97: 7 | AB97: 2008 | AC97: 15:30:00 | AD97: 1 | AE97: 2 | AF97: 1 | AG97: 0 | AH97: 1 | AI97: 0 | AJ97: 3 | AK97: 15:30:00 | AL97: 3 | AM97: 2.5 | AN97: 6 | AO97: 00:20:00 | AP97: 11:25:00 | AQ97: 43 | AR97: 2.3 | AS97: 6 | AT97: 7.1
A98: Mon | B98: Jan | C98: 7 | D98: 2008 | E98: 16:00:00 | F98: 3 | G98: 3 | H98: 0 | I98: 0 | J98: 0 | K98: 1 | L98: 67 | M98: 04:41:00 | N98: 0.3645833333 | O98: 0.02847222222 | P98: 1 | Q98: 01:55:00 | R98: 0.27 | T98: 2008-01-07 | U98: 0 | V98: 41 | W98: 0.6833333333 | X98: 115 | Y98: 1.916666667 | Z98: 2 | AA98: 7 | AB98: 2008 | AC98: 16:00:00 | AD98: 1 | AE98: 2 | AF98: 1 | AG98: 0 | AH98: 1 | AI98: 0 | AJ98: 3 | AK98: 16:00:00 | AL98: 3 | AM98: 2 | AN98: 3 | AO98: 00:20:00 | AP98: 13:26:00 | AQ98: 67 | AR98: 1.3 | AS98: 4 | AT98: 5.9
A99: Mon | B99: Jan | C99: 7 | D99: 2008 | E99: 16:30:00 | F99: 1 | G99: 1 | H99: 0 | I99: 0 | J99: 0 | K99: 0 | L99: 100 | M99: 05:14:00 | N99: 0.3979166667 | O99: 0.002777777778 | P99: 1 | Q99: 00:05:00 | R99: 0.09 | T99: 2008-01-07 | U99: 0 | V99: 4 | W99: 0.06666666667 | X99: 5 | Y99: 0.08333333333 | Z99: 2 | AA99: 7 | AB99: 2008 | AC99: 16:30:00 | AD99: 1 | AE99: 1 | AF99: 1 | AG99: 0 | AH99: 1 | AI99: 0 | AJ99: 2 | AK99: 16:30:00 | AL99: 2 | AM99: 1.1 | AN99: 1 | AO99: 00:20:00 | AP99: 14:47:00 | AQ99: 100 | AR99: 0.5 | AS99: 3 | AT99: 5.4
A100: Mon | B100: Jan | C100: 7 | D100: 2008 | E100: 17:00:00 | F100: 1 | G100: 1 | H100: 0 | I100: 0 | J100: 0 | K100: 0 | L100: 100 | M100: 05:46:00 | N100: 0.004861111111 | O100: 0.003472222222 | P100: 0 | Q100: 00:05:00 | R100: 0.1 | T100: 2008-01-07 | U100: 0 | V100: 5 | W100: 0.08333333333 | X100: 5 | Y100: 0.08333333333 | Z100: 2 | AA100: 7 | AB100: 2008 | AC100: 17:00:00 | AD100: 1 | AE100: 1 | AF100: 0 | AG100: 0 | AH100: 0 | AI100: 0 | AJ100: 2 | AK100: 17:00:00 | AL100: 1 | AM100: 1 | AN100: 1 | AO100: 00:20:00 | AP100: 05:53:00 | AQ100: 100 | AR100: 0.2 | AS100: 2 | AT100: 2
A101: Mon | B101: Jan | C101: 7 | D101: 2008 | E101: 17:30:00 | F101: 0 | G101: 0 | H101: 0 | I101: 0 | J101: 0 | K101: 0 | L101: 100 | M101: 00:00:00 | N101: 0 | O101: 0 | P101: 0 | Q101: 00:00:00 | R101: 0 | T101: 2008-01-07 | U101: 0 | V101: 0 | W101: 0 | X101: 0 | Y101: 0 | Z101: 2 | AA101: 7 | AB101: 2008 | AC101: 17:30:00 | AD101: 1 | AE101: 1 | AF101: 0 | AG101: 0 | AH101: 0 | AI101: 0 | AJ101: 2 | AK101: 17:30:00 | AL101: 1 | AM101: 0.9 | AN101: 0 | AO101: 00:20:00 | AP101: 00:00:00 | AQ101: 100 | AR101: 0 | AS101: 0 | AT101: 0
A102: Tue | B102: Jan | C102: 8 | D102: 2008 | E102: 08:00:00 | F102: 1 | G102: 1 | H102: 0 | I102: 0 | J102: 0 | K102: 0 | L102: 100 | M102: 08:57:00 | N102: 0.5875 | O102: 0.004861111111 | P102: 1 | Q102: 00:07:00 | R102: 0.15 | T102: 2008-01-08 | U102: 0 | V102: 7 | W102: 0.1166666667 | X102: 7 | Y102: 0.1166666667 | Z102: 2 | AA102: 7 | AB102: 2008 | AC102: 08:00:00 | AD102: 1 | AE102: 3 | AF102: 0 | AG102: 0 | AH102: 1 | AI102: 0 | AJ102: 4 | AK102: 08:00:00 | AL102: 2.6 | AM102: 1.9 | AN102: 1 | AO102: 00:20:00 | AP102: 23:03:00 | AQ102: 100 | AR102: 0.8 | AS102: 4 | AT102: 5.2
A103: Tue | B103: Jan | C103: 8 | D103: 2008 | E103: 08:30:00 | F103: 2 | G103: 2 | H103: 0 | I103: 0 | J103: 0 | K103: 0 | L103: 100 | M103: 03:22:00 | N103: 0.6048611111 | O103: 0.003472222222 | P103: 1 | Q103: 00:06:00 | R103: 0.11 | T103: 2008-01-08 | U103: 0 | V103: 5 | W103: 0.08333333333 | X103: 6 | Y103: 0.1 | Z103: 2 | AA103: 7 | AB103: 2008 | AC103: 08:30:00 | AD103: 1 | AE103: 3 | AF103: 0 | AG103: 0 | AH103: 1 | AI103: 0 | AJ103: 4 | AK103: 08:30:00 | AL103: 4 | AM103: 3.2 | AN103: 2 | AO103: 00:20:00 | AP103: 17:53:00 | AQ103: 100 | AR103: 1.2 | AS103: 4 | AT103: 5.1
A104: Tue | B104: Jan | C104: 8 | D104: 2008 | E104: 09:00:00 | F104: 2 | G104: 2 | H104: 0 | I104: 0 | J104: 0 | K104: 0 | L104: 100 | M104: 01:52:00 | N104: 0.2180555556 | O104: 0.00625 | P104: 1 | Q104: 00:12:00 | R104: 0.07 | T104: 2008-01-08 | U104: 0 | V104: 9 | W104: 0.15 | X104: 12 | Y104: 0.2 | Z104: 2 | AA104: 7 | AB104: 2008 | AC104: 09:00:00 | AD104: 1 | AE104: 3 | AF104: 1 | AG104: 0 | AH104: 1 | AI104: 0 | AJ104: 4 | AK104: 09:00:00 | AL104: 3.6 | AM104: 3.5 | AN104: 2 | AO104: 00:20:00 | AP104: 07:06:00 | AQ104: 100 | AR104: 0.5 | AS104: 3 | AT104: 3.1
A105: Tue | B105: Jan | C105: 8 | D105: 2008 | E105: 09:30:00 | F105: 5 | G105: 5 | H105: 0 | I105: 0 | J105: 0 | K105: 1 | L105: 80 | M105: 06:04:00 | N105: 0.2048611111 | O105: 0.01458333333 | P105: 1 | Q105: 01:27:00 | R105: 0.54 | T105: 2008-01-08 | U105: 0 | V105: 21 | W105: 0.35 | X105: 87 | Y105: 1.45 | Z105: 2 | AA105: 7 | AB105: 2008 | AC105: 09:30:00 | AD105: 1 | AE105: 3 | AF105: 1 | AG105: 0 | AH105: 1 | AI105: 0 | AJ105: 4 | AK105: 09:30:00 | AL105: 3 | AM105: 3 | AN105: 5 | AO105: 00:20:00 | AP105: 10:59:00 | AQ105: 80 | AR105: 1.8 | AS105: 5 | AT105: 5
A106: Tue | B106: Jan | C106: 8 | D106: 2008 | E106: 10:00:00 | F106: 8 | G106: 8 | H106: 0 | I106: 0 | J106: 0 | K106: 3 | L106: 63 | M106: 03:49:00 | N106: 0.2111111111 | O106: 0.05277777778 | P106: 3 | Q106: 03:31:00 | R106: 0.68 | T106: 2008-01-08 | U106: 0 | V106: 76 | W106: 1.266666667 | X106: 211 | Y106: 3.516666667 | Z106: 2 | AA106: 7 | AB106: 2008 | AC106: 10:00:00 | AD106: 1 | AE106: 2 | AF106: 1 | AG106: 0 | AH106: 1 | AI106: 0 | AJ106: 3 | AK106: 10:00:00 | AL106: 3 | AM106: 2.8 | AN106: 8 | AO106: 00:20:00 | AP106: 08:53:00 | AQ106: 63 | AR106: 2.4 | AS106: 6 | AT106: 6.4
A107: Tue | B107: Jan | C107: 8 | D107: 2008 | E107: 10:30:00 | F107: 3 | G107: 2 | H107: 0 | I107: 0 | J107: 1 | K107: 1 | L107: 33 | M107: 04:15:00 | N107: 0.7569444444 | O107: 0.03194444444 | P107: 1 | Q107: 01:23:00 | R107: 0.18 | T107: 2008-01-08 | U107: 0.3333333333 | V107: 46 | W107: 0.7666666667 | X107: 83 | Y107: 1.383333333 | Z107: 2 | AA107: 7 | AB107: 2008 | AC107: 10:30:00 | AD107: 1 | AE107: 2 | AF107: 1 | AG107: 0 | AH107: 1 | AI107: 0 | AJ107: 3 | AK107: 10:30:00 | AL107: 2.9 | AM107: 2.3 | AN107: 3 | AO107: 00:20:00 | AP107: 22:25:00 | AQ107: 50 | AR107: 2.2 | AS107: 6 | AT107: 7.3
A108: Tue | B108: Jan | C108: 8 | D108: 2008 | E108: 11:00:00 | F108: 2 | G108: 2 | H108: 0 | I108: 0 | J108: 0 | K108: 0 | L108: 100 | M108: 05:42:00 | N108: 0.1715277778 | O108: 0.004861111111 | P108: 1 | Q108: 00:09:00 | R108: 0.19 | T108: 2008-01-08 | U108: 0 | V108: 7 | W108: 0.1166666667 | X108: 9 | Y108: 0.15 | Z108: 2 | AA108: 7 | AB108: 2008 | AC108: 11:00:00 | AD108: 1 | AE108: 3 | AF108: 1 | AG108: 0 | AH108: 1 | AI108: 0 | AJ108: 4 | AK108: 11:00:00 | AL108: 3.3 | AM108: 2.5 | AN108: 2 | AO108: 00:20:00 | AP108: 09:49:00 | AQ108: 100 | AR108: 0.7 | AS108: 3 | AT108: 4
A109: Tue | B109: Jan | C109: 8 | D109: 2008 | E109: 11:30:00 | F109: 9 | G109: 9 | H109: 0 | I109: 0 | J109: 0 | K109: 0 | L109: 100 | M109: 04:30:00 | N109: 0.1694444444 | O109: 0.002777777778 | P109: 1 | Q109: 00:09:00 | R109: 0.68 | T109: 2008-01-08 | U109: 0 | V109: 4 | W109: 0.06666666667 | X109: 9 | Y109: 0.15 | Z109: 2 | AA109: 7 | AB109: 2008 | AC109: 11:30:00 | AD109: 1 | AE109: 4 | AF109: 1 | AG109: 0 | AH109: 1 | AI109: 0 | AJ109: 5 | AK109: 11:30:00 | AL109: 4 | AM109: 3.8 | AN109: 9 | AO109: 00:20:00 | AP109: 08:34:00 | AQ109: 100 | AR109: 2.6 | AS109: 6 | AT109: 6.2
A110: Tue | B110: Jan | C110: 8 | D110: 2008 | E110: 12:00:00 | F110: 3 | G110: 3 | H110: 0 | I110: 0 | J110: 0 | K110: 1 | L110: 67 | M110: 05:37:00 | N110: 0.3243055556 | O110: 0.05069444444 | P110: 2 | Q110: 03:31:00 | R110: 0.34 | T110: 2008-01-08 | U110: 0 | V110: 73 | W110: 1.216666667 | X110: 211 | Y110: 3.516666667 | Z110: 2 | AA110: 7 | AB110: 2008 | AC110: 12:00:00 | AD110: 0 | AE110: 2 | AF110: 1 | AG110: 0 | AH110: 1 | AI110: 0 | AJ110: 2 | AK110: 12:00:00 | AL110: 2.2 | AM110: 2 | AN110: 3 | AO110: 00:20:00 | AP110: 13:24:00 | AQ110: 67 | AR110: 1.3 | AS110: 4 | AT110: 4.4
A111: Tue | B111: Jan | C111: 8 | D111: 2008 | E111: 12:30:00 | F111: 4 | G111: 4 | H111: 0 | I111: 0 | J111: 0 | K111: 0 | L111: 100 | M111: 05:19:00 | N111: 0.1215277778 | O111: 0.002083333333 | P111: 1 | Q111: 00:04:00 | R111: 0.36 | T111: 2008-01-08 | U111: 0 | V111: 3 | W111: 0.05 | X111: 4 | Y111: 0.06666666667 | Z111: 2 | AA111: 7 | AB111: 2008 | AC111: 12:30:00 | AD111: 0 | AE111: 3 | AF111: 1 | AG111: 0 | AH111: 1 | AI111: 0 | AJ111: 3 | AK111: 12:30:00 | AL111: 2.4 | AM111: 2 | AN111: 4 | AO111: 00:20:00 | AP111: 08:14:00 | AQ111: 100 | AR111: 1.1 | AS111: 4 | AT111: 4.9
A112: Tue | B112: Jan | C112: 8 | D112: 2008 | E112: 13:00:00 | F112: 3 | G112: 3 | H112: 0 | I112: 0 | J112: 0 | K112: 0 | L112: 100 | M112: 01:33:00 | N112: 0.1972222222 | O112: 0.004166666667 | P112: 1 | Q112: 00:07:00 | R112: 0.08 | T112: 2008-01-08 | U112: 0 | V112: 6 | W112: 0.1 | X112: 7 | Y112: 0.1166666667 | Z112: 2 | AA112: 7 | AB112: 2008 | AC112: 13:00:00 | AD112: 1 | AE112: 2 | AF112: 1 | AG112: 0 | AH112: 1 | AI112: 0 | AJ112: 3 | AK112: 13:00:00 | AL112: 2 | AM112: 1.9 | AN112: 3 | AO112: 00:20:00 | AP112: 06:17:00 | AQ112: 100 | AR112: 0.6 | AS112: 3 | AT112: 3.1
A113: Tue | B113: Jan | C113: 8 | D113: 2008 | E113: 13:30:00 | F113: 8 | G113: 4 | H113: 0 | I113: 0 | J113: 4 | K113: 0 | L113: 50 | M113: 06:11:00 | N113: 0.09652777778 | O113: 0.005555555556 | P113: 2 | Q113: 01:26:00 | R113: 0.46 | T113: 2008-01-08 | U113: 0.5 | V113: 8 | W113: 0.1333333333 | X113: 86 | Y113: 1.433333333 | Z113: 2 | AA113: 7 | AB113: 2008 | AC113: 13:30:00 | AD113: 1 | AE113: 2 | AF113: 1 | AG113: 0 | AH113: 1 | AI113: 0 | AJ113: 3 | AK113: 13:30:00 | AL113: 2 | AM113: 1.8 | AN113: 8 | AO113: 00:20:00 | AP113: 08:30:00 | AQ113: 67 | AR113: 2.3 | AS113: 5 | AT113: 5.5
A114: Tue | B114: Jan | C114: 8 | D114: 2008 | E114: 14:00:00 | F114: 2 | G114: 2 | H114: 0 | I114: 0 | J114: 0 | K114: 1 | L114: 50 | M114: 09:43:00 | N114: 0.4784722222 | O114: 0.03125 | P114: 0 | Q114: 01:12:00 | R114: 0.35 | T114: 2008-01-08 | U114: 0 | V114: 45 | W114: 0.75 | X114: 72 | Y114: 1.2 | Z114: 2 | AA114: 7 | AB114: 2008 | AC114: 14:00:00 | AD114: 1 | AE114: 2 | AF114: 1 | AG114: 0 | AH114: 1 | AI114: 0 | AJ114: 3 | AK114: 14:00:00 | AL114: 1.3 | AM114: 1.1 | AN114: 2 | AO114: 00:20:00 | AP114: 21:12:00 | AQ114: 50 | AR114: 1.4 | AS114: 5 | AT114: 6.2
A115: Tue | B115: Jan | C115: 8 | D115: 2008 | E115: 14:30:00 | F115: 2 | G115: 2 | H115: 0 | I115: 0 | J115: 0 | K115: 0 | L115: 100 | M115: 08:51:00 | N115: 0.2395833333 | O115: 0.005555555556 | P115: 1 | Q115: 06:43:00 | R115: 0.3 | T115: 2008-01-08 | U115: 0 | V115: 8 | W115: 0.1333333333 | X115: 403 | Y115: 6.716666667 | Z115: 2 | AA115: 7 | AB115: 2008 | AC115: 14:30:00 | AD115: 1 | AE115: 2 | AF115: 1 | AG115: 0 | AH115: 1 | AI115: 0 | AJ115: 3 | AK115: 14:30:00 | AL115: 1.9 | AM115: 1.5 | AN115: 2 | AO115: 00:20:00 | AP115: 14:36:00 | AQ115: 100 | AR115: 1 | AS115: 4 | AT115: 5
A116: Tue | B116: Jan | C116: 8 | D116: 2008 | E116: 15:00:00 | F116: 6 | G116: 3 | H116: 0 | I116: 0 | J116: 3 | K116: 3 | L116: 0 | M116: 13:09:00 | N116: 0.3305555556 | O116: 0.23125 | P116: 4 | Q116: 09:26:00 | R116: 1.22 | T116: 2008-01-08 | U116: 0.5 | V116: 333 | W116: 5.55 | X116: 566 | Y116: 9.433333333 | Z116: 2 | AA116: 7 | AB116: 2008 | AC116: 15:00:00 | AD116: 1 | AE116: 1 | AF116: 1 | AG116: 0 | AH116: 1 | AI116: 0 | AJ116: 2 | AK116: 15:00:00 | AL116: 2.2 | AM116: 2.2 | AN116: 6 | AO116: 00:20:00 | AP116: 21:05:00 | AQ116: 33 | AR116: 4.2 | AS116: 9 | AT116: 9.1
A117: Tue | B117: Jan | C117: 8 | D117: 2008 | E117: 15:30:00 | F117: 9 | G117: 6 | H117: 0 | I117: 1 | J117: 2 | K117: 7 | L117: 0 | M117: 10:19:00 | N117: 0.09444444444 | O117: 0.3270833333 | P117: 5 | Q117: 11:52:00 | R117: 2.21 | T117: 2008-01-08 | U117: 0.2222222222 | V117: 471 | W117: 7.85 | X117: 712 | Y117: 11.86666667 | Z117: 2 | AA117: 7 | AB117: 2008 | AC117: 15:30:00 | AD117: 1 | AE117: 1 | AF117: 1 | AG117: 0 | AH117: 1 | AI117: 0 | AJ117: 2 | AK117: 15:30:00 | AL117: 3.7 | AM117: 3.6 | AN117: 9 | AO117: 00:20:00 | AP117: 12:35:00 | AQ117: 18 | AR117: 3.8 | AS117: 8 | AT117: 8.1
A118: Tue | B118: Jan | C118: 8 | D118: 2008 | E118: 16:00:00 | F118: 3 | G118: 3 | H118: 0 | I118: 0 | J118: 0 | K118: 3 | L118: 0 | M118: 1.048611111 | N118: 0.3069444444 | O118: 0.34375 | P118: 1 | Q118: 10:32:00 | R118: 1.67 | T118: 2008-01-08 | U118: 0 | V118: 495 | W118: 8.25 | X118: 632 | Y118: 10.53333333 | Z118: 2 | AA118: 7 | AB118: 2008 | AC118: 16:00:00 | AD118: 1 | AE118: 2 | AF118: 1 | AG118: 0 | AH118: 1 | AI118: 0 | AJ118: 3 | AK118: 16:00:00 | AL118: 2.9 | AM118: 2.3 | AN118: 3 | AO118: 00:20:00 | AP118: 1.355555556 | AQ118: 0 | AR118: 3.3 | AS118: 8 | AT118: 9.9
A119: Tue | B119: Jan | C119: 8 | D119: 2008 | E119: 16:30:00 | F119: 3 | G119: 2 | H119: 0 | I119: 0 | J119: 1 | K119: 0 | L119: 67 | M119: 10:42:00 | N119: 0.2354166667 | O119: 0.002083333333 | P119: 1 | Q119: 00:33:00 | R119: 0.37 | T119: 2008-01-08 | U119: 0.3333333333 | V119: 3 | W119: 0.05 | X119: 33 | Y119: 0.55 | Z119: 2 | AA119: 7 | AB119: 2008 | AC119: 16:30:00 | AD119: 1 | AE119: 2 | AF119: 1 | AG119: 0 | AH119: 1 | AI119: 0 | AJ119: 3 | AK119: 16:30:00 | AL119: 1.3 | AM119: 1.2 | AN119: 3 | AO119: 00:20:00 | AP119: 16:21:00 | AQ119: 75 | AR119: 1.6 | AS119: 5 | AT119: 5.5
A120: Tue | B120: Jan | C120: 8 | D120: 2008 | E120: 17:00:00 | F120: 0 | G120: 0 | H120: 0 | I120: 0 | J120: 0 | K120: 0 | L120: 100 | M120: 00:00:00 | N120: 0.08263888889 | O120: 0 | P120: 0 | Q120: 00:00:00 | R120: 0 | T120: 2008-01-08 | U120: 0 | V120: 0 | W120: 0 | X120: 0 | Y120: 0 | Z120: 2 | AA120: 7 | AB120: 2008 | AC120: 17:00:00 | AD120: 0 | AE120: 0 | AF120: 0 | AG120: 0 | AH120: 0 | AI120: 0 | AJ120: 0 | AK120: 17:00:00 | AL120: 0.1 | AM120: 0.1 | AN120: 0 | AO120: 00:20:00 | AP120: 00:00:00 | AQ120: 100 | AR120: 0 | AS120: 0 | AT120: 0
A121: Tue | B121: Jan | C121: 8 | D121: 2008 | E121: 17:30:00 | F121: 0 | G121: 0 | H121: 0 | I121: 0 | J121: 0 | K121: 0 | L121: 100 | M121: 00:00:00 | N121: 0 | O121: 0 | P121: 0 | Q121: 00:00:00 | R121: 0 | T121: 2008-01-08 | U121: 0 | V121: 0 | W121: 0 | X121: 0 | Y121: 0 | Z121: 2 | AA121: 7 | AB121: 2008 | AC121: 17:30:00 | AD121: 0 | AE121: 0 | AF121: 0 | AG121: 0 | AH121: 0 | AI121: 0 | AJ121: 0 | AK121: 17:30:00 | AL121: 0 | AM121: 0 | AN121: 0 | AO121: 00:20:00 | AP121: 00:00:00 | AQ121: 100 | AR121: 0 | AS121: 0 | AT121: 0 | AU121: *
A122: Wed | B122: Jan | C122: 9 | D122: 2008 | E122: 08:00:00 | F122: 0 | G122: 0 | H122: 0 | I122: 0 | J122: 0 | K122: 0 | L122: 100 | M122: 00:00:00 | N122: 0.04305555556 | O122: 0 | P122: 1 | Q122: 00:08:00 | R122: 0 | T122: 2008-01-09 | U122: 0 | V122: 0 | W122: 0 | X122: 8 | Y122: 0.1333333333 | Z122: 2 | AA122: 7 | AB122: 2008 | AC122: 08:00:00 | AD122: 1 | AE122: 2 | AF122: 0 | AG122: 0 | AH122: 1 | AI122: 0 | AJ122: 3 | AK122: 08:00:00 | AL122: 1.3 | AM122: 0.9 | AN122: 0 | AO122: 00:20:00 | AP122: 00:00:00 | AQ122: 100 | AR122: 0 | AS122: 0 | AT122: 0
A123: Wed | B123: Jan | C123: 9 | D123: 2008 | E123: 08:30:00 | F123: 4 | G123: 4 | H123: 0 | I123: 0 | J123: 0 | K123: 1 | L123: 75 | M123: 04:15:00 | N123: 0.4138888889 | O123: 0.009027777778 | P123: 1 | Q123: 00:28:00 | R123: 0.3 | T123: 2008-01-09 | U123: 0 | V123: 13 | W123: 0.2166666667 | X123: 28 | Y123: 0.4666666667 | Z123: 2 | AA123: 7 | AB123: 2008 | AC123: 08:30:00 | AD123: 1 | AE123: 2 | AF123: 0 | AG123: 0 | AH123: 1 | AI123: 0 | AJ123: 3 | AK123: 08:30:00 | AL123: 3 | AM123: 3 | AN123: 4 | AO123: 00:20:00 | AP123: 14:11:00 | AQ123: 75 | AR123: 1.9 | AS123: 5 | AT123: 5
A124: Wed | B124: Jan | C124: 9 | D124: 2008 | E124: 09:00:00 | F124: 4 | G124: 4 | H124: 0 | I124: 0 | J124: 0 | K124: 0 | L124: 100 | M124: 14:51:00 | N124: 0.2375 | O124: 0.00625 | P124: 1 | Q124: 04:47:00 | R124: 1 | T124: =DATE(D124,MONTH(DATEVALUE(CONCATENATE("1/",B124,"/2007"))),C124) -> 2008-01-09 | U124: =IF(F124<>0,J124/F124,0) -> 0 | V124: =HOUR(O124)*60+(MINUTE(O124)) -> 9 | W124: =HOUR(O124)+(MINUTE(O124)/60) -> 0.15 | X124: =HOUR(Q124)*60+(MINUTE(Q124)) -> 287 | Y124: =HOUR(Q124)+(MINUTE(Q124)/60) -> 4.783333333 | Z124: 2 | AA124: =IF(MONTH(T124)>6,MONTH(T124)-6,MONTH(T124)+6) -> 7 | AB124: =IF(AA124<=6,YEAR(T124)+1,YEAR(T124)) -> 2008 | AC124: 09:00:00 | AD124: 1 | AE124: 2 | AF124: 1 | AG124: 0 | AH124: 1 | AI124: 0 | AJ124: 3 | AK124: 09:00:00 | AL124: 3 | AM124: 2.4 | AN124: 4 | AO124: 00:20:00 | AP124: 20:33:00 | AQ124: 100 | AR124: 2.7 | AS124: 7 | AT124: 8.8
A125: Wed | B125: Jan | C125: 9 | D125: 2008 | E125: 09:30:00 | F125: 5 | G125: 5 | H125: 0 | I125: 0 | J125: 0 | K125: 4 | L125: 20 | M125: 15:35:00 | N125: 0.2972222222 | O125: 0.1118055556 | P125: 2 | Q125: 04:48:00 | R125: 1.52 | T125: 2008-01-09 | U125: 0 | V125: 161 | W125: 2.683333333 | X125: 288 | Y125: 4.8 | Z125: 2 | AA125: 7 | AB125: 2008 | AC125: 09:30:00 | AD125: 1 | AE125: 4 | AF125: 1 | AG125: 0 | AH125: 1 | AI125: 0 | AJ125: 5 | AK125: 09:30:00 | AL125: 4.4 | AM125: 4.2 | AN125: 5 | AO125: 00:20:00 | AP125: 22:43:00 | AQ125: 20 | AR125: 3.8 | AS125: 8 | AT125: 8.4
A126: Wed | B126: Jan | C126: 9 | D126: 2008 | E126: 10:00:00 | F126: 5 | G126: 5 | H126: 0 | I126: 0 | J126: 0 | K126: 0 | L126: 100 | M126: 04:59:00 | N126: 0.1868055556 | O126: 0.003472222222 | P126: 1 | Q126: 00:10:00 | R126: 0.42 | T126: 2008-01-09 | U126: 0 | V126: 5 | W126: 0.08333333333 | X126: 10 | Y126: 0.1666666667 | Z126: 2 | AA126: 7 | AB126: 2008 | AC126: 10:00:00 | AD126: 1 | AE126: 5 | AF126: 1 | AG126: 0 | AH126: 1 | AI126: 0 | AJ126: 6 | AK126: 10:00:00 | AL126: 6 | AM126: 5.3 | AN126: 5 | AO126: 00:20:00 | AP126: 09:28:00 | AQ126: 100 | AR126: 1.6 | AS126: 5 | AT126: 5.6
A127: Wed | B127: Jan | C127: 9 | D127: 2008 | E127: 10:30:00 | F127: 11 | G127: 11 | H127: 0 | I127: 0 | J127: 0 | K127: 1 | L127: 91 | M127: 04:20:00 | N127: 0.2111111111 | O127: 0.005555555556 | P127: 1 | Q127: 00:38:00 | R127: 0.82 | T127: 2008-01-09 | U127: 0 | V127: 8 | W127: 0.1333333333 | X127: 38 | Y127: 0.6333333333 | Z127: 2 | AA127: 7 | AB127: 2008 | AC127: 10:30:00 | AD127: 1 | AE127: 4 | AF127: 1 | AG127: 0 | AH127: 1 | AI127: 0 | AJ127: 5 | AK127: 10:30:00 | AL127: 4.8 | AM127: 4.2 | AN127: 11 | AO127: 00:20:00 | AP127: 09:24:00 | AQ127: 91 | AR127: 3.4 | AS127: 7 | AT127: 8.1
A128: Wed | B128: Jan | C128: 9 | D128: 2008 | E128: 11:00:00 | F128: 5 | G128: 5 | H128: 0 | I128: 0 | J128: 0 | K128: 0 | L128: 100 | M128: 04:27:00 | N128: 0.1215277778 | O128: 0.002083333333 | P128: 2 | Q128: 00:04:00 | R128: 0.38 | T128: 2008-01-09 | U128: 0 | V128: 3 | W128: 0.05 | X128: 4 | Y128: 0.06666666667 | Z128: 2 | AA128: 7 | AB128: 2008 | AC128: 11:00:00 | AD128: 1 | AE128: 5 | AF128: 1 | AG128: 0 | AH128: 1 | AI128: 0 | AJ128: 6 | AK128: 11:00:00 | AL128: 5.5 | AM128: 4.4 | AN128: 5 | AO128: 00:20:00 | AP128: 07:22:00 | AQ128: 100 | AR128: 1.2 | AS128: 4 | AT128: 5
A129: Wed | B129: Jan | C129: 9 | D129: 2008 | E129: 11:30:00 | F129: 5 | G129: 5 | H129: 0 | I129: 0 | J129: 0 | K129: 0 | L129: 100 | M129: 07:10:00 | N129: 0.2041666667 | O129: 0.004166666667 | P129: 1 | Q129: 00:11:00 | R129: 0.61 | T129: 2008-01-09 | U129: 0 | V129: 6 | W129: 0.1 | X129: 11 | Y129: 0.1833333333 | Z129: 2 | AA129: 7 | AB129: 2008 | AC129: 11:30:00 | AD129: 1 | AE129: 5 | AF129: 1 | AG129: 0 | AH129: 1 | AI129: 0 | AJ129: 6 | AK129: 11:30:00 | AL129: 5.5 | AM129: 4.9 | AN129: 5 | AO129: 00:20:00 | AP129: 12:04:00 | AQ129: 100 | AR129: 2 | AS129: 5 | AT129: 5.6
A130: Wed | B130: Jan | C130: 9 | D130: 2008 | E130: 12:00:00 | F130: 8 | G130: 8 | H130: 0 | I130: 0 | J130: 0 | K130: 3 | L130: 63 | M130: 08:37:00 | N130: 0.1104166667 | O130: 0.04236111111 | P130: 2 | Q130: 03:45:00 | R130: 1.29 | T130: 2008-01-09 | U130: 0 | V130: 61 | W130: 1.016666667 | X130: 225 | Y130: 3.75 | Z130: 2 | AA130: 7 | AB130: 2008 | AC130: 12:00:00 | AD130: 1 | AE130: 3 | AF130: 1 | AG130: 0 | AH130: 1 | AI130: 0 | AJ130: 4 | AK130: 12:00:00 | AL130: 4.3 | AM130: 4 | AN130: 8 | AO130: 00:20:00 | AP130: 11:16:00 | AQ130: 63 | AR130: 3 | AS130: 7 | AT130: 7.6
A131: Wed | B131: Jan | C131: 9 | D131: 2008 | E131: 12:30:00 | F131: 5 | G131: 5 | H131: 0 | I131: 0 | J131: 0 | K131: 1 | L131: 80 | M131: 10:05:00 | N131: 0.2333333333 | O131: 0.01041666667 | P131: 1 | Q131: 01:00:00 | R131: 0.86 | T131: 2008-01-09 | U131: 0 | V131: 15 | W131: 0.25 | X131: 60 | Y131: 1 | Z131: =WEEKNUM(T131) -> 2 | AA131: 7 | AB131: 2008 | AC131: 12:30:00 | AD131: 1 | AE131: 4 | AF131: 1 | AG131: 0 | AH131: 1 | AI131: 0 | AJ131: =SUM(AD131:AE131,AI131) -> 5 | AK131: 12:30:00 | AL131: 4.5 | AM131: 3.7 | AN131: 5 | AO131: 00:20:00 | AP131: 15:41:00 | AQ131: 80 | AR131: 2.6 | AS131: 6 | AT131: 7.2
A132: Wed | B132: Jan | C132: 9 | D132: 2008 | E132: 13:00:00 | F132: 3 | G132: 3 | H132: 0 | I132: 0 | J132: 0 | K132: 0 | L132: 100 | M132: 05:05:00 | N132: 0.06319444444 | O132: 0.003472222222 | P132: 1 | Q132: 00:08:00 | R132: 0.26 | T132: 2008-01-09 | U132: 0 | V132: 5 | W132: 0.08333333333 | X132: 8 | Y132: 0.1333333333 | Z132: 2 | AA132: 7 | AB132: 2008 | AC132: 13:00:00 | AD132: 1 | AE132: 2 | AF132: 1 | AG132: 0 | AH132: 1 | AI132: 0 | AJ132: 3 | AK132: 13:00:00 | AL132: 3.5 | AM132: 3.2 | AN132: 3 | AO132: 00:20:00 | AP132: 06:36:00 | AQ132: 100 | AR132: 0.7 | AS132: 3 | AT132: 3.2
A133: Wed | B133: Jan | C133: 9 | D133: 2008 | E133: 13:30:00 | F133: 4 | G133: 4 | H133: 0 | I133: 0 | J133: 0 | K133: 0 | L133: 100 | M133: 04:43:00 | N133: 0.4270833333 | O133: 0.004166666667 | P133: 1 | Q133: 00:08:00 | R133: 0.32 | T133: 2008-01-09 | U133: 0 | V133: 6 | W133: 0.1 | X133: 8 | Y133: 0.1333333333 | Z133: 2 | AA133: 7 | AB133: 2008 | AC133: 13:30:00 | AD133: 1 | AE133: 2 | AF133: 1 | AG133: 0 | AH133: 1 | AI133: 0 | AJ133: 3 | AK133: 13:30:00 | AL133: 3.9 | AM133: 3.9 | AN133: 4 | AO133: 00:20:00 | AP133: 14:58:00 | AQ133: 100 | AR133: 2 | AS133: 5 | AT133: 5
A134: Wed | B134: Jan | C134: 9 | D134: 2008 | E134: 14:00:00 | F134: 7 | G134: 6 | H134: 0 | I134: 0 | J134: 1 | K134: 0 | L134: 86 | M134: 03:59:00 | N134: 0.1868055556 | O134: 0.002777777778 | P134: 2 | Q134: 01:32:00 | R134: 0.43 | T134: 2008-01-09 | U134: 0.1428571429 | V134: 4 | W134: 0.06666666667 | X134: 92 | Y134: 1.533333333 | Z134: 2 | AA134: 7 | AB134: 2008 | AC134: 14:00:00 | AD134: 1 | AE134: 2 | AF134: 1 | AG134: 0 | AH134: 1 | AI134: 0 | AJ134: 3 | AK134: 14:00:00 | AL134: 3.3 | AM134: 3.3 | AN134: 7 | AO134: 00:20:00 | AP134: 08:28:00 | AQ134: 88 | AR134: 2 | AS134: 5 | AT134: 5
A135: Wed | B135: Jan | C135: 9 | D135: 2008 | E135: 14:30:00 | F135: 6 | G135: 4 | H135: 0 | I135: 0 | J135: 2 | K135: 2 | L135: 33 | M135: 17:49:00 | N135: 0.09097222222 | O135: 0.0125 | P135: 2 | Q135: 02:53:00 | R135: 1.29 | T135: 2008-01-09 | U135: 0.3333333333 | V135: 18 | W135: 0.3 | X135: 173 | Y135: 2.883333333 | Z135: 2 | AA135: 7 | AB135: 2008 | AC135: 14:30:00 | AD135: 1 | AE135: 3 | AF135: 1 | AG135: 0 | AH135: 1 | AI135: 0 | AJ135: 4 | AK135: 14:30:00 | AL135: 2.5 | AM135: 2.3 | AN135: 6 | AO135: 00:20:00 | AP135: 20:00:00 | AQ135: 50 | AR135: 4 | AS135: 8 | AT135: 8.8
A136: Wed | B136: Jan | C136: 9 | D136: 2008 | E136: 15:00:00 | F136: 5 | G136: 3 | H136: 0 | I136: 0 | J136: 2 | K136: 3 | L136: 0 | M136: 13:13:00 | N136: 0.1069444444 | O136: 0.1763888889 | P136: 4 | Q136: 12:18:00 | R136: 0.93 | T136: 2008-01-09 | U136: 0.4 | V136: 254 | W136: 4.233333333 | X136: 738 | Y136: 12.3 | Z136: 2 | AA136: 7 | AB136: 2008 | AC136: 15:00:00 | AD136: 1 | AE136: 3 | AF136: 1 | AG136: 0 | AH136: 1 | AI136: 0 | AJ136: 4 | AK136: 15:00:00 | AL136: 3 | AM136: 2.9 | AN136: 5 | AO136: 00:20:00 | AP136: 15:47:00 | AQ136: 29 | AR136: 2.6 | AS136: 6 | AT136: 6.3
A137: Wed | B137: Jan | C137: 9 | D137: 2008 | E137: 15:30:00 | F137: 9 | G137: 9 | H137: 0 | I137: 0 | J137: 0 | K137: 3 | L137: 67 | M137: 13:48:00 | N137: 0.06180555556 | O137: 0.08958333333 | P137: 2 | Q137: 12:19:00 | R137: 2.39 | T137: 2008-01-09 | U137: 0 | V137: 129 | W137: 2.15 | X137: 739 | Y137: 12.31666667 | Z137: 2 | AA137: 7 | AB137: 2008 | AC137: 15:30:00 | AD137: 1 | AE137: 3 | AF137: 1 | AG137: 0 | AH137: 1 | AI137: 0 | AJ137: 4 | AK137: 15:30:00 | AL137: 4.8 | AM137: 4.4 | AN137: 9 | AO137: 00:20:00 | AP137: 15:17:00 | AQ137: 67 | AR137: 4.6 | AS137: 9 | AT137: 10
A138: Wed | B138: Jan | C138: 9 | D138: 2008 | E138: 16:00:00 | F138: 5 | G138: 5 | H138: 0 | I138: 0 | J138: 0 | K138: 1 | L138: 80 | M138: 09:49:00 | N138: 0.2284722222 | O138: 0.01527777778 | P138: 1 | Q138: 01:33:00 | R138: 0.85 | T138: 2008-01-09 | U138: 0 | V138: 22 | W138: 0.3666666667 | X138: 93 | Y138: 1.55 | Z138: 2 | AA138: 7 | AB138: 2008 | AC138: 16:00:00 | AD138: 1 | AE138: 2 | AF138: 1 | AG138: 0 | AH138: 1 | AI138: 0 | AJ138: 3 | AK138: 16:00:00 | AL138: 3 | AM138: 2.6 | AN138: 5 | AO138: 00:20:00 | AP138: 15:18:00 | AQ138: 80 | AR138: 2.5 | AS138: 6 | AT138: 6.9
A139: Wed | B139: Jan | C139: 9 | D139: 2008 | E139: 16:30:00 | F139: 2 | G139: 2 | H139: 0 | I139: 0 | J139: 0 | K139: 0 | L139: 100 | M139: 01:47:00 | N139: 0.06319444444 | O139: 0.003472222222 | P139: 1 | Q139: 00:05:00 | R139: 0.06 | T139: 2008-01-09 | U139: 0 | V139: 5 | W139: 0.08333333333 | X139: 5 | Y139: 0.08333333333 | Z139: 2 | AA139: 7 | AB139: 2008 | AC139: 16:30:00 | AD139: 1 | AE139: 1 | AF139: 1 | AG139: 0 | AH139: 1 | AI139: 0 | AJ139: 2 | AK139: 16:30:00 | AL139: 1.3 | AM139: 1 | AN139: 2 | AO139: 00:20:00 | AP139: 03:18:00 | AQ139: 100 | AR139: 0.2 | AS139: 2 | AT139: 2.4
A140: Wed | B140: Jan | C140: 9 | D140: 2008 | E140: 17:00:00 | F140: 1 | G140: 1 | H140: 0 | I140: 0 | J140: 0 | K140: 0 | L140: 100 | M140: 03:35:00 | N140: 0.1388888889 | O140: 0.004861111111 | P140: 1 | Q140: 00:07:00 | R140: 0.06 | T140: 2008-01-09 | U140: 0 | V140: 7 | W140: 0.1166666667 | X140: 7 | Y140: 0.1166666667 | Z140: 2 | AA140: 7 | AB140: 2008 | AC140: 17:00:00 | AD140: 1 | AE140: 1 | AF140: 0 | AG140: 0 | AH140: 0 | AI140: 0 | AJ140: 2 | AK140: 17:00:00 | AL140: 2 | AM140: 1.9 | AN140: 1 | AO140: 00:20:00 | AP140: 06:55:00 | AQ140: 100 | AR140: 0.2 | AS140: 2 | AT140: 2.1
A141: Wed | B141: Jan | C141: 9 | D141: 2008 | E141: 17:30:00 | F141: 2 | G141: 2 | H141: 0 | I141: 0 | J141: 0 | K141: 0 | L141: 100 | M141: 19:35:00 | N141: 0.2618055556 | O141: 0.004166666667 | P141: 1 | Q141: 00:10:00 | R141: 0.66 | T141: 2008-01-09 | U141: 0 | V141: 6 | W141: 0.1 | X141: 10 | Y141: 0.1666666667 | Z141: 2 | AA141: 7 | AB141: 2008 | AC141: 17:30:00 | AD141: 1 | AE141: 1 | AF141: 0 | AG141: 0 | AH141: 0 | AI141: 0 | AJ141: 2 | AK141: 17:30:00 | AL141: 2 | AM141: 1.9 | AN141: 2 | AO141: 00:20:00 | AP141: 1.077777778 | AQ141: 100 | AR141: 1.7 | AS141: 5 | AT141: 5.4
A142: Thu | B142: Jan | C142: 10 | D142: 2008 | E142: 08:00:00 | F142: 1 | G142: 1 | H142: 0 | I142: 0 | J142: 0 | K142: 0 | L142: 100 | M142: 01:56:00 | N142: 0.41875 | O142: 0.004166666667 | P142: 1 | Q142: 00:06:00 | R142: 0.03 | T142: 2008-01-10 | U142: 0 | V142: 6 | W142: 0.1 | X142: 6 | Y142: 0.1 | Z142: 2 | AA142: 7 | AB142: 2008 | AC142: 08:00:00 | AD142: 1 | AE142: 1 | AF142: 0 | AG142: 0 | AH142: 1 | AI142: 0 | AJ142: 2 | AK142: 08:00:00 | AL142: 1.3 | AM142: 1 | AN142: 1 | AO142: 00:20:00 | AP142: 11:59:00 | AQ142: 100 | AR142: 0.4 | AS142: 3 | AT142: 4
A143: Thu | B143: Jan | C143: 10 | D143: 2008 | E143: 08:30:00 | F143: 1 | G143: 1 | H143: 0 | I143: 0 | J143: 0 | K143: 0 | L143: 100 | M143: 02:43:00 | N143: 0.3118055556 | O143: 0.004166666667 | P143: 1 | Q143: 00:06:00 | R143: 0.05 | T143: 2008-01-10 | U143: 0 | V143: 6 | W143: 0.1 | X143: 6 | Y143: 0.1 | Z143: 2 | AA143: 7 | AB143: 2008 | AC143: 08:30:00 | AD143: 1 | AE143: 1 | AF143: 0 | AG143: 0 | AH143: 1 | AI143: 0 | AJ143: 2 | AK143: 08:30:00 | AL143: 2 | AM143: 1.8 | AN143: 1 | AO143: 00:20:00 | AP143: 10:12:00 | AQ143: 100 | AR143: 0.3 | AS143: 2 | AT143: 2.3
A144: Thu | B144: Jan | C144: 10 | D144: 2008 | E144: 09:00:00 | F144: 4 | G144: 4 | H144: 0 | I144: 0 | J144: 0 | K144: 3 | L144: 25 | M144: 09:25:00 | N144: 0.2715277778 | O144: 0.1104166667 | P144: 1 | Q144: 06:18:00 | R144: 0.8 | T144: 2008-01-10 | U144: 0 | V144: 159 | W144: 2.65 | X144: 378 | Y144: 6.3 | Z144: 2 | AA144: 7 | AB144: 2008 | AC144: 09:00:00 | AD144: 1 | AE144: 2 | AF144: 1 | AG144: 0 | AH144: 1 | AI144: 0 | AJ144: 3 | AK144: 09:00:00 | AL144: 2.9 | AM144: 2.3 | AN144: 4 | AO144: 00:20:00 | AP144: 15:56:00 | AQ144: 25 | AR144: 2.1 | AS144: 6 | AT144: 7.5
A145: Thu | B145: Jan | C145: 10 | D145: 2008 | E145: 09:30:00 | F145: 4 | G145: 4 | H145: 0 | I145: 0 | J145: 0 | K145: 0 | L145: 100 | M145: 04:58:00 | N145: 0.3055555556 | O145: 0.003472222222 | P145: 1 | Q145: 01:19:00 | R145: 0.34 | T145: 2008-01-10 | U145: 0 | V145: 5 | W145: 0.08333333333 | X145: 79 | Y145: 1.316666667 | Z145: 2 | AA145: 7 | AB145: 2008 | AC145: 09:30:00 | AD145: 0 | AE145: 3 | AF145: 1 | AG145: 0 | AH145: 1 | AI145: 0 | AJ145: 3 | AK145: 09:30:00 | AL145: 2.9 | AM145: 2.8 | AN145: 4 | AO145: 00:20:00 | AP145: 12:18:00 | AQ145: 100 | AR145: 1.6 | AS145: 5 | AT145: 5
A146: Thu | B146: Jan | C146: 10 | D146: 2008 | E146: 10:00:00 | F146: 7 | G146: 5 | H146: 0 | I146: 0 | J146: 2 | K146: 3 | L146: 29 | M146: 12:25:00 | N146: 0.1388888889 | O146: 0.09722222222 | P146: 2 | Q146: 09:40:00 | R146: 1.32 | T146: 2008-01-10 | U146: 0.2857142857 | V146: 140 | W146: 2.333333333 | X146: 580 | Y146: 9.666666667 | Z146: 2 | AA146: 7 | AB146: 2008 | AC146: 10:00:00 | AD146: 0 | AE146: 3 | AF146: 1 | AG146: 0 | AH146: 1 | AI146: 0 | AJ146: 3 | AK146: 10:00:00 | AL146: 2.5 | AM146: 2.4 | AN146: 7 | AO146: 00:20:00 | AP146: 15:45:00 | AQ146: 44 | AR146: 3.7 | AS146: 8 | AT146: 8.2
A147: Thu | B147: Jan | C147: 10 | D147: 2008 | E147: 10:30:00 | F147: 6 | G147: 4 | H147: 0 | I147: 0 | J147: 2 | K147: 2 | L147: 33 | M147: 06:27:00 | N147: 0.175 | O147: 0.06458333333 | P147: 2 | Q147: 06:31:00 | R147: 0.66 | T147: 2008-01-10 | U147: 0.3333333333 | V147: 93 | W147: 1.55 | X147: 391 | Y147: 6.516666667 | Z147: 2 | AA147: 7 | AB147: 2008 | AC147: 10:30:00 | AD147: 0 | AE147: 3 | AF147: 1 | AG147: 0 | AH147: 1 | AI147: 0 | AJ147: 3 | AK147: 10:30:00 | AL147: 2.7 | AM147: 2.4 | AN147: 6 | AO147: 00:20:00 | AP147: 10:39:00 | AQ147: 50 | AR147: 2.1 | AS147: 5 | AT147: 5.7
A148: Thu | B148: Jan | C148: 10 | D148: 2008 | E148: 11:00:00 | F148: 6 | G148: 6 | H148: 0 | I148: 0 | J148: 0 | K148: 2 | L148: 67 | M148: 11:15:00 | N148: 0.1354166667 | O148: 0.03888888889 | P148: 1 | Q148: 04:57:00 | R148: 1.22 | T148: 2008-01-10 | U148: 0 | V148: 56 | W148: 0.9333333333 | X148: 297 | Y148: 4.95 | Z148: 2 | AA148: 7 | AB148: 2008 | AC148: 11:00:00 | AD148: 1 | AE148: 3 | AF148: 1 | AG148: 0 | AH148: 1 | AI148: 0 | AJ148: 4 | AK148: 11:00:00 | AL148: 3.7 | AM148: 3.6 | AN148: 6 | AO148: 00:20:00 | AP148: 14:30:00 | AQ148: 67 | AR148: 2.9 | AS148: 7 | AT148: 7.1
A149: Thu | B149: Jan | C149: 10 | D149: 2008 | E149: 11:30:00 | F149: 5 | G149: 5 | H149: 0 | I149: 0 | J149: 0 | K149: 1 | L149: 80 | M149: 10:57:00 | N149: 0.16875 | O149: 0.01597222222 | P149: 1 | Q149: 01:37:00 | R149: 0.94 | T149: 2008-01-10 | U149: 0 | V149: 23 | W149: 0.3833333333 | X149: 97 | Y149: 1.616666667 | Z149: 2 | AA149: 7 | AB149: 2008 | AC149: 11:30:00 | AD149: 1 | AE149: 3 | AF149: 1 | AG149: 0 | AH149: 1 | AI149: 0 | AJ149: 4 | AK149: 11:30:00 | AL149: 3.4 | AM149: 3 | AN149: 5 | AO149: 00:20:00 | AP149: 15:00:00 | AQ149: 80 | AR149: 2.5 | AS149: 6 | AT149: 6.7
A150: Thu | B150: Jan | C150: 10 | D150: 2008 | E150: 12:00:00 | F150: 6 | G150: 5 | H150: 0 | I150: 0 | J150: 1 | K150: 1 | L150: 67 | M150: 10:29:00 | N150: 0.3145833333 | O150: 0.01111111111 | P150: 1 | Q150: 01:06:00 | R150: 0.9 | T150: 2008-01-10 | U150: 0.1666666667 | V150: 16 | W150: 0.2666666667 | X150: 66 | Y150: 1.1 | Z150: 2 | AA150: 7 | AB150: 2008 | AC150: 12:00:00 | AD150: 1 | AE150: 3 | AF150: 1 | AG150: 0 | AH150: 1 | AI150: 0 | AJ150: 4 | AK150: 12:00:00 | AL150: 4 | AM150: 3.3 | AN150: 6 | AO150: 00:20:00 | AP150: 18:02:00 | AQ150: 71 | AR150: 3.6 | AS150: 8 | AT150: 9.7
A151: Thu | B151: Jan | C151: 10 | D151: 2008 | E151: 12:30:00 | F151: 2 | G151: 2 | H151: 0 | I151: 0 | J151: 0 | K151: 0 | L151: 100 | M151: 07:33:00 | N151: 0.4465277778 | O151: 0.004166666667 | P151: 1 | Q151: 00:07:00 | R151: 0.25 | T151: 2008-01-10 | U151: 0 | V151: 6 | W151: 0.1 | X151: 7 | Y151: 0.1166666667 | Z151: 2 | AA151: 7 | AB151: 2008 | AC151: 12:30:00 | AD151: 1 | AE151: 3 | AF151: 1 | AG151: 0 | AH151: 1 | AI151: 0 | AJ151: 4 | AK151: 12:30:00 | AL151: 3.9 | AM151: 3.7 | AN151: 2 | AO151: 00:20:00 | AP151: 18:16:00 | AQ151: 100 | AR151: 1.2 | AS151: 4 | AT151: 4.3
A152: Thu | B152: Jan | C152: 10 | D152: 2008 | E152: 13:00:00 | F152: 3 | G152: 3 | H152: 0 | I152: 0 | J152: 0 | K152: 0 | L152: 100 | M152: 08:24:00 | N152: 0.2069444444 | O152: 0.002083333333 | P152: 1 | Q152: 00:05:00 | R152: 0.42 | T152: 2008-01-10 | U152: 0 | V152: 3 | W152: 0.05 | X152: 5 | Y152: 0.08333333333 | Z152: 2 | AA152: 7 | AB152: 2008 | AC152: 13:00:00 | AD152: 1 | AE152: 2 | AF152: 1 | AG152: 0 | AH152: 1 | AI152: 0 | AJ152: 3 | AK152: 13:00:00 | AL152: 3 | AM152: 2.4 | AN152: 3 | AO152: 00:20:00 | AP152: 13:22:00 | AQ152: 100 | AR152: 1.3 | AS152: 4 | AT152: 4.9
A153: Thu | B153: Jan | C153: 10 | D153: 2008 | E153: 13:30:00 | F153: 8 | G153: 7 | H153: 0 | I153: 0 | J153: 1 | K153: 0 | L153: 88 | M153: 10:42:00 | N153: 0.1597222222 | O153: 0.002083333333 | P153: 3 | Q153: 06:12:00 | R153: 1.26 | T153: 2008-01-10 | U153: 0.125 | V153: 3 | W153: 0.05 | X153: 372 | Y153: 6.2 | Z153: 2 | AA153: 7 | AB153: 2008 | AC153: 13:30:00 | AD153: 1 | AE153: 2 | AF153: 1 | AG153: 0 | AH153: 1 | AI153: 0 | AJ153: 3 | AK153: 13:30:00 | AL153: 2.9 | AM153: 2.6 | AN153: 8 | AO153: 00:20:00 | AP153: 14:32:00 | AQ153: 89 | AR153: 3.9 | AS153: 8 | AT153: 8.9
A154: Thu | B154: Jan | C154: 10 | D154: 2008 | E154: 14:00:00 | F154: 5 | G154: 4 | H154: 0 | I154: 0 | J154: 1 | K154: 3 | L154: 20 | M154: 03:41:00 | N154: 0.0625 | O154: 0.1756944444 | P154: 1 | Q154: 06:14:00 | R154: 0.53 | T154: 2008-01-10 | U154: 0.2 | V154: 253 | W154: 4.216666667 | X154: 374 | Y154: 6.233333333 | Z154: 2 | AA154: 7 | AB154: 2008 | AC154: 14:00:00 | AD154: 0 | AE154: 3 | AF154: 1 | AG154: 0 | AH154: 1 | AI154: 0 | AJ154: 3 | AK154: 14:00:00 | AL154: 2.9 | AM154: 2.3 | AN154: 5 | AO154: 00:20:00 | AP154: 05:11:00 | AQ154: 33 | AR154: 0.9 | AS154: 3 | AT154: 3.8
A155: Thu | B155: Jan | C155: 10 | D155: 2008 | E155: 14:30:00 | F155: 7 | G155: 7 | H155: 0 | I155: 0 | J155: 0 | K155: 1 | L155: 86 | M155: 08:28:00 | N155: 0.1826388889 | O155: 0.02291666667 | P155: 1 | Q155: 03:33:00 | R155: 1.05 | T155: 2008-01-10 | U155: 0 | V155: 33 | W155: 0.55 | X155: 213 | Y155: 3.55 | Z155: 2 | AA155: 7 | AB155: 2008 | AC155: 14:30:00 | AD155: 0 | AE155: 3 | AF155: 1 | AG155: 0 | AH155: 0 | AI155: 0 | AJ155: 3 | AK155: 14:30:00 | AL155: 3 | AM155: 2.9 | AN155: 7 | AO155: 00:20:00 | AP155: 12:51:00 | AQ155: 86 | AR155: 3 | AS155: 7 | AT155: 7
A156: Thu | B156: Jan | C156: 10 | D156: 2008 | E156: 15:00:00 | F156: 9 | G156: 8 | H156: 0 | I156: 0 | J156: 1 | K156: 3 | L156: 56 | M156: 08:21:00 | N156: 0.1645833333 | O156: 0.03125 | P156: 2 | Q156: 03:39:00 | R156: 1.22 | T156: 2008-01-10 | U156: 0.1111111111 | V156: 45 | W156: 0.75 | X156: 219 | Y156: 3.65 | Z156: 2 | AA156: 7 | AB156: 2008 | AC156: 15:00:00 | AD156: 1 | AE156: 2 | AF156: 2 | AG156: 0 | AH156: 1 | AI156: 0 | AJ156: 3 | AK156: 15:00:00 | AL156: 2.6 | AM156: 2.4 | AN156: 9 | AO156: 00:20:00 | AP156: 12:18:00 | AQ156: 60 | AR156: 3.7 | AS156: 8 | AT156: 8.7
A157: Thu | B157: Jan | C157: 10 | D157: 2008 | E157: 15:30:00 | F157: 6 | G157: 6 | H157: 0 | I157: 0 | J157: 0 | K157: 2 | L157: 67 | M157: 06:34:00 | N157: 0.1111111111 | O157: 0.02083333333 | P157: 1 | Q157: 01:42:00 | R157: 0.71 | T157: 2008-01-10 | U157: 0 | V157: 30 | W157: 0.5 | X157: 102 | Y157: 1.7 | Z157: 2 | AA157: 7 | AB157: 2008 | AC157: 15:30:00 | AD157: 1 | AE157: 2 | AF157: 2 | AG157: 0 | AH157: 1 | AI157: 0 | AJ157: 3 | AK157: 15:30:00 | AL157: 1.8 | AM157: 1.6 | AN157: 6 | AO157: 00:20:00 | AP157: 09:14:00 | AQ157: 67 | AR157: 1.8 | AS157: 5 | AT157: 5.7
A158: Thu | B158: Jan | C158: 10 | D158: 2008 | E158: 16:00:00 | F158: 7 | G158: 4 | H158: 0 | I158: 0 | J158: 3 | K158: 0 | L158: 57 | M158: 05:52:00 | N158: 0.3347222222 | O158: 0.002777777778 | P158: 2 | Q158: 08:34:00 | R158: 0.58 | T158: 2008-01-10 | U158: 0.4285714286 | V158: 4 | W158: 0.06666666667 | X158: 514 | Y158: 8.566666667 | Z158: 2 | AA158: 7 | AB158: 2008 | AC158: 16:00:00 | AD158: 1 | AE158: 1 | AF158: 2 | AG158: 0 | AH158: 1 | AI158: 0 | AJ158: 2 | AK158: 16:00:00 | AL158: 2 | AM158: 1.6 | AN158: 7 | AO158: 00:20:00 | AP158: 13:54:00 | AQ158: 70 | AR158: 3.2 | AS158: 7 | AT158: 8.6
A159: Thu | B159: Jan | C159: 10 | D159: 2008 | E159: 16:30:00 | F159: 2 | G159: 2 | H159: 0 | I159: 0 | J159: 0 | K159: 1 | L159: 50 | M159: 17:43:00 | N159: 0.2965277778 | O159: 0.07152777778 | P159: 1 | Q159: 03:18:00 | R159: 0.65 | T159: 2008-01-10 | U159: 0 | V159: 103 | W159: 1.716666667 | X159: 198 | Y159: 3.3 | Z159: 2 | AA159: 7 | AB159: 2008 | AC159: 16:30:00 | AD159: 1 | AE159: 1 | AF159: 2 | AG159: 0 | AH159: 1 | AI159: 0 | AJ159: 2 | AK159: 16:30:00 | AL159: 1.1 | AM159: 0.7 | AN159: 2 | AO159: 00:20:00 | AP159: 1.034722222 | AQ159: 50 | AR159: 1.7 | AS159: 5 | AT159: 7.7
A160: Thu | B160: Jan | C160: 10 | D160: 2008 | E160: 17:00:00 | F160: 0 | G160: 0 | H160: 0 | I160: 0 | J160: 0 | K160: 0 | L160: 100 | M160: 00:00:00 | N160: 0 | O160: 0 | P160: 0 | Q160: 00:00:00 | R160: 0 | T160: 2008-01-10 | U160: 0 | V160: 0 | W160: 0 | X160: 0 | Y160: 0 | Z160: 2 | AA160: 7 | AB160: 2008 | AC160: 17:00:00 | AD160: 1 | AE160: 1 | AF160: 0 | AG160: 0 | AH160: 0 | AI160: 0 | AJ160: 2 | AK160: 17:00:00 | AL160: 1 | AM160: 1 | AN160: 0 | AO160: 00:20:00 | AP160: 00:00:00 | AQ160: 100 | AR160: 0 | AS160: 0 | AT160: 0
A161: Thu | B161: Jan | C161: 10 | D161: 2008 | E161: 17:30:00 | F161: 0 | G161: 0 | H161: 0 | I161: 0 | J161: 0 | K161: 0 | L161: 100 | M161: 00:00:00 | N161: 0 | O161: 0 | P161: 0 | Q161: 00:00:00 | R161: 0 | T161: 2008-01-10 | U161: 0 | V161: 0 | W161: 0 | X161: 0 | Y161: 0 | Z161: 2 | AA161: 7 | AB161: 2008 | AC161: 17:30:00 | AD161: 1 | AE161: 1 | AF161: 0 | AG161: 0 | AH161: 0 | AI161: 0 | AJ161: 2 | AK161: 17:30:00 | AL161: 1 | AM161: 1 | AN161: 0 | AO161: 00:20:00 | AP161: 00:00:00 | AQ161: 100 | AR161: 0 | AS161: 0 | AT161: 0
A162: Fri | B162: Jan | C162: 11 | D162: 2008 | E162: 08:00:00 | F162: 2 | G162: 2 | H162: 0 | I162: 0 | J162: 0 | K162: 1 | L162: 50 | M162: 09:41:00 | N162: 0.18125 | O162: 0.01388888889 | P162: 1 | Q162: 00:36:00 | R162: 0.33 | T162: 2008-01-11 | U162: 0 | V162: 20 | W162: 0.3333333333 | X162: 36 | Y162: 0.6 | Z162: 2 | AA162: 7 | AB162: 2008 | AC162: 08:00:00 | AD162: 1 | AE162: 1 | AF162: 0 | AG162: 0 | AH162: 0 | AI162: 0 | AJ162: 2 | AK162: 08:00:00 | AL162: 1.7 | AM162: 1.5 | AN162: 2 | AO162: 00:20:00 | AP162: 14:02:00 | AQ162: 50 | AR162: 0.9 | AS162: 4 | AT162: 4.6
A163: Fri | B163: Jan | C163: 11 | D163: 2008 | E163: 08:30:00 | F163: 0 | G163: 0 | H163: 0 | I163: 0 | J163: 0 | K163: 0 | L163: 100 | M163: 00:00:00 | N163: 1.458333333 | O163: 0 | P163: 1 | Q163: 00:59:00 | R163: 0 | T163: 2008-01-11 | U163: 0 | V163: 0 | W163: 0 | X163: 59 | Y163: 0.9833333333 | Z163: 2 | AA163: 7 | AB163: 2008 | AC163: 08:30:00 | AD163: 1 | AE163: 3 | AF163: 0 | AG163: 0 | AH163: 0 | AI163: 0 | AJ163: 4 | AK163: 08:30:00 | AL163: 2.8 | AM163: 2.2 | AN163: 0 | AO163: 00:20:00 | AP163: 00:00:00 | AQ163: 100 | AR163: 0 | AS163: 0 | AT163: 0
A164: Fri | B164: Jan | C164: 11 | D164: 2008 | E164: 09:00:00 | F164: 6 | G164: 5 | H164: 0 | I164: 0 | J164: 1 | K164: 4 | L164: 17 | M164: 08:20:00 | N164: 0.1861111111 | O164: 0.15625 | P164: 3 | Q164: 10:19:00 | R164: 1.01 | T164: 2008-01-11 | U164: 0.1666666667 | V164: 225 | W164: 3.75 | X164: 619 | Y164: 10.31666667 | Z164: 2 | AA164: 7 | AB164: 2008 | AC164: 09:00:00 | AD164: 1 | AE164: 2 | AF164: 1 | AG164: 0 | AH164: 1 | AI164: 0 | AJ164: 3 | AK164: 09:00:00 | AL164: 2.2 | AM164: 2 | AN164: 6 | AO164: 00:20:00 | AP164: 12:48:00 | AQ164: 29 | AR164: 2.6 | AS164: 6 | AT164: 6.7
A165: Fri | B165: Jan | C165: 11 | D165: 2008 | E165: 09:30:00 | F165: 1 | G165: 1 | H165: 0 | I165: 0 | J165: 0 | K165: 0 | L165: 100 | M165: 03:49:00 | N165: 0.2145833333 | O165: 0.01041666667 | P165: 1 | Q165: 00:15:00 | R165: 0.07 | T165: 2008-01-11 | U165: 0 | V165: 15 | W165: 0.25 | X165: 15 | Y165: 0.25 | Z165: 2 | AA165: 7 | AB165: 2008 | AC165: 09:30:00 | AD165: 1 | AE165: 2 | AF165: 1 | AG165: 0 | AH165: 1 | AI165: 0 | AJ165: 3 | AK165: 09:30:00 | AL165: 2.9 | AM165: 2.7 | AN165: 1 | AO165: 00:20:00 | AP165: 08:58:00 | AQ165: 100 | AR165: 0.3 | AS165: 2 | AT165: 2.2
A166: Fri | B166: Jan | C166: 11 | D166: 2008 | E166: 10:00:00 | F166: 6 | G166: 5 | H166: 0 | I166: 0 | J166: 1 | K166: 1 | L166: 67 | M166: 04:06:00 | N166: 0.09305555556 | O166: 0.01458333333 | P166: 2 | Q166: 03:48:00 | R166: 0.43 | T166: 2008-01-11 | U166: 0.1666666667 | V166: 21 | W166: 0.35 | X166: 228 | Y166: 3.8 | Z166: 2 | AA166: 7 | AB166: 2008 | AC166: 10:00:00 | AD166: 0 | AE166: 4 | AF166: 1 | AG166: 0 | AH166: 1 | AI166: 0 | AJ166: 4 | AK166: 10:00:00 | AL166: 4.7 | AM166: 3.8 | AN166: 6 | AO166: 00:20:00 | AP166: 06:20:00 | AQ166: 71 | AR166: 1.3 | AS166: 4 | AT166: 5
A167: Fri | B167: Jan | C167: 11 | D167: 2008 | E167: 10:30:00 | F167: 7 | G167: 7 | H167: 0 | I167: 0 | J167: 0 | K167: 2 | L167: 71 | M167: 08:32:00 | N167: 0.1520833333 | O167: 0.02777777778 | P167: 1 | Q167: 03:48:00 | R167: 1.07 | T167: 2008-01-11 | U167: 0 | V167: 40 | W167: 0.6666666667 | X167: 228 | Y167: 3.8 | Z167: 2 | AA167: 7 | AB167: 2008 | AC167: 10:30:00 | AD167: 1 | AE167: 5 | AF167: 1 | AG167: 0 | AH167: 1 | AI167: 0 | AJ167: 6 | AK167: 10:30:00 | AL167: 4.7 | AM167: 4.5 | AN167: 7 | AO167: 00:20:00 | AP167: 12:11:00 | AQ167: 71 | AR167: 2.8 | AS167: 6 | AT167: 6.3
A168: Fri | B168: Jan | C168: 11 | D168: 2008 | E168: 11:00:00 | F168: 8 | G168: 8 | H168: 0 | I168: 0 | J168: 0 | K168: 0 | L168: 100 | M168: 03:04:00 | N168: 0.2895833333 | O168: 0.003472222222 | P168: 1 | Q168: 00:09:00 | R168: 0.42 | T168: 2008-01-11 | U168: 0 | V168: 5 | W168: 0.08333333333 | X168: 9 | Y168: 0.15 | Z168: 2 | AA168: 7 | AB168: 2008 | AC168: 11:00:00 | AD168: 1 | AE168: 4 | AF168: 1 | AG168: 0 | AH168: 1 | AI168: 0 | AJ168: 5 | AK168: 11:00:00 | AL168: 5.2 | AM168: 4.9 | AN168: 8 | AO168: 00:20:00 | AP168: 10:01:00 | AQ168: 100 | AR168: 2.7 | AS168: 6 | AT168: 6.5
A169: Fri | B169: Jan | C169: 11 | D169: 2008 | E169: 11:30:00 | F169: 5 | G169: 5 | H169: 0 | I169: 0 | J169: 0 | K169: 0 | L169: 100 | M169: 08:16:00 | N169: 0.3229166667 | O169: 0.004166666667 | P169: 1 | Q169: 00:07:00 | R169: 0.7 | T169: 2008-01-11 | U169: 0 | V169: 6 | W169: 0.1 | X169: 7 | Y169: 0.1166666667 | Z169: 2 | AA169: 7 | AB169: 2008 | AC169: 11:30:00 | AD169: 1 | AE169: 5 | AF169: 1 | AG169: 0 | AH169: 1 | AI169: 0 | AJ169: 6 | AK169: 11:30:00 | AL169: 5.3 | AM169: 4.6 | AN169: 5 | AO169: 00:20:00 | AP169: 16:01:00 | AQ169: 100 | AR169: 2.7 | AS169: 6 | AT169: 6.9
A170: Fri | B170: Jan | C170: 11 | D170: 2008 | E170: 12:00:00 | F170: 7 | G170: 6 | H170: 0 | I170: 0 | J170: 1 | K170: 2 | L170: 57 | M170: 04:51:00 | N170: 0.1430555556 | O170: 0.009722222222 | P170: 2 | Q170: 03:15:00 | R170: 0.51 | T170: 2008-01-11 | U170: 0.1428571429 | V170: 14 | W170: 0.2333333333 | X170: 195 | Y170: 3.25 | Z170: 2 | AA170: 7 | AB170: 2008 | AC170: 12:00:00 | AD170: 1 | AE170: 3 | AF170: 1 | AG170: 0 | AH170: 1 | AI170: 0 | AJ170: 4 | AK170: 12:00:00 | AL170: 4 | AM170: 2.7 | AN170: 7 | AO170: 00:20:00 | AP170: 08:17:00 | AQ170: 63 | AR170: 1.9 | AS170: 5 | AT170: 7.5
A171: Fri | B171: Jan | C171: 11 | D171: 2008 | E171: 12:30:00 | F171: 8 | G171: 7 | H171: 0 | I171: 1 | J171: 0 | K171: 7 | L171: 13 | M171: 09:17:00 | N171: 0.08333333333 | O171: 0.08125 | P171: 2 | Q171: 03:57:00 | R171: 1.5 | T171: 2008-01-11 | U171: 0 | V171: 117 | W171: 1.95 | X171: 237 | Y171: 3.95 | Z171: 2 | AA171: 7 | AB171: 2008 | AC171: 12:30:00 | AD171: 1 | AE171: 2 | AF171: 1 | AG171: 0 | AH171: 1 | AI171: 0 | AJ171: 3 | AK171: 12:30:00 | AL171: 3 | AM171: 2 | AN171: 8 | AO171: 00:20:00 | AP171: 11:17:00 | AQ171: 13 | AR171: 3 | AS171: 7 | AT171: 10.8
A172: Fri | B172: Jan | C172: 11 | D172: 2008 | E172: 13:00:00 | F172: 8 | G172: 6 | H172: 0 | I172: 0 | J172: 2 | K172: 3 | L172: 38 | M172: 05:04:00 | N172: 0.1215277778 | O172: 0.04791666667 | P172: 2 | Q172: 06:44:00 | R172: 0.79 | T172: 2008-01-11 | U172: 0.25 | V172: 69 | W172: 1.15 | X172: 404 | Y172: 6.733333333 | Z172: 2 | AA172: 7 | AB172: 2008 | AC172: 13:00:00 | AD172: 1 | AE172: 3 | AF172: 1 | AG172: 0 | AH172: 1 | AI172: 0 | AJ172: 4 | AK172: 13:00:00 | AL172: 2.4 | AM172: 2.1 | AN172: 8 | AO172: 00:20:00 | AP172: 07:59:00 | AQ172: 50 | AR172: 2.1 | AS172: 5 | AT172: 5.7
A173: Fri | B173: Jan | C173: 11 | D173: 2008 | E173: 13:30:00 | F173: 6 | G173: 6 | H173: 0 | I173: 0 | J173: 0 | K173: 2 | L173: 67 | M173: 03:26:00 | N173: 0.2743055556 | O173: 0.02569444444 | P173: 1 | Q173: 02:35:00 | R173: 0.4 | T173: 2008-01-11 | U173: 0 | V173: 37 | W173: 0.6166666667 | X173: 155 | Y173: 2.583333333 | Z173: 2 | AA173: 7 | AB173: 2008 | AC173: 13:30:00 | AD173: 1 | AE173: 3 | AF173: 1 | AG173: 0 | AH173: 1 | AI173: 0 | AJ173: 4 | AK173: 13:30:00 | AL173: 3 | AM173: 2.7 | AN173: 6 | AO173: 00:20:00 | AP173: 10:01:00 | AQ173: 67 | AR173: 2 | AS173: 5 | AT173: 5.5
A174: Fri | B174: Jan | C174: 11 | D174: 2008 | E174: 14:00:00 | F174: 6 | G174: 5 | H174: 0 | I174: 0 | J174: 1 | K174: 1 | L174: 67 | M174: 05:08:00 | N174: 0.1840277778 | O174: 0.01875 | P174: 1 | Q174: 01:58:00 | R174: 0.48 | T174: 2008-01-11 | U174: 0.1666666667 | V174: 27 | W174: 0.45 | X174: 118 | Y174: 1.966666667 | Z174: 2 | AA174: 7 | AB174: 2008 | AC174: 14:00:00 | AD174: 1 | AE174: 3 | AF174: 1 | AG174: 0 | AH174: 0 | AI174: 0 | AJ174: 4 | AK174: 14:00:00 | AL174: 4.1 | AM174: 2.1 | AN174: 6 | AO174: 00:20:00 | AP174: 09:33:00 | AQ174: 71 | AR174: 1.9 | AS174: 5 | AT174: 9.9
A175: Fri | B175: Jan | C175: 11 | D175: 2008 | E175: 14:30:00 | F175: 4 | G175: 4 | H175: 0 | I175: 0 | J175: 0 | K175: 0 | L175: 100 | M175: 04:08:00 | N175: 0.2659722222 | O175: 0.002777777778 | P175: 1 | Q175: 00:05:00 | R175: 0.28 | T175: 2008-01-11 | U175: 0 | V175: 4 | W175: 0.06666666667 | X175: 5 | Y175: 0.08333333333 | Z175: 2 | AA175: 7 | AB175: 2008 | AC175: 14:30:00 | AD175: 1 | AE175: 3 | AF175: 1 | AG175: 0 | AH175: 1 | AI175: 0 | AJ175: 4 | AK175: 14:30:00 | AL175: 4.7 | AM175: 3.1 | AN175: 4 | AO175: 00:20:00 | AP175: 10:31:00 | AQ175: 100 | AR175: 1.4 | AS175: 4 | AT175: 6.1
A176: Fri | B176: Jan | C176: 11 | D176: 2008 | E176: 15:00:00 | F176: 6 | G176: 5 | H176: 0 | I176: 0 | J176: 1 | K176: 2 | L176: 50 | M176: 05:52:00 | N176: 0.3847222222 | O176: 0.01458333333 | P176: 1 | Q176: 00:54:00 | R176: 0.52 | T176: 2008-01-11 | U176: 0.1666666667 | V176: 21 | W176: 0.35 | X176: 54 | Y176: 0.9 | Z176: 2 | AA176: 7 | AB176: 2008 | AC176: 15:00:00 | AD176: 1 | AE176: 3 | AF176: 1 | AG176: 0 | AH176: 1 | AI176: 0 | AJ176: 4 | AK176: 15:00:00 | AL176: 3.4 | AM176: 3 | AN176: 6 | AO176: 00:20:00 | AP176: 15:06:00 | AQ176: 57 | AR176: 3 | AS176: 7 | AT176: 8
A177: Fri | B177: Jan | C177: 11 | D177: 2008 | E177: 15:30:00 | F177: 4 | G177: 4 | H177: 0 | I177: 0 | J177: 0 | K177: 0 | L177: 100 | M177: 05:53:00 | N177: 0.1888888889 | O177: 0.002777777778 | P177: 1 | Q177: 00:05:00 | R177: 0.4 | T177: 2008-01-11 | U177: 0 | V177: 4 | W177: 0.06666666667 | X177: 5 | Y177: 0.08333333333 | Z177: 2 | AA177: 7 | AB177: 2008 | AC177: 15:30:00 | AD177: 1 | AE177: 2 | AF177: 1 | AG177: 0 | AH177: 1 | AI177: 0 | AJ177: 3 | AK177: 15:30:00 | AL177: 2.9 | AM177: 2.8 | AN177: 4 | AO177: 00:20:00 | AP177: 10:25:00 | AQ177: 100 | AR177: 1.4 | AS177: 4 | AT177: 4.1
A178: Fri | B178: Jan | C178: 11 | D178: 2008 | E178: 16:00:00 | F178: 10 | G178: 7 | H178: 0 | I178: 0 | J178: 3 | K178: 0 | L178: 70 | M178: 05:16:00 | N178: 0.1534722222 | O178: 0.003472222222 | P178: 2 | Q178: 01:03:00 | R178: 0.64 | T178: 2008-01-11 | U178: 0.3 | V178: 5 | W178: 0.08333333333 | X178: 63 | Y178: 1.05 | Z178: 2 | AA178: 7 | AB178: 2008 | AC178: 16:00:00 | AD178: 1 | AE178: 2 | AF178: 1 | AG178: 0 | AH178: 1 | AI178: 0 | AJ178: 3 | AK178: 16:00:00 | AL178: 3 | AM178: 2.7 | AN178: 10 | AO178: 00:20:00 | AP178: 08:57:00 | AQ178: 77 | AR178: 3 | AS178: 6 | AT178: 6.6
A179: Fri | B179: Jan | C179: 11 | D179: 2008 | E179: 16:30:00 | F179: 4 | G179: 3 | H179: 0 | I179: 0 | J179: 1 | K179: 1 | L179: 50 | M179: 11:01:00 | N179: 0.3208333333 | O179: 0.01805555556 | P179: 1 | Q179: 01:04:00 | R179: 0.59 | T179: 2008-01-11 | U179: 0.25 | V179: 26 | W179: 0.4333333333 | X179: 64 | Y179: 1.066666667 | Z179: 2 | AA179: 7 | AB179: 2008 | AC179: 16:30:00 | AD179: 1 | AE179: 2 | AF179: 1 | AG179: 0 | AH179: 1 | AI179: 0 | AJ179: 3 | AK179: 16:30:00 | AL179: 3 | AM179: 2.9 | AN179: 4 | AO179: 00:20:00 | AP179: 18:43:00 | AQ179: 60 | AR179: 2.5 | AS179: 6 | AT179: 6.1
A180: Fri | B180: Jan | C180: 11 | D180: 2008 | E180: 17:00:00 | F180: 2 | G180: 1 | H180: 0 | I180: 0 | J180: 1 | K180: 0 | L180: 50 | M180: 16:41:00 | N180: 0.2159722222 | O180: 0.002083333333 | P180: 1 | Q180: 01:31:00 | R180: 0.3 | T180: 2008-01-11 | U180: 0.5 | V180: 3 | W180: 0.05 | X180: 91 | Y180: 1.516666667 | Z180: 2 | AA180: 7 | AB180: 2008 | AC180: 17:00:00 | AD180: 1 | AE180: 1 | AF180: 0 | AG180: 0 | AH180: 0 | AI180: 0 | AJ180: 2 | AK180: 17:00:00 | AL180: 1.3 | AM180: 1.2 | AN180: 2 | AO180: 00:20:00 | AP180: 21:52:00 | AQ180: 67 | AR180: 1.5 | AS180: 5 | AT180: 5.4
A181: Fri | B181: Jan | C181: 11 | D181: 2008 | E181: 17:30:00 | F181: 0 | G181: 0 | H181: 0 | I181: 0 | J181: 0 | K181: 0 | L181: 100 | M181: 00:00:00 | N181: 0 | O181: 0 | P181: 0 | Q181: 00:00:00 | R181: 0 | T181: 2008-01-11 | U181: 0 | V181: 0 | W181: 0 | X181: 0 | Y181: 0 | Z181: 2 | AA181: 7 | AB181: 2008 | AC181: 17:30:00 | AD181: 1 | AE181: 1 | AF181: 0 | AG181: 0 | AH181: 0 | AI181: 0 | AJ181: 2 | AK181: 17:30:00 | AL181: 1 | AM181: 1 | AN181: 0 | AO181: 00:20:00 | AP181: 00:00:00 | AQ181: 100 | AR181: 0 | AS181: 0 | AT181: 0
A182: Mon | B182: Jan | C182: 14 | D182: 2008 | E182: 08:00:00 | F182: 0 | G182: 0 | H182: 0 | I182: 0 | J182: 0 | K182: 0 | L182: 0 | M182: 0 | N182: 0 | O182: 0 | P182: 0 | Q182: 0 | R182: 0 | T182: 2008-01-14 | U182: 0 | V182: 0 | W182: 0 | X182: 0 | Y182: 0 | Z182: 3 | AA182: 7 | AB182: 2008 | AC182: 08:00:00 | AD182: 1 | AE182: 1 | AF182: 0 | AG182: 0 | AH182: 1 | AI182: 0 | AJ182: 2 | AK182: 08:00:00 | AL182: 1.7 | AM182: 1.2 | AN182: 1 | AO182: 00:20:00 | AP182: 1.296527778 | AQ182: 100 | AR182: 1 | AS182: 4 | AT182: 5.6
A183: Mon | B183: Jan | C183: 14 | D183: 2008 | E183: 08:30:00 | F183: 2 | G183: 2 | H183: 0 | I183: 0 | J183: 0 | K183: 1 | L183: 50 | M183: 11:28:00 | N183: 0.5930555556 | O183: 0.1965277778 | P183: 1 | Q183: 09:21:00 | R183: 0.54 | T183: 2008-01-14 | U183: 0 | V183: 283 | W183: 4.716666667 | X183: 561 | Y183: 9.35 | Z183: 3 | AA183: 7 | AB183: 2008 | AC183: 08:30:00 | AD183: 1 | AE183: 2 | AF183: 0 | AG183: 0 | AH183: 1 | AI183: 0 | AJ183: 3 | AK183: 08:30:00 | AL183: 2.2 | AM183: 1.8 | AN183: 2 | AO183: 00:20:00 | AP183: 1.070833333 | AQ183: 50 | AR183: 1.7 | AS183: 5 | AT183: 6
A184: Mon | B184: Jan | C184: 14 | D184: 2008 | E184: 09:00:00 | F184: 3 | G184: 3 | H184: 0 | I184: 0 | J184: 0 | K184: 0 | L184: 100 | M184: 01:54:00 | N184: 0.4597222222 | O184: 0.004166666667 | P184: 1 | Q184: 00:13:00 | R184: 0.1 | T184: 2008-01-14 | U184: 0 | V184: 6 | W184: 0.1 | X184: 13 | Y184: 0.2166666667 | Z184: 3 | AA184: 7 | AB184: 2008 | AC184: 09:00:00 | AD184: 1 | AE184: 3 | AF184: 1 | AG184: 0 | AH184: 1 | AI184: 0 | AJ184: 4 | AK184: 09:00:00 | AL184: 3.8 | AM184: 3.4 | AN184: 3 | AO184: 00:20:00 | AP184: 12:56:00 | AQ184: 100 | AR184: 1.3 | AS184: 4 | AT184: 4.4
A185: Mon | B185: Jan | C185: 14 | D185: 2008 | E185: 09:30:00 | F185: 6 | G185: 5 | H185: 0 | I185: 0 | J185: 1 | K185: 2 | L185: 50 | M185: 10:01:00 | N185: 0.3958333333 | O185: 0.1826388889 | P185: 3 | Q185: 10:45:00 | R185: 1.33 | T185: =DATE(D185,MONTH(DATEVALUE(CONCATENATE("1/",B185,"/2007"))),C185) -> 2008-01-14 | U185: =IF(F185<>0,J185/F185,0) -> 0.1666666667 | V185: =HOUR(O185)*60+(MINUTE(O185)) -> 263 | W185: =HOUR(O185)+(MINUTE(O185)/60) -> 4.383333333 | X185: =HOUR(Q185)*60+(MINUTE(Q185)) -> 645 | Y185: =HOUR(Q185)+(MINUTE(Q185)/60) -> 10.75 | Z185: 3 | AA185: =IF(MONTH(T185)>6,MONTH(T185)-6,MONTH(T185)+6) -> 7 | AB185: =IF(AA185<=6,YEAR(T185)+1,YEAR(T185)) -> 2008 | AC185: 09:30:00 | AD185: 1 | AE185: 2 | AF185: 2 | AG185: 0 | AH185: 1 | AI185: 0 | AJ185: 3 | AK185: 09:30:00 | AL185: 3.9 | AM185: 3.8 | AN185: 6 | AO185: 00:20:00 | AP185: 19:31:00 | AQ185: 57 | AR185: 3.9 | AS185: 8 | AT185: 8.4
A186: Mon | B186: Jan | C186: 14 | D186: 2008 | E186: 10:00:00 | F186: 7 | G186: 7 | H186: 0 | I186: 0 | J186: 0 | K186: 4 | L186: 43 | M186: 13:54:00 | N186: 0.1847222222 | O186: 0.06041666667 | P186: 1 | Q186: 03:57:00 | R186: 1.79 | T186: 2008-01-14 | U186: 0 | V186: 87 | W186: 1.45 | X186: 237 | Y186: 3.95 | Z186: 3 | AA186: 7 | AB186: 2008 | AC186: 10:00:00 | AD186: 1 | AE186: 3 | AF186: 2 | AG186: 0 | AH186: 1 | AI186: 0 | AJ186: 4 | AK186: 10:00:00 | AL186: 4.3 | AM186: 3.9 | AN186: 7 | AO186: 00:20:00 | AP186: 18:20:00 | AQ186: 43 | AR186: 4.3 | AS186: 9 | AT186: 9.8
A187: Mon | B187: Jan | C187: 14 | D187: 2008 | E187: 10:30:00 | F187: 5 | G187: 5 | H187: 0 | I187: 0 | J187: 0 | K187: 0 | L187: 100 | M187: 07:40:00 | N187: 0.175 | O187: 0.002083333333 | P187: 1 | Q187: 00:04:00 | R187: 0.64 | T187: 2008-01-14 | U187: 0 | V187: 3 | W187: 0.05 | X187: 4 | Y187: 0.06666666667 | Z187: 3 | AA187: 7 | AB187: 2008 | AC187: 10:30:00 | AD187: 1 | AE187: 4 | AF187: 2 | AG187: 0 | AH187: 1 | AI187: 0 | AJ187: 5 | AK187: 10:30:00 | AL187: 4.7 | AM187: 3.7 | AN187: 5 | AO187: 00:20:00 | AP187: 11:52:00 | AQ187: 100 | AR187: 2 | AS187: 5 | AT187: 6.3
A188: Mon | B188: Jan | C188: 14 | D188: 2008 | E188: 11:00:00 | F188: 5 | G188: 5 | H188: 0 | I188: 0 | J188: 0 | K188: 0 | L188: 100 | M188: 05:00:00 | N188: 0.4291666667 | O188: 0.004861111111 | P188: 1 | Q188: 00:10:00 | R188: 0.43 | T188: 2008-01-14 | U188: 0 | V188: 7 | W188: 0.1166666667 | X188: 10 | Y188: 0.1666666667 | Z188: 3 | AA188: 7 | AB188: 2008 | AC188: 11:00:00 | AD188: 1 | AE188: 5 | AF188: 1 | AG188: 0 | AH188: 1 | AI188: 0 | AJ188: 6 | AK188: 11:00:00 | AL188: 5.6 | AM188: 4.7 | AN188: 5 | AO188: 00:20:00 | AP188: 15:18:00 | AQ188: 100 | AR188: 2.5 | AS188: 6 | AT188: 7.1
A189: Mon | B189: Jan | C189: 14 | D189: 2008 | E189: 11:30:00 | F189: 7 | G189: 7 | H189: 0 | I189: 0 | J189: 0 | K189: 0 | L189: 100 | M189: 09:13:00 | N189: 0.2923611111 | O189: 0.004166666667 | P189: 1 | Q189: 00:11:00 | R189: 1.09 | T189: 2008-01-14 | U189: 0 | V189: 6 | W189: 0.1 | X189: 11 | Y189: 0.1833333333 | Z189: 3 | AA189: 7 | AB189: 2008 | AC189: 11:30:00 | AD189: 1 | AE189: 5 | AF189: 1 | AG189: 0 | AH189: 1 | AI189: 0 | AJ189: 6 | AK189: 11:30:00 | AL189: 6 | AM189: 5.9 | AN189: 7 | AO189: 00:20:00 | AP189: 16:14:00 | AQ189: 100 | AR189: 3.8 | AS189: 8 | AT189: 8.1
A190: Mon | B190: Jan | C190: 14 | D190: 2008 | E190: 12:00:00 | F190: 10 | G190: 9 | H190: 0 | I190: 1 | J190: 0 | K190: 1 | L190: 90 | M190: 01:27:00 | N190: 0.2416666667 | O190: 0.004861111111 | P190: 1 | Q190: 00:25:00 | R190: 0.26 | T190: 2008-01-14 | U190: 0 | V190: 7 | W190: 0.1166666667 | X190: 25 | Y190: 0.4166666667 | Z190: 3 | AA190: 7 | AB190: 2008 | AC190: 12:00:00 | AD190: 1 | AE190: 4 | AF190: 1 | AG190: 0 | AH190: 1 | AI190: 1 | AJ190: 6 | AK190: 12:00:00 | AL190: 4.2 | AM190: 3.9 | AN190: 10 | AO190: 00:20:00 | AP190: 07:15:00 | AQ190: 90 | AR190: 2.4 | AS190: 5 | AT190: 5.5
A191: Mon | B191: Jan | C191: 14 | D191: 2008 | E191: 12:30:00 | F191: 3 | G191: 3 | H191: 0 | I191: 0 | J191: 0 | K191: 0 | L191: 100 | M191: 05:52:00 | N191: 0.2840277778 | O191: 0.003472222222 | P191: 1 | Q191: 00:07:00 | R191: 0.3 | T191: 2008-01-14 | U191: 0 | V191: 5 | W191: 0.08333333333 | X191: 7 | Y191: 0.1166666667 | Z191: 3 | AA191: 7 | AB191: 2008 | AC191: 12:30:00 | AD191: 1 | AE191: 4 | AF191: 1 | AG191: 0 | AH191: 1 | AI191: 1 | AJ191: 6 | AK191: 12:30:00 | AL191: 4.9 | AM191: 3.8 | AN191: 3 | AO191: 00:20:00 | AP191: 12:41:00 | AQ191: 100 | AR191: 1.3 | AS191: 4 | AT191: 5.2
A192: Mon | B192: Jan | C192: 14 | D192: 2008 | E192: 13:00:00 | F192: 3 | G192: 3 | H192: 0 | I192: 0 | J192: 0 | K192: 0 | L192: 100 | M192: 03:44:00 | N192: 0.2506944444 | O192: 0.002083333333 | P192: 1 | Q192: 00:07:00 | R192: 0.19 | T192: 2008-01-14 | U192: 0 | V192: 3 | W192: 0.05 | X192: 7 | Y192: 0.1166666667 | Z192: 3 | AA192: 7 | AB192: 2008 | AC192: 13:00:00 | AD192: 1 | AE192: 4 | AF192: 1 | AG192: 0 | AH192: 1 | AI192: 1 | AJ192: 6 | AK192: 13:00:00 | AL192: 5.7 | AM192: 4.9 | AN192: 3 | AO192: 00:20:00 | AP192: 09:45:00 | AQ192: 100 | AR192: 1 | AS192: 4 | AT192: 4.7
A193: Mon | B193: Jan | C193: 14 | D193: 2008 | E193: 13:30:00 | F193: 7 | G193: 7 | H193: 0 | I193: 0 | J193: 0 | K193: 1 | L193: 86 | M193: 15:58:00 | N193: 0.2347222222 | O193: 0.004861111111 | P193: 1 | Q193: 00:26:00 | R193: 1.88 | T193: 2008-01-14 | U193: 0 | V193: 7 | W193: 0.1166666667 | X193: 26 | Y193: 0.4333333333 | Z193: 3 | AA193: 7 | AB193: 2008 | AC193: 13:30:00 | AD193: 1 | AE193: 3 | AF193: 1 | AG193: 0 | AH193: 1 | AI193: 1 | AJ193: 5 | AK193: 13:30:00 | AL193: 5.3 | AM193: 4.7 | AN193: 7 | AO193: 00:20:00 | AP193: 21:36:00 | AQ193: 86 | AR193: 5 | AS193: 10 | AT193: 11.4
A194: Mon | B194: Jan | C194: 14 | D194: 2008 | E194: 14:00:00 | F194: 6 | G194: 5 | H194: 0 | I194: 0 | J194: 1 | K194: 0 | L194: 83 | M194: 06:16:00 | N194: 0.4729166667 | O194: 0.002777777778 | P194: 2 | Q194: 06:48:00 | R194: 0.53 | T194: 2008-01-14 | U194: 0.1666666667 | V194: 4 | W194: 0.06666666667 | X194: 408 | Y194: 6.8 | Z194: 3 | AA194: 7 | AB194: 2008 | AC194: 14:00:00 | AD194: 1 | AE194: 3 | AF194: 1 | AG194: 0 | AH194: 1 | AI194: 0 | AJ194: 4 | AK194: 14:00:00 | AL194: 3.9 | AM194: 2.8 | AN194: 6 | AO194: 00:20:00 | AP194: 17:37:00 | AQ194: 86 | AR194: 3.5 | AS194: 8 | AT194: 11.2
A195: Mon | B195: Jan | C195: 14 | D195: 2008 | E195: 14:30:00 | F195: 7 | G195: 6 | H195: 0 | I195: 0 | J195: 1 | K195: 6 | L195: 0 | M195: 06:04:00 | N195: 0.1097222222 | O195: 0.2451388889 | P195: 2 | Q195: 12:26:00 | R195: 1.2 | T195: 2008-01-14 | U195: 0.1428571429 | V195: 353 | W195: 5.883333333 | X195: 746 | Y195: 12.43333333 | Z195: =WEEKNUM(T195) -> 3 | AA195: 7 | AB195: 2008 | AC195: 14:30:00 | AD195: 1 | AE195: 3 | AF195: 1 | AG195: 0 | AH195: 1 | AI195: 0 | AJ195: =SUM(AD195:AE195,AI195) -> 4 | AK195: 14:30:00 | AL195: 1.9 | AM195: 1.6 | AN195: 7 | AO195: 00:20:00 | AP195: 08:42:00 | AQ195: 13 | AR195: 2 | AS195: 5 | AT195: 5.7
A196: Mon | B196: Jan | C196: 14 | D196: 2008 | E196: 15:00:00 | F196: 6 | G196: 6 | H196: 0 | I196: 0 | J196: 0 | K196: 2 | L196: 67 | M196: 03:14:00 | N196: 0.1541666667 | O196: 0.05625 | P196: 1 | Q196: 04:52:00 | R196: 0.46 | T196: 2008-01-14 | U196: 0 | V196: 81 | W196: 1.35 | X196: 292 | Y196: 4.866666667 | Z196: 3 | AA196: 7 | AB196: 2008 | AC196: 15:00:00 | AD196: 1 | AE196: 2 | AF196: 1 | AG196: 0 | AH196: 1 | AI196: 0 | AJ196: 3 | AK196: 15:00:00 | AL196: 2.3 | AM196: 2.1 | AN196: 6 | AO196: 00:20:00 | AP196: 06:56:00 | AQ196: 67 | AR196: 1.4 | AS196: 4 | AT196: 4.5
A197: Mon | B197: Jan | C197: 14 | D197: 2008 | E197: 15:30:00 | F197: 2 | G197: 2 | H197: 0 | I197: 0 | J197: 0 | K197: 0 | L197: 100 | M197: 02:25:00 | N197: 0.4819444444 | O197: 0.004166666667 | P197: 1 | Q197: 00:07:00 | R197: 0.08 | T197: 2008-01-14 | U197: 0 | V197: 6 | W197: 0.1 | X197: 7 | Y197: 0.1166666667 | Z197: 3 | AA197: 7 | AB197: 2008 | AC197: 15:30:00 | AD197: 1 | AE197: 2 | AF197: 1 | AG197: 0 | AH197: 1 | AI197: 0 | AJ197: 3 | AK197: 15:30:00 | AL197: 3 | AM197: 2.4 | AN197: 2 | AO197: 00:20:00 | AP197: 13:59:00 | AQ197: 100 | AR197: 0.9 | AS197: 4 | AT197: 5
A198: Mon | B198: Jan | C198: 14 | D198: 2008 | E198: 16:00:00 | F198: 4 | G198: 4 | H198: 0 | I198: 0 | J198: 0 | K198: 1 | L198: 75 | M198: 10:18:00 | N198: 0.2319444444 | O198: 0.009722222222 | P198: 1 | Q198: 00:33:00 | R198: 0.7 | T198: 2008-01-14 | U198: 0 | V198: 14 | W198: 0.2333333333 | X198: 33 | Y198: 0.55 | Z198: 3 | AA198: 7 | AB198: 2008 | AC198: 16:00:00 | AD198: 1 | AE198: 1 | AF198: 1 | AG198: 0 | AH198: 1 | AI198: 0 | AJ198: 2 | AK198: 16:00:00 | AL198: 2.8 | AM198: 2.7 | AN198: 4 | AO198: 00:20:00 | AP198: 15:52:00 | AQ198: 75 | AR198: 2.1 | AS198: 6 | AT198: 6.2
A199: Mon | B199: Jan | C199: 14 | D199: 2008 | E199: 16:30:00 | F199: 2 | G199: 2 | H199: 0 | I199: 0 | J199: 0 | K199: 0 | L199: 100 | M199: 10:00:00 | N199: 0.4916666667 | O199: 0.00625 | P199: 1 | Q199: 00:10:00 | R199: 0.34 | T199: 2008-01-14 | U199: 0 | V199: 9 | W199: 0.15 | X199: 10 | Y199: 0.1666666667 | Z199: 3 | AA199: 7 | AB199: 2008 | AC199: 16:30:00 | AD199: 1 | AE199: 1 | AF199: 1 | AG199: 0 | AH199: 1 | AI199: 0 | AJ199: 2 | AK199: 16:30:00 | AL199: 2.9 | AM199: 2.4 | AN199: 2 | AO199: 00:20:00 | AP199: 21:48:00 | AQ199: 100 | AR199: 1.5 | AS199: 5 | AT199: 6
A200: Mon | B200: Jan | C200: 14 | D200: 2008 | E200: 17:00:00 | F200: 3 | G200: 3 | H200: 0 | I200: 0 | J200: 0 | K200: 0 | L200: 100 | M200: 09:47:00 | N200: 0.4 | O200: 0.004166666667 | P200: 1 | Q200: 00:12:00 | R200: 0.49 | T200: 2008-01-14 | U200: 0 | V200: 6 | W200: 0.1 | X200: 12 | Y200: 0.2 | Z200: 3 | AA200: 7 | AB200: 2008 | AC200: 17:00:00 | AD200: 1 | AE200: 1 | AF200: 0 | AG200: 0 | AH200: 0 | AI200: 0 | AJ200: 2 | AK200: 17:00:00 | AL200: 2 | AM200: 2 | AN200: 3 | AO200: 00:20:00 | AP200: 19:23:00 | AQ200: 100 | AR200: 1.9 | AS200: 6 | AT200: 6
... 925 more rows

Sheet Monthly Pivots
A1: Calls Offered | G1: Avg Wait Time | M1: Avg Wait Time | Q1: Max Wait Time | U1: Max Wait Time
G2: minutes | M2: seconds | Q2: seconds | U2: minutes
B4: Values | H4: Values | N4: Values | R4: Values | V4: Values
A5: Row Labels | B5: Average of Offered | C5: Max of Offered | G5: Row Labels | H5: Average of Wait(m) | I5: Max of Wait(m) | M5: Row Labels | N5: Average of Wait(s) | O5: Max of Wait(s) | Q5: Row Labels | R5: Average of MaxWait(s) | S5: Max of MaxWait(s) | U5: Row Labels | V5: Average of MaxWait(m) | W5: Max of MaxWait(m)
A6: 2009 | B6: 97.91129032 | C6: 199 | G6: 2009 | H6: 0.8899193548 | I6: 4.316666667 | M6: 2009 | N6: 53.39516129 | O6: 259 | Q6: 2009 | R6: 578.3427419 | S6: 1342 | U6: 2009 | V6: 9.639045699 | W6: 22.36666667
A7: 1 | B7: 113.5 | C7: 199 | G7: 1 | H7: 1.55 | I7: 4.316666667 | M7: 1 | N7: 93 | O7: 259 | Q7: 1 | R7: 742.2727273 | S7: 1266 | U7: 1 | V7: 12.37121212 | W7: 21.1
A8: 2 | B8: 125.6666667 | C8: 170 | G8: 2 | H8: 1.312698413 | I8: 2.516666667 | M8: 2 | N8: 78.76190476 | O8: 151 | Q8: 2 | R8: 705.2857143 | S8: 1049 | U8: 2 | V8: 11.7547619 | W8: 17.48333333
A9: 3 | B9: 134.5238095 | C9: 196 | G9: 3 | H9: 1.334126984 | I9: 2.516666667 | M9: 3 | N9: 80.04761905 | O9: 151 | Q9: 3 | R9: 668.7619048 | S9: 1275 | U9: 3 | V9: 11.14603175 | W9: 21.25
A10: 4 | B10: 100.2272727 | C10: 132 | G10: 4 | H10: 0.8878787879 | I10: 1.866666667 | M10: 4 | N10: 53.27272727 | O10: 112 | Q10: 4 | R10: 661.4090909 | S10: 1238 | U10: 4 | V10: 11.02348485 | W10: 20.63333333
A11: 5 | B11: 97.76470588 | C11: 126 | G11: 5 | H11: 0.7843137255 | I11: 1.166666667 | M11: 5 | N11: 47.05882353 | O11: 70 | Q11: 5 | R11: 663.4117647 | S11: 1290 | U11: 5 | V11: 11.05686275 | W11: 21.5
A12: 6 | B12: 80.0952381 | C12: 116 | G12: 6 | H12: 0.6365079365 | I12: 1.833333333 | L12: =GETPIVOTDATA("Average of Wait(m)",$G$4,"FYMonth",7,"FYYear",2008)*60 ->  | M12: 6 | N12: 38.19047619 | O12: 110 | Q12: 6 | R12: 512.6666667 | S12: 1342 | U12: 6 | V12: 8.544444444 | W12: 22.36666667
A13: 7 | B13: 93.05 | C13: 127 | D13: Per Qtr | G13: 7 | H13: 0.5166666667 | I13: 1.066666667 | M13: 7 | N13: 31 | O13: 64 | P13: Per Qtr | Q13: 7 | R13: 414.45 | S13: 749 | U13: 7 | V13: 6.9075 | W13: 12.48333333
A14: 8 | B14: 99.05263158 | C14: 133 | D14: =AVERAGE(B12:B14) -> 90.73262322 | G14: 8 | H14: 0.8780701754 | I14: 1.783333333 | M14: 8 | N14: 52.68421053 | O14: 107 | P14: =AVERAGE(N12:N14) -> 40.62489557 | Q14: 8 | R14: 575.9473684 | S14: 901 | U14: 8 | V14: 9.599122807 | W14: 15.01666667
A15: 9 | B15: 87.04545455 | C15: 112 | G15: 9 | H15: 0.8287878788 | I15: 1.683333333 | M15: 9 | N15: 49.72727273 | O15: 101 | Q15: 9 | R15: 582.3181818 | S15: 1164 | U15: 9 | V15: 9.70530303 | W15: 19.4
A16: 10 | B16: 79.85714286 | C16: 99 | G16: 10 | H16: 0.6246031746 | I16: 1.533333333 | M16: 10 | N16: 37.47619048 | O16: 92 | Q16: 10 | R16: 509.047619 | S16: 1101 | U16: 10 | V16: 8.484126984 | W16: 18.35
A17: 11 | B17: 76.15 | C17: 100 | G17: 11 | H17: 0.6325 | I17: 1.4 | M17: 11 | N17: 37.95 | O17: 84 | Q17: 11 | R17: 430.65 | S17: 722 | U17: 11 | V17: 7.1775 | W17: 12.03333333
A18: 12 | B18: 87 | C18: 119 | G18: 12 | H18: 0.6257575758 | I18: 1.3 | M18: 12 | N18: 37.54545455 | O18: 78 | Q18: 12 | R18: 468.3181818 | S18: 783 | U18: 12 | V18: 7.80530303 | W18: 13.05
A19: 2010 | B19: 96.73255814 | C19: 184 | G19: 2010 | H19: 0.857751938 | I19: 3.083333333 | M19: 2010 | N19: 51.46511628 | O19: 185 | Q19: 2010 | R19: 536.5174419 | S19: 1417 | U19: 2010 | V19: 8.941957364 | W19: 23.61666667
A20: 1 | B20: 105.9130435 | C20: 171 | G20: 1 | H20: 0.7724637681 | I20: 1.383333333 | M20: 1 | N20: 46.34782609 | O20: 83 | Q20: 1 | R20: 525.2608696 | S20: 1032 | U20: 1 | V20: 8.754347826 | W20: 17.2
A21: 2 | B21: 122.6190476 | C21: 184 | G21: 2 | H21: 1.066666667 | I21: 2.3 | M21: 2 | N21: 64 | O21: 138 | Q21: 2 | R21: 545.3809524 | S21: 1149 | U21: 2 | V21: 9.08968254 | W21: 19.15
A22: 3 | B22: 112.8571429 | C22: 162 | G22: 3 | H22: 0.719047619 | I22: 1.166666667 | M22: 3 | N22: 43.14285714 | O22: 70 | Q22: 3 | R22: 475.047619 | S22: 841 | U22: 3 | V22: 7.917460317 | W22: 14.01666667
A23: 4 | B23: 80.71428571 | C23: 101 | G23: 4 | H23: 0.6349206349 | I23: 1.3 | M23: 4 | N23: 38.0952381 | O23: 78 | Q23: 4 | R23: 473.952381 | S23: 911 | U23: 4 | V23: 7.899206349 | W23: 15.18333333
A24: 5 | B24: 93.61111111 | C24: 113 | G24: 5 | H24: 0.7407407407 | I24: 2.1 | M24: 5 | N24: 44.44444444 | O24: 126 | Q24: 5 | R24: 505.4444444 | S24: 948 | U24: 5 | V24: 8.424074074 | W24: 15.8
A25: 6 | B25: 77.9 | C25: 107 | G25: 6 | H25: 1.098333333 | I25: 3.083333333 | M25: 6 | N25: 65.9 | O25: 185 | Q25: 6 | R25: 628 | S25: 1128 | U25: 6 | V25: 10.46666667 | W25: 18.8
A26: 7 | B26: 95.26315789 | C26: 126 | G26: 7 | H26: 0.6447368421 | I26: 1.983333333 | M26: 7 | N26: 38.68421053 | O26: 119 | Q26: 7 | R26: 479.2105263 | S26: 1060 | U26: 7 | V26: 7.986842105 | W26: 17.66666667
A27: 8 | B27: 88.84210526 | C27: 153 | G27: 8 | H27: 1.116666667 | I27: 2.983333333 | M27: 8 | N27: 67 | O27: 179 | Q27: 8 | R27: 631.7894737 | S27: 1318 | U27: 8 | V27: 10.52982456 | W27: 21.96666667
A28: 9 | B28: 82.1 | C28: 107 | G28: 9 | H28: 1.016666667 | I28: 2.133333333 | M28: 9 | N28: 61 | O28: 128 | Q28: 9 | R28: 605.1 | S28: 1417 | U28: 9 | V28: 10.085 | W28: 23.61666667
A29: Grand Total | B29: 97.42857143 | C29: 199 | G29: Grand Total | H29: 0.8767460317 | I29: 4.316666667 | M29: Grand Total | N29: 52.6047619 | O29: 259 | Q29: Grand Total | R29: 561.2142857 | S29: 1417 | U29: Grand Total | V29: 9.353571429 | W29: 23.61666667
A38: Abandon Rate | G38: Service Level (0:20 expectation) | M38: Agents Manned
M39: hours per day total, in Group 1
B41: Values | H41: Values | N41: Values
A42: Row Labels | B42: Average of Abandon | C42: Max of Abandon | G42: Row Labels | H42: Average of Service Level % | I42: Max of Service Level % | M42: Row Labels | N42: Average of DailyAgentHours | O42: Max of DailyAgentHours
A43: 2009 | B43: 0.1084723441 | C43: 0.3768844221 | G43: 2009 | H43: 64.68145161 | I43: 94 | M43: 2009 | N43: 37.94119624 | O43: 53.95
A44: 1 | B44: 0.1597958011 | C44: 0.3768844221 | G44: 1 | H44: 51.04545455 | I44: 66 | M44: 1 | N44: 35.07575758 | O44: 42.08333333
A45: 2 | B45: 0.1648308016 | C45: 0.2828947368 | G45: 2 | H45: 52.52380952 | I45: 68 | M45: 2 | N45: 35.30793651 | O45: 45.66666667 | P45: Per Qtr
A46: 3 | B46: 0.1703348065 | C46: 0.2738853503 | G46: 3 | H46: 51.38095238 | I46: 77 | M46: 3 | N46: 35.1 | O46: 43.28333333 | P46: =AVERAGE(N44:N46) -> 35.16123136
A47: 4 | B47: 0.1127150787 | C47: 0.2727272727 | G47: 4 | H47: 65.45454545 | I47: 85 | M47: 4 | N47: 39.90606061 | O47: 49.9
A48: 5 | B48: 0.1188589679 | C48: 0.2765957447 | G48: 5 | H48: 66.58823529 | I48: 81 | M48: 5 | N48: 41.75686275 | O48: 48.98333333 | P48: Per Qtr
A49: 6 | B49: 0.1068190864 | C49: 0.3448275862 | G49: 6 | H49: 69.0952381 | I49: 92 | M49: 6 | N49: 34.6984127 | O49: 50.06666667 | P49: =AVERAGE(N47:N49) -> 38.78711202
A50: 7 | B50: 0.06482247578 | C50: 0.1666666667 | G50: 7 | H50: 68.85 | I50: 92 | M50: 7 | N50: 43.12833333 | O50: 53.95
A51: 8 | B51: 0.1110598109 | C51: 0.2242990654 | G51: 8 | H51: 62.63157895 | I51: 89 | M51: 8 | N51: 37.06052632 | O51: 45.36666667 | P51: Per Qtr
A52: 9 | B52: 0.09429871968 | C52: 0.2277227723 | G52: 9 | H52: 66.68181818 | I52: 83 | M52: 9 | N52: 39.20075758 | O52: 42.93333333 | P52: =AVERAGE(N50:N52) -> 39.79653907
A53: 10 | B53: 0.07876441629 | C53: 0.1829268293 | G53: 10 | H53: 74.85714286 | I53: 94 | M53: 10 | N53: 37.57063492 | O53: 49.15
A54: 11 | B54: 0.0612883899 | C54: 0.1594202899 | G54: 11 | H54: 74.2 | I54: 90 | M54: 11 | N54: 36.36666667 | O54: 47.93333333 | P54: Per Qtr
A55: 12 | B55: 0.05648375663 | C55: 0.1272727273 | G55: 12 | H55: 73.77272727 | I55: 90 | M55: 12 | N55: 40.78484848 | O55: 48.95 | P55: =AVERAGE(N53:N55) -> 38.24071669
A56: 2010 | B56: 0.06470443842 | C56: 0.2337662338 | G56: 2010 | H56: 68.48255814 | I56: 100 | M56: 2010 | N56: 38.89786822 | O56: 54.81666667
A57: 1 | B57: 0.07130345165 | C57: 0.1504424779 | G57: 1 | H57: 67.82608696 | I57: 100 | M57: 1 | N57: 42.88115942 | O57: 52.95
A58: 2 | B58: 0.07608810517 | C58: 0.1759259259 | G58: 2 | H58: 60.47619048 | I58: 83 | M58: 2 | N58: 40.20238095 | O58: 52.13333333 | P58: Per Qtr
A59: 3 | B59: 0.0611079804 | C59: 0.1388888889 | G59: 3 | H59: 68 | I59: 87 | M59: 3 | N59: 38.77936508 | O59: 46.61666667 | P59: =AVERAGE(N57:N59) -> 40.62096848
A60: 4 | B60: 0.0468646288 | C60: 0.08860759494 | G60: 4 | H60: 74.42857143 | I60: 90 | M60: 4 | N60: 37.04126984 | O60: 45.35
A61: 5 | B61: 0.05930472226 | C61: 0.1515151515 | G61: 5 | H61: 71.05555556 | I61: 87 | M61: 5 | N61: 39.93796296 | O61: 44.83333333 | P61: Per Qtr
A62: 6 | B62: 0.07838343936 | C62: 0.2337662338 | G62: 6 | H62: 66.5 | I62: 83 | M62: 6 | N62: 33.47083333 | O62: 45.05 | P62: =AVERAGE(N60:N62) -> 36.81668871
A63: 7 | B63: 0.04339619406 | C63: 0.07936507937 | G63: 7 | H63: 74.63157895 | I63: 95 | M63: 7 | N63: 43.62280702 | O63: 54.81666667
A64: 8 | B64: 0.07341996123 | C64: 0.1909090909 | G64: 8 | H64: 66.05263158 | I64: 87 | M64: 8 | N64: 36.27017544 | O64: 44.41666667
A65: 9 | B65: 0.07692482802 | C65: 0.191011236 | G65: 9 | H65: 67.6 | I65: 90 | M65: 9 | N65: 36.14166667 | O65: 41.61666667
A66: Grand Total | B66: 0.09054834464 | C66: 0.3768844221 | G66: Grand Total | H66: 66.23809524 | I66: 100 | M66: Grand Total | N66: 38.33297619 | O66: 54.81666667
A78: Calls Answered | G78: Calls Lost | M78: Truly Answered (Offered - Lost)
B81: Values | E81: % answered | H81: Values
A82: Row Labels | B82: Average of Answered | C82: Max of Answered2 | G82: Row Labels | H82: Average of Lost | I82: Max of Lost2
A83: 2009 | B83: 84.75 | C83: 145 | E83: =B83/B6 -> 0.8655794416 | G83: 2009 | H83: 11.66129032 | I83: 75
A84: 1 | B84: 91.09090909 | C84: 114 | E84: 0.8025630757 | G84: 1 | H84: 19.22727273 | I84: 75 | M84: =B7-H84 -> 94.27272727
A85: 2 | B85: 102.952381 | C85: 127 | E85: 0.8192497158 | G85: 2 | H85: 21.0952381 | I85: 43 | M85: 104.5714286
A86: 3 | B86: 108.047619 | C86: 145 | E86: 0.8031858407 | G86: 3 | H86: 23.9047619 | I86: 47 | M86: 110.6190476
A87: 4 | B87: 86.27272727 | C87: 112 | E87: 0.8607709751 | G87: 4 | H87: 11.81818182 | I87: 36 | M87: 88.40909091
A88: 5 | B88: 84.82352941 | C88: 104 | E88: 0.8676293622 | G88: 5 | H88: 11.88235294 | I88: 27 | M88: 85.88235294
A89: 6 | B89: 70.38095238 | C89: 112 | E89: 0.8787158145 | G89: 6 | H89: 8.428571429 | I89: 20 | M89: 71.66666667
A90: 7 | B90: 85.25 | C90: 113 | E90: 0.9161740999 | G90: 7 | H90: 6.65 | I90: 15 | M90: 86.4
A91: 8 | B91: 85.94736842 | C91: 114 | E91: 0.8676939426 | G91: 8 | H91: 11.47368421 | I91: 24 | M91: =B14-H91 -> 87.57894737
A92: 9 | B92: 77.18181818 | C92: 100 | E92: 0.8866840731 | G92: 9 | H92: 8.545454545 | I92: 23 | M92: 78.5
A93: 10 | B93: 72.80952381 | C93: 92 | E93: 0.9117471676 | G93: 10 | H93: 6.428571429 | I93: 16 | M93: 73.42857143
A94: 11 | B94: 70.7 | C94: 92 | E94: 0.9284307288 | G94: 11 | H94: 4.8 | I94: 14 | M94: 71.35
A95: 12 | B95: 81.18181818 | C95: 109 | E95: =B95/B18 -> 0.9331243469 | G95: 12 | H95: 5.227272727 | I95: 14 | M95: 81.77272727
A96: 2010 | B96: 89.02325581 | C96: 157 | E96: 0.920302921 | G96: 2010 | H96: 6.686046512 | I96: 28 | M96: 90.04651163
A97: 1 | B97: 96.60869565 | C97: 157 | E97: 0.9121510673 | G97: 1 | H97: 8.130434783 | I97: 17 | M97: 97.7826087
A98: 2 | B98: 110.952381 | C98: 155 | E98: 0.9048543689 | G98: 2 | H98: 9.80952381 | I98: 28 | M98: 112.8095238
A99: 3 | B99: 104.5714286 | C99: 140 | E99: 0.9265822785 | G99: 3 | H99: 7.380952381 | I99: 20 | M99: 105.4761905
A100: 4 | B100: 76.42857143 | C100: 96 | E100: 0.9469026549 | G100: 4 | H100: 3.857142857 | I100: 7 | M100: 76.85714286
A101: 5 | B101: 87.11111111 | C101: 107 | E101: 0.9305637982 | G101: 5 | H101: 5.722222222 | I101: 15 | M101: 87.88888889
A102: 6 | B102: 70.45 | C102: 95 | E102: 0.90436457 | G102: 6 | H102: 6.3 | I102: 18 | M102: 71.6
A103: 7 | B103: 90.10526316 | C103: 120 | E103: 0.9458563536 | G103: 7 | H103: 4.315789474 | I103: 10 | M103: 90.94736842
A104: 8 | B104: 80.21052632 | C104: 124 | E104: 0.9028436019 | G104: 8 | H104: 7.473684211 | I104: 23 | M104: 81.36842105
A105: 9 | B105: 74.6 | C105: 94 | E105: 0.9086479903 | G105: 9 | H105: 6.8 | I105: 17
A106: Grand Total | B106: 86.5 | C106: 157 | E106: 0.887829912 | G106: Grand Total | H106: 9.623809524 | I106: 75

Sheet Long-Term History
A1: Date | B1: Minutes/Day | C1: Hrs/Day | D1: Calls/Day | E1: Ans % | F1: Abdn % | G1: Wait (s) | H1: Length (s)
A2: 2003-07-01 | B2: 3761.363636 | C2: =B2/60 -> 62.68939394 | D2: 139.6818182 | E2: 85.83181818 | F2: 12.67272727 | G2: 50.95454545 | H2: 383.0454545 | I2: FY04
A3: 2003-08-01 | B3: 3536.809524 | C3: 58.9468254 | D3: 186.6666667 | E3: 77.7047619 | F3: 21.26666667 | G3: 103.3333333 | H3: 421.0952381 | J3: =B$1 -> Minutes/Day | K3: Hrs/Day | L3: Calls/Day | M3: Ans % | N3: Abdn % | O3: Wait (s) | P3: Length (s)
A4: 2003-09-01 | B4: 3572 | C4: 59.53333333 | D4: 216.4285714 | E4: 75.01428571 | F4: 24.13333333 | G4: 124.8095238 | H4: 408.4285714 | I4: Q1: | J4: =AVERAGE(B2:B4) -> 3623.391053 | K4: 60.38985089 | L4: 180.9256854 | M4: 79.51695527 | N4: 19.35757576 | O4: 93.03246753 | P4: 404.1897547
A5: 2003-10-01 | B5: 3644.181818 | C5: 60.73636364 | D5: 150.2727273 | E5: 82.84545455 | F5: 16.37727273 | G5: 62.27272727 | H5: 407.5909091
A6: 2003-11-01 | B6: 3638 | C6: 60.63333333 | D6: 121.6470588 | E6: 86.04705882 | F6: 13.47058824 | G6: 45 | H6: 422.9411765 | J6: =B$1 -> Minutes/Day | K6: Hrs/Day | L6: Calls/Day | M6: Ans % | N6: Abdn % | O6: Wait (s) | P6: Length (s)
A7: 2003-12-01 | B7: 3385.5 | C7: 56.425 | D7: 110.8888889 | E7: 89.08333333 | F7: 12.23888889 | G7: 39.05555556 | H7: 367.1111111 | I7: Q2: | J7: =AVERAGE(B5:B7) -> 3555.893939 | K7: 59.26489899 | L7: 127.6028917 | M7: 85.9919489 | N7: 14.02891662 | O7: 48.77609428 | P7: 399.2143989
A8: 2004-01-01 | B8: 3999.368421 | C8: 66.65614035 | D8: 119.3157895 | E8: 90.32631579 | F8: 9.352631579 | G8: 32 | H8: 426.2631579
A9: 2004-02-01 | B9: 3122.947368 | C9: 52.04912281 | D9: 123.4736842 | E9: 87.51578947 | F9: 11.98421053 | G9: 50.31578947 | H9: 363.5789474 | J9: =B$1 -> Minutes/Day | K9: Hrs/Day | L9: Calls/Day | M9: Ans % | N9: Abdn % | O9: Wait (s) | P9: Length (s)
A10: 2004-03-01 | B10: 2818.73913 | C10: 46.97898551 | D10: 124.3043478 | E10: 86.33043478 | F10: 13.1 | G10: 41.52173913 | H10: 406.0434783 | I10: Q3 | J10: =AVERAGE(B8:B10) -> 3313.684973 | K10: 55.22808289 | L10: 122.3646072 | M10: 88.05751335 | N10: 11.47894737 | O10: 41.2791762 | P10: 398.6285278
A11: 2004-04-01 | B11: 2385.714286 | C11: 39.76190476 | D11: 114 | E11: 87.17619048 | F11: 11.8047619 | G11: 36.9047619 | H11: 429.6190476
A12: 2004-05-01 | B12: 2334.85 | C12: 38.91416667 | D12: 109.2 | E12: 86.83 | F12: 12.17 | G12: 37.1 | H12: 421.2 | J12: =B$1 -> Minutes/Day | K12: Hrs/Day | L12: Calls/Day | M12: Ans % | N12: Abdn % | O12: Wait (s) | P12: Length (s)
A13: 2004-06-04 | B13: 2416.681818 | C13: 40.2780303 | D13: 98.54545455 | E13: 93.38181818 | F13: 6.309090909 | G13: 22.95454545 | H13: 399.2272727 | I13: Q4 | J13: =AVERAGE(B11:B13) -> 2379.082035 | K13: 39.65136724 | L13: 107.2484848 | M13: 89.12933622 | N13: 10.0946176 | O13: 32.31976912 | P13: 416.6821068
A14: 2004-07-04 | B14: 2361.708333 | C14: 39.36180556 | D14: 107.875 | E14: 92.175 | F14: 7.408333333 | G14: 23.66666667 | H14: 389.0416667 | I14: FY05 | R14: Annual
A15: 2004-08-01 | B15: 2021.5 | C15: 33.69166667 | D15: 129.5454545 | E15: 87.55454545 | F15: 11.66818182 | G15: 42.36363636 | H15: 351.0909091 | J15: =B$1 -> Minutes/Day | K15: Hrs/Day | L15: Calls/Day | M15: Ans % | N15: Abdn % | O15: Wait (s) | P15: Length (s) | R15: =J15 -> Minutes/Day | S15: =L15 -> Calls/Day | T15: =M15 -> Ans % | U15: =N15 -> Abdn % | V15: =O15 -> Wait (s) | W15: =P15 -> Length (s)
A16: 2004-09-04 | B16: 1978.095238 | C16: 32.96825397 | D16: 139.9047619 | E16: 77.85714286 | F16: 20.5 | G16: 89.80952381 | H16: 394 | I16: Q1: | J16: =AVERAGE(B14:B16) -> 2120.434524 | K16: 35.3405754 | L16: 125.7750722 | M16: 85.86222944 | N16: 13.19217172 | O16: 51.94660895 | P16: 378.0441919 | R16: =AVERAGE(J16:J25) -> 2289.842936 | S16: =AVERAGE(L16:L25) -> 108.9417748 | T16: =AVERAGE(M16:M25) -> 88.04257973 | U16: =AVERAGE(N16:N25) -> 11.20754477 | V16: =AVERAGE(O16:O25) -> 42.39177534 | W16: =AVERAGE(P16:P25) -> 410.0767071
A17: 2004-10-04 | B17: 1970.4 | C17: 32.84 | D17: 109.7 | E17: 81.945 | F17: 16.665 | G17: 69.7 | H17: 396.85 | R17: =R16/60 -> 38.16404893
A18: 2004-11-04 | B18: 2421.842105 | C18: 40.36403509 | D18: 98.63157895 | E18: 88.54210526 | F18: 10.80526316 | G18: 45.36842105 | H18: 444 | J18: =B$1 -> Minutes/Day | K18: Hrs/Day | L18: Calls/Day | M18: Ans % | N18: Abdn % | O18: Wait (s) | P18: Length (s)
A19: 2004-12-04 | B19: 2158.021277 | C19: 35.96702128 | D19: 106.2978723 | E19: 84.24255319 | F19: 14.61914894 | G19: 61.61702128 | H19: 421.4255319 | I19: Q2: | J19: =AVERAGE(B17:B19) -> 2183.421127 | K19: 36.39035212 | L19: 104.8764838 | M19: 84.90988615 | N19: 14.02980403 | O19: 58.89514744 | P19: 420.7585106
A20: 2005-01-01 | B20: 2517.35 | C20: 41.95583333 | D20: 109.55 | E20: 90.465 | F20: 8.685 | G20: 31.85 | H20: 438.75
A21: 2005-02-01 | B21: 2443.210526 | C21: 40.72017544 | D21: 106.1578947 | E21: 91.02105263 | F21: 8.521052632 | G21: 31.78947368 | H21: 389.1052632 | J21: =B$1 -> Minutes/Day | K21: Hrs/Day | L21: Calls/Day | M21: Ans % | N21: Abdn % | O21: Wait (s) | P21: Length (s)
A22: 2005-03-01 | B22: 2514.869565 | C22: 41.91449275 | D22: 106.3478261 | E22: 91.12173913 | F22: 8.42173913 | G22: 25.69565217 | H22: 417.0434783 | I22: Q3 | J22: =AVERAGE(B20:B22) -> 2491.810031 | K22: 41.53016718 | L22: 107.3519069 | M22: 90.86926392 | N22: 8.542597254 | O22: 29.77837529 | P22: 414.9662471
A23: 2005-04-04 | B23: 2388.5 | C23: 39.80833333 | D23: 95.75 | E23: 91.345 | F23: 8.34 | G23: 26.05 | H23: 418.25
A24: 2005-05-01 | B24: 2234.3 | C24: 37.23833333 | D24: 98.45 | E24: 89.31 | F24: 9.975 | G24: 33.7 | H24: 427.5 | J24: =B$1 -> Minutes/Day | K24: Hrs/Day | L24: Calls/Day | M24: Ans % | N24: Abdn % | O24: Wait (s) | P24: Length (s)
A25: 2005-06-04 | B25: 2468.318182 | C25: 41.13863636 | D25: 99.09090909 | E25: 90.93181818 | F25: 8.881818182 | G25: 27.09090909 | H25: 433.8636364 | I25: Q4 | J25: =AVERAGE(B23:B25) -> 2363.706061 | K25: 39.39510101 | L25: 97.76363636 | M25: 90.52893939 | N25: 9.065606061 | O25: 28.9469697 | P25: 426.5378788
A26: 2005-07-01 | B26: 2559.65 | C26: 42.66083333 | D26: 111.2 | E26: 93.11413404 | F26: 6.536289462 | G26: 24.45 | H26: 436.15 | I26: FY06 | R26: Annual
A27: 2005-08-01 | B27: 2318.608696 | C27: 38.64347826 | D27: 118.9565217 | E27: 89.66366868 | F27: 9.899910692 | G27: 40.86956522 | H27: 457 | J27: =B$1 -> Minutes/Day | K27: Hrs/Day | L27: Calls/Day | M27: Ans % | N27: Abdn % | O27: Wait (s) | P27: Length (s) | R27: =J27 -> Minutes/Day | S27: =L27 -> Calls/Day | T27: =M27 -> Ans % | U27: =N27 -> Abdn % | V27: =O27 -> Wait (s) | W27: =P27 -> Length (s)
A28: 2005-09-01 | B28: 2120.333333 | C28: 35.33888889 | D28: 125.6666667 | E28: 84.46486324 | F28: 14.58374281 | G28: 58.71428571 | H28: 437.3333333 | I28: Q1: | J28: =AVERAGE(B26:B28) -> 2332.86401 | K28: 38.88106683 | L28: 118.6077295 | M28: 89.08088865 | N28: 10.33998099 | O28: 41.34461698 | P28: 443.4944444 | R28: =AVERAGE(J28:J37) -> 2205.704699 | S28: =AVERAGE(L28:L37) -> 101.4182654 | T28: =AVERAGE(M28:M37) -> 89.64864013 | U28: =AVERAGE(N28:N37) -> 9.811538495 | V28: =AVERAGE(O28:O37) -> 36.09766759 | W28: =AVERAGE(P28:P37) -> 426.0485352
A29: 2005-10-01 | B29: 2129.35 | C29: 35.48916667 | D29: 99.85 | E29: 88.50585278 | F29: 10.89675552 | G29: 40.35 | H29: 452.95 | R29: =R28/60 -> 36.76174498
A30: 2005-11-01 | B30: 2322.684211 | C30: 38.71140351 | D30: 96.21052632 | E30: 89.94796138 | F30: 9.539929792 | G30: 35.36842105 | H30: 455.9473684 | J30: =B$1 -> Minutes/Day | K30: Hrs/Day | L30: Calls/Day | M30: Ans % | N30: Abdn % | O30: Wait (s) | P30: Length (s)
A31: 2005-12-01 | B31: 2047.666667 | C31: 34.12777778 | D31: 82.52380952 | E31: 89.88677977 | F31: 9.766981662 | G31: 27.85714286 | H31: 416.2380952 | I31: Q2: | J31: =AVERAGE(B29:B31) -> 2166.566959 | K31: 36.10944932 | L31: 92.86144528 | M31: 89.44686464 | N31: 10.06788899 | O31: 34.52518797 | P31: 441.7118212
A32: 2006-01-01 | B32: 2202.05 | C32: 36.70083333 | D32: 103.25 | E32: 89.49276587 | F32: 9.926035064 | G32: 38.7 | H32: 441.45
A33: 2006-02-01 | B33: 2394.578947 | C33: 39.90964912 | D33: 115.8947368 | E33: 92.48859738 | F33: 7.241623774 | G33: 29.57894737 | H33: 393.3157895 | J33: =B$1 -> Minutes/Day | K33: Hrs/Day | L33: Calls/Day | M33: Ans % | N33: Abdn % | O33: Wait (s) | P33: Length (s)
A34: 2006-03-01 | B34: 2228.608696 | C34: 37.14347826 | D34: 92.04347826 | E34: 91.45224443 | F34: 7.990790963 | G34: 32.39130435 | H34: 424.173913 | I34: Q3 | J34: =AVERAGE(B32:B34) -> 2275.079214 | K34: 37.91798691 | L34: 103.729405 | M34: 91.1445359 | N34: 8.386149934 | O34: 33.55675057 | P34: 419.6465675
A35: 2006-04-01 | B35: 2251.789474 | C35: 37.52982456 | D35: 94.10526316 | E35: 89.865314 | F35: 9.559264837 | G35: 30.21052632 | H35: 396.8421053
A36: 2006-05-01 | B36: 1855 | C36: 30.91666667 | D36: 79 | E36: 89.87352412 | F36: 9.469136013 | G36: 35.13636364 | H36: 387.7272727 | J36: =B$1 -> Minutes/Day | K36: Hrs/Day | L36: Calls/Day | M36: Ans % | N36: Abdn % | O36: Wait (s) | P36: Length (s)
A37: 2006-06-01 | B37: 2038.136364 | C37: 33.96893939 | D37: 98.31818182 | E37: 87.02797581 | F37: 12.32800136 | G37: 39.54545455 | H37: 413.4545455 | I37: Q4 | J37: =AVERAGE(B35:B37) -> 2048.308612 | K37: 34.13847687 | L37: 90.47448166 | M37: 88.92227131 | N37: 10.45213407 | O37: 34.96411483 | P37: 399.3413078
A38: 2006-07-01 | B38: 2261.8 | C38: 37.69666667 | D38: 135.85 | E38: 84.99281292 | F38: 14.3857466 | G38: 59.85 | H38: 417.8 | I38: FY07 | R38: Annual
A39: 2006-08-01 | B39: 1961.956522 | C39: 32.69927536 | D39: 126 | E39: 84.02948552 | F39: 14.74865139 | G39: 60.73913043 | H39: 417.6521739 | J39: =B$1 -> Minutes/Day | K39: Hrs/Day | L39: Calls/Day | M39: Ans % | N39: Abdn % | O39: Wait (s) | P39: Length (s) | R39: =J39 -> Minutes/Day | S39: =L39 -> Calls/Day | T39: =M39 -> Ans % | U39: =N39 -> Abdn % | V39: =O39 -> Wait (s) | W39: =P39 -> Length (s)
A40: 2006-09-01 | B40: 1882.35 | C40: 31.3725 | D40: 125.85 | E40: 81.25935245 | F40: 17.7510722 | G40: 63.05 | H40: 416.05 | I40: Q1: | J40: =AVERAGE(B38:B40) -> 2035.368841 | K40: 33.92281401 | L40: 129.2333333 | M40: 83.42721696 | N40: 15.62849006 | O40: 61.21304348 | P40: 417.1673913 | Q40: =J40/60 -> 33.92281401 | R40: =AVERAGE(J40:J49) -> 2062.346623 | S40: =AVERAGE(L40:L49) -> 102.6600592 | T40: =AVERAGE(M40:M49) -> 88.11806642 | U40: =AVERAGE(N40:N49) -> 11.20662924 | V40: =AVERAGE(O40:O49) -> 40.89733697 | W40: =AVERAGE(P40:P49) -> 401.9491146
A41: 2006-10-01 | B41: 2015.571429 | C41: 33.59285714 | D41: 92.52380952 | E41: 88.44824556 | F41: 10.8180891 | G41: 44.95238095 | H41: 431.8571429 | R41: =R40/60 -> 34.37244371
A42: 2006-11-01 | B42: 2092.947368 | C42: 34.88245614 | D42: 98.52631579 | E42: 89.64407258 | F42: 9.665672284 | G42: 39.73684211 | H42: 391.6315789 | J42: =B$1 -> Minutes/Day | K42: Hrs/Day | L42: Calls/Day | M42: Ans % | N42: Abdn % | O42: Wait (s) | P42: Length (s)
A43: 2006-12-01 | B43: 1833.8 | C43: 30.56333333 | D43: 74.7 | E43: 91.52690781 | F43: 8.283845923 | G43: 30.1 | H43: 404.25 | I43: Q2: | J43: =AVERAGE(B41:B43) -> 1980.772932 | K43: 33.01288221 | L43: 88.5833751 | M43: 89.87307532 | N43: 9.589202436 | O43: 38.26307435 | P43: 409.2462406 | Q43: =J43/60 -> 33.01288221
A44: 2007-01-01 | B44: 1891.761905 | C44: 31.52936508 | D44: 105.047619 | E44: 86.93557102 | F44: 12.0635662 | G44: 40.9047619 | H44: 398.1428571
A45: 2007-02-01 | B45: 2166.421053 | C45: 36.10701754 | D45: 99.05263158 | E45: 88.84772891 | F45: 10.62937608 | G45: 33.52631579 | H45: 408.7368421 | J45: =B$1 -> Minutes/Day | K45: Hrs/Day | L45: Calls/Day | M45: Ans % | N45: Abdn % | O45: Wait (s) | P45: Length (s)
A46: 2007-03-01 | B46: 2092.409091 | C46: 34.87348485 | D46: 113.9545455 | E46: 88.17512082 | F46: 11.21054196 | G46: 36.54545455 | H46: 385.2727273 | I46: Q3 | J46: =AVERAGE(B44:B46) -> 2050.197349 | K46: 34.16995582 | L46: 106.0182654 | M46: 87.98614025 | N46: 11.30116141 | O46: 36.99217741 | P46: 397.3841422
A47: 2007-04-01 | B47: 2227.2 | C47: 37.12 | D47: 98.4 | E47: 89.40503505 | F47: 9.936302845 | G47: 29.4 | H47: 374.05
A48: 2007-05-01 | B48: 2138.894737 | C48: 35.64824561 | D48: 75.21052632 | E48: 92.96663128 | F48: 6.679023231 | G48: 24.84210526 | H48: 393.9473684 | J48: =B$1 -> Minutes/Day | K48: Hrs/Day | L48: Calls/Day | M48: Ans % | N48: Abdn % | O48: Wait (s) | P48: Length (s)
A49: 2007-06-01 | I49: Q4 | J49: =AVERAGE(B47:B49) -> 2183.047368 | K49: 36.38412281 | L49: 86.80526316 | M49: 91.18583316 | N49: 8.307663038 | O49: 27.12105263 | P49: 383.9986842 | Q49: =J49/60 -> 36.38412281
A50: 2007-07-01 | I50: FY08
A51: 2007-08-01 | B51: 1787.952381 | C51: 29.79920635 | D51: 128.9130435 | E51: 78.81956155 | F51: 10 | G51: 46.73913043 | J51: =B$1 -> Minutes/Day | K51: Hrs/Day | L51: Calls/Day | M51: Ans % | N51: Abdn % | O51: Wait (s) | P51: Length (s)
A52: 2007-09-01 | B52: 1985.263158 | C52: 33.0877193 | D52: 121.3157895 | E52: 83.99132321 | F52: 14 | G52: 71.89473684 | I52: Q1: | J52: =AVERAGE(B50:B52) -> 1886.607769 | K52: 31.44346282 | L52: 125.1144165 | M52: 81.40544238 | N52: 12 | O52: 59.31693364
A53: 2007-10-01 | B53: 2058 | C53: 34.3 | D53: 107.5454545 | E53: 81.74133559 | F53: 16 | G53: 68.04545455
A54: 2007-11-01 | B54: 2125.105263 | C54: 35.41842105 | D54: 113.1052632 | E54: 80.45602606 | F54: 16 | G54: 84.31578947 | J54: =B$1 -> Minutes/Day | K54: Hrs/Day | L54: Calls/Day | M54: Ans % | N54: Abdn % | O54: Wait (s) | P54: Length (s)
A55: 2007-12-01 | B55: 1840.5 | C55: 30.675 | D55: 86.5 | E55: 85.9344894 | F55: 12 | G55: 61.5 | I55: Q2: | J55: =AVERAGE(B53:B55) -> 2007.868421 | K55: 33.46447368 | L55: 102.3835726 | M55: 82.71061702 | N55: 14.66666667 | O55: 71.28708134
A56: 2008-01-01 | B56: 2064.571429 | C56: 34.40952381 | D56: 98 | E56: 89.79591837 | F56: 9.2 | G56: 56 | R56: =(92-87)/92 -> 0.05434782609
